Workbook

Sheet Startside
B8: Socialpsykiatriens Nøgletal
B11: Version 1.2
B15: Socialpsykiatriens Nøgletal er udviklet til kommuner, der arbejder med omlægning mod en mere recovery-orienteret og rehabiliterende indsats på området for socialpsykiatrien. Med redskabet kan kommuner følge omlægningen på en række centrale nøgletal, som er udvalgt i partnerskab mellem Social- og Boligstyrelsen og partnerskabskommunerne Roskilde, Herning, Randers og Rudersdal.
B16: Omlægningen til en mere recovery-orienteret og rehabiliterende indsats bygger på en række principper, der alle er forbundne. Alle principper skal opfyldes før end en fuld omlægning har fundet sted. Principperne er udviklet i samarbejde mellem Social- og Boligstyrelsen og partnerskabskommunerne og tager udgangspunkt i personlig recovery.
B17: I forlængelse af tilgangen om recovery-orienteret rehabilitering er der udviklet en indsatstrappe for socialpsykiatrien. Socialpsykiatriens Indsatstrappe illustrerer, hvor tæt borgerne er på et almindeligt hverdagsliv. De forskellige indsatser er placeret på trappens trin, afhængigt af hvor langt borgere, der modtager indsatsen, generelt vurderes at være fra et almindeligt hverdagsliv. På de nederste trin er borgerne tæt på et almindeligt hverdagsliv, mens borgerne på de øverste trin er langt fra et almindeligt hverdagsliv. Socialpsykiatriens Indsatstrappe belyst ved nøgletal kan vise progression for den samlede målgruppe.

Sheet Opbygning
B3: Redskabets opbygning
B6: Redskabet er opbygget i trin, som vist til højre. Efter forsiden, og denne side med introduktion til redskabet og dets opbygning, skal du foretage de grundlæggende valg for din analyse. Herunder, hvilken kommune du vil arbejde med og, hvilke du vil sammenligne med. Under "Registerdata" kan du se data for de nøgletal, der kan belyses med nationale registerdata. Under "Egne indtastninger", kan du indtaste data for de nøgletal, som ikke kan belyses med nationale registerdata. Under "Nøgletalsanalyse" kan du se udviklingen i de enkelte nøgletal, og sammenligne med et gennemsnit for dine valgte sammenligningskommuner og et landsgennemsnit. Den røde bjælke øverst er en navigationsbjælke. Herfra kan du tilgå de enkelte sider. Foruden førnævnte sider kan du bruge printikonet, hvis du ønsker til at udskrive en rapport med udvalgte nøgletal.

Sheet Dine valg
B3: Dine valg
B5: Før du går igang med at bruge redskabet, skal du tage stilling til, hvilken kommune du ønsker at se nøgletal for. Desuden kan du vælge op til syv kommuner, som du gerne vil sammenligne den valgte kommune med. Når du har foretaget dit valg, har du tre muligheder: 1. Du kan se nøgletallene over tid og sammenligne med andre aktører ved at bruge knappen "Nøgletalsanalyse". 2. Du kan se datagrundlaget for de nøgletal, der kan understøttes af registerdata ved at bruge knappen "Registerdata". 3. Du kan se datagrundlaget for de nøgletal, som du selv har indtastet, ved at bruge knappen "Egne indtastninger".
K7: Kommuner:
K8: Allerød
K9: Assens
K10: Ballerup
B23: Vælg kommune | D23: Vælg sammenligningsgruppe | G23: Valgte kommuner
B24: =VLOOKUP(Kom_valg,Data!B1072:C1169,2,FALSE) -> Herning | G24: =IF(K8="","",K8) -> Allerød
B25: Data for Dragør er sammenlagt med data for Tårnby, da de to kommuner indberetter handicapydelser samlet til Danmarks Statistik | G25: Assens
G26: Ballerup

Sheet RegNøgletal
B3: Registerdata
B6: En række af nøgletallene i redskabet er baseret på registerdata. På denne side kan du se de registerbaserede nøgletal og se, hvordan de registerebaserede nøgletal for din valgte kommune ændrer sig over tid. Du kan vælge ét nøgletal af gangen, ved at vælge nøgletallet i rullemenuen nedenfor. Du kan se definitionen af det enkelte nøgletal, ved at klikke på infoknappen til venstre for tabellen. Nøgletallet vil blive opgjort fra 2018 til seneste tilgængelige år i data. Der vil årligt blive tilføjet data, når registrene bliver opdateret af Danmarks Statistik. Du kan se alle nøgletal over tid og sammenligne med andre aktører ved at vælge knappen "Nøgletalsanalyse". Bemærk, at nøgletallet angives med *, hvis antallet af observationer er mindre end 3 individer.
B10: Vælg nøgletal
B11: =VLOOKUP(RegNT_valg,Data!E1098:F1112,2,FALSE) -> Nøgletal 1 - Modtagere af længerevarende botilbud
B15: Valgt nøgletal: Nøgletal 1
B17: Nøgletal 1: Modtagere af længerevarende botilbud | D17: 2018-01-01 | E17: 2018-07-01 | F17: 2019-01-01 | G17: 2019-07-01 | H17: 2020-01-01 | I17: 2020-07-01 | J17: 2021-01-01 | K17: 2021-07-01 | L17: 2022-01-01 | M17: 2022-07-01 | N17: 2023-01-01
B18: =IF(Kommune="","Kommune",Kommune) -> Herning | D18: 20181 | E18: 20182 | F18: 20191 | G18: 20192 | H18: 20201 | I18: 20202 | J18: 20211 | K18: 20212 | L18: 20221 | M18: 20222 | N18: 20231
B19: Andel | D19: =IF(Datanedslag>D17,IF(OR(D20="*",D21="*"),"*",IF(D21=0,0,(D20/D21))),IF(Datanedslag=D17,IF(OR(D20="*",D21="*"),"*",IF(D21=0,0,(D20/D21))),"")) -> 0.04938271605 | E19: =IF(Datanedslag>E17,IF(OR(E20="*",E21="*"),"*",IF(E21=0,0,(E20/E21))),IF(Datanedslag=E17,IF(OR(E20="*",E21="*"),"*",IF(E21=0,0,(E20/E21))),"")) -> 0.0515970516 | F19: =IF(Datanedslag>F17,IF(OR(F20="*",F21="*"),"*",IF(F21=0,0,(F20/F21))),IF(Datanedslag=F17,IF(OR(F20="*",F21="*"),"*",IF(F21=0,0,(F20/F21))),"")) -> 0.05641025641 | G19: =IF(Datanedslag>G17,IF(OR(G20="*",G21="*"),"*",IF(G21=0,0,(G20/G21))),IF(Datanedslag=G17,IF(OR(G20="*",G21="*"),"*",IF(G21=0,0,(G20/G21))),"")) -> 0.05882352941 | H19: =IF(Datanedslag>H17,IF(OR(H20="*",H21="*"),"*",IF(H21=0,0,(H20/H21))),IF(Datanedslag=H17,IF(OR(H20="*",H21="*"),"*",IF(H21=0,0,(H20/H21))),"")) -> 0.06060606061 | I19: =IF(Datanedslag>I17,IF(OR(I20="*",I21="*"),"*",IF(I21=0,0,(I20/I21))),IF(Datanedslag=I17,IF(OR(I20="*",I21="*"),"*",IF(I21=0,0,(I20/I21))),"")) -> 0.05483028721 | J19: =IF(Datanedslag>J17,IF(OR(J20="*",J21="*"),"*",IF(J21=0,0,(J20/J21))),IF(Datanedslag=J17,IF(OR(J20="*",J21="*"),"*",IF(J21=0,0,(J20/J21))),"")) -> 0.0518134715 | K19: =IF(Datanedslag>K17,IF(OR(K20="*",K21="*"),"*",IF(K21=0,0,(K20/K21))),IF(Datanedslag=K17,IF(OR(K20="*",K21="*"),"*",IF(K21=0,0,(K20/K21))),"")) -> 0.04859335038 | L19: =IF(Datanedslag>L17,IF(OR(L20="*",L21="*"),"*",IF(L21=0,0,(L20/L21))),IF(Datanedslag=L17,IF(OR(L20="*",L21="*"),"*",IF(L21=0,0,(L20/L21))),"")) -> 0.04960835509 | M19: =IF(Datanedslag>M17,IF(OR(M20="*",M21="*"),"*",IF(M21=0,0,(M20/M21))),IF(Datanedslag=M17,IF(OR(M20="*",M21="*"),"*",IF(M21=0,0,(M20/M21))),"")) -> 0.05479452055 | N19: =IF(Datanedslag>N17,IF(OR(N20="*",N21="*"),"*",IF(N21=0,0,(N20/N21))),IF(Datanedslag=N17,IF(OR(N20="*",N21="*"),"*",IF(N21=0,0,(N20/N21))),"")) -> 0.05555555556
B20: Antal modtagere | D20: =IF(Datanedslag>=D17,IF(INDEX(Data_kom2,MATCH(1,(komnavn2=Kommune)*(komaar2=D18),0),4)="","*",INDEX(Data_kom2,MATCH(1,(komnavn2=Kommune)*(komaar2=D18),0),4)),"") -> 20 | E20: =IF(Datanedslag>=E17,IF(INDEX(Data_kom2,MATCH(1,(komnavn2=Kommune)*(komaar2=E18),0),4)="","*",INDEX(Data_kom2,MATCH(1,(komnavn2=Kommune)*(komaar2=E18),0),4)),"") -> 21 | F20: =IF(Datanedslag>=F17,IF(INDEX(Data_kom2,MATCH(1,(komnavn2=Kommune)*(komaar2=F18),0),4)="","*",INDEX(Data_kom2,MATCH(1,(komnavn2=Kommune)*(komaar2=F18),0),4)),"") -> 22 | G20: =IF(Datanedslag>=G17,IF(INDEX(Data_kom2,MATCH(1,(komnavn2=Kommune)*(komaar2=G18),0),4)="","*",INDEX(Data_kom2,MATCH(1,(komnavn2=Kommune)*(komaar2=G18),0),4)),"") -> 22 | H20: =IF(Datanedslag>=H17,IF(INDEX(Data_kom2,MATCH(1,(komnavn2=Kommune)*(komaar2=H18),0),4)="","*",INDEX(Data_kom2,MATCH(1,(komnavn2=Kommune)*(komaar2=H18),0),4)),"") -> 22 | I20: =IF(Datanedslag>=I17,IF(INDEX(Data_kom2,MATCH(1,(komnavn2=Kommune)*(komaar2=I18),0),4)="","*",INDEX(Data_kom2,MATCH(1,(komnavn2=Kommune)*(komaar2=I18),0),4)),"") -> 21 | J20: =IF(Datanedslag>=J17,IF(INDEX(Data_kom2,MATCH(1,(komnavn2=Kommune)*(komaar2=J18),0),4)="","*",INDEX(Data_kom2,MATCH(1,(komnavn2=Kommune)*(komaar2=J18),0),4)),"") -> 20 | K20: =IF(Datanedslag>=K17,IF(INDEX(Data_kom2,MATCH(1,(komnavn2=Kommune)*(komaar2=K18),0),4)="","*",INDEX(Data_kom2,MATCH(1,(komnavn2=Kommune)*(komaar2=K18),0),4)),"") -> 19 | L20: =IF(Datanedslag>=L17,IF(INDEX(Data_kom2,MATCH(1,(komnavn2=Kommune)*(komaar2=L18),0),4)="","*",INDEX(Data_kom2,MATCH(1,(komnavn2=Kommune)*(komaar2=L18),0),4)),"") -> 19 | M20: =IF(Datanedslag>=M17,IF(INDEX(Data_kom2,MATCH(1,(komnavn2=Kommune)*(komaar2=M18),0),4)="","*",INDEX(Data_kom2,MATCH(1,(komnavn2=Kommune)*(komaar2=M18),0),4)),"") -> 20 | N20: =IF(Datanedslag>=N17,IF(INDEX(Data_kom2,MATCH(1,(komnavn2=Kommune)*(komaar2=N18),0),4)="","*",INDEX(Data_kom2,MATCH(1,(komnavn2=Kommune)*(komaar2=N18),0),4)),"") -> 20
B21: N | D21: =IF(Datanedslag>=D17,IF(INDEX(Data_kom2,MATCH(1,(komnavn2=Kommune)*(komaar2=D18),0),7)="","*",INDEX(Data_kom2,MATCH(1,(komnavn2=Kommune)*(komaar2=D18),0),7)),"") -> 405 | E21: =IF(Datanedslag>=E17,IF(INDEX(Data_kom2,MATCH(1,(komnavn2=Kommune)*(komaar2=E18),0),7)="","*",INDEX(Data_kom2,MATCH(1,(komnavn2=Kommune)*(komaar2=E18),0),7)),"") -> 407 | F21: =IF(Datanedslag>=F17,IF(INDEX(Data_kom2,MATCH(1,(komnavn2=Kommune)*(komaar2=F18),0),7)="","*",INDEX(Data_kom2,MATCH(1,(komnavn2=Kommune)*(komaar2=F18),0),7)),"") -> 390 | G21: =IF(Datanedslag>=G17,IF(INDEX(Data_kom2,MATCH(1,(komnavn2=Kommune)*(komaar2=G18),0),7)="","*",INDEX(Data_kom2,MATCH(1,(komnavn2=Kommune)*(komaar2=G18),0),7)),"") -> 374 | H21: =IF(Datanedslag>=H17,IF(INDEX(Data_kom2,MATCH(1,(komnavn2=Kommune)*(komaar2=H18),0),7)="","*",INDEX(Data_kom2,MATCH(1,(komnavn2=Kommune)*(komaar2=H18),0),7)),"") -> 363 | I21: =IF(Datanedslag>=I17,IF(INDEX(Data_kom2,MATCH(1,(komnavn2=Kommune)*(komaar2=I18),0),7)="","*",INDEX(Data_kom2,MATCH(1,(komnavn2=Kommune)*(komaar2=I18),0),7)),"") -> 383 | J21: =IF(Datanedslag>=J17,IF(INDEX(Data_kom2,MATCH(1,(komnavn2=Kommune)*(komaar2=J18),0),7)="","*",INDEX(Data_kom2,MATCH(1,(komnavn2=Kommune)*(komaar2=J18),0),7)),"") -> 386 | K21: =IF(Datanedslag>=K17,IF(INDEX(Data_kom2,MATCH(1,(komnavn2=Kommune)*(komaar2=K18),0),7)="","*",INDEX(Data_kom2,MATCH(1,(komnavn2=Kommune)*(komaar2=K18),0),7)),"") -> 391 | L21: =IF(Datanedslag>=L17,IF(INDEX(Data_kom2,MATCH(1,(komnavn2=Kommune)*(komaar2=L18),0),7)="","*",INDEX(Data_kom2,MATCH(1,(komnavn2=Kommune)*(komaar2=L18),0),7)),"") -> 383 | M21: =IF(Datanedslag>=M17,IF(INDEX(Data_kom2,MATCH(1,(komnavn2=Kommune)*(komaar2=M18),0),7)="","*",INDEX(Data_kom2,MATCH(1,(komnavn2=Kommune)*(komaar2=M18),0),7)),"") -> 365 | N21: =IF(Datanedslag>=N17,IF(INDEX(Data_kom2,MATCH(1,(komnavn2=Kommune)*(komaar2=N18),0),7)="","*",INDEX(Data_kom2,MATCH(1,(komnavn2=Kommune)*(komaar2=N18),0),7)),"") -> 360
B22: Anm.: Hvis nøgletallet er angivet med * er der foretaget en diskretionering af data, da der er for få observationer. N angiver målgruppestørrelsen, som er alle borgere registreret med "Sindslidelse" i indberetningen til Danmarks Statistik.
B23: Kilde: Social- og Boligstyrelsens egne beregninger baseret på handicapstiatistikken ved Danmarks Statistik.
B27: Valgt nøgletal: Nøgletal 2
B29: Nøgletal 2: Modtagere af botilbudslignende tilbud | D29: 2018-01-01 | E29: 2018-07-01 | F29: 2019-01-01 | G29: 2019-07-01 | H29: 2020-01-01 | I29: 2020-07-01 | J29: 2021-01-01 | K29: 2021-07-01 | L29: 2022-01-01 | M29: 2022-07-01 | N29: 2023-01-01
B30: =IF(Kommune="","Kommune",Kommune) -> Herning | D30: 20181 | E30: 20182 | F30: 20191 | G30: 20192 | H30: 20201 | I30: 20202 | J30: 20211 | K30: 20212 | L30: 20221 | M30: 20222 | N30: 20231
B31: Andel | D31: =IF(Datanedslag>D29,IF(OR(D32="*",D33="*"),"*",IF(D33=0,0,(D32/D33))),IF(Datanedslag=D29,IF(OR(D32="*",D33="*"),"*",IF(D33=0,0,(D32/D33))),"")) -> 0.1111111111 | E31: =IF(Datanedslag>E29,IF(OR(E32="*",E33="*"),"*",IF(E33=0,0,(E32/E33))),IF(Datanedslag=E29,IF(OR(E32="*",E33="*"),"*",IF(E33=0,0,(E32/E33))),"")) -> 0.1081081081 | F31: =IF(Datanedslag>F29,IF(OR(F32="*",F33="*"),"*",IF(F33=0,0,(F32/F33))),IF(Datanedslag=F29,IF(OR(F32="*",F33="*"),"*",IF(F33=0,0,(F32/F33))),"")) -> 0.1102564103 | G31: =IF(Datanedslag>G29,IF(OR(G32="*",G33="*"),"*",IF(G33=0,0,(G32/G33))),IF(Datanedslag=G29,IF(OR(G32="*",G33="*"),"*",IF(G33=0,0,(G32/G33))),"")) -> 0.1122994652 | H31: =IF(Datanedslag>H29,IF(OR(H32="*",H33="*"),"*",IF(H33=0,0,(H32/H33))),IF(Datanedslag=H29,IF(OR(H32="*",H33="*"),"*",IF(H33=0,0,(H32/H33))),"")) -> 0.1157024793 | I31: =IF(Datanedslag>I29,IF(OR(I32="*",I33="*"),"*",IF(I33=0,0,(I32/I33))),IF(Datanedslag=I29,IF(OR(I32="*",I33="*"),"*",IF(I33=0,0,(I32/I33))),"")) -> 0.1070496084 | J31: =IF(Datanedslag>J29,IF(OR(J32="*",J33="*"),"*",IF(J33=0,0,(J32/J33))),IF(Datanedslag=J29,IF(OR(J32="*",J33="*"),"*",IF(J33=0,0,(J32/J33))),"")) -> 0.1010362694 | K31: =IF(Datanedslag>K29,IF(OR(K32="*",K33="*"),"*",IF(K33=0,0,(K32/K33))),IF(Datanedslag=K29,IF(OR(K32="*",K33="*"),"*",IF(K33=0,0,(K32/K33))),"")) -> 0.09462915601 | L31: =IF(Datanedslag>L29,IF(OR(L32="*",L33="*"),"*",IF(L33=0,0,(L32/L33))),IF(Datanedslag=L29,IF(OR(L32="*",L33="*"),"*",IF(L33=0,0,(L32/L33))),"")) -> 0.09660574413 | M31: =IF(Datanedslag>M29,IF(OR(M32="*",M33="*"),"*",IF(M33=0,0,(M32/M33))),IF(Datanedslag=M29,IF(OR(M32="*",M33="*"),"*",IF(M33=0,0,(M32/M33))),"")) -> 0.09863013699 | N31: =IF(Datanedslag>N29,IF(OR(N32="*",N33="*"),"*",IF(N33=0,0,(N32/N33))),IF(Datanedslag=N29,IF(OR(N32="*",N33="*"),"*",IF(N33=0,0,(N32/N33))),"")) -> 0.09444444444
B32: Antal modtagere | D32: =IF(Datanedslag>=D29,IF(INDEX(Data_kom2,MATCH(1,(komnavn2=Kommune)*(komaar2=D30),0),8)="","*",INDEX(Data_kom2,MATCH(1,(komnavn2=Kommune)*(komaar2=D30),0),8)),"") -> 45 | E32: =IF(Datanedslag>=E29,IF(INDEX(Data_kom2,MATCH(1,(komnavn2=Kommune)*(komaar2=E30),0),8)="","*",INDEX(Data_kom2,MATCH(1,(komnavn2=Kommune)*(komaar2=E30),0),8)),"") -> 44 | F32: =IF(Datanedslag>=F29,IF(INDEX(Data_kom2,MATCH(1,(komnavn2=Kommune)*(komaar2=F30),0),8)="","*",INDEX(Data_kom2,MATCH(1,(komnavn2=Kommune)*(komaar2=F30),0),8)),"") -> 43 | G32: =IF(Datanedslag>=G29,IF(INDEX(Data_kom2,MATCH(1,(komnavn2=Kommune)*(komaar2=G30),0),8)="","*",INDEX(Data_kom2,MATCH(1,(komnavn2=Kommune)*(komaar2=G30),0),8)),"") -> 42 | H32: =IF(Datanedslag>=H29,IF(INDEX(Data_kom2,MATCH(1,(komnavn2=Kommune)*(komaar2=H30),0),8)="","*",INDEX(Data_kom2,MATCH(1,(komnavn2=Kommune)*(komaar2=H30),0),8)),"") -> 42 | I32: =IF(Datanedslag>=I29,IF(INDEX(Data_kom2,MATCH(1,(komnavn2=Kommune)*(komaar2=I30),0),8)="","*",INDEX(Data_kom2,MATCH(1,(komnavn2=Kommune)*(komaar2=I30),0),8)),"") -> 41 | J32: =IF(Datanedslag>=J29,IF(INDEX(Data_kom2,MATCH(1,(komnavn2=Kommune)*(komaar2=J30),0),8)="","*",INDEX(Data_kom2,MATCH(1,(komnavn2=Kommune)*(komaar2=J30),0),8)),"") -> 39 | K32: =IF(Datanedslag>=K29,IF(INDEX(Data_kom2,MATCH(1,(komnavn2=Kommune)*(komaar2=K30),0),8)="","*",INDEX(Data_kom2,MATCH(1,(komnavn2=Kommune)*(komaar2=K30),0),8)),"") -> 37 | L32: =IF(Datanedslag>=L29,IF(INDEX(Data_kom2,MATCH(1,(komnavn2=Kommune)*(komaar2=L30),0),8)="","*",INDEX(Data_kom2,MATCH(1,(komnavn2=Kommune)*(komaar2=L30),0),8)),"") -> 37 | M32: =IF(Datanedslag>=M29,IF(INDEX(Data_kom2,MATCH(1,(komnavn2=Kommune)*(komaar2=M30),0),8)="","*",INDEX(Data_kom2,MATCH(1,(komnavn2=Kommune)*(komaar2=M30),0),8)),"") -> 36 | N32: =IF(Datanedslag>=N29,IF(INDEX(Data_kom2,MATCH(1,(komnavn2=Kommune)*(komaar2=N30),0),8)="","*",INDEX(Data_kom2,MATCH(1,(komnavn2=Kommune)*(komaar2=N30),0),8)),"") -> 34
B33: N | D33: =IF(Datanedslag>=D29,IF(INDEX(Data_kom2,MATCH(1,(komnavn2=Kommune)*(komaar2=D30),0),11)="","*",INDEX(Data_kom2,MATCH(1,(komnavn2=Kommune)*(komaar2=D30),0),11)),"") -> 405 | E33: =IF(Datanedslag>=E29,IF(INDEX(Data_kom2,MATCH(1,(komnavn2=Kommune)*(komaar2=E30),0),11)="","*",INDEX(Data_kom2,MATCH(1,(komnavn2=Kommune)*(komaar2=E30),0),11)),"") -> 407 | F33: =IF(Datanedslag>=F29,IF(INDEX(Data_kom2,MATCH(1,(komnavn2=Kommune)*(komaar2=F30),0),11)="","*",INDEX(Data_kom2,MATCH(1,(komnavn2=Kommune)*(komaar2=F30),0),11)),"") -> 390 | G33: =IF(Datanedslag>=G29,IF(INDEX(Data_kom2,MATCH(1,(komnavn2=Kommune)*(komaar2=G30),0),11)="","*",INDEX(Data_kom2,MATCH(1,(komnavn2=Kommune)*(komaar2=G30),0),11)),"") -> 374 | H33: =IF(Datanedslag>=H29,IF(INDEX(Data_kom2,MATCH(1,(komnavn2=Kommune)*(komaar2=H30),0),11)="","*",INDEX(Data_kom2,MATCH(1,(komnavn2=Kommune)*(komaar2=H30),0),11)),"") -> 363 | I33: =IF(Datanedslag>=I29,IF(INDEX(Data_kom2,MATCH(1,(komnavn2=Kommune)*(komaar2=I30),0),11)="","*",INDEX(Data_kom2,MATCH(1,(komnavn2=Kommune)*(komaar2=I30),0),11)),"") -> 383 | J33: =IF(Datanedslag>=J29,IF(INDEX(Data_kom2,MATCH(1,(komnavn2=Kommune)*(komaar2=J30),0),11)="","*",INDEX(Data_kom2,MATCH(1,(komnavn2=Kommune)*(komaar2=J30),0),11)),"") -> 386 | K33: =IF(Datanedslag>=K29,IF(INDEX(Data_kom2,MATCH(1,(komnavn2=Kommune)*(komaar2=K30),0),11)="","*",INDEX(Data_kom2,MATCH(1,(komnavn2=Kommune)*(komaar2=K30),0),11)),"") -> 391 | L33: =IF(Datanedslag>=L29,IF(INDEX(Data_kom2,MATCH(1,(komnavn2=Kommune)*(komaar2=L30),0),11)="","*",INDEX(Data_kom2,MATCH(1,(komnavn2=Kommune)*(komaar2=L30),0),11)),"") -> 383 | M33: =IF(Datanedslag>=M29,IF(INDEX(Data_kom2,MATCH(1,(komnavn2=Kommune)*(komaar2=M30),0),11)="","*",INDEX(Data_kom2,MATCH(1,(komnavn2=Kommune)*(komaar2=M30),0),11)),"") -> 365 | N33: =IF(Datanedslag>=N29,IF(INDEX(Data_kom2,MATCH(1,(komnavn2=Kommune)*(komaar2=N30),0),11)="","*",INDEX(Data_kom2,MATCH(1,(komnavn2=Kommune)*(komaar2=N30),0),11)),"") -> 360
B34: Anm.: Hvis nøgletallet er angivet med * er der foretaget en diskretionering af data, da der er for få observationer. N angiver målgruppestørrelsen, som er alle borgere registreret med "Sindslidelse" i indberetningen til Danmarks Statistik.
B35: Kilde: Social- og Boligstyrelsens egne beregninger baseret på handicapstiatistikken ved Danmarks Statistik.
B39: Valgt nøgletal: Nøgletal 3
B41: Nøgletal 3: Modtagere af midlertidigt botilbud | D41: 2018-01-01 | E41: 2018-07-01 | F41: 2019-01-01 | G41: 2019-07-01 | H41: 2020-01-01 | I41: 2020-07-01 | J41: 2021-01-01 | K41: 2021-07-01 | L41: 2022-01-01 | M41: 2022-07-01 | N41: 2023-01-01
B42: =IF(Kommune="","Kommune",Kommune) -> Herning | D42: 20181 | E42: 20182 | F42: 20191 | G42: 20192 | H42: 20201 | I42: 20202 | J42: 20211 | K42: 20212 | L42: 20221 | M42: 20222 | N42: 20231
B43: Andel | D43: =IF(Datanedslag>D41,IF(OR(D44="*",D45="*"),"*",IF(D45=0,0,(D44/D45))),IF(Datanedslag=D41,IF(OR(D44="*",D45="*"),"*",IF(D45=0,0,(D44/D45))),"")) -> 0.06913580247 | E43: =IF(Datanedslag>E41,IF(OR(E44="*",E45="*"),"*",IF(E45=0,0,(E44/E45))),IF(Datanedslag=E41,IF(OR(E44="*",E45="*"),"*",IF(E45=0,0,(E44/E45))),"")) -> 0.06388206388 | F43: =IF(Datanedslag>F41,IF(OR(F44="*",F45="*"),"*",IF(F45=0,0,(F44/F45))),IF(Datanedslag=F41,IF(OR(F44="*",F45="*"),"*",IF(F45=0,0,(F44/F45))),"")) -> 0.07179487179 | G43: =IF(Datanedslag>G41,IF(OR(G44="*",G45="*"),"*",IF(G45=0,0,(G44/G45))),IF(Datanedslag=G41,IF(OR(G44="*",G45="*"),"*",IF(G45=0,0,(G44/G45))),"")) -> 0.08021390374 | H43: =IF(Datanedslag>H41,IF(OR(H44="*",H45="*"),"*",IF(H45=0,0,(H44/H45))),IF(Datanedslag=H41,IF(OR(H44="*",H45="*"),"*",IF(H45=0,0,(H44/H45))),"")) -> 0.0826446281 | I43: =IF(Datanedslag>I41,IF(OR(I44="*",I45="*"),"*",IF(I45=0,0,(I44/I45))),IF(Datanedslag=I41,IF(OR(I44="*",I45="*"),"*",IF(I45=0,0,(I44/I45))),"")) -> 0.06788511749 | J43: =IF(Datanedslag>J41,IF(OR(J44="*",J45="*"),"*",IF(J45=0,0,(J44/J45))),IF(Datanedslag=J41,IF(OR(J44="*",J45="*"),"*",IF(J45=0,0,(J44/J45))),"")) -> 0.0621761658 | K43: =IF(Datanedslag>K41,IF(OR(K44="*",K45="*"),"*",IF(K45=0,0,(K44/K45))),IF(Datanedslag=K41,IF(OR(K44="*",K45="*"),"*",IF(K45=0,0,(K44/K45))),"")) -> 0.05882352941 | L43: =IF(Datanedslag>L41,IF(OR(L44="*",L45="*"),"*",IF(L45=0,0,(L44/L45))),IF(Datanedslag=L41,IF(OR(L44="*",L45="*"),"*",IF(L45=0,0,(L44/L45))),"")) -> 0.05483028721 | M43: =IF(Datanedslag>M41,IF(OR(M44="*",M45="*"),"*",IF(M45=0,0,(M44/M45))),IF(Datanedslag=M41,IF(OR(M44="*",M45="*"),"*",IF(M45=0,0,(M44/M45))),"")) -> 0.04657534247 | N43: =IF(Datanedslag>N41,IF(OR(N44="*",N45="*"),"*",IF(N45=0,0,(N44/N45))),IF(Datanedslag=N41,IF(OR(N44="*",N45="*"),"*",IF(N45=0,0,(N44/N45))),"")) -> 0.04166666667
B44: Antal modtagere | D44: =IF(Datanedslag>=D41,IF(INDEX(Data_kom2,MATCH(1,(komnavn2=Kommune)*(komaar2=D42),0),12)="","*",INDEX(Data_kom2,MATCH(1,(komnavn2=Kommune)*(komaar2=D42),0),12)),"") -> 28 | E44: =IF(Datanedslag>=E41,IF(INDEX(Data_kom2,MATCH(1,(komnavn2=Kommune)*(komaar2=E42),0),12)="","*",INDEX(Data_kom2,MATCH(1,(komnavn2=Kommune)*(komaar2=E42),0),12)),"") -> 26 | F44: =IF(Datanedslag>=F41,IF(INDEX(Data_kom2,MATCH(1,(komnavn2=Kommune)*(komaar2=F42),0),12)="","*",INDEX(Data_kom2,MATCH(1,(komnavn2=Kommune)*(komaar2=F42),0),12)),"") -> 28 | G44: =IF(Datanedslag>=G41,IF(INDEX(Data_kom2,MATCH(1,(komnavn2=Kommune)*(komaar2=G42),0),12)="","*",INDEX(Data_kom2,MATCH(1,(komnavn2=Kommune)*(komaar2=G42),0),12)),"") -> 30 | H44: =IF(Datanedslag>=H41,IF(INDEX(Data_kom2,MATCH(1,(komnavn2=Kommune)*(komaar2=H42),0),12)="","*",INDEX(Data_kom2,MATCH(1,(komnavn2=Kommune)*(komaar2=H42),0),12)),"") -> 30 | I44: =IF(Datanedslag>=I41,IF(INDEX(Data_kom2,MATCH(1,(komnavn2=Kommune)*(komaar2=I42),0),12)="","*",INDEX(Data_kom2,MATCH(1,(komnavn2=Kommune)*(komaar2=I42),0),12)),"") -> 26 | J44: =IF(Datanedslag>=J41,IF(INDEX(Data_kom2,MATCH(1,(komnavn2=Kommune)*(komaar2=J42),0),12)="","*",INDEX(Data_kom2,MATCH(1,(komnavn2=Kommune)*(komaar2=J42),0),12)),"") -> 24 | K44: =IF(Datanedslag>=K41,IF(INDEX(Data_kom2,MATCH(1,(komnavn2=Kommune)*(komaar2=K42),0),12)="","*",INDEX(Data_kom2,MATCH(1,(komnavn2=Kommune)*(komaar2=K42),0),12)),"") -> 23 | L44: =IF(Datanedslag>=L41,IF(INDEX(Data_kom2,MATCH(1,(komnavn2=Kommune)*(komaar2=L42),0),12)="","*",INDEX(Data_kom2,MATCH(1,(komnavn2=Kommune)*(komaar2=L42),0),12)),"") -> 21 | M44: =IF(Datanedslag>=M41,IF(INDEX(Data_kom2,MATCH(1,(komnavn2=Kommune)*(komaar2=M42),0),12)="","*",INDEX(Data_kom2,MATCH(1,(komnavn2=Kommune)*(komaar2=M42),0),12)),"") -> 17 | N44: =IF(Datanedslag>=N41,IF(INDEX(Data_kom2,MATCH(1,(komnavn2=Kommune)*(komaar2=N42),0),12)="","*",INDEX(Data_kom2,MATCH(1,(komnavn2=Kommune)*(komaar2=N42),0),12)),"") -> 15
B45: N | D45: =IF(Datanedslag>=D41,IF(INDEX(Data_kom2,MATCH(1,(komnavn2=Kommune)*(komaar2=D42),0),15)="","*",INDEX(Data_kom2,MATCH(1,(komnavn2=Kommune)*(komaar2=D42),0),15)),"") -> 405 | E45: =IF(Datanedslag>=E41,IF(INDEX(Data_kom2,MATCH(1,(komnavn2=Kommune)*(komaar2=E42),0),15)="","*",INDEX(Data_kom2,MATCH(1,(komnavn2=Kommune)*(komaar2=E42),0),15)),"") -> 407 | F45: =IF(Datanedslag>=F41,IF(INDEX(Data_kom2,MATCH(1,(komnavn2=Kommune)*(komaar2=F42),0),15)="","*",INDEX(Data_kom2,MATCH(1,(komnavn2=Kommune)*(komaar2=F42),0),15)),"") -> 390 | G45: =IF(Datanedslag>=G41,IF(INDEX(Data_kom2,MATCH(1,(komnavn2=Kommune)*(komaar2=G42),0),15)="","*",INDEX(Data_kom2,MATCH(1,(komnavn2=Kommune)*(komaar2=G42),0),15)),"") -> 374 | H45: =IF(Datanedslag>=H41,IF(INDEX(Data_kom2,MATCH(1,(komnavn2=Kommune)*(komaar2=H42),0),15)="","*",INDEX(Data_kom2,MATCH(1,(komnavn2=Kommune)*(komaar2=H42),0),15)),"") -> 363 | I45: =IF(Datanedslag>=I41,IF(INDEX(Data_kom2,MATCH(1,(komnavn2=Kommune)*(komaar2=I42),0),15)="","*",INDEX(Data_kom2,MATCH(1,(komnavn2=Kommune)*(komaar2=I42),0),15)),"") -> 383 | J45: =IF(Datanedslag>=J41,IF(INDEX(Data_kom2,MATCH(1,(komnavn2=Kommune)*(komaar2=J42),0),15)="","*",INDEX(Data_kom2,MATCH(1,(komnavn2=Kommune)*(komaar2=J42),0),15)),"") -> 386 | K45: =IF(Datanedslag>=K41,IF(INDEX(Data_kom2,MATCH(1,(komnavn2=Kommune)*(komaar2=K42),0),15)="","*",INDEX(Data_kom2,MATCH(1,(komnavn2=Kommune)*(komaar2=K42),0),15)),"") -> 391 | L45: =IF(Datanedslag>=L41,IF(INDEX(Data_kom2,MATCH(1,(komnavn2=Kommune)*(komaar2=L42),0),15)="","*",INDEX(Data_kom2,MATCH(1,(komnavn2=Kommune)*(komaar2=L42),0),15)),"") -> 383 | M45: =IF(Datanedslag>=M41,IF(INDEX(Data_kom2,MATCH(1,(komnavn2=Kommune)*(komaar2=M42),0),15)="","*",INDEX(Data_kom2,MATCH(1,(komnavn2=Kommune)*(komaar2=M42),0),15)),"") -> 365 | N45: =IF(Datanedslag>=N41,IF(INDEX(Data_kom2,MATCH(1,(komnavn2=Kommune)*(komaar2=N42),0),15)="","*",INDEX(Data_kom2,MATCH(1,(komnavn2=Kommune)*(komaar2=N42),0),15)),"") -> 360
B46: Anm.: Hvis nøgletallet er angivet med * er der foretaget en diskretionering af data, da der er for få observationer. N angiver målgruppestørrelsen, som er alle borgere registreret med "Sindslidelse" i indberetningen til Danmarks Statistik.
B47: Kilde: Social- og Boligstyrelsens egne beregninger baseret på handicapstiatistikken ved Danmarks Statistik.
B51: Valgt nøgletal: Nøgletal 4
B53: Nøgletal 4: Modtagere af socialpædagogisk støtte | D53: 2018-01-01 | E53: 2018-07-01 | F53: 2019-01-01 | G53: 2019-07-01 | H53: 2020-01-01 | I53: 2020-07-01 | J53: 2021-01-01 | K53: 2021-07-01 | L53: 2022-01-01 | M53: 2022-07-01 | N53: 2023-01-01
B54: =IF(Kommune="","Kommune",Kommune) -> Herning | D54: 20181 | E54: 20182 | F54: 20191 | G54: 20192 | H54: 20201 | I54: 20202 | J54: 20211 | K54: 20212 | L54: 20221 | M54: 20222 | N54: 20231
B55: Andel | D55: =IF(Datanedslag>D53,IF(OR(D56="*",D57="*"),"*",IF(D57=0,0,(D56/D57))),IF(Datanedslag=D53,IF(OR(D56="*",D57="*"),"*",IF(D57=0,0,(D56/D57))),"")) -> 0.7185185185 | E55: =IF(Datanedslag>E53,IF(OR(E56="*",E57="*"),"*",IF(E57=0,0,(E56/E57))),IF(Datanedslag=E53,IF(OR(E56="*",E57="*"),"*",IF(E57=0,0,(E56/E57))),"")) -> 0.7248157248 | F55: =IF(Datanedslag>F53,IF(OR(F56="*",F57="*"),"*",IF(F57=0,0,(F56/F57))),IF(Datanedslag=F53,IF(OR(F56="*",F57="*"),"*",IF(F57=0,0,(F56/F57))),"")) -> 0.7076923077 | G55: =IF(Datanedslag>G53,IF(OR(G56="*",G57="*"),"*",IF(G57=0,0,(G56/G57))),IF(Datanedslag=G53,IF(OR(G56="*",G57="*"),"*",IF(G57=0,0,(G56/G57))),"")) -> 0.6898395722 | H55: =IF(Datanedslag>H53,IF(OR(H56="*",H57="*"),"*",IF(H57=0,0,(H56/H57))),IF(Datanedslag=H53,IF(OR(H56="*",H57="*"),"*",IF(H57=0,0,(H56/H57))),"")) -> 0.6859504132 | I55: =IF(Datanedslag>I53,IF(OR(I56="*",I57="*"),"*",IF(I57=0,0,(I56/I57))),IF(Datanedslag=I53,IF(OR(I56="*",I57="*"),"*",IF(I57=0,0,(I56/I57))),"")) -> 0.684073107 | J55: =IF(Datanedslag>J53,IF(OR(J56="*",J57="*"),"*",IF(J57=0,0,(J56/J57))),IF(Datanedslag=J53,IF(OR(J56="*",J57="*"),"*",IF(J57=0,0,(J56/J57))),"")) -> 0.6917098446 | K55: =IF(Datanedslag>K53,IF(OR(K56="*",K57="*"),"*",IF(K57=0,0,(K56/K57))),IF(Datanedslag=K53,IF(OR(K56="*",K57="*"),"*",IF(K57=0,0,(K56/K57))),"")) -> 0.716112532 | L55: =IF(Datanedslag>L53,IF(OR(L56="*",L57="*"),"*",IF(L57=0,0,(L56/L57))),IF(Datanedslag=L53,IF(OR(L56="*",L57="*"),"*",IF(L57=0,0,(L56/L57))),"")) -> 0.7180156658 | M55: =IF(Datanedslag>M53,IF(OR(M56="*",M57="*"),"*",IF(M57=0,0,(M56/M57))),IF(Datanedslag=M53,IF(OR(M56="*",M57="*"),"*",IF(M57=0,0,(M56/M57))),"")) -> 0.6821917808 | N55: =IF(Datanedslag>N53,IF(OR(N56="*",N57="*"),"*",IF(N57=0,0,(N56/N57))),IF(Datanedslag=N53,IF(OR(N56="*",N57="*"),"*",IF(N57=0,0,(N56/N57))),"")) -> 0.6861111111
B56: Antal modtagere | D56: =IF(Datanedslag>=D53,IF(INDEX(Data_kom2,MATCH(1,(komnavn2=Kommune)*(komaar2=D54),0),16)="","*",INDEX(Data_kom2,MATCH(1,(komnavn2=Kommune)*(komaar2=D54),0),16)),"") -> 291 | E56: =IF(Datanedslag>=E53,IF(INDEX(Data_kom2,MATCH(1,(komnavn2=Kommune)*(komaar2=E54),0),16)="","*",INDEX(Data_kom2,MATCH(1,(komnavn2=Kommune)*(komaar2=E54),0),16)),"") -> 295 | F56: =IF(Datanedslag>=F53,IF(INDEX(Data_kom2,MATCH(1,(komnavn2=Kommune)*(komaar2=F54),0),16)="","*",INDEX(Data_kom2,MATCH(1,(komnavn2=Kommune)*(komaar2=F54),0),16)),"") -> 276 | G56: =IF(Datanedslag>=G53,IF(INDEX(Data_kom2,MATCH(1,(komnavn2=Kommune)*(komaar2=G54),0),16)="","*",INDEX(Data_kom2,MATCH(1,(komnavn2=Kommune)*(komaar2=G54),0),16)),"") -> 258 | H56: =IF(Datanedslag>=H53,IF(INDEX(Data_kom2,MATCH(1,(komnavn2=Kommune)*(komaar2=H54),0),16)="","*",INDEX(Data_kom2,MATCH(1,(komnavn2=Kommune)*(komaar2=H54),0),16)),"") -> 249 | I56: =IF(Datanedslag>=I53,IF(INDEX(Data_kom2,MATCH(1,(komnavn2=Kommune)*(komaar2=I54),0),16)="","*",INDEX(Data_kom2,MATCH(1,(komnavn2=Kommune)*(komaar2=I54),0),16)),"") -> 262 | J56: =IF(Datanedslag>=J53,IF(INDEX(Data_kom2,MATCH(1,(komnavn2=Kommune)*(komaar2=J54),0),16)="","*",INDEX(Data_kom2,MATCH(1,(komnavn2=Kommune)*(komaar2=J54),0),16)),"") -> 267 | K56: =IF(Datanedslag>=K53,IF(INDEX(Data_kom2,MATCH(1,(komnavn2=Kommune)*(komaar2=K54),0),16)="","*",INDEX(Data_kom2,MATCH(1,(komnavn2=Kommune)*(komaar2=K54),0),16)),"") -> 280 | L56: =IF(Datanedslag>=L53,IF(INDEX(Data_kom2,MATCH(1,(komnavn2=Kommune)*(komaar2=L54),0),16)="","*",INDEX(Data_kom2,MATCH(1,(komnavn2=Kommune)*(komaar2=L54),0),16)),"") -> 275 | M56: =IF(Datanedslag>=M53,IF(INDEX(Data_kom2,MATCH(1,(komnavn2=Kommune)*(komaar2=M54),0),16)="","*",INDEX(Data_kom2,MATCH(1,(komnavn2=Kommune)*(komaar2=M54),0),16)),"") -> 249 | N56: =IF(Datanedslag>=N53,IF(INDEX(Data_kom2,MATCH(1,(komnavn2=Kommune)*(komaar2=N54),0),16)="","*",INDEX(Data_kom2,MATCH(1,(komnavn2=Kommune)*(komaar2=N54),0),16)),"") -> 247
B57: N | D57: =IF(Datanedslag>=D53,IF(INDEX(Data_kom2,MATCH(1,(komnavn2=Kommune)*(komaar2=D54),0),19)="","*",INDEX(Data_kom2,MATCH(1,(komnavn2=Kommune)*(komaar2=D54),0),19)),"") -> 405 | E57: =IF(Datanedslag>=E53,IF(INDEX(Data_kom2,MATCH(1,(komnavn2=Kommune)*(komaar2=E54),0),19)="","*",INDEX(Data_kom2,MATCH(1,(komnavn2=Kommune)*(komaar2=E54),0),19)),"") -> 407 | F57: =IF(Datanedslag>=F53,IF(INDEX(Data_kom2,MATCH(1,(komnavn2=Kommune)*(komaar2=F54),0),19)="","*",INDEX(Data_kom2,MATCH(1,(komnavn2=Kommune)*(komaar2=F54),0),19)),"") -> 390 | G57: =IF(Datanedslag>=G53,IF(INDEX(Data_kom2,MATCH(1,(komnavn2=Kommune)*(komaar2=G54),0),19)="","*",INDEX(Data_kom2,MATCH(1,(komnavn2=Kommune)*(komaar2=G54),0),19)),"") -> 374 | H57: =IF(Datanedslag>=H53,IF(INDEX(Data_kom2,MATCH(1,(komnavn2=Kommune)*(komaar2=H54),0),19)="","*",INDEX(Data_kom2,MATCH(1,(komnavn2=Kommune)*(komaar2=H54),0),19)),"") -> 363 | I57: =IF(Datanedslag>=I53,IF(INDEX(Data_kom2,MATCH(1,(komnavn2=Kommune)*(komaar2=I54),0),19)="","*",INDEX(Data_kom2,MATCH(1,(komnavn2=Kommune)*(komaar2=I54),0),19)),"") -> 383 | J57: =IF(Datanedslag>=J53,IF(INDEX(Data_kom2,MATCH(1,(komnavn2=Kommune)*(komaar2=J54),0),19)="","*",INDEX(Data_kom2,MATCH(1,(komnavn2=Kommune)*(komaar2=J54),0),19)),"") -> 386 | K57: =IF(Datanedslag>=K53,IF(INDEX(Data_kom2,MATCH(1,(komnavn2=Kommune)*(komaar2=K54),0),19)="","*",INDEX(Data_kom2,MATCH(1,(komnavn2=Kommune)*(komaar2=K54),0),19)),"") -> 391 | L57: =IF(Datanedslag>=L53,IF(INDEX(Data_kom2,MATCH(1,(komnavn2=Kommune)*(komaar2=L54),0),19)="","*",INDEX(Data_kom2,MATCH(1,(komnavn2=Kommune)*(komaar2=L54),0),19)),"") -> 383 | M57: =IF(Datanedslag>=M53,IF(INDEX(Data_kom2,MATCH(1,(komnavn2=Kommune)*(komaar2=M54),0),19)="","*",INDEX(Data_kom2,MATCH(1,(komnavn2=Kommune)*(komaar2=M54),0),19)),"") -> 365 | N57: =IF(Datanedslag>=N53,IF(INDEX(Data_kom2,MATCH(1,(komnavn2=Kommune)*(komaar2=N54),0),19)="","*",INDEX(Data_kom2,MATCH(1,(komnavn2=Kommune)*(komaar2=N54),0),19)),"") -> 360
B58: Anm.: Hvis nøgletallet er angivet med * er der foretaget en diskretionering af data, da der er for få observationer. N angiver målgruppestørrelsen, som er alle borgere registreret med "Sindslidelse" i indberetningen til Danmarks Statistik.
B59: Kilde: Social- og Boligstyrelsens egne beregninger baseret på handicapstiatistikken ved Danmarks Statistik.
B64: Valgt nøgletal: Nøgletal 5
B66: Nøgletal 5: Modtagere af beskyttet beskæftigelse og aktivitets- og samværstilbud | D66: 2018-01-01 | E66: 2018-07-01 | F66: 2019-01-01 | G66: 2019-07-01 | H66: 2020-01-01 | I66: 2020-07-01 | J66: 2021-01-01 | K66: 2021-07-01 | L66: 2022-01-01 | M66: 2022-07-01 | N66: 2023-01-01
B67: =IF(Kommune="","Kommune",Kommune) -> Herning | D67: 20181 | E67: 20182 | F67: 20191 | G67: 20192 | H67: 20201 | I67: 20202 | J67: 20211 | K67: 20212 | L67: 20221 | M67: 20222 | N67: 20231
B68: Andel | D68: =IF(Datanedslag>D66,IF(OR(D69="*",D70="*"),"*",IF(D70=0,0,(D69/D70))),IF(Datanedslag=D66,IF(OR(D69="*",D70="*"),"*",IF(D70=0,0,(D69/D70))),"")) -> 0.02469135802 | E68: =IF(Datanedslag>E66,IF(OR(E69="*",E70="*"),"*",IF(E70=0,0,(E69/E70))),IF(Datanedslag=E66,IF(OR(E69="*",E70="*"),"*",IF(E70=0,0,(E69/E70))),"")) -> 0.02702702703 | F68: =IF(Datanedslag>F66,IF(OR(F69="*",F70="*"),"*",IF(F70=0,0,(F69/F70))),IF(Datanedslag=F66,IF(OR(F69="*",F70="*"),"*",IF(F70=0,0,(F69/F70))),"")) -> 0.02564102564 | G68: =IF(Datanedslag>G66,IF(OR(G69="*",G70="*"),"*",IF(G70=0,0,(G69/G70))),IF(Datanedslag=G66,IF(OR(G69="*",G70="*"),"*",IF(G70=0,0,(G69/G70))),"")) -> 0.02673796791 | H68: =IF(Datanedslag>H66,IF(OR(H69="*",H70="*"),"*",IF(H70=0,0,(H69/H70))),IF(Datanedslag=H66,IF(OR(H69="*",H70="*"),"*",IF(H70=0,0,(H69/H70))),"")) -> 0.02479338843 | I68: =IF(Datanedslag>I66,IF(OR(I69="*",I70="*"),"*",IF(I70=0,0,(I69/I70))),IF(Datanedslag=I66,IF(OR(I69="*",I70="*"),"*",IF(I70=0,0,(I69/I70))),"")) -> 0.02872062663 | J68: =IF(Datanedslag>J66,IF(OR(J69="*",J70="*"),"*",IF(J70=0,0,(J69/J70))),IF(Datanedslag=J66,IF(OR(J69="*",J70="*"),"*",IF(J70=0,0,(J69/J70))),"")) -> 0.0310880829 | K68: =IF(Datanedslag>K66,IF(OR(K69="*",K70="*"),"*",IF(K70=0,0,(K69/K70))),IF(Datanedslag=K66,IF(OR(K69="*",K70="*"),"*",IF(K70=0,0,(K69/K70))),"")) -> 0.03069053708 | L68: =IF(Datanedslag>L66,IF(OR(L69="*",L70="*"),"*",IF(L70=0,0,(L69/L70))),IF(Datanedslag=L66,IF(OR(L69="*",L70="*"),"*",IF(L70=0,0,(L69/L70))),"")) -> 0.02349869452 | M68: =IF(Datanedslag>M66,IF(OR(M69="*",M70="*"),"*",IF(M70=0,0,(M69/M70))),IF(Datanedslag=M66,IF(OR(M69="*",M70="*"),"*",IF(M70=0,0,(M69/M70))),"")) -> 0.02739726027 | N68: =IF(Datanedslag>N66,IF(OR(N69="*",N70="*"),"*",IF(N70=0,0,(N69/N70))),IF(Datanedslag=N66,IF(OR(N69="*",N70="*"),"*",IF(N70=0,0,(N69/N70))),"")) -> 0.02222222222
B69: Antal modtagere | D69: =IF(Datanedslag>=D66,IF(INDEX(Data_kom2,MATCH(1,(komnavn2=Kommune)*(komaar2=D67),0),20)="","*",INDEX(Data_kom2,MATCH(1,(komnavn2=Kommune)*(komaar2=D67),0),20)),"") -> 10 | E69: =IF(Datanedslag>=E66,IF(INDEX(Data_kom2,MATCH(1,(komnavn2=Kommune)*(komaar2=E67),0),20)="","*",INDEX(Data_kom2,MATCH(1,(komnavn2=Kommune)*(komaar2=E67),0),20)),"") -> 11 | F69: =IF(Datanedslag>=F66,IF(INDEX(Data_kom2,MATCH(1,(komnavn2=Kommune)*(komaar2=F67),0),20)="","*",INDEX(Data_kom2,MATCH(1,(komnavn2=Kommune)*(komaar2=F67),0),20)),"") -> 10 | G69: =IF(Datanedslag>=G66,IF(INDEX(Data_kom2,MATCH(1,(komnavn2=Kommune)*(komaar2=G67),0),20)="","*",INDEX(Data_kom2,MATCH(1,(komnavn2=Kommune)*(komaar2=G67),0),20)),"") -> 10 | H69: =IF(Datanedslag>=H66,IF(INDEX(Data_kom2,MATCH(1,(komnavn2=Kommune)*(komaar2=H67),0),20)="","*",INDEX(Data_kom2,MATCH(1,(komnavn2=Kommune)*(komaar2=H67),0),20)),"") -> 9 | I69: =IF(Datanedslag>=I66,IF(INDEX(Data_kom2,MATCH(1,(komnavn2=Kommune)*(komaar2=I67),0),20)="","*",INDEX(Data_kom2,MATCH(1,(komnavn2=Kommune)*(komaar2=I67),0),20)),"") -> 11 | J69: =IF(Datanedslag>=J66,IF(INDEX(Data_kom2,MATCH(1,(komnavn2=Kommune)*(komaar2=J67),0),20)="","*",INDEX(Data_kom2,MATCH(1,(komnavn2=Kommune)*(komaar2=J67),0),20)),"") -> 12 | K69: =IF(Datanedslag>=K66,IF(INDEX(Data_kom2,MATCH(1,(komnavn2=Kommune)*(komaar2=K67),0),20)="","*",INDEX(Data_kom2,MATCH(1,(komnavn2=Kommune)*(komaar2=K67),0),20)),"") -> 12 | L69: =IF(Datanedslag>=L66,IF(INDEX(Data_kom2,MATCH(1,(komnavn2=Kommune)*(komaar2=L67),0),20)="","*",INDEX(Data_kom2,MATCH(1,(komnavn2=Kommune)*(komaar2=L67),0),20)),"") -> 9 | M69: =IF(Datanedslag>=M66,IF(INDEX(Data_kom2,MATCH(1,(komnavn2=Kommune)*(komaar2=M67),0),20)="","*",INDEX(Data_kom2,MATCH(1,(komnavn2=Kommune)*(komaar2=M67),0),20)),"") -> 10 | N69: =IF(Datanedslag>=N66,IF(INDEX(Data_kom2,MATCH(1,(komnavn2=Kommune)*(komaar2=N67),0),20)="","*",INDEX(Data_kom2,MATCH(1,(komnavn2=Kommune)*(komaar2=N67),0),20)),"") -> 8
B70: N | D70: =IF(Datanedslag>=D66,IF(INDEX(Data_kom2,MATCH(1,(komnavn2=Kommune)*(komaar2=D67),0),23)="","*",INDEX(Data_kom2,MATCH(1,(komnavn2=Kommune)*(komaar2=D67),0),23)),"") -> 405 | E70: =IF(Datanedslag>=E66,IF(INDEX(Data_kom2,MATCH(1,(komnavn2=Kommune)*(komaar2=E67),0),23)="","*",INDEX(Data_kom2,MATCH(1,(komnavn2=Kommune)*(komaar2=E67),0),23)),"") -> 407 | F70: =IF(Datanedslag>=F66,IF(INDEX(Data_kom2,MATCH(1,(komnavn2=Kommune)*(komaar2=F67),0),23)="","*",INDEX(Data_kom2,MATCH(1,(komnavn2=Kommune)*(komaar2=F67),0),23)),"") -> 390 | G70: =IF(Datanedslag>=G66,IF(INDEX(Data_kom2,MATCH(1,(komnavn2=Kommune)*(komaar2=G67),0),23)="","*",INDEX(Data_kom2,MATCH(1,(komnavn2=Kommune)*(komaar2=G67),0),23)),"") -> 374 | H70: =IF(Datanedslag>=H66,IF(INDEX(Data_kom2,MATCH(1,(komnavn2=Kommune)*(komaar2=H67),0),23)="","*",INDEX(Data_kom2,MATCH(1,(komnavn2=Kommune)*(komaar2=H67),0),23)),"") -> 363 | I70: =IF(Datanedslag>=I66,IF(INDEX(Data_kom2,MATCH(1,(komnavn2=Kommune)*(komaar2=I67),0),23)="","*",INDEX(Data_kom2,MATCH(1,(komnavn2=Kommune)*(komaar2=I67),0),23)),"") -> 383 | J70: =IF(Datanedslag>=J66,IF(INDEX(Data_kom2,MATCH(1,(komnavn2=Kommune)*(komaar2=J67),0),23)="","*",INDEX(Data_kom2,MATCH(1,(komnavn2=Kommune)*(komaar2=J67),0),23)),"") -> 386 | K70: =IF(Datanedslag>=K66,IF(INDEX(Data_kom2,MATCH(1,(komnavn2=Kommune)*(komaar2=K67),0),23)="","*",INDEX(Data_kom2,MATCH(1,(komnavn2=Kommune)*(komaar2=K67),0),23)),"") -> 391 | L70: =IF(Datanedslag>=L66,IF(INDEX(Data_kom2,MATCH(1,(komnavn2=Kommune)*(komaar2=L67),0),23)="","*",INDEX(Data_kom2,MATCH(1,(komnavn2=Kommune)*(komaar2=L67),0),23)),"") -> 383 | M70: =IF(Datanedslag>=M66,IF(INDEX(Data_kom2,MATCH(1,(komnavn2=Kommune)*(komaar2=M67),0),23)="","*",INDEX(Data_kom2,MATCH(1,(komnavn2=Kommune)*(komaar2=M67),0),23)),"") -> 365 | N70: =IF(Datanedslag>=N66,IF(INDEX(Data_kom2,MATCH(1,(komnavn2=Kommune)*(komaar2=N67),0),23)="","*",INDEX(Data_kom2,MATCH(1,(komnavn2=Kommune)*(komaar2=N67),0),23)),"") -> 360
B71: Anm.: Hvis nøgletallet er angivet med * er der foretaget en diskretionering af data, da der er for få observationer. N angiver målgruppestørrelsen, som er alle borgere registreret med "Sindslidelse" i indberetningen til Danmarks Statistik.
B72: Kilde: Social- og Boligstyrelsens egne beregninger baseret på handicapstiatistikken ved Danmarks Statistik.
B76: Valgt nøgletal: Nøgletal 6
B78: Nøgletal 6: Modtagere af forebyggende indsatserModtagere af forebyggende indsatser | D78: 2018-01-01 | E78: 2018-07-01 | F78: 2019-01-01 | G78: 2019-07-01 | H78: 2020-01-01 | I78: 2020-07-01 | J78: 2021-01-01 | K78: 2021-07-01 | L78: 2022-01-01 | M78: 2022-07-01 | N78: 2023-01-01
B79: =IF(Kommune="","Kommune",Kommune) -> Herning | D79: 20181 | E79: 20182 | F79: 20191 | G79: 20192 | H79: 20201 | I79: 20202 | J79: 20211 | K79: 20212 | L79: 20221 | M79: 20222 | N79: 20231
B80: Andel | D80: =IF(Datanedslag>D78,IF(OR(D81="*",D82="*"),"*",IF(D82=0,0,(D81/D82))),IF(Datanedslag=D78,IF(OR(D81="*",D82="*"),"*",IF(D82=0,0,(D81/D82))),"")) -> 0 | E80: =IF(Datanedslag>E78,IF(OR(E81="*",E82="*"),"*",IF(E82=0,0,(E81/E82))),IF(Datanedslag=E78,IF(OR(E81="*",E82="*"),"*",IF(E82=0,0,(E81/E82))),"")) -> 0 | F80: =IF(Datanedslag>F78,IF(OR(F81="*",F82="*"),"*",IF(F82=0,0,(F81/F82))),IF(Datanedslag=F78,IF(OR(F81="*",F82="*"),"*",IF(F82=0,0,(F81/F82))),"")) -> 0 | G80: =IF(Datanedslag>G78,IF(OR(G81="*",G82="*"),"*",IF(G82=0,0,(G81/G82))),IF(Datanedslag=G78,IF(OR(G81="*",G82="*"),"*",IF(G82=0,0,(G81/G82))),"")) -> 0 | H80: =IF(Datanedslag>H78,IF(OR(H81="*",H82="*"),"*",IF(H82=0,0,(H81/H82))),IF(Datanedslag=H78,IF(OR(H81="*",H82="*"),"*",IF(H82=0,0,(H81/H82))),"")) -> * | I80: =IF(Datanedslag>I78,IF(OR(I81="*",I82="*"),"*",IF(I82=0,0,(I81/I82))),IF(Datanedslag=I78,IF(OR(I81="*",I82="*"),"*",IF(I82=0,0,(I81/I82))),"")) -> 0.03394255875 | J80: =IF(Datanedslag>J78,IF(OR(J81="*",J82="*"),"*",IF(J82=0,0,(J81/J82))),IF(Datanedslag=J78,IF(OR(J81="*",J82="*"),"*",IF(J82=0,0,(J81/J82))),"")) -> 0.04404145078 | K80: =IF(Datanedslag>K78,IF(OR(K81="*",K82="*"),"*",IF(K82=0,0,(K81/K82))),IF(Datanedslag=K78,IF(OR(K81="*",K82="*"),"*",IF(K82=0,0,(K81/K82))),"")) -> 0.04092071611 | L80: =IF(Datanedslag>L78,IF(OR(L81="*",L82="*"),"*",IF(L82=0,0,(L81/L82))),IF(Datanedslag=L78,IF(OR(L81="*",L82="*"),"*",IF(L82=0,0,(L81/L82))),"")) -> 0.04960835509 | M80: =IF(Datanedslag>M78,IF(OR(M81="*",M82="*"),"*",IF(M82=0,0,(M81/M82))),IF(Datanedslag=M78,IF(OR(M81="*",M82="*"),"*",IF(M82=0,0,(M81/M82))),"")) -> 0.07671232877 | N80: =IF(Datanedslag>N78,IF(OR(N81="*",N82="*"),"*",IF(N82=0,0,(N81/N82))),IF(Datanedslag=N78,IF(OR(N81="*",N82="*"),"*",IF(N82=0,0,(N81/N82))),"")) -> 0.08611111111
B81: Antal modtagere | D81: =IF(Datanedslag>=D78,IF(INDEX(Data_kom2,MATCH(1,(komnavn2=Kommune)*(komaar2=D79),0),24)="","*",INDEX(Data_kom2,MATCH(1,(komnavn2=Kommune)*(komaar2=D79),0),24)),"") -> 0 | E81: =IF(Datanedslag>=E78,IF(INDEX(Data_kom2,MATCH(1,(komnavn2=Kommune)*(komaar2=E79),0),24)="","*",INDEX(Data_kom2,MATCH(1,(komnavn2=Kommune)*(komaar2=E79),0),24)),"") -> 0 | F81: =IF(Datanedslag>=F78,IF(INDEX(Data_kom2,MATCH(1,(komnavn2=Kommune)*(komaar2=F79),0),24)="","*",INDEX(Data_kom2,MATCH(1,(komnavn2=Kommune)*(komaar2=F79),0),24)),"") -> 0 | G81: =IF(Datanedslag>=G78,IF(INDEX(Data_kom2,MATCH(1,(komnavn2=Kommune)*(komaar2=G79),0),24)="","*",INDEX(Data_kom2,MATCH(1,(komnavn2=Kommune)*(komaar2=G79),0),24)),"") -> 0 | H81: =IF(Datanedslag>=H78,IF(INDEX(Data_kom2,MATCH(1,(komnavn2=Kommune)*(komaar2=H79),0),24)="","*",INDEX(Data_kom2,MATCH(1,(komnavn2=Kommune)*(komaar2=H79),0),24)),"") -> * | I81: =IF(Datanedslag>=I78,IF(INDEX(Data_kom2,MATCH(1,(komnavn2=Kommune)*(komaar2=I79),0),24)="","*",INDEX(Data_kom2,MATCH(1,(komnavn2=Kommune)*(komaar2=I79),0),24)),"") -> 13 | J81: =IF(Datanedslag>=J78,IF(INDEX(Data_kom2,MATCH(1,(komnavn2=Kommune)*(komaar2=J79),0),24)="","*",INDEX(Data_kom2,MATCH(1,(komnavn2=Kommune)*(komaar2=J79),0),24)),"") -> 17 | K81: =IF(Datanedslag>=K78,IF(INDEX(Data_kom2,MATCH(1,(komnavn2=Kommune)*(komaar2=K79),0),24)="","*",INDEX(Data_kom2,MATCH(1,(komnavn2=Kommune)*(komaar2=K79),0),24)),"") -> 16 | L81: =IF(Datanedslag>=L78,IF(INDEX(Data_kom2,MATCH(1,(komnavn2=Kommune)*(komaar2=L79),0),24)="","*",INDEX(Data_kom2,MATCH(1,(komnavn2=Kommune)*(komaar2=L79),0),24)),"") -> 19 | M81: =IF(Datanedslag>=M78,IF(INDEX(Data_kom2,MATCH(1,(komnavn2=Kommune)*(komaar2=M79),0),24)="","*",INDEX(Data_kom2,MATCH(1,(komnavn2=Kommune)*(komaar2=M79),0),24)),"") -> 28 | N81: =IF(Datanedslag>=N78,IF(INDEX(Data_kom2,MATCH(1,(komnavn2=Kommune)*(komaar2=N79),0),24)="","*",INDEX(Data_kom2,MATCH(1,(komnavn2=Kommune)*(komaar2=N79),0),24)),"") -> 31
B82: N | D82: =IF(Datanedslag>=D78,IF(INDEX(Data_kom2,MATCH(1,(komnavn2=Kommune)*(komaar2=D79),0),27)="","*",INDEX(Data_kom2,MATCH(1,(komnavn2=Kommune)*(komaar2=D79),0),27)),"") -> 405 | E82: =IF(Datanedslag>=E78,IF(INDEX(Data_kom2,MATCH(1,(komnavn2=Kommune)*(komaar2=E79),0),27)="","*",INDEX(Data_kom2,MATCH(1,(komnavn2=Kommune)*(komaar2=E79),0),27)),"") -> 407 | F82: =IF(Datanedslag>=F78,IF(INDEX(Data_kom2,MATCH(1,(komnavn2=Kommune)*(komaar2=F79),0),27)="","*",INDEX(Data_kom2,MATCH(1,(komnavn2=Kommune)*(komaar2=F79),0),27)),"") -> 390 | G82: =IF(Datanedslag>=G78,IF(INDEX(Data_kom2,MATCH(1,(komnavn2=Kommune)*(komaar2=G79),0),27)="","*",INDEX(Data_kom2,MATCH(1,(komnavn2=Kommune)*(komaar2=G79),0),27)),"") -> 374 | H82: =IF(Datanedslag>=H78,IF(INDEX(Data_kom2,MATCH(1,(komnavn2=Kommune)*(komaar2=H79),0),27)="","*",INDEX(Data_kom2,MATCH(1,(komnavn2=Kommune)*(komaar2=H79),0),27)),"") -> 363 | I82: =IF(Datanedslag>=I78,IF(INDEX(Data_kom2,MATCH(1,(komnavn2=Kommune)*(komaar2=I79),0),27)="","*",INDEX(Data_kom2,MATCH(1,(komnavn2=Kommune)*(komaar2=I79),0),27)),"") -> 383 | J82: =IF(Datanedslag>=J78,IF(INDEX(Data_kom2,MATCH(1,(komnavn2=Kommune)*(komaar2=J79),0),27)="","*",INDEX(Data_kom2,MATCH(1,(komnavn2=Kommune)*(komaar2=J79),0),27)),"") -> 386 | K82: =IF(Datanedslag>=K78,IF(INDEX(Data_kom2,MATCH(1,(komnavn2=Kommune)*(komaar2=K79),0),27)="","*",INDEX(Data_kom2,MATCH(1,(komnavn2=Kommune)*(komaar2=K79),0),27)),"") -> 391 | L82: =IF(Datanedslag>=L78,IF(INDEX(Data_kom2,MATCH(1,(komnavn2=Kommune)*(komaar2=L79),0),27)="","*",INDEX(Data_kom2,MATCH(1,(komnavn2=Kommune)*(komaar2=L79),0),27)),"") -> 383 | M82: =IF(Datanedslag>=M78,IF(INDEX(Data_kom2,MATCH(1,(komnavn2=Kommune)*(komaar2=M79),0),27)="","*",INDEX(Data_kom2,MATCH(1,(komnavn2=Kommune)*(komaar2=M79),0),27)),"") -> 365 | N82: =IF(Datanedslag>=N78,IF(INDEX(Data_kom2,MATCH(1,(komnavn2=Kommune)*(komaar2=N79),0),27)="","*",INDEX(Data_kom2,MATCH(1,(komnavn2=Kommune)*(komaar2=N79),0),27)),"") -> 360
B83: Anm.: Hvis nøgletallet er angivet med * er der foretaget en diskretionering af data, da der er for få observationer. N angiver målgruppestørrelsen, som er alle borgere registreret med "Sindslidelse" i indberetningen til Danmarks Statistik. Ydelser efter servicelovens § 82 er først blevet indberetningspligtig pr. 1/7-2020.
B84: Kilde: Social- og Boligstyrelsens egne beregninger baseret på handicapstiatistikken ved Danmarks Statistik.
B88: Valgt nøgletal: Nøgletal 7
B90: Nøgletal 7: Flytning fra botilbud | D90: 2018-01-01 | E90: 2018-07-01 | F90: 2019-01-01 | G90: 2019-07-01 | H90: 2020-01-01 | I90: 2020-07-01 | J90: 2021-01-01 | K90: 2021-07-01 | L90: 2022-01-01 | M90: 2022-07-01 | N90: 2023-01-01
B91: =IF(Kommune="","Kommune",Kommune) -> Herning | D91: 20181 | E91: 20182 | F91: 20191 | G91: 20192 | H91: 20201 | I91: 20202 | J91: 20211 | K91: 20212 | L91: 20221 | M91: 20222 | N91: 20231
B92: Andel | E92: =IF(Datanedslag>E90,IF(OR(E93="*",E94="*"),"*",IF(E94=0,0,(E93/E94))),IF(Datanedslag=E90,IF(OR(E93="*",E94="*"),"*",IF(E94=0,0,(E93/E94))),"")) -> 0.09677419355 | F92: =IF(Datanedslag>F90,IF(OR(F93="*",F94="*"),"*",IF(F94=0,0,(F93/F94))),IF(Datanedslag=F90,IF(OR(F93="*",F94="*"),"*",IF(F94=0,0,(F93/F94))),"")) -> 0.05494505495 | G92: =IF(Datanedslag>G90,IF(OR(G93="*",G94="*"),"*",IF(G94=0,0,(G93/G94))),IF(Datanedslag=G90,IF(OR(G93="*",G94="*"),"*",IF(G94=0,0,(G93/G94))),"")) -> 0.08602150538 | H92: =IF(Datanedslag>H90,IF(OR(H93="*",H94="*"),"*",IF(H94=0,0,(H93/H94))),IF(Datanedslag=H90,IF(OR(H93="*",H94="*"),"*",IF(H94=0,0,(H93/H94))),"")) -> 0.06382978723 | I92: =IF(Datanedslag>I90,IF(OR(I93="*",I94="*"),"*",IF(I94=0,0,(I93/I94))),IF(Datanedslag=I90,IF(OR(I93="*",I94="*"),"*",IF(I94=0,0,(I93/I94))),"")) -> 0.1063829787 | J92: =IF(Datanedslag>J90,IF(OR(J93="*",J94="*"),"*",IF(J94=0,0,(J93/J94))),IF(Datanedslag=J90,IF(OR(J93="*",J94="*"),"*",IF(J94=0,0,(J93/J94))),"")) -> 0.09090909091 | K92: =IF(Datanedslag>K90,IF(OR(K93="*",K94="*"),"*",IF(K94=0,0,(K93/K94))),IF(Datanedslag=K90,IF(OR(K93="*",K94="*"),"*",IF(K94=0,0,(K93/K94))),"")) -> 0.07228915663 | L92: =IF(Datanedslag>L90,IF(OR(L93="*",L94="*"),"*",IF(L94=0,0,(L93/L94))),IF(Datanedslag=L90,IF(OR(L93="*",L94="*"),"*",IF(L94=0,0,(L93/L94))),"")) -> 0.05063291139 | M92: =IF(Datanedslag>M90,IF(OR(M93="*",M94="*"),"*",IF(M94=0,0,(M93/M94))),IF(Datanedslag=M90,IF(OR(M93="*",M94="*"),"*",IF(M94=0,0,(M93/M94))),"")) -> 0.09090909091 | N92: =IF(Datanedslag>N90,IF(OR(N93="*",N94="*"),"*",IF(N94=0,0,(N93/N94))),IF(Datanedslag=N90,IF(OR(N93="*",N94="*"),"*",IF(N94=0,0,(N93/N94))),"")) -> 0.09589041096
B93: Antal modtagere | E93: =IF(Datanedslag>=E90,IF(INDEX(Data_kom2,MATCH(1,(komnavn2=Kommune)*(komaar2=E91),0),28)="","*",INDEX(Data_kom2,MATCH(1,(komnavn2=Kommune)*(komaar2=E91),0),28)),"") -> 9 | F93: =IF(Datanedslag>=F90,IF(INDEX(Data_kom2,MATCH(1,(komnavn2=Kommune)*(komaar2=F91),0),28)="","*",INDEX(Data_kom2,MATCH(1,(komnavn2=Kommune)*(komaar2=F91),0),28)),"") -> 5 | G93: =IF(Datanedslag>=G90,IF(INDEX(Data_kom2,MATCH(1,(komnavn2=Kommune)*(komaar2=G91),0),28)="","*",INDEX(Data_kom2,MATCH(1,(komnavn2=Kommune)*(komaar2=G91),0),28)),"") -> 8 | H93: =IF(Datanedslag>=H90,IF(INDEX(Data_kom2,MATCH(1,(komnavn2=Kommune)*(komaar2=H91),0),28)="","*",INDEX(Data_kom2,MATCH(1,(komnavn2=Kommune)*(komaar2=H91),0),28)),"") -> 6 | I93: =IF(Datanedslag>=I90,IF(INDEX(Data_kom2,MATCH(1,(komnavn2=Kommune)*(komaar2=I91),0),28)="","*",INDEX(Data_kom2,MATCH(1,(komnavn2=Kommune)*(komaar2=I91),0),28)),"") -> 10 | J93: =IF(Datanedslag>=J90,IF(INDEX(Data_kom2,MATCH(1,(komnavn2=Kommune)*(komaar2=J91),0),28)="","*",INDEX(Data_kom2,MATCH(1,(komnavn2=Kommune)*(komaar2=J91),0),28)),"") -> 8 | K93: =IF(Datanedslag>=K90,IF(INDEX(Data_kom2,MATCH(1,(komnavn2=Kommune)*(komaar2=K91),0),28)="","*",INDEX(Data_kom2,MATCH(1,(komnavn2=Kommune)*(komaar2=K91),0),28)),"") -> 6 | L93: =IF(Datanedslag>=L90,IF(INDEX(Data_kom2,MATCH(1,(komnavn2=Kommune)*(komaar2=L91),0),28)="","*",INDEX(Data_kom2,MATCH(1,(komnavn2=Kommune)*(komaar2=L91),0),28)),"") -> 4 | M93: =IF(Datanedslag>=M90,IF(INDEX(Data_kom2,MATCH(1,(komnavn2=Kommune)*(komaar2=M91),0),28)="","*",INDEX(Data_kom2,MATCH(1,(komnavn2=Kommune)*(komaar2=M91),0),28)),"") -> 7 | N93: =IF(Datanedslag>=N90,IF(INDEX(Data_kom2,MATCH(1,(komnavn2=Kommune)*(komaar2=N91),0),28)="","*",INDEX(Data_kom2,MATCH(1,(komnavn2=Kommune)*(komaar2=N91),0),28)),"") -> 7
B94: N | E94: =IF(Datanedslag>=E90,IF(INDEX(Data_kom2,MATCH(1,(komnavn2=Kommune)*(komaar2=E91),0),31)="","*",INDEX(Data_kom2,MATCH(1,(komnavn2=Kommune)*(komaar2=E91),0),31)),"") -> 93 | F94: =IF(Datanedslag>=F90,IF(INDEX(Data_kom2,MATCH(1,(komnavn2=Kommune)*(komaar2=F91),0),31)="","*",INDEX(Data_kom2,MATCH(1,(komnavn2=Kommune)*(komaar2=F91),0),31)),"") -> 91 | G94: =IF(Datanedslag>=G90,IF(INDEX(Data_kom2,MATCH(1,(komnavn2=Kommune)*(komaar2=G91),0),31)="","*",INDEX(Data_kom2,MATCH(1,(komnavn2=Kommune)*(komaar2=G91),0),31)),"") -> 93 | H94: =IF(Datanedslag>=H90,IF(INDEX(Data_kom2,MATCH(1,(komnavn2=Kommune)*(komaar2=H91),0),31)="","*",INDEX(Data_kom2,MATCH(1,(komnavn2=Kommune)*(komaar2=H91),0),31)),"") -> 94 | I94: =IF(Datanedslag>=I90,IF(INDEX(Data_kom2,MATCH(1,(komnavn2=Kommune)*(komaar2=I91),0),31)="","*",INDEX(Data_kom2,MATCH(1,(komnavn2=Kommune)*(komaar2=I91),0),31)),"") -> 94 | J94: =IF(Datanedslag>=J90,IF(INDEX(Data_kom2,MATCH(1,(komnavn2=Kommune)*(komaar2=J91),0),31)="","*",INDEX(Data_kom2,MATCH(1,(komnavn2=Kommune)*(komaar2=J91),0),31)),"") -> 88 | K94: =IF(Datanedslag>=K90,IF(INDEX(Data_kom2,MATCH(1,(komnavn2=Kommune)*(komaar2=K91),0),31)="","*",INDEX(Data_kom2,MATCH(1,(komnavn2=Kommune)*(komaar2=K91),0),31)),"") -> 83 | L94: =IF(Datanedslag>=L90,IF(INDEX(Data_kom2,MATCH(1,(komnavn2=Kommune)*(komaar2=L91),0),31)="","*",INDEX(Data_kom2,MATCH(1,(komnavn2=Kommune)*(komaar2=L91),0),31)),"") -> 79 | M94: =IF(Datanedslag>=M90,IF(INDEX(Data_kom2,MATCH(1,(komnavn2=Kommune)*(komaar2=M91),0),31)="","*",INDEX(Data_kom2,MATCH(1,(komnavn2=Kommune)*(komaar2=M91),0),31)),"") -> 77 | N94: =IF(Datanedslag>=N90,IF(INDEX(Data_kom2,MATCH(1,(komnavn2=Kommune)*(komaar2=N91),0),31)="","*",INDEX(Data_kom2,MATCH(1,(komnavn2=Kommune)*(komaar2=N91),0),31)),"") -> 73
B95: Anm.: Hvis nøgletallet er angivet med * er der foretaget en diskretionering af data, da der er for få observationer. N angiver målgruppestørrelsen for nøgletallet. Målgruppen er borgere der ved sidste datanedslag modtog længerevarende-, midlertidigt botilbud eller botilbudslignende tilbud.
B96: Kilde: Social- og Boligstyrelsens egne beregninger baseret på handicapstiatistikken ved Danmarks Statistik.
B99: Delnøgletal
B101: Nøgletal 7.1: Flytning fra længerevarende botilbud og lignende til midlertidigt botilbud | D101: 2018-01-01 | E101: 2018-07-01 | F101: 2019-01-01 | G101: 2019-07-01 | H101: 2020-01-01 | I101: 2020-07-01 | J101: 2021-01-01 | K101: 2021-07-01 | L101: 2022-01-01 | M101: 2022-07-01 | N101: 2023-01-01
B102: =IF(Kommune="","Kommune",Kommune) -> Herning | D102: 20181 | E102: 20182 | F102: 20191 | G102: 20192 | H102: 20201 | I102: 20202 | J102: 20211 | K102: 20212 | L102: 20221 | M102: 20222 | N102: 20231
B103: Andel | E103: =IF(Datanedslag>E101,IF(OR(E104="*",E105="*"),"*",IF(E105=0,0,(E104/E105))),IF(Datanedslag=E101,IF(OR(E104="*",E105="*"),"*",IF(E105=0,0,(E104/E105))),"")) -> 0 | F103: =IF(Datanedslag>F101,IF(OR(F104="*",F105="*"),"*",IF(F105=0,0,(F104/F105))),IF(Datanedslag=F101,IF(OR(F104="*",F105="*"),"*",IF(F105=0,0,(F104/F105))),"")) -> * | G103: =IF(Datanedslag>G101,IF(OR(G104="*",G105="*"),"*",IF(G105=0,0,(G104/G105))),IF(Datanedslag=G101,IF(OR(G104="*",G105="*"),"*",IF(G105=0,0,(G104/G105))),"")) -> 0 | H103: =IF(Datanedslag>H101,IF(OR(H104="*",H105="*"),"*",IF(H105=0,0,(H104/H105))),IF(Datanedslag=H101,IF(OR(H104="*",H105="*"),"*",IF(H105=0,0,(H104/H105))),"")) -> * | I103: =IF(Datanedslag>I101,IF(OR(I104="*",I105="*"),"*",IF(I105=0,0,(I104/I105))),IF(Datanedslag=I101,IF(OR(I104="*",I105="*"),"*",IF(I105=0,0,(I104/I105))),"")) -> 0 | J103: =IF(Datanedslag>J101,IF(OR(J104="*",J105="*"),"*",IF(J105=0,0,(J104/J105))),IF(Datanedslag=J101,IF(OR(J104="*",J105="*"),"*",IF(J105=0,0,(J104/J105))),"")) -> 0 | K103: =IF(Datanedslag>K101,IF(OR(K104="*",K105="*"),"*",IF(K105=0,0,(K104/K105))),IF(Datanedslag=K101,IF(OR(K104="*",K105="*"),"*",IF(K105=0,0,(K104/K105))),"")) -> * | L103: =IF(Datanedslag>L101,IF(OR(L104="*",L105="*"),"*",IF(L105=0,0,(L104/L105))),IF(Datanedslag=L101,IF(OR(L104="*",L105="*"),"*",IF(L105=0,0,(L104/L105))),"")) -> * | M103: =IF(Datanedslag>M101,IF(OR(M104="*",M105="*"),"*",IF(M105=0,0,(M104/M105))),IF(Datanedslag=M101,IF(OR(M104="*",M105="*"),"*",IF(M105=0,0,(M104/M105))),"")) -> 0 | N103: =IF(Datanedslag>N101,IF(OR(N104="*",N105="*"),"*",IF(N105=0,0,(N104/N105))),IF(Datanedslag=N101,IF(OR(N104="*",N105="*"),"*",IF(N105=0,0,(N104/N105))),"")) -> 0
B104: Antal modtagere | E104: =IF(Datanedslag>=E101,IF(INDEX(Data_kom2,MATCH(1,(komnavn2=Kommune)*(komaar2=E102),0),32)="","*",INDEX(Data_kom2,MATCH(1,(komnavn2=Kommune)*(komaar2=E102),0),32)),"") -> 0 | F104: =IF(Datanedslag>=F101,IF(INDEX(Data_kom2,MATCH(1,(komnavn2=Kommune)*(komaar2=F102),0),32)="","*",INDEX(Data_kom2,MATCH(1,(komnavn2=Kommune)*(komaar2=F102),0),32)),"") -> * | G104: =IF(Datanedslag>=G101,IF(INDEX(Data_kom2,MATCH(1,(komnavn2=Kommune)*(komaar2=G102),0),32)="","*",INDEX(Data_kom2,MATCH(1,(komnavn2=Kommune)*(komaar2=G102),0),32)),"") -> 0 | H104: =IF(Datanedslag>=H101,IF(INDEX(Data_kom2,MATCH(1,(komnavn2=Kommune)*(komaar2=H102),0),32)="","*",INDEX(Data_kom2,MATCH(1,(komnavn2=Kommune)*(komaar2=H102),0),32)),"") -> * | I104: =IF(Datanedslag>=I101,IF(INDEX(Data_kom2,MATCH(1,(komnavn2=Kommune)*(komaar2=I102),0),32)="","*",INDEX(Data_kom2,MATCH(1,(komnavn2=Kommune)*(komaar2=I102),0),32)),"") -> 0 | J104: =IF(Datanedslag>=J101,IF(INDEX(Data_kom2,MATCH(1,(komnavn2=Kommune)*(komaar2=J102),0),32)="","*",INDEX(Data_kom2,MATCH(1,(komnavn2=Kommune)*(komaar2=J102),0),32)),"") -> 0 | K104: =IF(Datanedslag>=K101,IF(INDEX(Data_kom2,MATCH(1,(komnavn2=Kommune)*(komaar2=K102),0),32)="","*",INDEX(Data_kom2,MATCH(1,(komnavn2=Kommune)*(komaar2=K102),0),32)),"") -> * | L104: =IF(Datanedslag>=L101,IF(INDEX(Data_kom2,MATCH(1,(komnavn2=Kommune)*(komaar2=L102),0),32)="","*",INDEX(Data_kom2,MATCH(1,(komnavn2=Kommune)*(komaar2=L102),0),32)),"") -> * | M104: =IF(Datanedslag>=M101,IF(INDEX(Data_kom2,MATCH(1,(komnavn2=Kommune)*(komaar2=M102),0),32)="","*",INDEX(Data_kom2,MATCH(1,(komnavn2=Kommune)*(komaar2=M102),0),32)),"") -> 0 | N104: =IF(Datanedslag>=N101,IF(INDEX(Data_kom2,MATCH(1,(komnavn2=Kommune)*(komaar2=N102),0),32)="","*",INDEX(Data_kom2,MATCH(1,(komnavn2=Kommune)*(komaar2=N102),0),32)),"") -> 0
B105: N | E105: =IF(Datanedslag>=E101,IF(INDEX(Data_kom2,MATCH(1,(komnavn2=Kommune)*(komaar2=E102),0),35)="","*",INDEX(Data_kom2,MATCH(1,(komnavn2=Kommune)*(komaar2=E102),0),35)),"") -> 65 | F105: =IF(Datanedslag>=F101,IF(INDEX(Data_kom2,MATCH(1,(komnavn2=Kommune)*(komaar2=F102),0),35)="","*",INDEX(Data_kom2,MATCH(1,(komnavn2=Kommune)*(komaar2=F102),0),35)),"") -> 65 | G105: =IF(Datanedslag>=G101,IF(INDEX(Data_kom2,MATCH(1,(komnavn2=Kommune)*(komaar2=G102),0),35)="","*",INDEX(Data_kom2,MATCH(1,(komnavn2=Kommune)*(komaar2=G102),0),35)),"") -> 65 | H105: =IF(Datanedslag>=H101,IF(INDEX(Data_kom2,MATCH(1,(komnavn2=Kommune)*(komaar2=H102),0),35)="","*",INDEX(Data_kom2,MATCH(1,(komnavn2=Kommune)*(komaar2=H102),0),35)),"") -> 64 | I105: =IF(Datanedslag>=I101,IF(INDEX(Data_kom2,MATCH(1,(komnavn2=Kommune)*(komaar2=I102),0),35)="","*",INDEX(Data_kom2,MATCH(1,(komnavn2=Kommune)*(komaar2=I102),0),35)),"") -> 64 | J105: =IF(Datanedslag>=J101,IF(INDEX(Data_kom2,MATCH(1,(komnavn2=Kommune)*(komaar2=J102),0),35)="","*",INDEX(Data_kom2,MATCH(1,(komnavn2=Kommune)*(komaar2=J102),0),35)),"") -> 62 | K105: =IF(Datanedslag>=K101,IF(INDEX(Data_kom2,MATCH(1,(komnavn2=Kommune)*(komaar2=K102),0),35)="","*",INDEX(Data_kom2,MATCH(1,(komnavn2=Kommune)*(komaar2=K102),0),35)),"") -> 59 | L105: =IF(Datanedslag>=L101,IF(INDEX(Data_kom2,MATCH(1,(komnavn2=Kommune)*(komaar2=L102),0),35)="","*",INDEX(Data_kom2,MATCH(1,(komnavn2=Kommune)*(komaar2=L102),0),35)),"") -> 56 | M105: =IF(Datanedslag>=M101,IF(INDEX(Data_kom2,MATCH(1,(komnavn2=Kommune)*(komaar2=M102),0),35)="","*",INDEX(Data_kom2,MATCH(1,(komnavn2=Kommune)*(komaar2=M102),0),35)),"") -> 56 | N105: =IF(Datanedslag>=N101,IF(INDEX(Data_kom2,MATCH(1,(komnavn2=Kommune)*(komaar2=N102),0),35)="","*",INDEX(Data_kom2,MATCH(1,(komnavn2=Kommune)*(komaar2=N102),0),35)),"") -> 56
B106: Anm.: Hvis nøgletallet er angivet med * er der foretaget en diskretionering af data, da der er for få observationer. N angiver målgruppestørrelsen for nøgletallet. Målgruppen er borgere der ved sidste datanedslag modtog længerevarende botilbud eller botilbudslignende tilbud.
B107: Kilde: Social- og Boligstyrelsens egne beregninger baseret på handicapstiatistikken ved Danmarks Statistik.
B110: Nøgletal 7.2: Flytning fra længerevarende botilbud og lignende til egen bolig | D110: 2018-01-01 | E110: 2018-07-01 | F110: 2019-01-01 | G110: 2019-07-01 | H110: 2020-01-01 | I110: 2020-07-01 | J110: 2021-01-01 | K110: 2021-07-01 | L110: 2022-01-01 | M110: 2022-07-01 | N110: 2023-01-01
B111: =IF(Kommune="","Kommune",Kommune) -> Herning | D111: 20181 | E111: 20182 | F111: 20191 | G111: 20192 | H111: 20201 | I111: 20202 | J111: 20211 | K111: 20212 | L111: 20221 | M111: 20222 | N111: 20231
B112: Andel | E112: =IF(Datanedslag>E110,IF(OR(E113="*",E114="*"),"*",IF(E114=0,0,(E113/E114))),IF(Datanedslag=E110,IF(OR(E113="*",E114="*"),"*",IF(E114=0,0,(E113/E114))),"")) -> 0.07692307692 | F112: =IF(Datanedslag>F110,IF(OR(F113="*",F114="*"),"*",IF(F114=0,0,(F113/F114))),IF(Datanedslag=F110,IF(OR(F113="*",F114="*"),"*",IF(F114=0,0,(F113/F114))),"")) -> * | G112: =IF(Datanedslag>G110,IF(OR(G113="*",G114="*"),"*",IF(G114=0,0,(G113/G114))),IF(Datanedslag=G110,IF(OR(G113="*",G114="*"),"*",IF(G114=0,0,(G113/G114))),"")) -> 0.04615384615 | H112: =IF(Datanedslag>H110,IF(OR(H113="*",H114="*"),"*",IF(H114=0,0,(H113/H114))),IF(Datanedslag=H110,IF(OR(H113="*",H114="*"),"*",IF(H114=0,0,(H113/H114))),"")) -> * | I112: =IF(Datanedslag>I110,IF(OR(I113="*",I114="*"),"*",IF(I114=0,0,(I113/I114))),IF(Datanedslag=I110,IF(OR(I113="*",I114="*"),"*",IF(I114=0,0,(I113/I114))),"")) -> 0.046875 | J112: =IF(Datanedslag>J110,IF(OR(J113="*",J114="*"),"*",IF(J114=0,0,(J113/J114))),IF(Datanedslag=J110,IF(OR(J113="*",J114="*"),"*",IF(J114=0,0,(J113/J114))),"")) -> 0.06451612903 | K112: =IF(Datanedslag>K110,IF(OR(K113="*",K114="*"),"*",IF(K114=0,0,(K113/K114))),IF(Datanedslag=K110,IF(OR(K113="*",K114="*"),"*",IF(K114=0,0,(K113/K114))),"")) -> * | L112: =IF(Datanedslag>L110,IF(OR(L113="*",L114="*"),"*",IF(L114=0,0,(L113/L114))),IF(Datanedslag=L110,IF(OR(L113="*",L114="*"),"*",IF(L114=0,0,(L113/L114))),"")) -> * | M112: =IF(Datanedslag>M110,IF(OR(M113="*",M114="*"),"*",IF(M114=0,0,(M113/M114))),IF(Datanedslag=M110,IF(OR(M113="*",M114="*"),"*",IF(M114=0,0,(M113/M114))),"")) -> 0.05357142857 | N112: =IF(Datanedslag>N110,IF(OR(N113="*",N114="*"),"*",IF(N114=0,0,(N113/N114))),IF(Datanedslag=N110,IF(OR(N113="*",N114="*"),"*",IF(N114=0,0,(N113/N114))),"")) -> 0.07142857143
B113: Antal modtagere | E113: =IF(Datanedslag>=E110,IF(INDEX(Data_kom2,MATCH(1,(komnavn2=Kommune)*(komaar2=E111),0),36)="","*",INDEX(Data_kom2,MATCH(1,(komnavn2=Kommune)*(komaar2=E111),0),36)),"") -> 5 | F113: =IF(Datanedslag>=F110,IF(INDEX(Data_kom2,MATCH(1,(komnavn2=Kommune)*(komaar2=F111),0),36)="","*",INDEX(Data_kom2,MATCH(1,(komnavn2=Kommune)*(komaar2=F111),0),36)),"") -> * | G113: =IF(Datanedslag>=G110,IF(INDEX(Data_kom2,MATCH(1,(komnavn2=Kommune)*(komaar2=G111),0),36)="","*",INDEX(Data_kom2,MATCH(1,(komnavn2=Kommune)*(komaar2=G111),0),36)),"") -> 3 | H113: =IF(Datanedslag>=H110,IF(INDEX(Data_kom2,MATCH(1,(komnavn2=Kommune)*(komaar2=H111),0),36)="","*",INDEX(Data_kom2,MATCH(1,(komnavn2=Kommune)*(komaar2=H111),0),36)),"") -> * | I113: =IF(Datanedslag>=I110,IF(INDEX(Data_kom2,MATCH(1,(komnavn2=Kommune)*(komaar2=I111),0),36)="","*",INDEX(Data_kom2,MATCH(1,(komnavn2=Kommune)*(komaar2=I111),0),36)),"") -> 3 | J113: =IF(Datanedslag>=J110,IF(INDEX(Data_kom2,MATCH(1,(komnavn2=Kommune)*(komaar2=J111),0),36)="","*",INDEX(Data_kom2,MATCH(1,(komnavn2=Kommune)*(komaar2=J111),0),36)),"") -> 4 | K113: =IF(Datanedslag>=K110,IF(INDEX(Data_kom2,MATCH(1,(komnavn2=Kommune)*(komaar2=K111),0),36)="","*",INDEX(Data_kom2,MATCH(1,(komnavn2=Kommune)*(komaar2=K111),0),36)),"") -> * | L113: =IF(Datanedslag>=L110,IF(INDEX(Data_kom2,MATCH(1,(komnavn2=Kommune)*(komaar2=L111),0),36)="","*",INDEX(Data_kom2,MATCH(1,(komnavn2=Kommune)*(komaar2=L111),0),36)),"") -> * | M113: =IF(Datanedslag>=M110,IF(INDEX(Data_kom2,MATCH(1,(komnavn2=Kommune)*(komaar2=M111),0),36)="","*",INDEX(Data_kom2,MATCH(1,(komnavn2=Kommune)*(komaar2=M111),0),36)),"") -> 3 | N113: =IF(Datanedslag>=N110,IF(INDEX(Data_kom2,MATCH(1,(komnavn2=Kommune)*(komaar2=N111),0),36)="","*",INDEX(Data_kom2,MATCH(1,(komnavn2=Kommune)*(komaar2=N111),0),36)),"") -> 4
B114: N | E114: =IF(Datanedslag>=E110,IF(INDEX(Data_kom2,MATCH(1,(komnavn2=Kommune)*(komaar2=E111),0),39)="","*",INDEX(Data_kom2,MATCH(1,(komnavn2=Kommune)*(komaar2=E111),0),39)),"") -> 65 | F114: =IF(Datanedslag>=F110,IF(INDEX(Data_kom2,MATCH(1,(komnavn2=Kommune)*(komaar2=F111),0),39)="","*",INDEX(Data_kom2,MATCH(1,(komnavn2=Kommune)*(komaar2=F111),0),39)),"") -> 65 | G114: =IF(Datanedslag>=G110,IF(INDEX(Data_kom2,MATCH(1,(komnavn2=Kommune)*(komaar2=G111),0),39)="","*",INDEX(Data_kom2,MATCH(1,(komnavn2=Kommune)*(komaar2=G111),0),39)),"") -> 65 | H114: =IF(Datanedslag>=H110,IF(INDEX(Data_kom2,MATCH(1,(komnavn2=Kommune)*(komaar2=H111),0),39)="","*",INDEX(Data_kom2,MATCH(1,(komnavn2=Kommune)*(komaar2=H111),0),39)),"") -> 64 | I114: =IF(Datanedslag>=I110,IF(INDEX(Data_kom2,MATCH(1,(komnavn2=Kommune)*(komaar2=I111),0),39)="","*",INDEX(Data_kom2,MATCH(1,(komnavn2=Kommune)*(komaar2=I111),0),39)),"") -> 64 | J114: =IF(Datanedslag>=J110,IF(INDEX(Data_kom2,MATCH(1,(komnavn2=Kommune)*(komaar2=J111),0),39)="","*",INDEX(Data_kom2,MATCH(1,(komnavn2=Kommune)*(komaar2=J111),0),39)),"") -> 62 | K114: =IF(Datanedslag>=K110,IF(INDEX(Data_kom2,MATCH(1,(komnavn2=Kommune)*(komaar2=K111),0),39)="","*",INDEX(Data_kom2,MATCH(1,(komnavn2=Kommune)*(komaar2=K111),0),39)),"") -> 59 | L114: =IF(Datanedslag>=L110,IF(INDEX(Data_kom2,MATCH(1,(komnavn2=Kommune)*(komaar2=L111),0),39)="","*",INDEX(Data_kom2,MATCH(1,(komnavn2=Kommune)*(komaar2=L111),0),39)),"") -> 56 | M114: =IF(Datanedslag>=M110,IF(INDEX(Data_kom2,MATCH(1,(komnavn2=Kommune)*(komaar2=M111),0),39)="","*",INDEX(Data_kom2,MATCH(1,(komnavn2=Kommune)*(komaar2=M111),0),39)),"") -> 56 | N114: =IF(Datanedslag>=N110,IF(INDEX(Data_kom2,MATCH(1,(komnavn2=Kommune)*(komaar2=N111),0),39)="","*",INDEX(Data_kom2,MATCH(1,(komnavn2=Kommune)*(komaar2=N111),0),39)),"") -> 56
B115: Anm.: Hvis nøgletallet er angivet med * er der foretaget en diskretionering af data, da der er for få observationer. N angiver målgruppestørrelsen for nøgletallet. Målgruppen er borgere der ved sidste datanedslag modtog længerevarende botilbud eller botilbudslignende tilbud.
B116: Kilde: Social- og Boligstyrelsens egne beregninger baseret på handicapstiatistikken ved Danmarks Statistik.
B119: Nøgletal 7.3: Flytning fra midlertidigt botilbud til egen bolig | D119: 2018-01-01 | E119: 2018-07-01 | F119: 2019-01-01 | G119: 2019-07-01 | H119: 2020-01-01 | I119: 2020-07-01 | J119: 2021-01-01 | K119: 2021-07-01 | L119: 2022-01-01 | M119: 2022-07-01 | N119: 2023-01-01
B120: =IF(Kommune="","Kommune",Kommune) -> Herning | D120: 20181 | E120: 20182 | F120: 20191 | G120: 20192 | H120: 20201 | I120: 20202 | J120: 20211 | K120: 20212 | L120: 20221 | M120: 20222 | N120: 20231
B121: Andel | E121: =IF(Datanedslag>E119,IF(OR(E122="*",E123="*"),"*",IF(E123=0,0,(E122/E123))),IF(Datanedslag=E119,IF(OR(E122="*",E123="*"),"*",IF(E123=0,0,(E122/E123))),"")) -> 0.1428571429 | F121: =IF(Datanedslag>F119,IF(OR(F122="*",F123="*"),"*",IF(F123=0,0,(F122/F123))),IF(Datanedslag=F119,IF(OR(F122="*",F123="*"),"*",IF(F123=0,0,(F122/F123))),"")) -> * | G121: =IF(Datanedslag>G119,IF(OR(G122="*",G123="*"),"*",IF(G123=0,0,(G122/G123))),IF(Datanedslag=G119,IF(OR(G122="*",G123="*"),"*",IF(G123=0,0,(G122/G123))),"")) -> 0.1785714286 | H121: =IF(Datanedslag>H119,IF(OR(H122="*",H123="*"),"*",IF(H123=0,0,(H122/H123))),IF(Datanedslag=H119,IF(OR(H122="*",H123="*"),"*",IF(H123=0,0,(H122/H123))),"")) -> * | I121: =IF(Datanedslag>I119,IF(OR(I122="*",I123="*"),"*",IF(I123=0,0,(I122/I123))),IF(Datanedslag=I119,IF(OR(I122="*",I123="*"),"*",IF(I123=0,0,(I122/I123))),"")) -> 0.2333333333 | J121: =IF(Datanedslag>J119,IF(OR(J122="*",J123="*"),"*",IF(J123=0,0,(J122/J123))),IF(Datanedslag=J119,IF(OR(J122="*",J123="*"),"*",IF(J123=0,0,(J122/J123))),"")) -> 0.1538461538 | K121: =IF(Datanedslag>K119,IF(OR(K122="*",K123="*"),"*",IF(K123=0,0,(K122/K123))),IF(Datanedslag=K119,IF(OR(K122="*",K123="*"),"*",IF(K123=0,0,(K122/K123))),"")) -> * | L121: =IF(Datanedslag>L119,IF(OR(L122="*",L123="*"),"*",IF(L123=0,0,(L122/L123))),IF(Datanedslag=L119,IF(OR(L122="*",L123="*"),"*",IF(L123=0,0,(L122/L123))),"")) -> * | M121: =IF(Datanedslag>M119,IF(OR(M122="*",M123="*"),"*",IF(M123=0,0,(M122/M123))),IF(Datanedslag=M119,IF(OR(M122="*",M123="*"),"*",IF(M123=0,0,(M122/M123))),"")) -> 0.1904761905 | N121: =IF(Datanedslag>N119,IF(OR(N122="*",N123="*"),"*",IF(N123=0,0,(N122/N123))),IF(Datanedslag=N119,IF(OR(N122="*",N123="*"),"*",IF(N123=0,0,(N122/N123))),"")) -> 0.1764705882
B122: Antal modtagere | E122: =IF(Datanedslag>=E119,IF(INDEX(Data_kom2,MATCH(1,(komnavn2=Kommune)*(komaar2=E120),0),40)="","*",INDEX(Data_kom2,MATCH(1,(komnavn2=Kommune)*(komaar2=E120),0),40)),"") -> 4 | F122: =IF(Datanedslag>=F119,IF(INDEX(Data_kom2,MATCH(1,(komnavn2=Kommune)*(komaar2=F120),0),40)="","*",INDEX(Data_kom2,MATCH(1,(komnavn2=Kommune)*(komaar2=F120),0),40)),"") -> * | G122: =IF(Datanedslag>=G119,IF(INDEX(Data_kom2,MATCH(1,(komnavn2=Kommune)*(komaar2=G120),0),40)="","*",INDEX(Data_kom2,MATCH(1,(komnavn2=Kommune)*(komaar2=G120),0),40)),"") -> 5 | H122: =IF(Datanedslag>=H119,IF(INDEX(Data_kom2,MATCH(1,(komnavn2=Kommune)*(komaar2=H120),0),40)="","*",INDEX(Data_kom2,MATCH(1,(komnavn2=Kommune)*(komaar2=H120),0),40)),"") -> * | I122: =IF(Datanedslag>=I119,IF(INDEX(Data_kom2,MATCH(1,(komnavn2=Kommune)*(komaar2=I120),0),40)="","*",INDEX(Data_kom2,MATCH(1,(komnavn2=Kommune)*(komaar2=I120),0),40)),"") -> 7 | J122: =IF(Datanedslag>=J119,IF(INDEX(Data_kom2,MATCH(1,(komnavn2=Kommune)*(komaar2=J120),0),40)="","*",INDEX(Data_kom2,MATCH(1,(komnavn2=Kommune)*(komaar2=J120),0),40)),"") -> 4 | K122: =IF(Datanedslag>=K119,IF(INDEX(Data_kom2,MATCH(1,(komnavn2=Kommune)*(komaar2=K120),0),40)="","*",INDEX(Data_kom2,MATCH(1,(komnavn2=Kommune)*(komaar2=K120),0),40)),"") -> * | L122: =IF(Datanedslag>=L119,IF(INDEX(Data_kom2,MATCH(1,(komnavn2=Kommune)*(komaar2=L120),0),40)="","*",INDEX(Data_kom2,MATCH(1,(komnavn2=Kommune)*(komaar2=L120),0),40)),"") -> * | M122: =IF(Datanedslag>=M119,IF(INDEX(Data_kom2,MATCH(1,(komnavn2=Kommune)*(komaar2=M120),0),40)="","*",INDEX(Data_kom2,MATCH(1,(komnavn2=Kommune)*(komaar2=M120),0),40)),"") -> 4 | N122: =IF(Datanedslag>=N119,IF(INDEX(Data_kom2,MATCH(1,(komnavn2=Kommune)*(komaar2=N120),0),40)="","*",INDEX(Data_kom2,MATCH(1,(komnavn2=Kommune)*(komaar2=N120),0),40)),"") -> 3
B123: N | E123: =IF(Datanedslag>=E119,IF(INDEX(Data_kom2,MATCH(1,(komnavn2=Kommune)*(komaar2=E120),0),43)="","*",INDEX(Data_kom2,MATCH(1,(komnavn2=Kommune)*(komaar2=E120),0),43)),"") -> 28 | F123: =IF(Datanedslag>=F119,IF(INDEX(Data_kom2,MATCH(1,(komnavn2=Kommune)*(komaar2=F120),0),43)="","*",INDEX(Data_kom2,MATCH(1,(komnavn2=Kommune)*(komaar2=F120),0),43)),"") -> 26 | G123: =IF(Datanedslag>=G119,IF(INDEX(Data_kom2,MATCH(1,(komnavn2=Kommune)*(komaar2=G120),0),43)="","*",INDEX(Data_kom2,MATCH(1,(komnavn2=Kommune)*(komaar2=G120),0),43)),"") -> 28 | H123: =IF(Datanedslag>=H119,IF(INDEX(Data_kom2,MATCH(1,(komnavn2=Kommune)*(komaar2=H120),0),43)="","*",INDEX(Data_kom2,MATCH(1,(komnavn2=Kommune)*(komaar2=H120),0),43)),"") -> 30 | I123: =IF(Datanedslag>=I119,IF(INDEX(Data_kom2,MATCH(1,(komnavn2=Kommune)*(komaar2=I120),0),43)="","*",INDEX(Data_kom2,MATCH(1,(komnavn2=Kommune)*(komaar2=I120),0),43)),"") -> 30 | J123: =IF(Datanedslag>=J119,IF(INDEX(Data_kom2,MATCH(1,(komnavn2=Kommune)*(komaar2=J120),0),43)="","*",INDEX(Data_kom2,MATCH(1,(komnavn2=Kommune)*(komaar2=J120),0),43)),"") -> 26 | K123: =IF(Datanedslag>=K119,IF(INDEX(Data_kom2,MATCH(1,(komnavn2=Kommune)*(komaar2=K120),0),43)="","*",INDEX(Data_kom2,MATCH(1,(komnavn2=Kommune)*(komaar2=K120),0),43)),"") -> 24 | L123: =IF(Datanedslag>=L119,IF(INDEX(Data_kom2,MATCH(1,(komnavn2=Kommune)*(komaar2=L120),0),43)="","*",INDEX(Data_kom2,MATCH(1,(komnavn2=Kommune)*(komaar2=L120),0),43)),"") -> 23 | M123: =IF(Datanedslag>=M119,IF(INDEX(Data_kom2,MATCH(1,(komnavn2=Kommune)*(komaar2=M120),0),43)="","*",INDEX(Data_kom2,MATCH(1,(komnavn2=Kommune)*(komaar2=M120),0),43)),"") -> 21 | N123: =IF(Datanedslag>=N119,IF(INDEX(Data_kom2,MATCH(1,(komnavn2=Kommune)*(komaar2=N120),0),43)="","*",INDEX(Data_kom2,MATCH(1,(komnavn2=Kommune)*(komaar2=N120),0),43)),"") -> 17
B124: Anm.: Hvis nøgletallet er angivet med * er der foretaget en diskretionering af data, da der er for få observationer. N angiver målgruppestørrelsen for nøgletallet. Målgruppen er borgere der ved sidste datanedslag modtog midlertidigt botilbud.
B125: Kilde: Social- og Boligstyrelsens egne beregninger baseret på handicapstiatistikken ved Danmarks Statistik.
B129: Valgt nøgletal: Nøgletal 8
B131: Nøgletal 8: Fra socialpædagogisk støtte og ned ad trappen | D131: 2018-01-01 | E131: 2018-07-01 | F131: 2019-01-01 | G131: 2019-07-01 | H131: 2020-01-01 | I131: 2020-07-01 | J131: 2021-01-01 | K131: 2021-07-01 | L131: 2022-01-01 | M131: 2022-07-01 | N131: 2023-01-01
B132: =IF(Kommune="","Kommune",Kommune) -> Herning | D132: 20181 | E132: 20182 | F132: 20191 | G132: 20192 | H132: 20201 | I132: 20202 | J132: 20211 | K132: 20212 | L132: 20221 | M132: 20222 | N132: 20231
B133: Andel | E133: =IF(Datanedslag>E131,IF(OR(E134="*",E135="*"),"*",IF(E135=0,0,(E134/E135))),IF(Datanedslag=E131,IF(OR(E134="*",E135="*"),"*",IF(E135=0,0,(E134/E135))),"")) -> 0.1134020619 | F133: =IF(Datanedslag>F131,IF(OR(F134="*",F135="*"),"*",IF(F135=0,0,(F134/F135))),IF(Datanedslag=F131,IF(OR(F134="*",F135="*"),"*",IF(F135=0,0,(F134/F135))),"")) -> 0.1898305085 | G133: =IF(Datanedslag>G131,IF(OR(G134="*",G135="*"),"*",IF(G135=0,0,(G134/G135))),IF(Datanedslag=G131,IF(OR(G134="*",G135="*"),"*",IF(G135=0,0,(G134/G135))),"")) -> 0.1702898551 | H133: =IF(Datanedslag>H131,IF(OR(H134="*",H135="*"),"*",IF(H135=0,0,(H134/H135))),IF(Datanedslag=H131,IF(OR(H134="*",H135="*"),"*",IF(H135=0,0,(H134/H135))),"")) -> 0.1782945736 | I133: =IF(Datanedslag>I131,IF(OR(I134="*",I135="*"),"*",IF(I135=0,0,(I134/I135))),IF(Datanedslag=I131,IF(OR(I134="*",I135="*"),"*",IF(I135=0,0,(I134/I135))),"")) -> 0.1325301205 | J133: =IF(Datanedslag>J131,IF(OR(J134="*",J135="*"),"*",IF(J135=0,0,(J134/J135))),IF(Datanedslag=J131,IF(OR(J134="*",J135="*"),"*",IF(J135=0,0,(J134/J135))),"")) -> 0.106870229 | K133: =IF(Datanedslag>K131,IF(OR(K134="*",K135="*"),"*",IF(K135=0,0,(K134/K135))),IF(Datanedslag=K131,IF(OR(K134="*",K135="*"),"*",IF(K135=0,0,(K134/K135))),"")) -> 0.1235955056 | L133: =IF(Datanedslag>L131,IF(OR(L134="*",L135="*"),"*",IF(L135=0,0,(L134/L135))),IF(Datanedslag=L131,IF(OR(L134="*",L135="*"),"*",IF(L135=0,0,(L134/L135))),"")) -> 0.09642857143 | M133: =IF(Datanedslag>M131,IF(OR(M134="*",M135="*"),"*",IF(M135=0,0,(M134/M135))),IF(Datanedslag=M131,IF(OR(M134="*",M135="*"),"*",IF(M135=0,0,(M134/M135))),"")) -> 0.1745454545 | N133: =IF(Datanedslag>N131,IF(OR(N134="*",N135="*"),"*",IF(N135=0,0,(N134/N135))),IF(Datanedslag=N131,IF(OR(N134="*",N135="*"),"*",IF(N135=0,0,(N134/N135))),"")) -> 0.1084337349
B134: Antal modtagere | E134: =IF(Datanedslag>=E131,IF(INDEX(Data_kom2,MATCH(1,(komnavn2=Kommune)*(komaar2=E132),0),44)="","*",INDEX(Data_kom2,MATCH(1,(komnavn2=Kommune)*(komaar2=E132),0),44)),"") -> 33 | F134: =IF(Datanedslag>=F131,IF(INDEX(Data_kom2,MATCH(1,(komnavn2=Kommune)*(komaar2=F132),0),44)="","*",INDEX(Data_kom2,MATCH(1,(komnavn2=Kommune)*(komaar2=F132),0),44)),"") -> 56 | G134: =IF(Datanedslag>=G131,IF(INDEX(Data_kom2,MATCH(1,(komnavn2=Kommune)*(komaar2=G132),0),44)="","*",INDEX(Data_kom2,MATCH(1,(komnavn2=Kommune)*(komaar2=G132),0),44)),"") -> 47 | H134: =IF(Datanedslag>=H131,IF(INDEX(Data_kom2,MATCH(1,(komnavn2=Kommune)*(komaar2=H132),0),44)="","*",INDEX(Data_kom2,MATCH(1,(komnavn2=Kommune)*(komaar2=H132),0),44)),"") -> 46 | I134: =IF(Datanedslag>=I131,IF(INDEX(Data_kom2,MATCH(1,(komnavn2=Kommune)*(komaar2=I132),0),44)="","*",INDEX(Data_kom2,MATCH(1,(komnavn2=Kommune)*(komaar2=I132),0),44)),"") -> 33 | J134: =IF(Datanedslag>=J131,IF(INDEX(Data_kom2,MATCH(1,(komnavn2=Kommune)*(komaar2=J132),0),44)="","*",INDEX(Data_kom2,MATCH(1,(komnavn2=Kommune)*(komaar2=J132),0),44)),"") -> 28 | K134: =IF(Datanedslag>=K131,IF(INDEX(Data_kom2,MATCH(1,(komnavn2=Kommune)*(komaar2=K132),0),44)="","*",INDEX(Data_kom2,MATCH(1,(komnavn2=Kommune)*(komaar2=K132),0),44)),"") -> 33 | L134: =IF(Datanedslag>=L131,IF(INDEX(Data_kom2,MATCH(1,(komnavn2=Kommune)*(komaar2=L132),0),44)="","*",INDEX(Data_kom2,MATCH(1,(komnavn2=Kommune)*(komaar2=L132),0),44)),"") -> 27 | M134: =IF(Datanedslag>=M131,IF(INDEX(Data_kom2,MATCH(1,(komnavn2=Kommune)*(komaar2=M132),0),44)="","*",INDEX(Data_kom2,MATCH(1,(komnavn2=Kommune)*(komaar2=M132),0),44)),"") -> 48 | N134: =IF(Datanedslag>=N131,IF(INDEX(Data_kom2,MATCH(1,(komnavn2=Kommune)*(komaar2=N132),0),44)="","*",INDEX(Data_kom2,MATCH(1,(komnavn2=Kommune)*(komaar2=N132),0),44)),"") -> 27
B135: N | E135: =IF(Datanedslag>=E131,IF(INDEX(Data_kom2,MATCH(1,(komnavn2=Kommune)*(komaar2=E132),0),47)="","*",INDEX(Data_kom2,MATCH(1,(komnavn2=Kommune)*(komaar2=E132),0),47)),"") -> 291 | F135: =IF(Datanedslag>=F131,IF(INDEX(Data_kom2,MATCH(1,(komnavn2=Kommune)*(komaar2=F132),0),47)="","*",INDEX(Data_kom2,MATCH(1,(komnavn2=Kommune)*(komaar2=F132),0),47)),"") -> 295 | G135: =IF(Datanedslag>=G131,IF(INDEX(Data_kom2,MATCH(1,(komnavn2=Kommune)*(komaar2=G132),0),47)="","*",INDEX(Data_kom2,MATCH(1,(komnavn2=Kommune)*(komaar2=G132),0),47)),"") -> 276 | H135: =IF(Datanedslag>=H131,IF(INDEX(Data_kom2,MATCH(1,(komnavn2=Kommune)*(komaar2=H132),0),47)="","*",INDEX(Data_kom2,MATCH(1,(komnavn2=Kommune)*(komaar2=H132),0),47)),"") -> 258 | I135: =IF(Datanedslag>=I131,IF(INDEX(Data_kom2,MATCH(1,(komnavn2=Kommune)*(komaar2=I132),0),47)="","*",INDEX(Data_kom2,MATCH(1,(komnavn2=Kommune)*(komaar2=I132),0),47)),"") -> 249 | J135: =IF(Datanedslag>=J131,IF(INDEX(Data_kom2,MATCH(1,(komnavn2=Kommune)*(komaar2=J132),0),47)="","*",INDEX(Data_kom2,MATCH(1,(komnavn2=Kommune)*(komaar2=J132),0),47)),"") -> 262 | K135: =IF(Datanedslag>=K131,IF(INDEX(Data_kom2,MATCH(1,(komnavn2=Kommune)*(komaar2=K132),0),47)="","*",INDEX(Data_kom2,MATCH(1,(komnavn2=Kommune)*(komaar2=K132),0),47)),"") -> 267 | L135: =IF(Datanedslag>=L131,IF(INDEX(Data_kom2,MATCH(1,(komnavn2=Kommune)*(komaar2=L132),0),47)="","*",INDEX(Data_kom2,MATCH(1,(komnavn2=Kommune)*(komaar2=L132),0),47)),"") -> 280 | M135: =IF(Datanedslag>=M131,IF(INDEX(Data_kom2,MATCH(1,(komnavn2=Kommune)*(komaar2=M132),0),47)="","*",INDEX(Data_kom2,MATCH(1,(komnavn2=Kommune)*(komaar2=M132),0),47)),"") -> 275 | N135: =IF(Datanedslag>=N131,IF(INDEX(Data_kom2,MATCH(1,(komnavn2=Kommune)*(komaar2=N132),0),47)="","*",INDEX(Data_kom2,MATCH(1,(komnavn2=Kommune)*(komaar2=N132),0),47)),"") -> 249
B136: Anm.: Hvis nøgletallet er angivet med * er der foretaget en diskretionering af data, da der er for få observationer. N angiver målgruppestørrelsen for nøgletallet. Målgruppen er borgere der ved sidste datanedslag modtog socialpædagogisk støtte.
B137: Kilde: Social- og Boligstyrelsens egne beregninger baseret på handicapstiatistikken ved Danmarks Statistik.
B141: Valgt nøgletal: Nøgletal 9
B143: Nøgletal 9: Fra forebyggelse og ned ad trappen | D143: 2018-01-01 | E143: 2018-07-01 | F143: 2019-01-01 | G143: 2019-07-01 | H143: 2020-01-01 | I143: 2020-07-01 | J143: 2021-01-01 | K143: 2021-07-01 | L143: 2022-01-01 | M143: 2022-07-01 | N143: 2023-01-01
B144: =IF(Kommune="","Kommune",Kommune) -> Herning | D144: 20181 | E144: 20182 | F144: 20191 | G144: 20192 | H144: 20201 | I144: 20202 | J144: 20211 | K144: 20212 | L144: 20221 | M144: 20222 | N144: 20231
B145: Andel | E145: =IF(Datanedslag>E143,IF(OR(E146="*",E147="*"),"*",IF(E147=0,0,(E146/E147))),IF(Datanedslag=E143,IF(OR(E146="*",E147="*"),"*",IF(E147=0,0,(E146/E147))),"")) -> 0 | F145: =IF(Datanedslag>F143,IF(OR(F146="*",F147="*"),"*",IF(F147=0,0,(F146/F147))),IF(Datanedslag=F143,IF(OR(F146="*",F147="*"),"*",IF(F147=0,0,(F146/F147))),"")) -> 0 | G145: =IF(Datanedslag>G143,IF(OR(G146="*",G147="*"),"*",IF(G147=0,0,(G146/G147))),IF(Datanedslag=G143,IF(OR(G146="*",G147="*"),"*",IF(G147=0,0,(G146/G147))),"")) -> 0 | H145: =IF(Datanedslag>H143,IF(OR(H146="*",H147="*"),"*",IF(H147=0,0,(H146/H147))),IF(Datanedslag=H143,IF(OR(H146="*",H147="*"),"*",IF(H147=0,0,(H146/H147))),"")) -> 0 | I145: =IF(Datanedslag>I143,IF(OR(I146="*",I147="*"),"*",IF(I147=0,0,(I146/I147))),IF(Datanedslag=I143,IF(OR(I146="*",I147="*"),"*",IF(I147=0,0,(I146/I147))),"")) -> * | J145: =IF(Datanedslag>J143,IF(OR(J146="*",J147="*"),"*",IF(J147=0,0,(J146/J147))),IF(Datanedslag=J143,IF(OR(J146="*",J147="*"),"*",IF(J147=0,0,(J146/J147))),"")) -> 0.6153846154 | K145: =IF(Datanedslag>K143,IF(OR(K146="*",K147="*"),"*",IF(K147=0,0,(K146/K147))),IF(Datanedslag=K143,IF(OR(K146="*",K147="*"),"*",IF(K147=0,0,(K146/K147))),"")) -> 0.7058823529 | L145: =IF(Datanedslag>L143,IF(OR(L146="*",L147="*"),"*",IF(L147=0,0,(L146/L147))),IF(Datanedslag=L143,IF(OR(L146="*",L147="*"),"*",IF(L147=0,0,(L146/L147))),"")) -> 0.625 | M145: =IF(Datanedslag>M143,IF(OR(M146="*",M147="*"),"*",IF(M147=0,0,(M146/M147))),IF(Datanedslag=M143,IF(OR(M146="*",M147="*"),"*",IF(M147=0,0,(M146/M147))),"")) -> 0.7368421053 | N145: =IF(Datanedslag>N143,IF(OR(N146="*",N147="*"),"*",IF(N147=0,0,(N146/N147))),IF(Datanedslag=N143,IF(OR(N146="*",N147="*"),"*",IF(N147=0,0,(N146/N147))),"")) -> 0.2857142857
B146: Antal modtagere | E146: =IF(Datanedslag>=E143,IF(INDEX(Data_kom2,MATCH(1,(komnavn2=Kommune)*(komaar2=E144),0),48)="","*",INDEX(Data_kom2,MATCH(1,(komnavn2=Kommune)*(komaar2=E144),0),48)),"") -> 0 | F146: =IF(Datanedslag>=F143,IF(INDEX(Data_kom2,MATCH(1,(komnavn2=Kommune)*(komaar2=F144),0),48)="","*",INDEX(Data_kom2,MATCH(1,(komnavn2=Kommune)*(komaar2=F144),0),48)),"") -> 0 | G146: =IF(Datanedslag>=G143,IF(INDEX(Data_kom2,MATCH(1,(komnavn2=Kommune)*(komaar2=G144),0),48)="","*",INDEX(Data_kom2,MATCH(1,(komnavn2=Kommune)*(komaar2=G144),0),48)),"") -> 0 | H146: =IF(Datanedslag>=H143,IF(INDEX(Data_kom2,MATCH(1,(komnavn2=Kommune)*(komaar2=H144),0),48)="","*",INDEX(Data_kom2,MATCH(1,(komnavn2=Kommune)*(komaar2=H144),0),48)),"") -> 0 | I146: =IF(Datanedslag>=I143,IF(INDEX(Data_kom2,MATCH(1,(komnavn2=Kommune)*(komaar2=I144),0),48)="","*",INDEX(Data_kom2,MATCH(1,(komnavn2=Kommune)*(komaar2=I144),0),48)),"") -> 0 | J146: =IF(Datanedslag>=J143,IF(INDEX(Data_kom2,MATCH(1,(komnavn2=Kommune)*(komaar2=J144),0),48)="","*",INDEX(Data_kom2,MATCH(1,(komnavn2=Kommune)*(komaar2=J144),0),48)),"") -> 8 | K146: =IF(Datanedslag>=K143,IF(INDEX(Data_kom2,MATCH(1,(komnavn2=Kommune)*(komaar2=K144),0),48)="","*",INDEX(Data_kom2,MATCH(1,(komnavn2=Kommune)*(komaar2=K144),0),48)),"") -> 12 | L146: =IF(Datanedslag>=L143,IF(INDEX(Data_kom2,MATCH(1,(komnavn2=Kommune)*(komaar2=L144),0),48)="","*",INDEX(Data_kom2,MATCH(1,(komnavn2=Kommune)*(komaar2=L144),0),48)),"") -> 10 | M146: =IF(Datanedslag>=M143,IF(INDEX(Data_kom2,MATCH(1,(komnavn2=Kommune)*(komaar2=M144),0),48)="","*",INDEX(Data_kom2,MATCH(1,(komnavn2=Kommune)*(komaar2=M144),0),48)),"") -> 14 | N146: =IF(Datanedslag>=N143,IF(INDEX(Data_kom2,MATCH(1,(komnavn2=Kommune)*(komaar2=N144),0),48)="","*",INDEX(Data_kom2,MATCH(1,(komnavn2=Kommune)*(komaar2=N144),0),48)),"") -> 8
B147: N | E147: =IF(Datanedslag>=E143,IF(INDEX(Data_kom2,MATCH(1,(komnavn2=Kommune)*(komaar2=E144),0),51)="","*",INDEX(Data_kom2,MATCH(1,(komnavn2=Kommune)*(komaar2=E144),0),51)),"") -> 0 | F147: =IF(Datanedslag>=F143,IF(INDEX(Data_kom2,MATCH(1,(komnavn2=Kommune)*(komaar2=F144),0),51)="","*",INDEX(Data_kom2,MATCH(1,(komnavn2=Kommune)*(komaar2=F144),0),51)),"") -> 0 | G147: =IF(Datanedslag>=G143,IF(INDEX(Data_kom2,MATCH(1,(komnavn2=Kommune)*(komaar2=G144),0),51)="","*",INDEX(Data_kom2,MATCH(1,(komnavn2=Kommune)*(komaar2=G144),0),51)),"") -> 0 | H147: =IF(Datanedslag>=H143,IF(INDEX(Data_kom2,MATCH(1,(komnavn2=Kommune)*(komaar2=H144),0),51)="","*",INDEX(Data_kom2,MATCH(1,(komnavn2=Kommune)*(komaar2=H144),0),51)),"") -> 0 | I147: =IF(Datanedslag>=I143,IF(INDEX(Data_kom2,MATCH(1,(komnavn2=Kommune)*(komaar2=I144),0),51)="","*",INDEX(Data_kom2,MATCH(1,(komnavn2=Kommune)*(komaar2=I144),0),51)),"") -> * | J147: =IF(Datanedslag>=J143,IF(INDEX(Data_kom2,MATCH(1,(komnavn2=Kommune)*(komaar2=J144),0),51)="","*",INDEX(Data_kom2,MATCH(1,(komnavn2=Kommune)*(komaar2=J144),0),51)),"") -> 13 | K147: =IF(Datanedslag>=K143,IF(INDEX(Data_kom2,MATCH(1,(komnavn2=Kommune)*(komaar2=K144),0),51)="","*",INDEX(Data_kom2,MATCH(1,(komnavn2=Kommune)*(komaar2=K144),0),51)),"") -> 17 | L147: =IF(Datanedslag>=L143,IF(INDEX(Data_kom2,MATCH(1,(komnavn2=Kommune)*(komaar2=L144),0),51)="","*",INDEX(Data_kom2,MATCH(1,(komnavn2=Kommune)*(komaar2=L144),0),51)),"") -> 16 | M147: =IF(Datanedslag>=M143,IF(INDEX(Data_kom2,MATCH(1,(komnavn2=Kommune)*(komaar2=M144),0),51)="","*",INDEX(Data_kom2,MATCH(1,(komnavn2=Kommune)*(komaar2=M144),0),51)),"") -> 19 | N147: =IF(Datanedslag>=N143,IF(INDEX(Data_kom2,MATCH(1,(komnavn2=Kommune)*(komaar2=N144),0),51)="","*",INDEX(Data_kom2,MATCH(1,(komnavn2=Kommune)*(komaar2=N144),0),51)),"") -> 28
B148: Anm.: Hvis nøgletallet er angivet med * er der foretaget en diskretionering af data, da der er for få observationer. N angiver målgruppestørrelsen for nøgletallet. Målgruppen er borgere der ved sidste datanedslag modtog forebyggende indsats efter SEL § 82. Ydelser efter servicelovens § 82 er først blevet indberetningspligtig pr. 1/7-2020.
B149: Kilde: Social- og Boligstyrelsens egne beregninger baseret på handicapstiatistikken ved Danmarks Statistik.
B153: Valgt nøgletal: Nøgletal 10
B155: Nøgletal 10: Fra forebyggelse og op ad trappen | D155: 2018-01-01 | E155: 2018-07-01 | F155: 2019-01-01 | G155: 2019-07-01 | H155: 2020-01-01 | I155: 2020-07-01 | J155: 2021-01-01 | K155: 2021-07-01 | L155: 2022-01-01 | M155: 2022-07-01 | N155: 2023-01-01
B156: =IF(Kommune="","Kommune",Kommune) -> Herning | D156: 20181 | E156: 20182 | F156: 20191 | G156: 20192 | H156: 20201 | I156: 20202 | J156: 20211 | K156: 20212 | L156: 20221 | M156: 20222 | N156: 20231
B157: Andel | E157: =IF(Datanedslag>E155,IF(OR(E158="*",E159="*"),"*",IF(E159=0,0,(E158/E159))),IF(Datanedslag=E155,IF(OR(E158="*",E159="*"),"*",IF(E159=0,0,(E158/E159))),"")) -> 0 | F157: =IF(Datanedslag>F155,IF(OR(F158="*",F159="*"),"*",IF(F159=0,0,(F158/F159))),IF(Datanedslag=F155,IF(OR(F158="*",F159="*"),"*",IF(F159=0,0,(F158/F159))),"")) -> 0 | G157: =IF(Datanedslag>G155,IF(OR(G158="*",G159="*"),"*",IF(G159=0,0,(G158/G159))),IF(Datanedslag=G155,IF(OR(G158="*",G159="*"),"*",IF(G159=0,0,(G158/G159))),"")) -> 0 | H157: =IF(Datanedslag>H155,IF(OR(H158="*",H159="*"),"*",IF(H159=0,0,(H158/H159))),IF(Datanedslag=H155,IF(OR(H158="*",H159="*"),"*",IF(H159=0,0,(H158/H159))),"")) -> 0 | I157: =IF(Datanedslag>I155,IF(OR(I158="*",I159="*"),"*",IF(I159=0,0,(I158/I159))),IF(Datanedslag=I155,IF(OR(I158="*",I159="*"),"*",IF(I159=0,0,(I158/I159))),"")) -> * | J157: =IF(Datanedslag>J155,IF(OR(J158="*",J159="*"),"*",IF(J159=0,0,(J158/J159))),IF(Datanedslag=J155,IF(OR(J158="*",J159="*"),"*",IF(J159=0,0,(J158/J159))),"")) -> * | K157: =IF(Datanedslag>K155,IF(OR(K158="*",K159="*"),"*",IF(K159=0,0,(K158/K159))),IF(Datanedslag=K155,IF(OR(K158="*",K159="*"),"*",IF(K159=0,0,(K158/K159))),"")) -> * | L157: =IF(Datanedslag>L155,IF(OR(L158="*",L159="*"),"*",IF(L159=0,0,(L158/L159))),IF(Datanedslag=L155,IF(OR(L158="*",L159="*"),"*",IF(L159=0,0,(L158/L159))),"")) -> * | M157: =IF(Datanedslag>M155,IF(OR(M158="*",M159="*"),"*",IF(M159=0,0,(M158/M159))),IF(Datanedslag=M155,IF(OR(M158="*",M159="*"),"*",IF(M159=0,0,(M158/M159))),"")) -> * | N157: =IF(Datanedslag>N155,IF(OR(N158="*",N159="*"),"*",IF(N159=0,0,(N158/N159))),IF(Datanedslag=N155,IF(OR(N158="*",N159="*"),"*",IF(N159=0,0,(N158/N159))),"")) -> 0.2142857143
B158: Antal modtagere | E158: =IF(Datanedslag>=E155,IF(INDEX(Data_kom2,MATCH(1,(komnavn2=Kommune)*(komaar2=E156),0),52)="","*",INDEX(Data_kom2,MATCH(1,(komnavn2=Kommune)*(komaar2=E156),0),52)),"") -> 0 | F158: =IF(Datanedslag>=F155,IF(INDEX(Data_kom2,MATCH(1,(komnavn2=Kommune)*(komaar2=F156),0),52)="","*",INDEX(Data_kom2,MATCH(1,(komnavn2=Kommune)*(komaar2=F156),0),52)),"") -> 0 | G158: =IF(Datanedslag>=G155,IF(INDEX(Data_kom2,MATCH(1,(komnavn2=Kommune)*(komaar2=G156),0),52)="","*",INDEX(Data_kom2,MATCH(1,(komnavn2=Kommune)*(komaar2=G156),0),52)),"") -> 0 | H158: =IF(Datanedslag>=H155,IF(INDEX(Data_kom2,MATCH(1,(komnavn2=Kommune)*(komaar2=H156),0),52)="","*",INDEX(Data_kom2,MATCH(1,(komnavn2=Kommune)*(komaar2=H156),0),52)),"") -> 0 | I158: =IF(Datanedslag>=I155,IF(INDEX(Data_kom2,MATCH(1,(komnavn2=Kommune)*(komaar2=I156),0),52)="","*",INDEX(Data_kom2,MATCH(1,(komnavn2=Kommune)*(komaar2=I156),0),52)),"") -> 0 | J158: =IF(Datanedslag>=J155,IF(INDEX(Data_kom2,MATCH(1,(komnavn2=Kommune)*(komaar2=J156),0),52)="","*",INDEX(Data_kom2,MATCH(1,(komnavn2=Kommune)*(komaar2=J156),0),52)),"") -> * | K158: =IF(Datanedslag>=K155,IF(INDEX(Data_kom2,MATCH(1,(komnavn2=Kommune)*(komaar2=K156),0),52)="","*",INDEX(Data_kom2,MATCH(1,(komnavn2=Kommune)*(komaar2=K156),0),52)),"") -> * | L158: =IF(Datanedslag>=L155,IF(INDEX(Data_kom2,MATCH(1,(komnavn2=Kommune)*(komaar2=L156),0),52)="","*",INDEX(Data_kom2,MATCH(1,(komnavn2=Kommune)*(komaar2=L156),0),52)),"") -> * | M158: =IF(Datanedslag>=M155,IF(INDEX(Data_kom2,MATCH(1,(komnavn2=Kommune)*(komaar2=M156),0),52)="","*",INDEX(Data_kom2,MATCH(1,(komnavn2=Kommune)*(komaar2=M156),0),52)),"") -> * | N158: =IF(Datanedslag>=N155,IF(INDEX(Data_kom2,MATCH(1,(komnavn2=Kommune)*(komaar2=N156),0),52)="","*",INDEX(Data_kom2,MATCH(1,(komnavn2=Kommune)*(komaar2=N156),0),52)),"") -> 6
B159: N | E159: =IF(Datanedslag>=E155,IF(INDEX(Data_kom2,MATCH(1,(komnavn2=Kommune)*(komaar2=E156),0),55)="","*",INDEX(Data_kom2,MATCH(1,(komnavn2=Kommune)*(komaar2=E156),0),55)),"") -> 0 | F159: =IF(Datanedslag>=F155,IF(INDEX(Data_kom2,MATCH(1,(komnavn2=Kommune)*(komaar2=F156),0),55)="","*",INDEX(Data_kom2,MATCH(1,(komnavn2=Kommune)*(komaar2=F156),0),55)),"") -> 0 | G159: =IF(Datanedslag>=G155,IF(INDEX(Data_kom2,MATCH(1,(komnavn2=Kommune)*(komaar2=G156),0),55)="","*",INDEX(Data_kom2,MATCH(1,(komnavn2=Kommune)*(komaar2=G156),0),55)),"") -> 0 | H159: =IF(Datanedslag>=H155,IF(INDEX(Data_kom2,MATCH(1,(komnavn2=Kommune)*(komaar2=H156),0),55)="","*",INDEX(Data_kom2,MATCH(1,(komnavn2=Kommune)*(komaar2=H156),0),55)),"") -> 0 | I159: =IF(Datanedslag>=I155,IF(INDEX(Data_kom2,MATCH(1,(komnavn2=Kommune)*(komaar2=I156),0),55)="","*",INDEX(Data_kom2,MATCH(1,(komnavn2=Kommune)*(komaar2=I156),0),55)),"") -> * | J159: =IF(Datanedslag>=J155,IF(INDEX(Data_kom2,MATCH(1,(komnavn2=Kommune)*(komaar2=J156),0),55)="","*",INDEX(Data_kom2,MATCH(1,(komnavn2=Kommune)*(komaar2=J156),0),55)),"") -> 13 | K159: =IF(Datanedslag>=K155,IF(INDEX(Data_kom2,MATCH(1,(komnavn2=Kommune)*(komaar2=K156),0),55)="","*",INDEX(Data_kom2,MATCH(1,(komnavn2=Kommune)*(komaar2=K156),0),55)),"") -> 17 | L159: =IF(Datanedslag>=L155,IF(INDEX(Data_kom2,MATCH(1,(komnavn2=Kommune)*(komaar2=L156),0),55)="","*",INDEX(Data_kom2,MATCH(1,(komnavn2=Kommune)*(komaar2=L156),0),55)),"") -> 16 | M159: =IF(Datanedslag>=M155,IF(INDEX(Data_kom2,MATCH(1,(komnavn2=Kommune)*(komaar2=M156),0),55)="","*",INDEX(Data_kom2,MATCH(1,(komnavn2=Kommune)*(komaar2=M156),0),55)),"") -> 19 | N159: =IF(Datanedslag>=N155,IF(INDEX(Data_kom2,MATCH(1,(komnavn2=Kommune)*(komaar2=N156),0),55)="","*",INDEX(Data_kom2,MATCH(1,(komnavn2=Kommune)*(komaar2=N156),0),55)),"") -> 28
B160: Anm.: Hvis nøgletallet er angivet med * er der foretaget en diskretionering af data, da der er for få observationer. N angiver målgruppestørrelsen for nøgletallet. Målgruppen er borgere der ved sidste datanedslag modtog forebyggende indsats efter SEL § 82. Ydelser efter servicelovens § 82 er først blevet indberetningspligtig pr. 1/7-2020.
B161: Kilde: Social- og Boligstyrelsens egne beregninger baseret på handicapstiatistikken ved Danmarks Statistik.
B165: Valgt nøgletal: Nøgletal 11
B167: Nøgletal 11: Uddannelsesgrad | D167: 2018-01-01 | E167: 2018-07-01 | F167: 2019-01-01 | G167: 2019-07-01 | H167: 2020-01-01 | I167: 2020-07-01 | J167: 2021-01-01 | K167: 2021-07-01 | L167: 2022-01-01 | M167: 2022-07-01 | N167: 2023-01-01
B168: =IF(Kommune="","Kommune",Kommune) -> Herning | D168: 20181 | E168: 20182 | F168: 20191 | G168: 20192 | H168: 20201 | I168: 20202 | J168: 20211 | K168: 20212 | L168: 20221 | M168: 20222 | N168: 20231
B169: Andel | D169: =IF(Datanedslag>=D167,IF(INDEX(Data_kom2,MATCH(1,(komnavn2=Kommune)*(komaar2=D168),0),56)="","*",INDEX(Data_kom2,MATCH(1,(komnavn2=Kommune)*(komaar2=D168),0),56)),"") -> 0.01168091168 | E169: =IF(Datanedslag>=E167,IF(INDEX(Data_kom2,MATCH(1,(komnavn2=Kommune)*(komaar2=E168),0),56)="","*",INDEX(Data_kom2,MATCH(1,(komnavn2=Kommune)*(komaar2=E168),0),56)),"") -> 0.01271026271 | F169: =IF(Datanedslag>=F167,IF(INDEX(Data_kom2,MATCH(1,(komnavn2=Kommune)*(komaar2=F168),0),56)="","*",INDEX(Data_kom2,MATCH(1,(komnavn2=Kommune)*(komaar2=F168),0),56)),"") -> 0.01395463511 | G169: =IF(Datanedslag>=G167,IF(INDEX(Data_kom2,MATCH(1,(komnavn2=Kommune)*(komaar2=G168),0),56)="","*",INDEX(Data_kom2,MATCH(1,(komnavn2=Kommune)*(komaar2=G168),0),56)),"") -> 0.01470588235 | H169: =IF(Datanedslag>=H167,IF(INDEX(Data_kom2,MATCH(1,(komnavn2=Kommune)*(komaar2=H168),0),56)="","*",INDEX(Data_kom2,MATCH(1,(komnavn2=Kommune)*(komaar2=H168),0),56)),"") -> 0.01695274423 | I169: =IF(Datanedslag>=I167,IF(INDEX(Data_kom2,MATCH(1,(komnavn2=Kommune)*(komaar2=I168),0),56)="","*",INDEX(Data_kom2,MATCH(1,(komnavn2=Kommune)*(komaar2=I168),0),56)),"") -> 0.01315525206 | J169: =IF(Datanedslag>=J167,IF(INDEX(Data_kom2,MATCH(1,(komnavn2=Kommune)*(komaar2=J168),0),56)="","*",INDEX(Data_kom2,MATCH(1,(komnavn2=Kommune)*(komaar2=J168),0),56)),"") -> 0.009515743324 | K169: =IF(Datanedslag>=K167,IF(INDEX(Data_kom2,MATCH(1,(komnavn2=Kommune)*(komaar2=K168),0),56)="","*",INDEX(Data_kom2,MATCH(1,(komnavn2=Kommune)*(komaar2=K168),0),56)),"") -> 0.01775526264 | L169: =IF(Datanedslag>=L167,IF(INDEX(Data_kom2,MATCH(1,(komnavn2=Kommune)*(komaar2=L168),0),56)="","*",INDEX(Data_kom2,MATCH(1,(komnavn2=Kommune)*(komaar2=L168),0),56)),"") -> 0.02485438843 | M169: =IF(Datanedslag>=M167,IF(INDEX(Data_kom2,MATCH(1,(komnavn2=Kommune)*(komaar2=M168),0),56)="","*",INDEX(Data_kom2,MATCH(1,(komnavn2=Kommune)*(komaar2=M168),0),56)),"") -> 0.01712328767 | N169: =IF(Datanedslag>=N167,IF(INDEX(Data_kom2,MATCH(1,(komnavn2=Kommune)*(komaar2=N168),0),56)="","*",INDEX(Data_kom2,MATCH(1,(komnavn2=Kommune)*(komaar2=N168),0),56)),"") -> 0.01554487179
B170: N | D170: =IF(Datanedslag>=D167,IF(INDEX(Data_kom2,MATCH(1,(komnavn2=Kommune)*(komaar2=D168),0),59)="","*",INDEX(Data_kom2,MATCH(1,(komnavn2=Kommune)*(komaar2=D168),0),59)),"") -> 405 | E170: =IF(Datanedslag>=E167,IF(INDEX(Data_kom2,MATCH(1,(komnavn2=Kommune)*(komaar2=E168),0),59)="","*",INDEX(Data_kom2,MATCH(1,(komnavn2=Kommune)*(komaar2=E168),0),59)),"") -> 407 | F170: =IF(Datanedslag>=F167,IF(INDEX(Data_kom2,MATCH(1,(komnavn2=Kommune)*(komaar2=F168),0),59)="","*",INDEX(Data_kom2,MATCH(1,(komnavn2=Kommune)*(komaar2=F168),0),59)),"") -> 390 | G170: =IF(Datanedslag>=G167,IF(INDEX(Data_kom2,MATCH(1,(komnavn2=Kommune)*(komaar2=G168),0),59)="","*",INDEX(Data_kom2,MATCH(1,(komnavn2=Kommune)*(komaar2=G168),0),59)),"") -> 374 | H170: =IF(Datanedslag>=H167,IF(INDEX(Data_kom2,MATCH(1,(komnavn2=Kommune)*(komaar2=H168),0),59)="","*",INDEX(Data_kom2,MATCH(1,(komnavn2=Kommune)*(komaar2=H168),0),59)),"") -> 363 | I170: =IF(Datanedslag>=I167,IF(INDEX(Data_kom2,MATCH(1,(komnavn2=Kommune)*(komaar2=I168),0),59)="","*",INDEX(Data_kom2,MATCH(1,(komnavn2=Kommune)*(komaar2=I168),0),59)),"") -> 383 | J170: =IF(Datanedslag>=J167,IF(INDEX(Data_kom2,MATCH(1,(komnavn2=Kommune)*(komaar2=J168),0),59)="","*",INDEX(Data_kom2,MATCH(1,(komnavn2=Kommune)*(komaar2=J168),0),59)),"") -> 386 | K170: =IF(Datanedslag>=K167,IF(INDEX(Data_kom2,MATCH(1,(komnavn2=Kommune)*(komaar2=K168),0),59)="","*",INDEX(Data_kom2,MATCH(1,(komnavn2=Kommune)*(komaar2=K168),0),59)),"") -> 391 | L170: =IF(Datanedslag>=L167,IF(INDEX(Data_kom2,MATCH(1,(komnavn2=Kommune)*(komaar2=L168),0),59)="","*",INDEX(Data_kom2,MATCH(1,(komnavn2=Kommune)*(komaar2=L168),0),59)),"") -> 383 | M170: =IF(Datanedslag>=M167,IF(INDEX(Data_kom2,MATCH(1,(komnavn2=Kommune)*(komaar2=M168),0),59)="","*",INDEX(Data_kom2,MATCH(1,(komnavn2=Kommune)*(komaar2=M168),0),59)),"") -> 365 | N170: =IF(Datanedslag>=N167,IF(INDEX(Data_kom2,MATCH(1,(komnavn2=Kommune)*(komaar2=N168),0),59)="","*",INDEX(Data_kom2,MATCH(1,(komnavn2=Kommune)*(komaar2=N168),0),59)),"") -> 360
B171: Anm.: Hvis nøgletallet er angivet med * er der foretaget en diskretionering af data, da der er for få observationer. N angiver målgruppestørrelsen, som er alle borgere registreret med "Sindslidelse" i indberetningen til Danmarks Statistik.
B172: Kilde: Social- og Boligstyrelsens egne beregninger baseret på handicapstiatistikken ved Danmarks Statistik og Beskæftigelsesministeriets forløbsdatabase DREAM.
B176: Valgt nøgletal: Nøgletal 12
B178: Nøgletal 12: Beskæftigelsesgrad | D178: 2018-01-01 | E178: 2018-07-01 | F178: 2019-01-01 | G178: 2019-07-01 | H178: 2020-01-01 | I178: 2020-07-01 | J178: 2021-01-01 | K178: 2021-07-01 | L178: 2022-01-01 | M178: 2022-07-01 | N178: 2023-01-01
B179: =IF(Kommune="","Kommune",Kommune) -> Herning | D179: 20181 | E179: 20182 | F179: 20191 | G179: 20192 | H179: 20201 | I179: 20202 | J179: 20211 | K179: 20212 | L179: 20221 | M179: 20222 | N179: 20231
B180: Andel | D180: =IF(Datanedslag>=D178,IF(INDEX(Data_kom2,MATCH(1,(komnavn2=Kommune)*(komaar2=D179),0),60)="","*",INDEX(Data_kom2,MATCH(1,(komnavn2=Kommune)*(komaar2=D179),0),60)),"") -> 0.08865147198 | E180: =IF(Datanedslag>=E178,IF(INDEX(Data_kom2,MATCH(1,(komnavn2=Kommune)*(komaar2=E179),0),60)="","*",INDEX(Data_kom2,MATCH(1,(komnavn2=Kommune)*(komaar2=E179),0),60)),"") -> 0.0884993385 | F180: =IF(Datanedslag>=F178,IF(INDEX(Data_kom2,MATCH(1,(komnavn2=Kommune)*(komaar2=F179),0),60)="","*",INDEX(Data_kom2,MATCH(1,(komnavn2=Kommune)*(komaar2=F179),0),60)),"") -> 0.06558185404 | G180: =IF(Datanedslag>=G178,IF(INDEX(Data_kom2,MATCH(1,(komnavn2=Kommune)*(komaar2=G179),0),60)="","*",INDEX(Data_kom2,MATCH(1,(komnavn2=Kommune)*(komaar2=G179),0),60)),"") -> 0.05877211024 | H180: =IF(Datanedslag>=H178,IF(INDEX(Data_kom2,MATCH(1,(komnavn2=Kommune)*(komaar2=H179),0),60)="","*",INDEX(Data_kom2,MATCH(1,(komnavn2=Kommune)*(komaar2=H179),0),60)),"") -> 0.05054036872 | I180: =IF(Datanedslag>=I178,IF(INDEX(Data_kom2,MATCH(1,(komnavn2=Kommune)*(komaar2=I179),0),60)="","*",INDEX(Data_kom2,MATCH(1,(komnavn2=Kommune)*(komaar2=I179),0),60)),"") -> 0.05021088572 | J180: =IF(Datanedslag>=J178,IF(INDEX(Data_kom2,MATCH(1,(komnavn2=Kommune)*(komaar2=J179),0),60)="","*",INDEX(Data_kom2,MATCH(1,(komnavn2=Kommune)*(komaar2=J179),0),60)),"") -> 0.05365683539 | K180: =IF(Datanedslag>=K178,IF(INDEX(Data_kom2,MATCH(1,(komnavn2=Kommune)*(komaar2=K179),0),60)="","*",INDEX(Data_kom2,MATCH(1,(komnavn2=Kommune)*(komaar2=K179),0),60)),"") -> 0.06320086563 | L180: =IF(Datanedslag>=L178,IF(INDEX(Data_kom2,MATCH(1,(komnavn2=Kommune)*(komaar2=L179),0),60)="","*",INDEX(Data_kom2,MATCH(1,(komnavn2=Kommune)*(komaar2=L179),0),60)),"") -> 0.05839526009 | M180: =IF(Datanedslag>=M178,IF(INDEX(Data_kom2,MATCH(1,(komnavn2=Kommune)*(komaar2=M179),0),60)="","*",INDEX(Data_kom2,MATCH(1,(komnavn2=Kommune)*(komaar2=M179),0),60)),"") -> 0.06917808219 | N180: =IF(Datanedslag>=N178,IF(INDEX(Data_kom2,MATCH(1,(komnavn2=Kommune)*(komaar2=N179),0),60)="","*",INDEX(Data_kom2,MATCH(1,(komnavn2=Kommune)*(komaar2=N179),0),60)),"") -> 0.08808760684
B181: N | D181: =IF(Datanedslag>=D178,IF(INDEX(Data_kom2,MATCH(1,(komnavn2=Kommune)*(komaar2=D179),0),63)="","*",INDEX(Data_kom2,MATCH(1,(komnavn2=Kommune)*(komaar2=D179),0),63)),"") -> 405 | E181: =IF(Datanedslag>=E178,IF(INDEX(Data_kom2,MATCH(1,(komnavn2=Kommune)*(komaar2=E179),0),63)="","*",INDEX(Data_kom2,MATCH(1,(komnavn2=Kommune)*(komaar2=E179),0),63)),"") -> 407 | F181: =IF(Datanedslag>=F178,IF(INDEX(Data_kom2,MATCH(1,(komnavn2=Kommune)*(komaar2=F179),0),63)="","*",INDEX(Data_kom2,MATCH(1,(komnavn2=Kommune)*(komaar2=F179),0),63)),"") -> 390 | G181: =IF(Datanedslag>=G178,IF(INDEX(Data_kom2,MATCH(1,(komnavn2=Kommune)*(komaar2=G179),0),63)="","*",INDEX(Data_kom2,MATCH(1,(komnavn2=Kommune)*(komaar2=G179),0),63)),"") -> 374 | H181: =IF(Datanedslag>=H178,IF(INDEX(Data_kom2,MATCH(1,(komnavn2=Kommune)*(komaar2=H179),0),63)="","*",INDEX(Data_kom2,MATCH(1,(komnavn2=Kommune)*(komaar2=H179),0),63)),"") -> 363 | I181: =IF(Datanedslag>=I178,IF(INDEX(Data_kom2,MATCH(1,(komnavn2=Kommune)*(komaar2=I179),0),63)="","*",INDEX(Data_kom2,MATCH(1,(komnavn2=Kommune)*(komaar2=I179),0),63)),"") -> 383 | J181: =IF(Datanedslag>=J178,IF(INDEX(Data_kom2,MATCH(1,(komnavn2=Kommune)*(komaar2=J179),0),63)="","*",INDEX(Data_kom2,MATCH(1,(komnavn2=Kommune)*(komaar2=J179),0),63)),"") -> 386 | K181: =IF(Datanedslag>=K178,IF(INDEX(Data_kom2,MATCH(1,(komnavn2=Kommune)*(komaar2=K179),0),63)="","*",INDEX(Data_kom2,MATCH(1,(komnavn2=Kommune)*(komaar2=K179),0),63)),"") -> 391 | L181: =IF(Datanedslag>=L178,IF(INDEX(Data_kom2,MATCH(1,(komnavn2=Kommune)*(komaar2=L179),0),63)="","*",INDEX(Data_kom2,MATCH(1,(komnavn2=Kommune)*(komaar2=L179),0),63)),"") -> 383 | M181: =IF(Datanedslag>=M178,IF(INDEX(Data_kom2,MATCH(1,(komnavn2=Kommune)*(komaar2=M179),0),63)="","*",INDEX(Data_kom2,MATCH(1,(komnavn2=Kommune)*(komaar2=M179),0),63)),"") -> 365 | N181: =IF(Datanedslag>=N178,IF(INDEX(Data_kom2,MATCH(1,(komnavn2=Kommune)*(komaar2=N179),0),63)="","*",INDEX(Data_kom2,MATCH(1,(komnavn2=Kommune)*(komaar2=N179),0),63)),"") -> 360
B182: Anm.: Hvis nøgletallet er angivet med * er der foretaget en diskretionering af data, da der er for få observationer. N angiver målgruppestørrelsen, som er alle borgere registreret med "Sindslidelse" i indberetningen til Danmarks Statistik.
B183: Kilde: Social- og Boligstyrelsens egne beregninger baseret på handicapstatistikken ved Danmarks Statistik og Beskæftigelsesministeriets forløbsdatabase DREAM.
B185: Delnøgletal
B187: Nøgletal 12.1: Beskæftigelsesgrad for modtagere af forebyggende indsatser | D187: 2018-01-01 | E187: 2018-07-01 | F187: 2019-01-01 | G187: 2019-07-01 | H187: 2020-01-01 | I187: 2020-07-01 | J187: 2021-01-01 | K187: 2021-07-01 | L187: 2022-01-01 | M187: 2022-07-01 | N187: 2023-01-01
B188: =IF(Kommune="","Kommune",Kommune) -> Herning | D188: 20181 | E188: 20182 | F188: 20191 | G188: 20192 | H188: 20201 | I188: 20202 | J188: 20211 | K188: 20212 | L188: 20221 | M188: 20222 | N188: 20231
B189: Andel | D189: =IF(D190=0,0,IF(Datanedslag>=D187,IF(INDEX(Data_kom2,MATCH(1,(komnavn2=Kommune)*(komaar2=D188),0),64)="","*",INDEX(Data_kom2,MATCH(1,(komnavn2=Kommune)*(komaar2=D188),0),64)),"")) -> 0 | E189: =IF(E190=0,0,IF(Datanedslag>=E187,IF(INDEX(Data_kom2,MATCH(1,(komnavn2=Kommune)*(komaar2=E188),0),64)="","*",INDEX(Data_kom2,MATCH(1,(komnavn2=Kommune)*(komaar2=E188),0),64)),"")) -> 0 | F189: =IF(F190=0,0,IF(Datanedslag>=F187,IF(INDEX(Data_kom2,MATCH(1,(komnavn2=Kommune)*(komaar2=F188),0),64)="","*",INDEX(Data_kom2,MATCH(1,(komnavn2=Kommune)*(komaar2=F188),0),64)),"")) -> 0 | G189: =IF(G190=0,0,IF(Datanedslag>=G187,IF(INDEX(Data_kom2,MATCH(1,(komnavn2=Kommune)*(komaar2=G188),0),64)="","*",INDEX(Data_kom2,MATCH(1,(komnavn2=Kommune)*(komaar2=G188),0),64)),"")) -> 0 | H189: =IF(H190=0,0,IF(Datanedslag>=H187,IF(INDEX(Data_kom2,MATCH(1,(komnavn2=Kommune)*(komaar2=H188),0),64)="","*",INDEX(Data_kom2,MATCH(1,(komnavn2=Kommune)*(komaar2=H188),0),64)),"")) -> * | I189: =IF(I190=0,0,IF(Datanedslag>=I187,IF(INDEX(Data_kom2,MATCH(1,(komnavn2=Kommune)*(komaar2=I188),0),64)="","*",INDEX(Data_kom2,MATCH(1,(komnavn2=Kommune)*(komaar2=I188),0),64)),"")) -> 0.01183431953 | J189: =IF(J190=0,0,IF(Datanedslag>=J187,IF(INDEX(Data_kom2,MATCH(1,(komnavn2=Kommune)*(komaar2=J188),0),64)="","*",INDEX(Data_kom2,MATCH(1,(komnavn2=Kommune)*(komaar2=J188),0),64)),"")) -> 0.05316742081 | K189: =IF(K190=0,0,IF(Datanedslag>=K187,IF(INDEX(Data_kom2,MATCH(1,(komnavn2=Kommune)*(komaar2=K188),0),64)="","*",INDEX(Data_kom2,MATCH(1,(komnavn2=Kommune)*(komaar2=K188),0),64)),"")) -> 0.2331730769 | L189: =IF(L190=0,0,IF(Datanedslag>=L187,IF(INDEX(Data_kom2,MATCH(1,(komnavn2=Kommune)*(komaar2=L188),0),64)="","*",INDEX(Data_kom2,MATCH(1,(komnavn2=Kommune)*(komaar2=L188),0),64)),"")) -> 0.1578947368 | M189: =IF(M190=0,0,IF(Datanedslag>=M187,IF(INDEX(Data_kom2,MATCH(1,(komnavn2=Kommune)*(komaar2=M188),0),64)="","*",INDEX(Data_kom2,MATCH(1,(komnavn2=Kommune)*(komaar2=M188),0),64)),"")) -> 0.2342032967 | N189: =IF(N190=0,0,IF(Datanedslag>=N187,IF(INDEX(Data_kom2,MATCH(1,(komnavn2=Kommune)*(komaar2=N188),0),64)="","*",INDEX(Data_kom2,MATCH(1,(komnavn2=Kommune)*(komaar2=N188),0),64)),"")) -> 0.2071960298
B190: N | D190: =IF(Datanedslag>=D187,IF(INDEX(Data_kom2,MATCH(1,(komnavn2=Kommune)*(komaar2=D188),0),67)="","*",INDEX(Data_kom2,MATCH(1,(komnavn2=Kommune)*(komaar2=D188),0),67)),"") -> 0 | E190: =IF(Datanedslag>=E187,IF(INDEX(Data_kom2,MATCH(1,(komnavn2=Kommune)*(komaar2=E188),0),67)="","*",INDEX(Data_kom2,MATCH(1,(komnavn2=Kommune)*(komaar2=E188),0),67)),"") -> 0 | F190: =IF(Datanedslag>=F187,IF(INDEX(Data_kom2,MATCH(1,(komnavn2=Kommune)*(komaar2=F188),0),67)="","*",INDEX(Data_kom2,MATCH(1,(komnavn2=Kommune)*(komaar2=F188),0),67)),"") -> 0 | G190: =IF(Datanedslag>=G187,IF(INDEX(Data_kom2,MATCH(1,(komnavn2=Kommune)*(komaar2=G188),0),67)="","*",INDEX(Data_kom2,MATCH(1,(komnavn2=Kommune)*(komaar2=G188),0),67)),"") -> 0 | H190: =IF(Datanedslag>=H187,IF(INDEX(Data_kom2,MATCH(1,(komnavn2=Kommune)*(komaar2=H188),0),67)="","*",INDEX(Data_kom2,MATCH(1,(komnavn2=Kommune)*(komaar2=H188),0),67)),"") -> * | I190: =IF(Datanedslag>=I187,IF(INDEX(Data_kom2,MATCH(1,(komnavn2=Kommune)*(komaar2=I188),0),67)="","*",INDEX(Data_kom2,MATCH(1,(komnavn2=Kommune)*(komaar2=I188),0),67)),"") -> 13 | J190: =IF(Datanedslag>=J187,IF(INDEX(Data_kom2,MATCH(1,(komnavn2=Kommune)*(komaar2=J188),0),67)="","*",INDEX(Data_kom2,MATCH(1,(komnavn2=Kommune)*(komaar2=J188),0),67)),"") -> 17 | K190: =IF(Datanedslag>=K187,IF(INDEX(Data_kom2,MATCH(1,(komnavn2=Kommune)*(komaar2=K188),0),67)="","*",INDEX(Data_kom2,MATCH(1,(komnavn2=Kommune)*(komaar2=K188),0),67)),"") -> 16 | L190: =IF(Datanedslag>=L187,IF(INDEX(Data_kom2,MATCH(1,(komnavn2=Kommune)*(komaar2=L188),0),67)="","*",INDEX(Data_kom2,MATCH(1,(komnavn2=Kommune)*(komaar2=L188),0),67)),"") -> 19 | M190: =IF(Datanedslag>=M187,IF(INDEX(Data_kom2,MATCH(1,(komnavn2=Kommune)*(komaar2=M188),0),67)="","*",INDEX(Data_kom2,MATCH(1,(komnavn2=Kommune)*(komaar2=M188),0),67)),"") -> 28 | N190: =IF(Datanedslag>=N187,IF(INDEX(Data_kom2,MATCH(1,(komnavn2=Kommune)*(komaar2=N188),0),67)="","*",INDEX(Data_kom2,MATCH(1,(komnavn2=Kommune)*(komaar2=N188),0),67)),"") -> 31
B191: Anm.: Hvis nøgletallet er angivet med * er der foretaget en diskretionering af data, da der er for få observationer. N angiver målgruppestørrelsen, som er alle borgere der modtager forebyggene indsats efter SEL § 82. Ydelser efter servicelovens § 82 er først blevet indberetningspligtig pr. 1/7-2020.
B192: Kilde: Social- og Boligstyrelsens egne beregninger baseret på handicapstiatistikken ved Danmarks Statistik og Beskæftigelsesministeriets forløbsdatabase DREAM.
B195: Nøgletal 12.2: Beskæftigelsesgrad for den øvrige målgruppe | D195: 2018-01-01 | E195: 2018-07-01 | F195: 2019-01-01 | G195: 2019-07-01 | H195: 2020-01-01 | I195: 2020-07-01 | J195: 2021-01-01 | K195: 2021-07-01 | L195: 2022-01-01 | M195: 2022-07-01 | N195: 2023-01-01
B196: =IF(Kommune="","Kommune",Kommune) -> Herning | D196: 20181 | E196: 20182 | F196: 20191 | G196: 20192 | H196: 20201 | I196: 20202 | J196: 20211 | K196: 20212 | L196: 20221 | M196: 20222 | N196: 20231
B197: Andel | D197: =IF(Datanedslag>=D195,IF(INDEX(Data_kom2,MATCH(1,(komnavn2=Kommune)*(komaar2=D196),0),68)="","*",INDEX(Data_kom2,MATCH(1,(komnavn2=Kommune)*(komaar2=D196),0),68)),"") -> 0.08865147198 | E197: =IF(Datanedslag>=E195,IF(INDEX(Data_kom2,MATCH(1,(komnavn2=Kommune)*(komaar2=E196),0),68)="","*",INDEX(Data_kom2,MATCH(1,(komnavn2=Kommune)*(komaar2=E196),0),68)),"") -> 0.0884993385 | F197: =IF(Datanedslag>=F195,IF(INDEX(Data_kom2,MATCH(1,(komnavn2=Kommune)*(komaar2=F196),0),68)="","*",INDEX(Data_kom2,MATCH(1,(komnavn2=Kommune)*(komaar2=F196),0),68)),"") -> 0.06558185404 | G197: =IF(Datanedslag>=G195,IF(INDEX(Data_kom2,MATCH(1,(komnavn2=Kommune)*(komaar2=G196),0),68)="","*",INDEX(Data_kom2,MATCH(1,(komnavn2=Kommune)*(komaar2=G196),0),68)),"") -> 0.05877211024 | H197: =IF(Datanedslag>=H195,IF(INDEX(Data_kom2,MATCH(1,(komnavn2=Kommune)*(komaar2=H196),0),68)="","*",INDEX(Data_kom2,MATCH(1,(komnavn2=Kommune)*(komaar2=H196),0),68)),"") -> 0.050679983 | I197: =IF(Datanedslag>=I195,IF(INDEX(Data_kom2,MATCH(1,(komnavn2=Kommune)*(komaar2=I196),0),68)="","*",INDEX(Data_kom2,MATCH(1,(komnavn2=Kommune)*(komaar2=I196),0),68)),"") -> 0.05155925156 | J197: =IF(Datanedslag>=J195,IF(INDEX(Data_kom2,MATCH(1,(komnavn2=Kommune)*(komaar2=J196),0),68)="","*",INDEX(Data_kom2,MATCH(1,(komnavn2=Kommune)*(komaar2=J196),0),68)),"") -> 0.05367938295 | K197: =IF(Datanedslag>=K195,IF(INDEX(Data_kom2,MATCH(1,(komnavn2=Kommune)*(komaar2=K196),0),68)="","*",INDEX(Data_kom2,MATCH(1,(komnavn2=Kommune)*(komaar2=K196),0),68)),"") -> 0.05594871795 | L197: =IF(Datanedslag>=L195,IF(INDEX(Data_kom2,MATCH(1,(komnavn2=Kommune)*(komaar2=L196),0),68)="","*",INDEX(Data_kom2,MATCH(1,(komnavn2=Kommune)*(komaar2=L196),0),68)),"") -> 0.05320160609 | M197: =IF(Datanedslag>=M195,IF(INDEX(Data_kom2,MATCH(1,(komnavn2=Kommune)*(komaar2=M196),0),68)="","*",INDEX(Data_kom2,MATCH(1,(komnavn2=Kommune)*(komaar2=M196),0),68)),"") -> 0.0554667884 | N197: =IF(Datanedslag>=N195,IF(INDEX(Data_kom2,MATCH(1,(komnavn2=Kommune)*(komaar2=N196),0),68)="","*",INDEX(Data_kom2,MATCH(1,(komnavn2=Kommune)*(komaar2=N196),0),68)),"") -> 0.07686462474
B198: N | D198: =IF(Datanedslag>=D195,IF(INDEX(Data_kom2,MATCH(1,(komnavn2=Kommune)*(komaar2=D196),0),71)="","*",INDEX(Data_kom2,MATCH(1,(komnavn2=Kommune)*(komaar2=D196),0),71)),"") -> 405 | E198: =IF(Datanedslag>=E195,IF(INDEX(Data_kom2,MATCH(1,(komnavn2=Kommune)*(komaar2=E196),0),71)="","*",INDEX(Data_kom2,MATCH(1,(komnavn2=Kommune)*(komaar2=E196),0),71)),"") -> 407 | F198: =IF(Datanedslag>=F195,IF(INDEX(Data_kom2,MATCH(1,(komnavn2=Kommune)*(komaar2=F196),0),71)="","*",INDEX(Data_kom2,MATCH(1,(komnavn2=Kommune)*(komaar2=F196),0),71)),"") -> 390 | G198: =IF(Datanedslag>=G195,IF(INDEX(Data_kom2,MATCH(1,(komnavn2=Kommune)*(komaar2=G196),0),71)="","*",INDEX(Data_kom2,MATCH(1,(komnavn2=Kommune)*(komaar2=G196),0),71)),"") -> 374 | H198: =IF(Datanedslag>=H195,IF(INDEX(Data_kom2,MATCH(1,(komnavn2=Kommune)*(komaar2=H196),0),71)="","*",INDEX(Data_kom2,MATCH(1,(komnavn2=Kommune)*(komaar2=H196),0),71)),"") -> * | I198: =IF(Datanedslag>=I195,IF(INDEX(Data_kom2,MATCH(1,(komnavn2=Kommune)*(komaar2=I196),0),71)="","*",INDEX(Data_kom2,MATCH(1,(komnavn2=Kommune)*(komaar2=I196),0),71)),"") -> 370 | J198: =IF(Datanedslag>=J195,IF(INDEX(Data_kom2,MATCH(1,(komnavn2=Kommune)*(komaar2=J196),0),71)="","*",INDEX(Data_kom2,MATCH(1,(komnavn2=Kommune)*(komaar2=J196),0),71)),"") -> 369 | K198: =IF(Datanedslag>=K195,IF(INDEX(Data_kom2,MATCH(1,(komnavn2=Kommune)*(komaar2=K196),0),71)="","*",INDEX(Data_kom2,MATCH(1,(komnavn2=Kommune)*(komaar2=K196),0),71)),"") -> 375 | L198: =IF(Datanedslag>=L195,IF(INDEX(Data_kom2,MATCH(1,(komnavn2=Kommune)*(komaar2=L196),0),71)="","*",INDEX(Data_kom2,MATCH(1,(komnavn2=Kommune)*(komaar2=L196),0),71)),"") -> 364 | M198: =IF(Datanedslag>=M195,IF(INDEX(Data_kom2,MATCH(1,(komnavn2=Kommune)*(komaar2=M196),0),71)="","*",INDEX(Data_kom2,MATCH(1,(komnavn2=Kommune)*(komaar2=M196),0),71)),"") -> 337 | N198: =IF(Datanedslag>=N195,IF(INDEX(Data_kom2,MATCH(1,(komnavn2=Kommune)*(komaar2=N196),0),71)="","*",INDEX(Data_kom2,MATCH(1,(komnavn2=Kommune)*(komaar2=N196),0),71)),"") -> 329
B199: Anm.: Hvis nøgletallet er angivet med * er der foretaget en diskretionering af data, da der er for få observationer. N angiver målgruppestørrelsen for nøgletallet, som er alle borgere med "Sindslidelse" som ikke modtager forebyggende indsats efter SEL § 82.
B200: Kilde: Social- og Boligstyrelsens egne beregninger baseret på handicapstiatistikken ved Danmarks Statistik og Beskæftigelsesministeriets forløbsdatabase DREAM.
B204: Valgt nøgletal: Nøgletal 18
B206: Nøgletal 18: Genindlæggelser | D206: 2018-01-01 | E206: 2018-07-01 | F206: 2019-01-01 | G206: 2019-07-01 | H206: 2020-01-01 | I206: 2020-07-01 | J206: 2021-01-01 | K206: 2021-07-01 | L206: 2022-01-01 | M206: 2022-07-01 | N206: 2023-01-01
B207: =IF(Kommune="","Kommune",Kommune) -> Herning | D207: 20181 | E207: 20182 | F207: 20191 | G207: 20192 | H207: 20201 | I207: 20202 | J207: 20211 | K207: 20212 | L207: 20221 | M207: 20222 | N207: 20231
B208: Andel | E208: =IF(LPR_datanedslag>=E206,IF(INDEX(Data_kom2,MATCH(1,(komnavn2=Kommune)*(komaar2=E207),0),72)="","*",INDEX(Data_kom2,MATCH(1,(komnavn2=Kommune)*(komaar2=E207),0),72)),"") -> 0.3766233766 | F208: =IF(LPR_datanedslag>=F206,IF(INDEX(Data_kom2,MATCH(1,(komnavn2=Kommune)*(komaar2=F207),0),72)="","*",INDEX(Data_kom2,MATCH(1,(komnavn2=Kommune)*(komaar2=F207),0),72)),"") -> 0.3882352941 | G208: =IF(LPR_datanedslag>=G206,IF(INDEX(Data_kom2,MATCH(1,(komnavn2=Kommune)*(komaar2=G207),0),72)="","*",INDEX(Data_kom2,MATCH(1,(komnavn2=Kommune)*(komaar2=G207),0),72)),"") -> 0.5 | H208: =IF(LPR_datanedslag>=H206,IF(INDEX(Data_kom2,MATCH(1,(komnavn2=Kommune)*(komaar2=H207),0),72)="","*",INDEX(Data_kom2,MATCH(1,(komnavn2=Kommune)*(komaar2=H207),0),72)),"") -> 0.456 | I208: =IF(LPR_datanedslag>=I206,IF(INDEX(Data_kom2,MATCH(1,(komnavn2=Kommune)*(komaar2=I207),0),72)="","*",INDEX(Data_kom2,MATCH(1,(komnavn2=Kommune)*(komaar2=I207),0),72)),"") -> 0.3362068966 | J208: =IF(LPR_datanedslag>=J206,IF(INDEX(Data_kom2,MATCH(1,(komnavn2=Kommune)*(komaar2=J207),0),72)="","*",INDEX(Data_kom2,MATCH(1,(komnavn2=Kommune)*(komaar2=J207),0),72)),"") -> 0.4866666667 | K208: =IF(LPR_datanedslag>=K206,IF(INDEX(Data_kom2,MATCH(1,(komnavn2=Kommune)*(komaar2=K207),0),72)="","*",INDEX(Data_kom2,MATCH(1,(komnavn2=Kommune)*(komaar2=K207),0),72)),"") -> 0.6111111111 | L208: =IF(LPR_datanedslag>=L206,IF(INDEX(Data_kom2,MATCH(1,(komnavn2=Kommune)*(komaar2=L207),0),72)="","*",INDEX(Data_kom2,MATCH(1,(komnavn2=Kommune)*(komaar2=L207),0),72)),"") -> 0.5202702703 | M208: =IF(LPR_datanedslag>=M206,IF(INDEX(Data_kom2,MATCH(1,(komnavn2=Kommune)*(komaar2=M207),0),72)="","*",INDEX(Data_kom2,MATCH(1,(komnavn2=Kommune)*(komaar2=M207),0),72)),"") -> 0.4244604317 | N208: =IF(LPR_datanedslag>=N206,IF(INDEX(Data_kom2,MATCH(1,(komnavn2=Kommune)*(komaar2=N207),0),72)="","*",INDEX(Data_kom2,MATCH(1,(komnavn2=Kommune)*(komaar2=N207),0),72)),"") -> 0.4528301887
B209: N | E209: =IF(LPR_datanedslag>=E206,IF(INDEX(Data_kom2,MATCH(1,(komnavn2=Kommune)*(komaar2=E207),0),75)="","*",INDEX(Data_kom2,MATCH(1,(komnavn2=Kommune)*(komaar2=E207),0),75)),"") -> 407 | F209: =IF(LPR_datanedslag>=F206,IF(INDEX(Data_kom2,MATCH(1,(komnavn2=Kommune)*(komaar2=F207),0),75)="","*",INDEX(Data_kom2,MATCH(1,(komnavn2=Kommune)*(komaar2=F207),0),75)),"") -> 390 | G209: =IF(LPR_datanedslag>=G206,IF(INDEX(Data_kom2,MATCH(1,(komnavn2=Kommune)*(komaar2=G207),0),75)="","*",INDEX(Data_kom2,MATCH(1,(komnavn2=Kommune)*(komaar2=G207),0),75)),"") -> 374 | H209: =IF(LPR_datanedslag>=H206,IF(INDEX(Data_kom2,MATCH(1,(komnavn2=Kommune)*(komaar2=H207),0),75)="","*",INDEX(Data_kom2,MATCH(1,(komnavn2=Kommune)*(komaar2=H207),0),75)),"") -> 363 | I209: =IF(LPR_datanedslag>=I206,IF(INDEX(Data_kom2,MATCH(1,(komnavn2=Kommune)*(komaar2=I207),0),75)="","*",INDEX(Data_kom2,MATCH(1,(komnavn2=Kommune)*(komaar2=I207),0),75)),"") -> 383 | J209: =IF(LPR_datanedslag>=J206,IF(INDEX(Data_kom2,MATCH(1,(komnavn2=Kommune)*(komaar2=J207),0),75)="","*",INDEX(Data_kom2,MATCH(1,(komnavn2=Kommune)*(komaar2=J207),0),75)),"") -> 386 | K209: =IF(LPR_datanedslag>=K206,IF(INDEX(Data_kom2,MATCH(1,(komnavn2=Kommune)*(komaar2=K207),0),75)="","*",INDEX(Data_kom2,MATCH(1,(komnavn2=Kommune)*(komaar2=K207),0),75)),"") -> 391 | L209: =IF(LPR_datanedslag>=L206,IF(INDEX(Data_kom2,MATCH(1,(komnavn2=Kommune)*(komaar2=L207),0),75)="","*",INDEX(Data_kom2,MATCH(1,(komnavn2=Kommune)*(komaar2=L207),0),75)),"") -> 383 | M209: =IF(LPR_datanedslag>=M206,IF(INDEX(Data_kom2,MATCH(1,(komnavn2=Kommune)*(komaar2=M207),0),75)="","*",INDEX(Data_kom2,MATCH(1,(komnavn2=Kommune)*(komaar2=M207),0),75)),"") -> 365 | N209: =IF(LPR_datanedslag>=N206,IF(INDEX(Data_kom2,MATCH(1,(komnavn2=Kommune)*(komaar2=N207),0),75)="","*",INDEX(Data_kom2,MATCH(1,(komnavn2=Kommune)*(komaar2=N207),0),75)),"") -> 360
B210: Anm.: Hvis nøgletallet er angivet med * er der foretaget en diskretionering af data, da der er for få observationer. N angiver målgruppestørrelsen, som er alle borgere registreret med "Sindslidelse" i indberetningen til Danmarks Statistik.
B211: Kilde: Social- og Boligstyrelsens egne beregninger baseret på handicapstiatistikken ved Danmarks Statistik og registerdata fra Landspatientregistret.
B215: Valgt nøgletal: Nøgletal 19
B217: Nøgletal 19: Udgifter til forebyggende indsatser ift. udgifter til støttende indsatser | D217: 2018 | E217: 2019 | F217: 2020 | G217: 2021 | H217: 2022 | I217: 2023
B218: =IF(Kommune="","Kommune",Kommune) -> Herning
B219: Andel | D219: =IF(ok_datanedslag>=D$227,INDEX(Data_komoek,MATCH(1,(komnavn=Kommune)*(komaar=D217),0),3),"") -> 0 | E219: =IF(ok_datanedslag>=E$227,INDEX(Data_komoek,MATCH(1,(komnavn=Kommune)*(komaar=E217),0),3),"") -> 0 | F219: =IF(ok_datanedslag>=F$227,INDEX(Data_komoek,MATCH(1,(komnavn=Kommune)*(komaar=F217),0),3),"") -> 0 | G219: =IF(ok_datanedslag>=G$227,INDEX(Data_komoek,MATCH(1,(komnavn=Kommune)*(komaar=G217),0),3),"") -> 0.01831557585 | H219: =IF(ok_datanedslag>=H$227,INDEX(Data_komoek,MATCH(1,(komnavn=Kommune)*(komaar=H217),0),3),"") -> 0.04798565168 | I219: =IF(ok_datanedslag>=I$227,INDEX(Data_komoek,MATCH(1,(komnavn=Kommune)*(komaar=I217),0),3),"") -> 
B220: Anm.: Udgifterne er defineret som art>0 og ekskl. refusioner.
B221: Kilde: Kommunale regnskaber, Danmarks Statistik
B225: Valgt nøgletal: Nøgletal 20
B227: Nøgletal 20: Udgiftsandele | D227: 2018 | E227: 2019 | F227: 2020 | G227: 2021 | H227: 2022 | I227: 2023
B228: =IF(Kommune="","Kommune",Kommune) -> Herning
B229: 20:1: Længerevarende botilbud | D229: =IF(ok_datanedslag>=D$227,INDEX(Data_komoek,MATCH(1,(komnavn=Kommune)*(komaar=D$227),0),6),"") -> 0.1756136264 | E229: =IF(ok_datanedslag>=E$227,INDEX(Data_komoek,MATCH(1,(komnavn=Kommune)*(komaar=E$227),0),6),"") -> 0.1885352628 | F229: =IF(ok_datanedslag>=F$227,INDEX(Data_komoek,MATCH(1,(komnavn=Kommune)*(komaar=F$227),0),6),"") -> 0.1939995338 | G229: =IF(ok_datanedslag>=G$227,INDEX(Data_komoek,MATCH(1,(komnavn=Kommune)*(komaar=G$227),0),6),"") -> 0.1942603757 | H229: =IF(ok_datanedslag>=H$227,INDEX(Data_komoek,MATCH(1,(komnavn=Kommune)*(komaar=H$227),0),6),"") -> 0.2066616078 | I229: =IF(ok_datanedslag>=I$227,INDEX(Data_komoek,MATCH(1,(komnavn=Kommune)*(komaar=I$227),0),6),"") -> 
B230: 20:2: Botilbudslignende tilbud | D230: =IF(ok_datanedslag>=D$227,INDEX(Data_komoek,MATCH(1,(komnavn=Kommune)*(komaar=D$227),0),9),"") -> 0.2879570546 | E230: =IF(ok_datanedslag>=E$227,INDEX(Data_komoek,MATCH(1,(komnavn=Kommune)*(komaar=E$227),0),9),"") -> 0.3031991166 | F230: =IF(ok_datanedslag>=F$227,INDEX(Data_komoek,MATCH(1,(komnavn=Kommune)*(komaar=F$227),0),9),"") -> 0.2792780793 | G230: =IF(ok_datanedslag>=G$227,INDEX(Data_komoek,MATCH(1,(komnavn=Kommune)*(komaar=G$227),0),9),"") -> 0.2955175793 | H230: =IF(ok_datanedslag>=H$227,INDEX(Data_komoek,MATCH(1,(komnavn=Kommune)*(komaar=H$227),0),9),"") -> 0.2712756511 | I230: =IF(ok_datanedslag>=I$227,INDEX(Data_komoek,MATCH(1,(komnavn=Kommune)*(komaar=I$227),0),9),"") -> 
B231: 20.3: Midlertidige botilbud | D231: =IF(ok_datanedslag>=D$227,INDEX(Data_komoek,MATCH(1,(komnavn=Kommune)*(komaar=D$227),0),12),"") -> 0.2361659745 | E231: =IF(ok_datanedslag>=E$227,INDEX(Data_komoek,MATCH(1,(komnavn=Kommune)*(komaar=E$227),0),12),"") -> 0.293474857 | F231: =IF(ok_datanedslag>=F$227,INDEX(Data_komoek,MATCH(1,(komnavn=Kommune)*(komaar=F$227),0),12),"") -> 0.2873197696 | G231: =IF(ok_datanedslag>=G$227,INDEX(Data_komoek,MATCH(1,(komnavn=Kommune)*(komaar=G$227),0),12),"") -> 0.2772989222 | H231: =IF(ok_datanedslag>=H$227,INDEX(Data_komoek,MATCH(1,(komnavn=Kommune)*(komaar=H$227),0),12),"") -> 0.2129260377 | I231: =IF(ok_datanedslag>=I$227,INDEX(Data_komoek,MATCH(1,(komnavn=Kommune)*(komaar=I$227),0),12),"") -> 
B232: 20.4:Socialpædagogisk støtte | D232: =IF(ok_datanedslag>=D$227,INDEX(Data_komoek,MATCH(1,(komnavn=Kommune)*(komaar=D$227),0),15),"") -> 0.243239137 | E232: =IF(ok_datanedslag>=E$227,INDEX(Data_komoek,MATCH(1,(komnavn=Kommune)*(komaar=E$227),0),15),"") -> 0.1581263494 | F232: =IF(ok_datanedslag>=F$227,INDEX(Data_komoek,MATCH(1,(komnavn=Kommune)*(komaar=F$227),0),15),"") -> 0.1729213146 | G232: =IF(ok_datanedslag>=G$227,INDEX(Data_komoek,MATCH(1,(komnavn=Kommune)*(komaar=G$227),0),15),"") -> 0.1575739458 | H232: =IF(ok_datanedslag>=H$227,INDEX(Data_komoek,MATCH(1,(komnavn=Kommune)*(komaar=H$227),0),15),"") -> 0.2167202157 | I232: =IF(ok_datanedslag>=I$227,INDEX(Data_komoek,MATCH(1,(komnavn=Kommune)*(komaar=I$227),0),15),"") -> 
B233: 20.5: Beskyttet beskæftigelse og aktivitets- og samværstilbud | D233: =IF(ok_datanedslag>=D$227,INDEX(Data_komoek,MATCH(1,(komnavn=Kommune)*(komaar=D$227),0),18),"") -> 0.05702420743 | E233: =IF(ok_datanedslag>=E$227,INDEX(Data_komoek,MATCH(1,(komnavn=Kommune)*(komaar=E$227),0),18),"") -> 0.05666441415 | F233: =IF(ok_datanedslag>=F$227,INDEX(Data_komoek,MATCH(1,(komnavn=Kommune)*(komaar=F$227),0),18),"") -> 0.06648130265 | G233: =IF(ok_datanedslag>=G$227,INDEX(Data_komoek,MATCH(1,(komnavn=Kommune)*(komaar=G$227),0),18),"") -> 0.05736302792 | H233: =IF(ok_datanedslag>=H$227,INDEX(Data_komoek,MATCH(1,(komnavn=Kommune)*(komaar=H$227),0),18),"") -> 0.04662802525 | I233: =IF(ok_datanedslag>=I$227,INDEX(Data_komoek,MATCH(1,(komnavn=Kommune)*(komaar=I$227),0),18),"") -> 
B234: 20.6: Forebyggende indsatser | D234: =IF(ok_datanedslag>=D$227,INDEX(Data_komoek,MATCH(1,(komnavn=Kommune)*(komaar=D$227),0),21),"") -> 0 | E234: =IF(ok_datanedslag>=E$227,INDEX(Data_komoek,MATCH(1,(komnavn=Kommune)*(komaar=E$227),0),21),"") -> 0 | F234: =IF(ok_datanedslag>=F$227,INDEX(Data_komoek,MATCH(1,(komnavn=Kommune)*(komaar=F$227),0),21),"") -> 0 | G234: =IF(ok_datanedslag>=G$227,INDEX(Data_komoek,MATCH(1,(komnavn=Kommune)*(komaar=G$227),0),21),"") -> 0.01798614917 | H234: =IF(ok_datanedslag>=H$227,INDEX(Data_komoek,MATCH(1,(komnavn=Kommune)*(komaar=H$227),0),21),"") -> 0.04578846247 | I234: =IF(ok_datanedslag>=I$227,INDEX(Data_komoek,MATCH(1,(komnavn=Kommune)*(komaar=I$227),0),21),"") -> 
B235: Anm.: Udgifterne er defineret som art>0 og ekskl. refusioner.
B236: Kilde: Kommunale regnskaber, Danmarks Statistik

Sheet Indtastningsark
B3: Egne indtastninger
B7: En række af nøgletallene kan ikke baseres på nationale registerdata, men baseres på den enkelte kommunes egne data. Her skal du indsamle data for de nøgletal, som du ønsker at følge. De to måleredskaber du skal anvende er WHO-5 og Brief Inspire-O. Du tilgå spørgebatterierne via de to links her til venstre. Du kan se nøgletallene over tid ved at vælge "Nøgletalsanalyse".
B19: =Kommune -> Herning
B21: Nøgletal | D21: Beskrivelse | E21: =Skyggetabeller!C$13 -> 2023-07-01 | F21: =Skyggetabeller!D$13 -> 2024-01-01 | G21: =Skyggetabeller!E$13 -> 2024-07-01 | H21: =Skyggetabeller!F$13 -> 2025-01-01
E22: =Nøgletalsanalyse!J2311 -> 0 | F22: =Nøgletalsanalyse!K2311 -> 0 | G22: =Nøgletalsanalyse!L2311 -> 0 | H22: =Nøgletalsanalyse!M2311 -> 0
B23: 13 | C23: Trivsel | D23: Gennemsnitlig trivselsscore for borgere i målgruppen, målt ved WHO5 trivselsindeks.
B24: =B23&"a" -> 13a | D24: Antal borgere, der indgår i gennemsnittet.
B25: 13.1 | C25: Trivsel for modtagere af forebyggende indsatser | D25: Gennemsnitlig trivselsscore for borgere der modtager støtte efter SEL §82a og b, målt ved WHO5-trivselsindeks.
B26: =B25&"a" -> 13.1a | D26: Antal borgere, der indgår i gennemsnittet.
B27: 13.2 | C27: Trivsel for den øvrige målgruppe | D27: Gennemsnitlig trivselsscore for øvrige borgere i målgruppen, målt ved WHO5-trivselsindeks.
B28: =B27&"a" -> 13.2a | D28: Antal borgere, der indgår i gennemsnittet.
B29: 14 | C29: Personlig Recovery | D29: Gennemsnitlig score for målgruppen målt ved Brief Inspire-O.
B30: =B29&"a" -> 14a | D30: Antal borgere, der indgår i gennemsnittet.
B31: 15.1 | C31: Mental sundhed – Ikke umiddelbar risiko for stress og depression | D31: Andelen af borgere i målgruppen der har en trivselsscore over 50 målt ved WHO-5. | E31: =IFERROR(E32/E33,"Beregnes") -> Beregnes | F31: =IFERROR(F32/F33,"Beregnes") -> Beregnes | G31: =IFERROR(G32/G33,"Beregnes") -> Beregnes | H31: =IFERROR(H32/H33,"Beregnes") -> Beregnes
B32: =B31&"a" -> 15.1a | D32: Antal borgere i målgruppen, der har en trivselsscore over 50 målt ved WHO-5.
B33: =B31&"b" -> 15.1b | D33: Antal borgere i målgruppen, der har registreret en trivselsscore ved WHO-5.
B34: 15.2 | C34: Mental sundhed – Risiko for stress og depression | D34: Andelen af borgere i målgruppen der har en trivselsscore mellem 36 og 50 målt ved WHO-5. | E34: =IFERROR(E35/E36,"Beregnes") -> Beregnes | F34: =IFERROR(F35/F36,"Beregnes") -> Beregnes | G34: =IFERROR(G35/G36,"Beregnes") -> Beregnes | H34: =IFERROR(H35/H36,"Beregnes") -> Beregnes
B35: =B34&"a" -> 15.2a | D35: Antal borgere i målgruppen, der har en trivselsscore mellem 36 og 50 målt ved WHO-5.
B36: =B34&"b" -> 15.2b | D36: Antal borgere i målgruppen, der har registreret en trivselsscore ved WHO-5.
B37: 15.3 | C37: Mental sundhed – Stor risiko for stress og depression | D37: Andelen af borgere i målgruppen der har en trivselsscore mellem 0 og 35 målt ved WHO-5. | E37: =IFERROR(E38/E39,"Beregnes") -> Beregnes | F37: =IFERROR(F38/F39,"Beregnes") -> Beregnes | G37: =IFERROR(G38/G39,"Beregnes") -> Beregnes | H37: =IFERROR(H38/H39,"Beregnes") -> Beregnes
B38: =B37&"a" -> 15.3a | D38: Antal borgere i målgruppen, der har en trivselsscore mellem 0 og 35 målt ved WHO-5.
B39: =B37&"b" -> 15.3b | D39: Antal borgere i målgruppen, der har registreret en trivselsscore ved WHO-5.
B40: 16 | C40: Forbedret mental sundhed | D40: Andelen af borgere, der siden seneste måling, har opnået højere trivselsscore målt ved WHO-5 og dermed er flyttet en risikogruppe op (enten fra "Stor risiko" til "Risiko" eller fra "Risiko" til "Ikke umiddelbar risiko"). | F40: =IFERROR(F41/F42,"Beregnes") -> Beregnes | G40: =IFERROR(G41/G42,"Beregnes") -> Beregnes | H40: =IFERROR(H41/H42,"Beregnes") -> Beregnes
B41: =B40&"a" -> 16a | D41: Antal borgere, der siden seneste måling, har opnået højere trivselsscore målt ved WHO-5 og dermed er flyttet en risikogruppe op (enten fra "Stor risiko" til "Risiko" eller fra "Risiko" til "Ikke umiddelbar risiko").
B42: =B40&"b" -> 16b | D42: Antal borgere i målgruppen, der har registreret en trivselsscore ved WHO-5 ved denne og sidste datanedslag.
B43: 17 | C43: Forværring af mental sundhed | D43: Andelen af borgere, der siden seneste måling, har opnået lavere trivselsscore målt ved WHO-5 og dermed er flyttet en risikogruppe ned (enten fra "Risiko" til "Stor risiko" eller fra "Ikke umiddelbar risiko" til "Risiko". | F43: =IFERROR(F44/F45,"Beregnes") -> Beregnes | G43: =IFERROR(G44/G45,"Beregnes") -> Beregnes | H43: =IFERROR(H44/H45,"Beregnes") -> Beregnes
B44: =B43&"a" -> 17a | D44: Antal borgere, der siden seneste måling, har opnået lavere trivselsscore målt ved WHO-5 og dermed er flyttet en risikogruppe ned (enten fra "Risiko" til "Stor risiko" eller fra "Ikke umiddelbar risiko" til "Risiko").
B45: =B43&"b" -> 17b | D45: Antal borgere i målgruppen, der har registreret en trivselsscore ved WHO-5 ved denne og sidste datanedslag.
B46: Kilde: Lokalt indsamlede surveybesvarelser fra borgere i socialpsykiatrien på instrumentet WHO-5 og Brief-Inspire-O.

Sheet Nøgletalsanalyse
B4: Nøgletalsanalyse
B7: På denne side kan du se nøgletallene for din valgte kommune over tid og sammenligne med dine valgte sammenligningskommuner og hele landet. Du kan vælge det nøgletal, du ønsker at se på i rullemenuen her nedenfor. Du kan også vælge at se på alle nøgletal på én gang. Som udgangspunkt er nøgletallene illustereret som figurer, men du kan folde den tilhørende tabel ud under figuren, hvis du ønsker at se de data, der afbilledes i figuren. Du folder tabellerne ud ved at benytte de røde pile til venstre for tabeloverskriften. Ved nogle nøgletal er der ekstra illustrationer af nøgletallene. De kan tilsvarende foldes ud ved at benytte pilene. Ved alle nøgletallenes overskrifter er der infoknapper indeholdende nøgletallets definition, datakilde og opdateringsfrekvens. Ved alle figurer er der infoknapper indeholdende en beskrivelse af, hvad figuren viser. Til højre for nøgletallenes figur 1 er en tekstboks med forudfyldt tekst. Ønsker du at lave en rapport med nøgletallene, kan du bruge tekstboksen til at skrive tekst til figuren. Den forudfyldte tekst kan anvendes eller slettes efter behov. Teksten i teksboksen printes sammen med figuren i rapporten, hvis du vælger nøgletallet under "Print rapport" i den røde bjælke.
B10: Vælg nøgletal
B11: =VLOOKUP(NT_valg,Data!E1068:F1079,2,FALSE) -> Nøgletal 1 - Modtagere af længerevarende botilbud (§108)
B19: Nøgletal 1.1: Modtagere af længerevarende botilbud
B21: ="Figur 1.1: Udvikling i antal modtagere af længerevarende botilbud i "&Kommune -> Figur 1.1: Udvikling i antal modtagere af længerevarende botilbud i Herning
Z26: =Q2310 -> 0
B45: =RegNøgletal!B22 -> Anm.: Hvis nøgletallet er angivet med * er der foretaget en diskretionering af data, da der er for få observationer. N angiver målgruppestørrelsen, som er alle borgere registreret med "Sindslidelse" i indberetningen til Danmarks Statistik.
B46: =RegNøgletal!B23 -> Kilde: Social- og Boligstyrelsens egne beregninger baseret på handicapstiatistikken ved Danmarks Statistik.
B50: ="Tabel 1.1: Udvikling i antal modtagere af længerevarende botilbud i "&Kommune -> Tabel 1.1: Udvikling i antal modtagere af længerevarende botilbud i Herning
C52: =Skyggetabeller!C11 -> 2018-01-01 | D52: =Skyggetabeller!D11 -> 2018-07-01 | E52: =Skyggetabeller!E11 -> 2019-01-01 | F52: =Skyggetabeller!F11 -> 2019-07-01 | G52: =Skyggetabeller!G11 -> 2020-01-01 | H52: =Skyggetabeller!H11 -> 2020-07-01 | I52: =Skyggetabeller!I11 -> 2021-01-01 | J52: =Skyggetabeller!J11 -> 2021-07-01 | K52: =Skyggetabeller!K11 -> 2022-01-01 | L52: =Skyggetabeller!L11 -> 2022-07-01 | M52: =Skyggetabeller!M11 -> 2023-01-01
B53: Antal modtagere | C53: =RegNøgletal!D20 -> 20 | D53: =RegNøgletal!E20 -> 21 | E53: =RegNøgletal!F20 -> 22 | F53: =RegNøgletal!G20 -> 22 | G53: =RegNøgletal!H20 -> 22 | H53: =RegNøgletal!I20 -> 21 | I53: =RegNøgletal!J20 -> 20 | J53: =RegNøgletal!K20 -> 19 | K53: =RegNøgletal!L20 -> 19 | L53: =RegNøgletal!M20 -> 20 | M53: =RegNøgletal!N20 -> 20
B54: =RegNøgletal!B22 -> Anm.: Hvis nøgletallet er angivet med * er der foretaget en diskretionering af data, da der er for få observationer. N angiver målgruppestørrelsen, som er alle borgere registreret med "Sindslidelse" i indberetningen til Danmarks Statistik.
B55: =RegNøgletal!B23 -> Kilde: Social- og Boligstyrelsens egne beregninger baseret på handicapstiatistikken ved Danmarks Statistik.
B59: Figur 1.2: Udvikling i andelen af borgere, der modtager længerevarende botilbud
K61: Benyt, slet eller erstat gerne følgende tekst til beskrivelse af udviklingen over tid for det pågældende nøgletal. Beskrivelsen vil blive indsat i rapporten (skriv maks 10 linjer):
B80: =RegNøgletal!B22 -> Anm.: Hvis nøgletallet er angivet med * er der foretaget en diskretionering af data, da der er for få observationer. N angiver målgruppestørrelsen, som er alle borgere registreret med "Sindslidelse" i indberetningen til Danmarks Statistik.
B81: =RegNøgletal!B23 -> Kilde: Social- og Boligstyrelsens egne beregninger baseret på handicapstiatistikken ved Danmarks Statistik.
B85: Tabel 1.2: Udvikling i andelen af borgere, der modtager længerevarende botilbud
C87: =Skyggetabeller!C11 -> 2018-01-01 | D87: =Skyggetabeller!D11 -> 2018-07-01 | E87: =Skyggetabeller!E11 -> 2019-01-01 | F87: =Skyggetabeller!F11 -> 2019-07-01 | G87: =Skyggetabeller!G11 -> 2020-01-01 | H87: =Skyggetabeller!H11 -> 2020-07-01 | I87: =Skyggetabeller!I11 -> 2021-01-01 | J87: =Skyggetabeller!J11 -> 2021-07-01 | K87: =Skyggetabeller!K11 -> 2022-01-01 | L87: =Skyggetabeller!L11 -> 2022-07-01 | M87: =Skyggetabeller!M11 -> 2023-01-01
B88: =Kommune -> Herning
B89: Andel | C89: =Skyggetabeller!C25 -> 0.04938271605 | D89: =Skyggetabeller!D25 -> 0.0515970516 | E89: =Skyggetabeller!E25 -> 0.05641025641 | F89: =Skyggetabeller!F25 -> 0.05882352941 | G89: =Skyggetabeller!G25 -> 0.06060606061 | H89: =Skyggetabeller!H25 -> 0.05483028721 | I89: =Skyggetabeller!I25 -> 0.0518134715 | J89: =Skyggetabeller!J25 -> 0.04859335038 | K89: =Skyggetabeller!K25 -> 0.04960835509 | L89: =Skyggetabeller!L25 -> 0.05479452055 | M89: =Skyggetabeller!M25 -> 0.05555555556
B90: N | C90: =Skyggetabeller!C29 -> 405 | D90: =Skyggetabeller!D29 -> 407 | E90: =Skyggetabeller!E29 -> 390 | F90: =Skyggetabeller!F29 -> 374 | G90: =Skyggetabeller!G29 -> 363 | H90: =Skyggetabeller!H29 -> 383 | I90: =Skyggetabeller!I29 -> 386 | J90: =Skyggetabeller!J29 -> 391 | K90: =Skyggetabeller!K29 -> 383 | L90: =Skyggetabeller!L29 -> 365 | M90: =Skyggetabeller!M29 -> 360
B91: Sammenligningskommuner
B92: Andel | C92: =Skyggetabeller!C26 -> 0.06868686869 | D92: =Skyggetabeller!D26 -> 0.07218683652 | E92: =Skyggetabeller!E26 -> 0.07231404959 | F92: =Skyggetabeller!F26 -> 0.06734693878 | G92: =Skyggetabeller!G26 -> 0.07392197125 | H92: =Skyggetabeller!H26 -> 0.07520325203 | I92: =Skyggetabeller!I26 -> 0.07258064516 | J92: =Skyggetabeller!J26 -> 0.06782945736 | K92: =Skyggetabeller!K26 -> 0.06756756757 | L92: =Skyggetabeller!L26 -> 0.065913371 | M92: =Skyggetabeller!M26 -> 0.06678700361
B93: N | C93: =Skyggetabeller!C30 -> 495 | D93: =Skyggetabeller!D30 -> 471 | E93: =Skyggetabeller!E30 -> 484 | F93: =Skyggetabeller!F30 -> 490 | G93: =Skyggetabeller!G30 -> 487 | H93: =Skyggetabeller!H30 -> 492 | I93: =Skyggetabeller!I30 -> 496 | J93: =Skyggetabeller!J30 -> 516 | K93: =Skyggetabeller!K30 -> 518 | L93: =Skyggetabeller!L30 -> 531 | M93: =Skyggetabeller!M30 -> 554
B94: Landsgennemsnit
B95: Andel | C95: =Skyggetabeller!C27 -> 0.06815600151 | D95: =Skyggetabeller!D27 -> 0.06831831832 | E95: =Skyggetabeller!E27 -> 0.06776488207 | F95: =Skyggetabeller!F27 -> 0.06646639129 | G95: =Skyggetabeller!G27 -> 0.06526631658 | H95: =Skyggetabeller!H27 -> 0.06579439252 | I95: =Skyggetabeller!I27 -> 0.06464721093 | J95: =Skyggetabeller!J27 -> 0.06375961891 | K95: =Skyggetabeller!K27 -> 0.06295224313 | L95: =Skyggetabeller!L27 -> 0.06263421618 | M95: =Skyggetabeller!M27 -> 0.06265574938
B96: N | C96: =Skyggetabeller!C31 -> 26410 | D96: =Skyggetabeller!D31 -> 26640 | E96: =Skyggetabeller!E31 -> 26710 | F96: =Skyggetabeller!F31 -> 26630 | G96: =Skyggetabeller!G31 -> 26660 | H96: =Skyggetabeller!H31 -> 26750 | I96: =Skyggetabeller!I31 -> 27070 | J96: =Skyggetabeller!J31 -> 27290 | K96: =Skyggetabeller!K31 -> 27640 | L96: =Skyggetabeller!L31 -> 27940 | M96: =Skyggetabeller!M31 -> 28090
B97: =IF('Dine valg'!$G$24="","Ingen sammenligningsgruppe valgt.","Valgte kommuner i sammenligningsgruppen: "&'Dine valg'!$G$24&" "&'Dine valg'!$G$25&" "&'Dine valg'!$G$26&" "&'Dine valg'!$G$27&" "&'Dine valg'!$G$28&" "&'Dine valg'!$G$29&" "&'Dine valg'!$G$30) -> Valgte kommuner i sammenligningsgruppen: Allerød Assens Ballerup
B98: =RegNøgletal!B22 -> Anm.: Hvis nøgletallet er angivet med * er der foretaget en diskretionering af data, da der er for få observationer. N angiver målgruppestørrelsen, som er alle borgere registreret med "Sindslidelse" i indberetningen til Danmarks Statistik.
B99: =RegNøgletal!B23 -> Kilde: Social- og Boligstyrelsens egne beregninger baseret på handicapstiatistikken ved Danmarks Statistik.
B103: Nøgletal 2: Modtagere af botilbudslignende tilbud
B105: ="Figur 2.1: Udvikling i antal modtagere af botilbudslignende tilbud i "&Kommune -> Figur 2.1: Udvikling i antal modtagere af botilbudslignende tilbud i Herning
B130: =RegNøgletal!B34 -> Anm.: Hvis nøgletallet er angivet med * er der foretaget en diskretionering af data, da der er for få observationer. N angiver målgruppestørrelsen, som er alle borgere registreret med "Sindslidelse" i indberetningen til Danmarks Statistik.
B131: =RegNøgletal!B35 -> Kilde: Social- og Boligstyrelsens egne beregninger baseret på handicapstiatistikken ved Danmarks Statistik.
B136: ="Tabel 2.1: Udvikling i antal modtagere af botilbudslignende tilbud i "&Kommune -> Tabel 2.1: Udvikling i antal modtagere af botilbudslignende tilbud i Herning
C138: =Skyggetabeller!C$11 -> 2018-01-01 | D138: =Skyggetabeller!D$11 -> 2018-07-01 | E138: =Skyggetabeller!E$11 -> 2019-01-01 | F138: =Skyggetabeller!F$11 -> 2019-07-01 | G138: =Skyggetabeller!G$11 -> 2020-01-01 | H138: =Skyggetabeller!H$11 -> 2020-07-01 | I138: =Skyggetabeller!I$11 -> 2021-01-01 | J138: =Skyggetabeller!J$11 -> 2021-07-01 | K138: =Skyggetabeller!K$11 -> 2022-01-01 | L138: =Skyggetabeller!L$11 -> 2022-07-01 | M138: =Skyggetabeller!M$11 -> 2023-01-01
B139: Antal modtagere | C139: =RegNøgletal!D32 -> 45 | D139: =RegNøgletal!E32 -> 44 | E139: =RegNøgletal!F32 -> 43 | F139: =RegNøgletal!G32 -> 42 | G139: =RegNøgletal!H32 -> 42 | H139: =RegNøgletal!I32 -> 41 | I139: =RegNøgletal!J32 -> 39 | J139: =RegNøgletal!K32 -> 37 | K139: =RegNøgletal!L32 -> 37 | L139: =RegNøgletal!M32 -> 36 | M139: =RegNøgletal!N32 -> 34
B140: =RegNøgletal!B34 -> Anm.: Hvis nøgletallet er angivet med * er der foretaget en diskretionering af data, da der er for få observationer. N angiver målgruppestørrelsen, som er alle borgere registreret med "Sindslidelse" i indberetningen til Danmarks Statistik.
B141: =RegNøgletal!B35 -> Kilde: Social- og Boligstyrelsens egne beregninger baseret på handicapstiatistikken ved Danmarks Statistik.
B145: Figur 2.2: Udvikling i andelen af borgere, der modtager botilbudslignende botilbud
K147: Benyt, slet eller erstat gerne følgende tekst til beskrivelse af udviklingen over tid for det pågældende nøgletal. Beskrivelsen vil blive indsat i rapporten (skriv maks 10 linjer):
B168: =RegNøgletal!B34 -> Anm.: Hvis nøgletallet er angivet med * er der foretaget en diskretionering af data, da der er for få observationer. N angiver målgruppestørrelsen, som er alle borgere registreret med "Sindslidelse" i indberetningen til Danmarks Statistik.
B169: =RegNøgletal!B35 -> Kilde: Social- og Boligstyrelsens egne beregninger baseret på handicapstiatistikken ved Danmarks Statistik.
B173: Tabel 2.2: Udvikling i andelen af borgere, der modtager botilbudslignende tilbud
C175: =Skyggetabeller!C$11 -> 2018-01-01 | D175: =Skyggetabeller!D$11 -> 2018-07-01 | E175: =Skyggetabeller!E$11 -> 2019-01-01 | F175: =Skyggetabeller!F$11 -> 2019-07-01 | G175: =Skyggetabeller!G$11 -> 2020-01-01 | H175: =Skyggetabeller!H$11 -> 2020-07-01 | I175: =Skyggetabeller!I$11 -> 2021-01-01 | J175: =Skyggetabeller!J$11 -> 2021-07-01 | K175: =Skyggetabeller!K$11 -> 2022-01-01 | L175: =Skyggetabeller!L$11 -> 2022-07-01 | M175: =Skyggetabeller!M$11 -> 2023-01-01
B176: =Kommune -> Herning
B177: Andel | C177: =Skyggetabeller!C40 -> 0.1111111111 | D177: =Skyggetabeller!D40 -> 0.1081081081 | E177: =Skyggetabeller!E40 -> 0.1102564103 | F177: =Skyggetabeller!F40 -> 0.1122994652 | G177: =Skyggetabeller!G40 -> 0.1157024793 | H177: =Skyggetabeller!H40 -> 0.1070496084 | I177: =Skyggetabeller!I40 -> 0.1010362694 | J177: =Skyggetabeller!J40 -> 0.09462915601 | K177: =Skyggetabeller!K40 -> 0.09660574413 | L177: =Skyggetabeller!L40 -> 0.09863013699 | M177: =Skyggetabeller!M40 -> 0.09444444444
B178: N | C178: =Skyggetabeller!C44 -> 405 | D178: =Skyggetabeller!D44 -> 407 | E178: =Skyggetabeller!E44 -> 390 | F178: =Skyggetabeller!F44 -> 374 | G178: =Skyggetabeller!G44 -> 363 | H178: =Skyggetabeller!H44 -> 383 | I178: =Skyggetabeller!I44 -> 386 | J178: =Skyggetabeller!J44 -> 391 | K178: =Skyggetabeller!K44 -> 383 | L178: =Skyggetabeller!L44 -> 365 | M178: =Skyggetabeller!M44 -> 360
B179: Sammenligningskommuner
B180: Andel | C180: =Skyggetabeller!C41 -> 0.1090909091 | D180: =Skyggetabeller!D41 -> 0.1167728238 | E180: =Skyggetabeller!E41 -> 0.1033057851 | F180: =Skyggetabeller!F41 -> 0.08367346939 | G180: =Skyggetabeller!G41 -> 0.08213552361 | H180: =Skyggetabeller!H41 -> 0.08333333333 | I180: =Skyggetabeller!I41 -> 0.09677419355 | J180: =Skyggetabeller!J41 -> 0.09302325581 | K180: =Skyggetabeller!K41 -> 0.09266409266 | L180: =Skyggetabeller!L41 -> 0.09039548023 | M180: =Skyggetabeller!M41 -> 0.08483754513
B181: N | C181: =Skyggetabeller!C45 -> 495 | D181: =Skyggetabeller!D45 -> 471 | E181: =Skyggetabeller!E45 -> 484 | F181: =Skyggetabeller!F45 -> 490 | G181: =Skyggetabeller!G45 -> 487 | H181: =Skyggetabeller!H45 -> 492 | I181: =Skyggetabeller!I45 -> 496 | J181: =Skyggetabeller!J45 -> 516 | K181: =Skyggetabeller!K45 -> 518 | L181: =Skyggetabeller!L45 -> 518 | M181: =Skyggetabeller!M45 -> 518
B182: Landsgennemsnit
B183: Andel | C183: =Skyggetabeller!C42 -> 0.1063990913 | D183: =Skyggetabeller!D42 -> 0.106981982 | E183: =Skyggetabeller!E42 -> 0.1067016099 | F183: =Skyggetabeller!F42 -> 0.1066466391 | G183: =Skyggetabeller!G42 -> 0.1072768192 | H183: =Skyggetabeller!H42 -> 0.1061682243 | I183: =Skyggetabeller!I42 -> 0.1041743628 | J183: =Skyggetabeller!J42 -> 0.1026016856 | K183: =Skyggetabeller!K42 -> 0.1005788712 | L183: =Skyggetabeller!L42 -> 0.09842519685 | M183: =Skyggetabeller!M42 -> 0.09754360983
B184: N | C184: =Skyggetabeller!C46 -> 26410 | D184: =Skyggetabeller!D46 -> 26640 | E184: =Skyggetabeller!E46 -> 26710 | F184: =Skyggetabeller!F46 -> 26630 | G184: =Skyggetabeller!G46 -> 26660 | H184: =Skyggetabeller!H46 -> 26750 | I184: =Skyggetabeller!I46 -> 27070 | J184: =Skyggetabeller!J46 -> 27290 | K184: =Skyggetabeller!K46 -> 27640 | L184: =Skyggetabeller!L46 -> 27940 | M184: =Skyggetabeller!M46 -> 28090
B185: =IF('Dine valg'!$G$24="","Ingen sammenligningsgruppe valgt.","Valgte kommuner i sammenligningsgruppen: "&'Dine valg'!$G$24&" "&'Dine valg'!$G$25&" "&'Dine valg'!$G$26&" "&'Dine valg'!$G$27&" "&'Dine valg'!$G$28&" "&'Dine valg'!$G$29&" "&'Dine valg'!$G$30) -> Valgte kommuner i sammenligningsgruppen: Allerød Assens Ballerup
B186: =RegNøgletal!B34 -> Anm.: Hvis nøgletallet er angivet med * er der foretaget en diskretionering af data, da der er for få observationer. N angiver målgruppestørrelsen, som er alle borgere registreret med "Sindslidelse" i indberetningen til Danmarks Statistik.
B187: =RegNøgletal!B35 -> Kilde: Social- og Boligstyrelsens egne beregninger baseret på handicapstiatistikken ved Danmarks Statistik.
B191: Nøgletal 3: Modtagere af midlertidigt botilbud
B193: ="Figur 3.1: Udvikling i antal modtagere af midlertidigt botilbud i "&Kommune -> Figur 3.1: Udvikling i antal modtagere af midlertidigt botilbud i Herning
B217: =RegNøgletal!B46 -> Anm.: Hvis nøgletallet er angivet med * er der foretaget en diskretionering af data, da der er for få observationer. N angiver målgruppestørrelsen, som er alle borgere registreret med "Sindslidelse" i indberetningen til Danmarks Statistik.
B218: =RegNøgletal!B47 -> Kilde: Social- og Boligstyrelsens egne beregninger baseret på handicapstiatistikken ved Danmarks Statistik.
B222: ="Tabel 3.1: Udvikling i antal modtagere af midlertidigt botilbud i "&Kommune -> Tabel 3.1: Udvikling i antal modtagere af midlertidigt botilbud i Herning
C224: =Skyggetabeller!C$11 -> 2018-01-01 | D224: =Skyggetabeller!D$11 -> 2018-07-01 | E224: =Skyggetabeller!E$11 -> 2019-01-01 | F224: =Skyggetabeller!F$11 -> 2019-07-01 | G224: =Skyggetabeller!G$11 -> 2020-01-01 | H224: =Skyggetabeller!H$11 -> 2020-07-01 | I224: =Skyggetabeller!I$11 -> 2021-01-01 | J224: =Skyggetabeller!J$11 -> 2021-07-01 | K224: =Skyggetabeller!K$11 -> 2022-01-01 | L224: =Skyggetabeller!L$11 -> 2022-07-01 | M224: =Skyggetabeller!M$11 -> 2023-01-01
B225: Antal modtagere | C225: =RegNøgletal!D44 -> 28 | D225: =RegNøgletal!E44 -> 26 | E225: =RegNøgletal!F44 -> 28 | F225: =RegNøgletal!G44 -> 30 | G225: =RegNøgletal!H44 -> 30 | H225: =RegNøgletal!I44 -> 26 | I225: =RegNøgletal!J44 -> 24 | J225: =RegNøgletal!K44 -> 23 | K225: =RegNøgletal!L44 -> 21 | L225: =RegNøgletal!M44 -> 17 | M225: =RegNøgletal!N44 -> 15
B226: =RegNøgletal!B46 -> Anm.: Hvis nøgletallet er angivet med * er der foretaget en diskretionering af data, da der er for få observationer. N angiver målgruppestørrelsen, som er alle borgere registreret med "Sindslidelse" i indberetningen til Danmarks Statistik.
B227: =RegNøgletal!B47 -> Kilde: Social- og Boligstyrelsens egne beregninger baseret på handicapstiatistikken ved Danmarks Statistik.
B231: Figur 3.2: Udvikling i andelen af borgere, der modtager et midlertidigt botilbud
K233: Benyt, slet eller erstat gerne følgende tekst til beskrivelse af udviklingen over tid for det pågældende nøgletal. Beskrivelsen vil blive indsat i rapporten (skriv maks 10 linjer):
B254: =RegNøgletal!B46 -> Anm.: Hvis nøgletallet er angivet med * er der foretaget en diskretionering af data, da der er for få observationer. N angiver målgruppestørrelsen, som er alle borgere registreret med "Sindslidelse" i indberetningen til Danmarks Statistik.
B255: =RegNøgletal!B47 -> Kilde: Social- og Boligstyrelsens egne beregninger baseret på handicapstiatistikken ved Danmarks Statistik.
B259: Tabel 3.2: Udvikling i andelen af borgere, der modtager et midlertidigt botilbud
C261: =Skyggetabeller!C$11 -> 2018-01-01 | D261: =Skyggetabeller!D$11 -> 2018-07-01 | E261: =Skyggetabeller!E$11 -> 2019-01-01 | F261: =Skyggetabeller!F$11 -> 2019-07-01 | G261: =Skyggetabeller!G$11 -> 2020-01-01 | H261: =Skyggetabeller!H$11 -> 2020-07-01 | I261: =Skyggetabeller!I$11 -> 2021-01-01 | J261: =Skyggetabeller!J$11 -> 2021-07-01 | K261: =Skyggetabeller!K$11 -> 2022-01-01 | L261: =Skyggetabeller!L$11 -> 2022-07-01 | M261: =Skyggetabeller!M$11 -> 2023-01-01
B262: =Kommune -> Herning
B263: Andel | C263: =Skyggetabeller!C56 -> 0.06913580247 | D263: =Skyggetabeller!D56 -> 0.06388206388 | E263: =Skyggetabeller!E56 -> 0.07179487179 | F263: =Skyggetabeller!F56 -> 0.08021390374 | G263: =Skyggetabeller!G56 -> 0.0826446281 | H263: =Skyggetabeller!H56 -> 0.06788511749 | I263: =Skyggetabeller!I56 -> 0.0621761658 | J263: =Skyggetabeller!J56 -> 0.05882352941 | K263: =Skyggetabeller!K56 -> 0.05483028721 | L263: =Skyggetabeller!L56 -> 0.04657534247 | M263: =Skyggetabeller!M56 -> 0.04166666667
B264: N | C264: =Skyggetabeller!C60 -> 405 | D264: =Skyggetabeller!D60 -> 407 | E264: =Skyggetabeller!E60 -> 390 | F264: =Skyggetabeller!F60 -> 374 | G264: =Skyggetabeller!G60 -> 363 | H264: =Skyggetabeller!H60 -> 383 | I264: =Skyggetabeller!I60 -> 386 | J264: =Skyggetabeller!J60 -> 391 | K264: =Skyggetabeller!K60 -> 383 | L264: =Skyggetabeller!L60 -> 365 | M264: =Skyggetabeller!M60 -> 360
B265: Sammenligningskommuner
B266: Andel | C266: =Skyggetabeller!C57 -> 0.1232323232 | D266: =Skyggetabeller!D57 -> 0.1252653928 | E266: =Skyggetabeller!E57 -> 0.1260330579 | F266: =Skyggetabeller!F57 -> 0.1204081633 | G266: =Skyggetabeller!G57 -> 0.1190965092 | H266: =Skyggetabeller!H57 -> 0.1300813008 | I266: =Skyggetabeller!I57 -> 0.122983871 | J266: =Skyggetabeller!J57 -> 0.1337209302 | K266: =Skyggetabeller!K57 -> 0.1312741313 | L266: =Skyggetabeller!L57 -> 0.1312741313 | M266: =Skyggetabeller!M57 -> 0.1312741313
B267: N | C267: =Skyggetabeller!C61 -> 495 | D267: =Skyggetabeller!D61 -> 471 | E267: =Skyggetabeller!E61 -> 484 | F267: =Skyggetabeller!F61 -> 490 | G267: =Skyggetabeller!G61 -> 487 | H267: =Skyggetabeller!H61 -> 492 | I267: =Skyggetabeller!I61 -> 496 | J267: =Skyggetabeller!J61 -> 516 | K267: =Skyggetabeller!K61 -> 518 | L267: =Skyggetabeller!L61 -> 518 | M267: =Skyggetabeller!M61 -> 518
B268: Landsgennemsnit
B269: Andel | C269: =Skyggetabeller!C58 -> 0.09087466869 | D269: =Skyggetabeller!D58 -> 0.09234234234 | E269: =Skyggetabeller!E58 -> 0.09584425309 | F269: =Skyggetabeller!F58 -> 0.09763424709 | G269: =Skyggetabeller!G58 -> 0.09714928732 | H269: =Skyggetabeller!H58 -> 0.09757009346 | I269: =Skyggetabeller!I58 -> 0.09604728482 | J269: =Skyggetabeller!J58 -> 0.09710516673 | K269: =Skyggetabeller!K58 -> 0.0976845152 | L269: =Skyggetabeller!L58 -> 0.09735146743 | M269: =Skyggetabeller!M58 -> 0.09861160555
B270: N | C270: =Skyggetabeller!C62 -> 26410 | D270: =Skyggetabeller!D62 -> 26640 | E270: =Skyggetabeller!E62 -> 26710 | F270: =Skyggetabeller!F62 -> 26630 | G270: =Skyggetabeller!G62 -> 26660 | H270: =Skyggetabeller!H62 -> 26750 | I270: =Skyggetabeller!I62 -> 27070 | J270: =Skyggetabeller!J62 -> 27290 | K270: =Skyggetabeller!K62 -> 27640 | L270: =Skyggetabeller!L62 -> 27940 | M270: =Skyggetabeller!M62 -> 28090
B271: =IF('Dine valg'!$G$24="","Ingen sammenligningsgruppe valgt.","Valgte kommuner i sammenligningsgruppen: "&'Dine valg'!$G$24&" "&'Dine valg'!$G$25&" "&'Dine valg'!$G$26&" "&'Dine valg'!$G$27&" "&'Dine valg'!$G$28&" "&'Dine valg'!$G$29&" "&'Dine valg'!$G$30) -> Valgte kommuner i sammenligningsgruppen: Allerød Assens Ballerup
B272: =RegNøgletal!B46 -> Anm.: Hvis nøgletallet er angivet med * er der foretaget en diskretionering af data, da der er for få observationer. N angiver målgruppestørrelsen, som er alle borgere registreret med "Sindslidelse" i indberetningen til Danmarks Statistik.
B273: =RegNøgletal!B47 -> Kilde: Social- og Boligstyrelsens egne beregninger baseret på handicapstiatistikken ved Danmarks Statistik.
B277: Nøgletal 4: Modtagere af socialpædagogisk støtte
B279: ="Figur 4.1: Udvikling i antal modtagere af socialpædagogisk støtte i "&Kommune -> Figur 4.1: Udvikling i antal modtagere af socialpædagogisk støtte i Herning
B303: =RegNøgletal!B58 -> Anm.: Hvis nøgletallet er angivet med * er der foretaget en diskretionering af data, da der er for få observationer. N angiver målgruppestørrelsen, som er alle borgere registreret med "Sindslidelse" i indberetningen til Danmarks Statistik.
B304: =RegNøgletal!B59 -> Kilde: Social- og Boligstyrelsens egne beregninger baseret på handicapstiatistikken ved Danmarks Statistik.
B309: ="Tabel 4.1: Udvikling i antal modtagere af socialpædagogisk støtte i "&Kommune -> Tabel 4.1: Udvikling i antal modtagere af socialpædagogisk støtte i Herning
C311: =Skyggetabeller!C$11 -> 2018-01-01 | D311: =Skyggetabeller!D$11 -> 2018-07-01 | E311: =Skyggetabeller!E$11 -> 2019-01-01 | F311: =Skyggetabeller!F$11 -> 2019-07-01 | G311: =Skyggetabeller!G$11 -> 2020-01-01 | H311: =Skyggetabeller!H$11 -> 2020-07-01 | I311: =Skyggetabeller!I$11 -> 2021-01-01 | J311: =Skyggetabeller!J$11 -> 2021-07-01 | K311: =Skyggetabeller!K$11 -> 2022-01-01 | L311: =Skyggetabeller!L$11 -> 2022-07-01 | M311: =Skyggetabeller!M$11 -> 2023-01-01
B312: Antal modtagere | C312: =RegNøgletal!D56 -> 291 | D312: =RegNøgletal!E56 -> 295 | E312: =RegNøgletal!F56 -> 276 | F312: =RegNøgletal!G56 -> 258 | G312: =RegNøgletal!H56 -> 249 | H312: =RegNøgletal!I56 -> 262 | I312: =RegNøgletal!J56 -> 267 | J312: =RegNøgletal!K56 -> 280 | K312: =RegNøgletal!L56 -> 275 | L312: =RegNøgletal!M56 -> 249 | M312: =RegNøgletal!N56 -> 247
B313: =RegNøgletal!B58 -> Anm.: Hvis nøgletallet er angivet med * er der foretaget en diskretionering af data, da der er for få observationer. N angiver målgruppestørrelsen, som er alle borgere registreret med "Sindslidelse" i indberetningen til Danmarks Statistik.
B314: =RegNøgletal!B59 -> Kilde: Social- og Boligstyrelsens egne beregninger baseret på handicapstiatistikken ved Danmarks Statistik.
B318: Figur 4.2: Udvikling i andelen af borgere, der modtager socialpædagogisk støtte
K319: Benyt, slet eller erstat gerne følgende tekst til beskrivelse af udviklingen over tid for det pågældende nøgletal. Beskrivelsen vil blive indsat i rapporten (skriv maks 10 linjer):
B340: =RegNøgletal!B58 -> Anm.: Hvis nøgletallet er angivet med * er der foretaget en diskretionering af data, da der er for få observationer. N angiver målgruppestørrelsen, som er alle borgere registreret med "Sindslidelse" i indberetningen til Danmarks Statistik.
B341: =RegNøgletal!B59 -> Kilde: Social- og Boligstyrelsens egne beregninger baseret på handicapstiatistikken ved Danmarks Statistik.
B345: Tabel 4.2: Udvikling i andelen af borgere, der modtager socialpædagogisk støtte
C346: =Skyggetabeller!C$11 -> 2018-01-01 | D346: =Skyggetabeller!D$11 -> 2018-07-01 | E346: =Skyggetabeller!E$11 -> 2019-01-01 | F346: =Skyggetabeller!F$11 -> 2019-07-01 | G346: =Skyggetabeller!G$11 -> 2020-01-01 | H346: =Skyggetabeller!H$11 -> 2020-07-01 | I346: =Skyggetabeller!I$11 -> 2021-01-01 | J346: =Skyggetabeller!J$11 -> 2021-07-01 | K346: =Skyggetabeller!K$11 -> 2022-01-01 | L346: =Skyggetabeller!L$11 -> 2022-07-01 | M346: =Skyggetabeller!M$11 -> 2023-01-01
B347: =Kommune -> Herning
B348: Andel | C348: =Skyggetabeller!C72 -> 0.7185185185 | D348: =Skyggetabeller!D72 -> 0.7248157248 | E348: =Skyggetabeller!E72 -> 0.7076923077 | F348: =Skyggetabeller!F72 -> 0.6898395722 | G348: =Skyggetabeller!G72 -> 0.6859504132 | H348: =Skyggetabeller!H72 -> 0.684073107 | I348: =Skyggetabeller!I72 -> 0.6917098446 | J348: =Skyggetabeller!J72 -> 0.716112532 | K348: =Skyggetabeller!K72 -> 0.7180156658 | L348: =Skyggetabeller!L72 -> 0.6821917808 | M348: =Skyggetabeller!M72 -> 0.6861111111
B349: N | C349: =Skyggetabeller!C76 -> 405 | D349: =Skyggetabeller!D76 -> 407 | E349: =Skyggetabeller!E76 -> 390 | F349: =Skyggetabeller!F76 -> 374 | G349: =Skyggetabeller!G76 -> 363 | H349: =Skyggetabeller!H76 -> 383 | I349: =Skyggetabeller!I76 -> 386 | J349: =Skyggetabeller!J76 -> 391 | K349: =Skyggetabeller!K76 -> 383 | L349: =Skyggetabeller!L76 -> 365 | M349: =Skyggetabeller!M76 -> 360
B350: Sammenligningskommuner
B351: Andel | C351: =Skyggetabeller!C73 -> 0.5454545455 | D351: =Skyggetabeller!D73 -> 0.5159235669 | E351: =Skyggetabeller!E73 -> 0.541322314 | F351: =Skyggetabeller!F73 -> 0.5571428571 | G351: =Skyggetabeller!G73 -> 0.5585215606 | H351: =Skyggetabeller!H73 -> 0.575203252 | I351: =Skyggetabeller!I73 -> 0.5806451613 | J351: =Skyggetabeller!J73 -> 0.5910852713 | K351: =Skyggetabeller!K73 -> 0.5965250965 | L351: =Skyggetabeller!L73 -> 0.5965250965 | M351: =Skyggetabeller!M73 -> 0.5965250965
B352: N | C352: =Skyggetabeller!C77 -> 495 | D352: =Skyggetabeller!D77 -> 471 | E352: =Skyggetabeller!E77 -> 484 | F352: =Skyggetabeller!F77 -> 490 | G352: =Skyggetabeller!G77 -> 487 | H352: =Skyggetabeller!H77 -> 492 | I352: =Skyggetabeller!I77 -> 496 | J352: =Skyggetabeller!J77 -> 516 | K352: =Skyggetabeller!K77 -> 518 | L352: =Skyggetabeller!L77 -> 518 | M352: =Skyggetabeller!M77 -> 518
B353: Landsgennemsnit
B354: Andel | C354: =Skyggetabeller!C74 -> 0.6592199924 | D354: =Skyggetabeller!D74 -> 0.6565315315 | E354: =Skyggetabeller!E74 -> 0.6484462748 | F354: =Skyggetabeller!F74 -> 0.6417574164 | G354: =Skyggetabeller!G74 -> 0.6354088522 | H354: =Skyggetabeller!H74 -> 0.6272897196 | I354: =Skyggetabeller!I74 -> 0.6224602881 | J354: =Skyggetabeller!J74 -> 0.6280688897 | K354: =Skyggetabeller!K74 -> 0.6302460203 | L354: =Skyggetabeller!L74 -> 0.6306370795 | M354: =Skyggetabeller!M74 -> 0.6272694909
B355: N | C355: =Skyggetabeller!C78 -> 26410 | D355: =Skyggetabeller!D78 -> 26640 | E355: =Skyggetabeller!E78 -> 26710 | F355: =Skyggetabeller!F78 -> 26630 | G355: =Skyggetabeller!G78 -> 26660 | H355: =Skyggetabeller!H78 -> 26750 | I355: =Skyggetabeller!I78 -> 27070 | J355: =Skyggetabeller!J78 -> 27290 | K355: =Skyggetabeller!K78 -> 27640 | L355: =Skyggetabeller!L78 -> 27940 | M355: =Skyggetabeller!M78 -> 28090
B356: =IF('Dine valg'!$G$24="","Ingen sammenligningsgruppe valgt.","Valgte kommuner i sammenligningsgruppen: "&'Dine valg'!$G$24&" "&'Dine valg'!$G$25&" "&'Dine valg'!$G$26&" "&'Dine valg'!$G$27&" "&'Dine valg'!$G$28&" "&'Dine valg'!$G$29&" "&'Dine valg'!$G$30) -> Valgte kommuner i sammenligningsgruppen: Allerød Assens Ballerup
B357: =RegNøgletal!B58 -> Anm.: Hvis nøgletallet er angivet med * er der foretaget en diskretionering af data, da der er for få observationer. N angiver målgruppestørrelsen, som er alle borgere registreret med "Sindslidelse" i indberetningen til Danmarks Statistik.
B358: =RegNøgletal!B59 -> Kilde: Social- og Boligstyrelsens egne beregninger baseret på handicapstiatistikken ved Danmarks Statistik.
B362: Nøgletal 5: Modtagere af beskyttet beskæftigelse og aktivitets- og samværstilbud
B364: ="Figur 5.1: Udvikling i antal modtagere af beskyttet beskæftigelse og aktivitets- og samværstilbud i "&Kommune -> Figur 5.1: Udvikling i antal modtagere af beskyttet beskæftigelse og aktivitets- og samværstilbud i Herning
B388: =RegNøgletal!B71 -> Anm.: Hvis nøgletallet er angivet med * er der foretaget en diskretionering af data, da der er for få observationer. N angiver målgruppestørrelsen, som er alle borgere registreret med "Sindslidelse" i indberetningen til Danmarks Statistik.
B389: =RegNøgletal!B72 -> Kilde: Social- og Boligstyrelsens egne beregninger baseret på handicapstiatistikken ved Danmarks Statistik.
B393: ="Tabel 5.1: Udvikling i antal modtagere af beskyttet beskæftigelse og aktivitets- og samværstilbud i "&Kommune -> Tabel 5.1: Udvikling i antal modtagere af beskyttet beskæftigelse og aktivitets- og samværstilbud i Herning
C395: =Skyggetabeller!C$11 -> 2018-01-01 | D395: =Skyggetabeller!D$11 -> 2018-07-01 | E395: =Skyggetabeller!E$11 -> 2019-01-01 | F395: =Skyggetabeller!F$11 -> 2019-07-01 | G395: =Skyggetabeller!G$11 -> 2020-01-01 | H395: =Skyggetabeller!H$11 -> 2020-07-01 | I395: =Skyggetabeller!I$11 -> 2021-01-01 | J395: =Skyggetabeller!J$11 -> 2021-07-01 | K395: =Skyggetabeller!K$11 -> 2022-01-01 | L395: =Skyggetabeller!L$11 -> 2022-07-01 | M395: =Skyggetabeller!M$11 -> 2023-01-01
B396: Antal modtagere | C396: =RegNøgletal!D69 -> 10 | D396: =RegNøgletal!E69 -> 11 | E396: =RegNøgletal!F69 -> 10 | F396: =RegNøgletal!G69 -> 10 | G396: =RegNøgletal!H69 -> 9 | H396: =RegNøgletal!I69 -> 11 | I396: =RegNøgletal!J69 -> 12 | J396: =RegNøgletal!K69 -> 12 | K396: =RegNøgletal!L69 -> 9 | L396: =RegNøgletal!M69 -> 10 | M396: =RegNøgletal!N69 -> 8
B397: =RegNøgletal!B71 -> Anm.: Hvis nøgletallet er angivet med * er der foretaget en diskretionering af data, da der er for få observationer. N angiver målgruppestørrelsen, som er alle borgere registreret med "Sindslidelse" i indberetningen til Danmarks Statistik.
B398: =RegNøgletal!B72 -> Kilde: Social- og Boligstyrelsens egne beregninger baseret på handicapstiatistikken ved Danmarks Statistik.
B402: Figur 5.2: Udvikling i andelen af borgere, der modtager beskyttet beskæftigelse og aktivitets- og samværstilbud
K403: Benyt, slet eller erstat gerne følgende tekst til beskrivelse af udviklingen over tid for det pågældende nøgletal. Beskrivelsen vil blive indsat i rapporten (skriv maks 10 linjer):
B426: =RegNøgletal!B71 -> Anm.: Hvis nøgletallet er angivet med * er der foretaget en diskretionering af data, da der er for få observationer. N angiver målgruppestørrelsen, som er alle borgere registreret med "Sindslidelse" i indberetningen til Danmarks Statistik.
B427: =RegNøgletal!B72 -> Kilde: Social- og Boligstyrelsens egne beregninger baseret på handicapstiatistikken ved Danmarks Statistik.
B431: Tabel 5.2: Udvikling i andelen af borgere, der modtager beskyttet beskæftigelse og aktivitets- og samværstilbud
C433: =Skyggetabeller!C$11 -> 2018-01-01 | D433: =Skyggetabeller!D$11 -> 2018-07-01 | E433: =Skyggetabeller!E$11 -> 2019-01-01 | F433: =Skyggetabeller!F$11 -> 2019-07-01 | G433: =Skyggetabeller!G$11 -> 2020-01-01 | H433: =Skyggetabeller!H$11 -> 2020-07-01 | I433: =Skyggetabeller!I$11 -> 2021-01-01 | J433: =Skyggetabeller!J$11 -> 2021-07-01 | K433: =Skyggetabeller!K$11 -> 2022-01-01 | L433: =Skyggetabeller!L$11 -> 2022-07-01 | M433: =Skyggetabeller!M$11 -> 2023-01-01
B434: =Kommune -> Herning
B435: Andel | C435: =Skyggetabeller!C88 -> 0.02469135802 | D435: =Skyggetabeller!D88 -> 0.02702702703 | E435: =Skyggetabeller!E88 -> 0.02564102564 | F435: =Skyggetabeller!F88 -> 0.02673796791 | G435: =Skyggetabeller!G88 -> 0.02479338843 | H435: =Skyggetabeller!H88 -> 0.02872062663 | I435: =Skyggetabeller!I88 -> 0.0310880829 | J435: =Skyggetabeller!J88 -> 0.03069053708 | K435: =Skyggetabeller!K88 -> 0.02349869452 | L435: =Skyggetabeller!L88 -> 0.02739726027 | M435: =Skyggetabeller!M88 -> 0.02222222222
B436: N | C436: =Skyggetabeller!C92 -> 405 | D436: =Skyggetabeller!D92 -> 407 | E436: =Skyggetabeller!E92 -> 390 | F436: =Skyggetabeller!F92 -> 374 | G436: =Skyggetabeller!G92 -> 363 | H436: =Skyggetabeller!H92 -> 383 | I436: =Skyggetabeller!I92 -> 386 | J436: =Skyggetabeller!J92 -> 391 | K436: =Skyggetabeller!K92 -> 383 | L436: =Skyggetabeller!L92 -> 365 | M436: =Skyggetabeller!M92 -> 360
B437: Sammenligningskommuner
B438: Andel | C438: =Skyggetabeller!C89 -> 0 | D438: =Skyggetabeller!D89 -> 0.1146496815 | E438: =Skyggetabeller!E89 -> 0.1074380165 | F438: =Skyggetabeller!F89 -> 0.1408163265 | G438: =Skyggetabeller!G89 -> 0.1334702259 | H438: =Skyggetabeller!H89 -> 0.1016260163 | I438: =Skyggetabeller!I89 -> 0.09879032258 | J438: =Skyggetabeller!J89 -> 0.09108527132 | K438: =Skyggetabeller!K89 -> 0.0888030888 | L438: =Skyggetabeller!L89 -> 0.0888030888 | M438: =Skyggetabeller!M89 -> 0.0888030888
B439: N | C439: =Skyggetabeller!C93 -> 495 | D439: =Skyggetabeller!D93 -> 471 | E439: =Skyggetabeller!E93 -> 484 | F439: =Skyggetabeller!F93 -> 490 | G439: =Skyggetabeller!G93 -> 487 | H439: =Skyggetabeller!H93 -> 492 | I439: =Skyggetabeller!I93 -> 496 | J439: =Skyggetabeller!J93 -> 516 | K439: =Skyggetabeller!K93 -> 518 | L439: =Skyggetabeller!L93 -> 518 | M439: =Skyggetabeller!M93 -> 518
B440: Landsgennemsnit
B441: Andel | C441: =Skyggetabeller!C90 -> 0.06777735706 | D441: =Skyggetabeller!D90 -> 0.06531531532 | E441: =Skyggetabeller!E90 -> 0.06476974916 | F441: =Skyggetabeller!F90 -> 0.06308674427 | G441: =Skyggetabeller!G90 -> 0.06414103526 | H441: =Skyggetabeller!H90 -> 0.06093457944 | I441: =Skyggetabeller!I90 -> 0.06132249723 | J441: =Skyggetabeller!J90 -> 0.06046170759 | K441: =Skyggetabeller!K90 -> 0.05861070912 | L441: =Skyggetabeller!L90 -> 0.0583392985 | M441: =Skyggetabeller!M90 -> 0.05873976504
B442: N | C442: =Skyggetabeller!C94 -> 26410 | D442: =Skyggetabeller!D94 -> 26640 | E442: =Skyggetabeller!E94 -> 26710 | F442: =Skyggetabeller!F94 -> 26630 | G442: =Skyggetabeller!G94 -> 26660 | H442: =Skyggetabeller!H94 -> 26750 | I442: =Skyggetabeller!I94 -> 27070 | J442: =Skyggetabeller!J94 -> 27290 | K442: =Skyggetabeller!K94 -> 27640 | L442: =Skyggetabeller!L94 -> 27940 | M442: =Skyggetabeller!M94 -> 28090
B443: =IF('Dine valg'!$G$24="","Ingen sammenligningsgruppe valgt.","Valgte kommuner i sammenligningsgruppen: "&'Dine valg'!$G$24&" "&'Dine valg'!$G$25&" "&'Dine valg'!$G$26&" "&'Dine valg'!$G$27&" "&'Dine valg'!$G$28&" "&'Dine valg'!$G$29&" "&'Dine valg'!$G$30) -> Valgte kommuner i sammenligningsgruppen: Allerød Assens Ballerup
B444: =RegNøgletal!B71 -> Anm.: Hvis nøgletallet er angivet med * er der foretaget en diskretionering af data, da der er for få observationer. N angiver målgruppestørrelsen, som er alle borgere registreret med "Sindslidelse" i indberetningen til Danmarks Statistik.
B445: =RegNøgletal!B72 -> Kilde: Social- og Boligstyrelsens egne beregninger baseret på handicapstiatistikken ved Danmarks Statistik.
B449: Nøgletal 6: Modtagere af forebyggende indsatser
B451: ="Figur 6.1: Udvikling i antal modtagere af forebyggende indsatser i "&Kommune -> Figur 6.1: Udvikling i antal modtagere af forebyggende indsatser i Herning
B475: =RegNøgletal!B83 -> Anm.: Hvis nøgletallet er angivet med * er der foretaget en diskretionering af data, da der er for få observationer. N angiver målgruppestørrelsen, som er alle borgere registreret med "Sindslidelse" i indberetningen til Danmarks Statistik. Ydelser efter servicelovens § 82 er først blevet indberetningspligtig pr. 1/7-2020.
B476: =RegNøgletal!B84 -> Kilde: Social- og Boligstyrelsens egne beregninger baseret på handicapstiatistikken ved Danmarks Statistik.
B480: ="Tabel 6.1: Udvikling i antal modtagere af forebyggende indsatser i "&Kommune -> Tabel 6.1: Udvikling i antal modtagere af forebyggende indsatser i Herning
C482: =Skyggetabeller!C$11 -> 2018-01-01 | D482: =Skyggetabeller!D$11 -> 2018-07-01 | E482: =Skyggetabeller!E$11 -> 2019-01-01 | F482: =Skyggetabeller!F$11 -> 2019-07-01 | G482: =Skyggetabeller!G$11 -> 2020-01-01 | H482: =Skyggetabeller!H$11 -> 2020-07-01 | I482: =Skyggetabeller!I$11 -> 2021-01-01 | J482: =Skyggetabeller!J$11 -> 2021-07-01 | K482: =Skyggetabeller!K$11 -> 2022-01-01 | L482: =Skyggetabeller!L$11 -> 2022-07-01 | M482: =Skyggetabeller!M$11 -> 2023-01-01
B483: Antal modtagere | C483: =RegNøgletal!D81 -> 0 | D483: =RegNøgletal!E81 -> 0 | E483: =RegNøgletal!F81 -> 0 | F483: =RegNøgletal!G81 -> 0 | G483: =RegNøgletal!H81 -> * | H483: =RegNøgletal!I81 -> 13 | I483: =RegNøgletal!J81 -> 17 | J483: =RegNøgletal!K81 -> 16 | K483: =RegNøgletal!L81 -> 19 | L483: =RegNøgletal!M81 -> 28 | M483: =RegNøgletal!N81 -> 31
B484: =RegNøgletal!B83 -> Anm.: Hvis nøgletallet er angivet med * er der foretaget en diskretionering af data, da der er for få observationer. N angiver målgruppestørrelsen, som er alle borgere registreret med "Sindslidelse" i indberetningen til Danmarks Statistik. Ydelser efter servicelovens § 82 er først blevet indberetningspligtig pr. 1/7-2020.
B485: =RegNøgletal!B84 -> Kilde: Social- og Boligstyrelsens egne beregninger baseret på handicapstiatistikken ved Danmarks Statistik.
B489: Figur 6.2: Udvikling i andelen af borgere, der modtager forebyggende indsatser
K490: Benyt, slet eller erstat gerne følgende tekst til beskrivelse af udviklingen over tid for det pågældende nøgletal. Beskrivelsen vil blive indsat i rapporten (skriv maks 10 linjer):
B512: =RegNøgletal!B83 -> Anm.: Hvis nøgletallet er angivet med * er der foretaget en diskretionering af data, da der er for få observationer. N angiver målgruppestørrelsen, som er alle borgere registreret med "Sindslidelse" i indberetningen til Danmarks Statistik. Ydelser efter servicelovens § 82 er først blevet indberetningspligtig pr. 1/7-2020.
B513: =RegNøgletal!B84 -> Kilde: Social- og Boligstyrelsens egne beregninger baseret på handicapstiatistikken ved Danmarks Statistik.
B517: Tabel 6.2: Udvikling i andelen af borgere, der modtager forebyggende indsatser
C519: =Skyggetabeller!C$11 -> 2018-01-01 | D519: =Skyggetabeller!D$11 -> 2018-07-01 | E519: =Skyggetabeller!E$11 -> 2019-01-01 | F519: =Skyggetabeller!F$11 -> 2019-07-01 | G519: =Skyggetabeller!G$11 -> 2020-01-01 | H519: =Skyggetabeller!H$11 -> 2020-07-01 | I519: =Skyggetabeller!I$11 -> 2021-01-01 | J519: =Skyggetabeller!J$11 -> 2021-07-01 | K519: =Skyggetabeller!K$11 -> 2022-01-01 | L519: =Skyggetabeller!L$11 -> 2022-07-01 | M519: =Skyggetabeller!M$11 -> 2023-01-01
B520: =Kommune -> Herning
B521: Andel | C521: =Skyggetabeller!C104 -> 0 | D521: =Skyggetabeller!D104 -> 0 | E521: =Skyggetabeller!E104 -> 0 | F521: =Skyggetabeller!F104 -> 0 | G521: =Skyggetabeller!G104 -> * | H521: =Skyggetabeller!H104 -> 0.03394255875 | I521: =Skyggetabeller!I104 -> 0.04404145078 | J521: =Skyggetabeller!J104 -> 0.04092071611 | K521: =Skyggetabeller!K104 -> 0.04960835509 | L521: =Skyggetabeller!L104 -> 0.07671232877 | M521: =Skyggetabeller!M104 -> 0.08611111111
B522: N | C522: =Skyggetabeller!C108 -> 405 | D522: =Skyggetabeller!D108 -> 407 | E522: =Skyggetabeller!E108 -> 390 | F522: =Skyggetabeller!F108 -> 374 | G522: =Skyggetabeller!G108 -> 363 | H522: =Skyggetabeller!H108 -> 383 | I522: =Skyggetabeller!I108 -> 386 | J522: =Skyggetabeller!J108 -> 391 | K522: =Skyggetabeller!K108 -> 383 | L522: =Skyggetabeller!L108 -> 365 | M522: =Skyggetabeller!M108 -> 360
B523: Sammenligningskommuner
B524: Andel | C524: =Skyggetabeller!C105 -> 0 | D524: =Skyggetabeller!D105 -> 0 | E524: =Skyggetabeller!E105 -> 0 | F524: =Skyggetabeller!F105 -> 0 | G524: =Skyggetabeller!G105 -> 0 | H524: =Skyggetabeller!H105 -> 0 | I524: =Skyggetabeller!I105 -> 0 | J524: =Skyggetabeller!J105 -> 0 | K524: =Skyggetabeller!K105 -> 0 | L524: =Skyggetabeller!L105 -> 0 | M524: =Skyggetabeller!M105 -> 0
B525: N | C525: =Skyggetabeller!C109 -> 495 | D525: =Skyggetabeller!D109 -> 471 | E525: =Skyggetabeller!E109 -> 484 | F525: =Skyggetabeller!F109 -> 490 | G525: =Skyggetabeller!G109 -> 487 | H525: =Skyggetabeller!H109 -> 492 | I525: =Skyggetabeller!I109 -> 496 | J525: =Skyggetabeller!J109 -> 516 | K525: =Skyggetabeller!K109 -> 518 | L525: =Skyggetabeller!L109 -> 518 | M525: =Skyggetabeller!M109 -> 518
B526: Landsgennemsnit
B527: Andel | C527: =Skyggetabeller!C106 -> 0 | D527: =Skyggetabeller!D106 -> 0.003378378378 | E527: =Skyggetabeller!E106 -> 0.008985398727 | F527: =Skyggetabeller!F106 -> 0.0161472024 | G527: =Skyggetabeller!G106 -> 0.02288072018 | H527: =Skyggetabeller!H106 -> 0.03401869159 | I527: =Skyggetabeller!I106 -> * | J527: =Skyggetabeller!J106 -> * | K527: =Skyggetabeller!K106 -> * | L527: =Skyggetabeller!L106 -> * | M527: =Skyggetabeller!M106 -> *
B528: N | C528: =Skyggetabeller!C110 -> 26410 | D528: =Skyggetabeller!D110 -> 26640 | E528: =Skyggetabeller!E110 -> 26710 | F528: =Skyggetabeller!F110 -> 26630 | G528: =Skyggetabeller!G110 -> 26660 | H528: =Skyggetabeller!H110 -> 26750 | I528: =Skyggetabeller!I110 -> 27070 | J528: =Skyggetabeller!J110 -> 27290 | K528: =Skyggetabeller!K110 -> 27640 | L528: =Skyggetabeller!L110 -> 27940 | M528: =Skyggetabeller!M110 -> 28090
B529: =IF('Dine valg'!$G$24="","Ingen sammenligningsgruppe valgt.","Valgte kommuner i sammenligningsgruppen: "&'Dine valg'!$G$24&" "&'Dine valg'!$G$25&" "&'Dine valg'!$G$26&" "&'Dine valg'!$G$27&" "&'Dine valg'!$G$28&" "&'Dine valg'!$G$29&" "&'Dine valg'!$G$30) -> Valgte kommuner i sammenligningsgruppen: Allerød Assens Ballerup
B530: =RegNøgletal!B83 -> Anm.: Hvis nøgletallet er angivet med * er der foretaget en diskretionering af data, da der er for få observationer. N angiver målgruppestørrelsen, som er alle borgere registreret med "Sindslidelse" i indberetningen til Danmarks Statistik. Ydelser efter servicelovens § 82 er først blevet indberetningspligtig pr. 1/7-2020.
B531: =RegNøgletal!B84 -> Kilde: Social- og Boligstyrelsens egne beregninger baseret på handicapstiatistikken ved Danmarks Statistik.
B535: Nøgletal 7: Flytninger fra botilbud
B537: ="Figur 7.1: Udvikling i antal flytninger fra botilbud i "&Kommune -> Figur 7.1: Udvikling i antal flytninger fra botilbud i Herning
B561: =RegNøgletal!$B$95 -> Anm.: Hvis nøgletallet er angivet med * er der foretaget en diskretionering af data, da der er for få observationer. N angiver målgruppestørrelsen for nøgletallet. Målgruppen er borgere der ved sidste datanedslag modtog længerevarende-, midlertidigt botilbud eller botilbudslignende tilbud.
B562: =RegNøgletal!$B$96 -> Kilde: Social- og Boligstyrelsens egne beregninger baseret på handicapstiatistikken ved Danmarks Statistik.
B566: ="Tabel 7.1: Udvikling i antal flytninger fra botilbud i "&Kommune -> Tabel 7.1: Udvikling i antal flytninger fra botilbud i Herning
C568: =Skyggetabeller!C$11 -> 2018-01-01 | D568: =Skyggetabeller!D$11 -> 2018-07-01 | E568: =Skyggetabeller!E$11 -> 2019-01-01 | F568: =Skyggetabeller!F$11 -> 2019-07-01 | G568: =Skyggetabeller!G$11 -> 2020-01-01 | H568: =Skyggetabeller!H$11 -> 2020-07-01 | I568: =Skyggetabeller!I$11 -> 2021-01-01 | J568: =Skyggetabeller!J$11 -> 2021-07-01 | K568: =Skyggetabeller!K$11 -> 2022-01-01 | L568: =Skyggetabeller!L$11 -> 2022-07-01 | M568: =Skyggetabeller!M$11 -> 2023-01-01
B569: Antal flytninger | C569: =RegNøgletal!D93 -> 0 | D569: =RegNøgletal!E93 -> 9 | E569: =RegNøgletal!F93 -> 5 | F569: =RegNøgletal!G93 -> 8 | G569: =RegNøgletal!H93 -> 6 | H569: =RegNøgletal!I93 -> 10 | I569: =RegNøgletal!J93 -> 8 | J569: =RegNøgletal!K93 -> 6 | K569: =RegNøgletal!L93 -> 4 | L569: =RegNøgletal!M93 -> 7 | M569: =RegNøgletal!N93 -> 7
B570: =RegNøgletal!$B$95 -> Anm.: Hvis nøgletallet er angivet med * er der foretaget en diskretionering af data, da der er for få observationer. N angiver målgruppestørrelsen for nøgletallet. Målgruppen er borgere der ved sidste datanedslag modtog længerevarende-, midlertidigt botilbud eller botilbudslignende tilbud.
B571: =RegNøgletal!$B$96 -> Kilde: Social- og Boligstyrelsens egne beregninger baseret på handicapstiatistikken ved Danmarks Statistik.
B574: Figur 7.2: Udvikling i andelen af borgere, der tidligere var på botilbud, men nu er flyttet derfra
K575: Benyt, slet eller erstat gerne følgende tekst til beskrivelse af udviklingen over tid for det pågældende nøgletal. Beskrivelsen vil blive indsat i rapporten (skriv maks 10 linjer):
B597: =RegNøgletal!$B$95 -> Anm.: Hvis nøgletallet er angivet med * er der foretaget en diskretionering af data, da der er for få observationer. N angiver målgruppestørrelsen for nøgletallet. Målgruppen er borgere der ved sidste datanedslag modtog længerevarende-, midlertidigt botilbud eller botilbudslignende tilbud.
B598: =RegNøgletal!$B$96 -> Kilde: Social- og Boligstyrelsens egne beregninger baseret på handicapstiatistikken ved Danmarks Statistik.
B602: Tabel 7.2: Udvikling i andelen af borgere, der tidligere var på botilbud, men nu er flyttet derfra
C604: =Skyggetabeller!C$11 -> 2018-01-01 | D604: =Skyggetabeller!D$11 -> 2018-07-01 | E604: =Skyggetabeller!E$11 -> 2019-01-01 | F604: =Skyggetabeller!F$11 -> 2019-07-01 | G604: =Skyggetabeller!G$11 -> 2020-01-01 | H604: =Skyggetabeller!H$11 -> 2020-07-01 | I604: =Skyggetabeller!I$11 -> 2021-01-01 | J604: =Skyggetabeller!J$11 -> 2021-07-01 | K604: =Skyggetabeller!K$11 -> 2022-01-01 | L604: =Skyggetabeller!L$11 -> 2022-07-01 | M604: =Skyggetabeller!M$11 -> 2023-01-01
B605: =Kommune -> Herning
B606: Andel | D606: =Skyggetabeller!D121 -> 0.09677419355 | E606: =Skyggetabeller!E121 -> 0.05494505495 | F606: =Skyggetabeller!F121 -> 0.08602150538 | G606: =Skyggetabeller!G121 -> 0.06382978723 | H606: =Skyggetabeller!H121 -> 0.1063829787 | I606: =Skyggetabeller!I121 -> 0.09090909091 | J606: =Skyggetabeller!J121 -> 0.07228915663 | K606: =Skyggetabeller!K121 -> 0.05063291139 | L606: =Skyggetabeller!L121 -> 0.09090909091 | M606: =Skyggetabeller!M121 -> 0.09589041096
B607: N | D607: =Skyggetabeller!D125 -> 93 | E607: =Skyggetabeller!E125 -> 91 | F607: =Skyggetabeller!F125 -> 93 | G607: =Skyggetabeller!G125 -> 94 | H607: =Skyggetabeller!H125 -> 94 | I607: =Skyggetabeller!I125 -> 88 | J607: =Skyggetabeller!J125 -> 83 | K607: =Skyggetabeller!K125 -> 79 | L607: =Skyggetabeller!L125 -> 77 | M607: =Skyggetabeller!M125 -> 73
B608: Sammenligningskommuner
B609: Andel | D609: =Skyggetabeller!D122 -> 0.03355704698 | E609: =Skyggetabeller!E122 -> 0.07432432432 | F609: =Skyggetabeller!F122 -> 0.1095890411 | G609: =Skyggetabeller!G122 -> 0.07142857143 | H609: =Skyggetabeller!H122 -> 0 | I609: =Skyggetabeller!I122 -> 0.07462686567 | J609: =Skyggetabeller!J122 -> 0.07462686567 | K609: =Skyggetabeller!K122 -> 0.07462686567 | L609: =Skyggetabeller!L122 -> 0.07462686567 | M609: =Skyggetabeller!M122 -> 0.07462686567
B610: N | D610: =Skyggetabeller!D126 -> 149 | E610: =Skyggetabeller!E126 -> 148 | F610: =Skyggetabeller!F126 -> 146 | G610: =Skyggetabeller!G126 -> 126 | H610: =Skyggetabeller!H126 -> 126 | I610: =Skyggetabeller!I126 -> 134 | J610: =Skyggetabeller!J126 -> 132 | K610: =Skyggetabeller!K126 -> 152 | L610: =Skyggetabeller!L126 -> 152 | M610: =Skyggetabeller!M126 -> 152
B611: Landsgennemsnit
B612: Andel | D612: =Skyggetabeller!D123 -> 0.06125356125 | E612: =Skyggetabeller!E123 -> 0.07433380084 | F612: =Skyggetabeller!F123 -> 0.07894736842 | G612: =Skyggetabeller!G123 -> 0.08599167822 | H612: =Skyggetabeller!H123 -> 0.07371349096 | I612: =Skyggetabeller!I123 -> 0.075 | J612: =Skyggetabeller!J123 -> 0.07252440725 | K612: =Skyggetabeller!K123 -> 0.07788595271 | L612: =Skyggetabeller!L123 -> 0.07202216066 | M612: =Skyggetabeller!M123 -> 0.06925207756
B613: N | D613: =Skyggetabeller!D127 -> 7020 | E613: =Skyggetabeller!E127 -> 7130 | F613: =Skyggetabeller!F127 -> 7220 | G613: =Skyggetabeller!G127 -> 7210 | H613: =Skyggetabeller!H127 -> 7190 | I613: =Skyggetabeller!I127 -> 7200 | J613: =Skyggetabeller!J127 -> 7170 | K613: =Skyggetabeller!K127 -> 7190 | L613: =Skyggetabeller!L127 -> 7220 | M613: =Skyggetabeller!M127 -> 7220
B614: =IF('Dine valg'!$G$24="","Ingen sammenligningsgruppe valgt.","Valgte kommuner i sammenligningsgruppen: "&'Dine valg'!$G$24&" "&'Dine valg'!$G$25&" "&'Dine valg'!$G$26&" "&'Dine valg'!$G$27&" "&'Dine valg'!$G$28&" "&'Dine valg'!$G$29&" "&'Dine valg'!$G$30) -> Valgte kommuner i sammenligningsgruppen: Allerød Assens Ballerup
B615: =RegNøgletal!B95 -> Anm.: Hvis nøgletallet er angivet med * er der foretaget en diskretionering af data, da der er for få observationer. N angiver målgruppestørrelsen for nøgletallet. Målgruppen er borgere der ved sidste datanedslag modtog længerevarende-, midlertidigt botilbud eller botilbudslignende tilbud.
B616: =RegNøgletal!B96 -> Kilde: Social- og Boligstyrelsens egne beregninger baseret på handicapstiatistikken ved Danmarks Statistik.
B620: Nøgletal 7.1: Flytninger fra længerevarende botilbud og lignende til midlertidigt botilbud
B622: ="Figur 7.1.1: Udvikling i antal flytninger fra længerevarende botilbud og lignende til midlertidigt botilbud i "&Kommune -> Figur 7.1.1: Udvikling i antal flytninger fra længerevarende botilbud og lignende til midlertidigt botilbud i Herning
B646: =RegNøgletal!$B$95 -> Anm.: Hvis nøgletallet er angivet med * er der foretaget en diskretionering af data, da der er for få observationer. N angiver målgruppestørrelsen for nøgletallet. Målgruppen er borgere der ved sidste datanedslag modtog længerevarende-, midlertidigt botilbud eller botilbudslignende tilbud.
B647: =RegNøgletal!$B$96 -> Kilde: Social- og Boligstyrelsens egne beregninger baseret på handicapstiatistikken ved Danmarks Statistik.
B650: ="Tabel 7.1.1: Udvikling i antal flytninger fra længerevarende botilbud og lignende til midlertidigt botilbud i "&Kommune -> Tabel 7.1.1: Udvikling i antal flytninger fra længerevarende botilbud og lignende til midlertidigt botilbud i Herning
C652: =Skyggetabeller!C$11 -> 2018-01-01 | D652: =Skyggetabeller!D$11 -> 2018-07-01 | E652: =Skyggetabeller!E$11 -> 2019-01-01 | F652: =Skyggetabeller!F$11 -> 2019-07-01 | G652: =Skyggetabeller!G$11 -> 2020-01-01 | H652: =Skyggetabeller!H$11 -> 2020-07-01 | I652: =Skyggetabeller!I$11 -> 2021-01-01 | J652: =Skyggetabeller!J$11 -> 2021-07-01 | K652: =Skyggetabeller!K$11 -> 2022-01-01 | L652: =Skyggetabeller!L$11 -> 2022-07-01 | M652: =Skyggetabeller!M$11 -> 2023-01-01
... 490 more rows

Sheet Rapport (hidden)
B28: =Startside!B8 -> Socialpsykiatriens Nøgletal
B38: =Kommune& " Kommune" -> Herning Kommune
B41: Data baserer sig på nationale registre fra Danmarks statistik,
B42: ="godkendte kommunale regnskaber" -> godkendte kommunale regnskaber
B43: ="og "& Kommune&" Kommunes egne data." -> og Herning Kommunes egne data.
A54: Nøgletal 1: Modtagere af længerevarende botilbud
A56: Udvikling i andel modtagere af længerevarende botilbud
R68: =Skyggetabeller!C24 -> 2018-01-01 | S68: =Skyggetabeller!D24 -> 2018-07-01 | T68: =Skyggetabeller!E24 -> 2019-01-01 | U68: =Skyggetabeller!F24 -> 2019-07-01 | V68: =Skyggetabeller!G24 -> 2020-01-01 | W68: =Skyggetabeller!H24 -> 2020-07-01 | X68: =Skyggetabeller!I24 -> 2021-01-01 | Y68: =Skyggetabeller!J24 -> 2021-07-01 | Z68: =Skyggetabeller!K24 -> 2022-01-01 | AA68: =Skyggetabeller!L24 -> 2022-07-01 | AB68: =Skyggetabeller!M24 -> 2023-01-01
Q69: =Skyggetabeller!B25 -> Herning | R69: =Skyggetabeller!C25 -> 0.04938271605 | S69: =Skyggetabeller!D25 -> 0.0515970516 | T69: =Skyggetabeller!E25 -> 0.05641025641 | U69: =Skyggetabeller!F25 -> 0.05882352941 | V69: =Skyggetabeller!G25 -> 0.06060606061 | W69: =Skyggetabeller!H25 -> 0.05483028721 | X69: =Skyggetabeller!I25 -> 0.0518134715 | Y69: =Skyggetabeller!J25 -> 0.04859335038 | Z69: =Skyggetabeller!K25 -> 0.04960835509 | AA69: =Skyggetabeller!L25 -> 0.05479452055 | AB69: =Skyggetabeller!M25 -> 0.05555555556
Q70: =Skyggetabeller!B26 -> Sammenligningskommuner | R70: =Skyggetabeller!C26 -> 0.06868686869 | S70: =Skyggetabeller!D26 -> 0.07218683652 | T70: =Skyggetabeller!E26 -> 0.07231404959 | U70: =Skyggetabeller!F26 -> 0.06734693878 | V70: =Skyggetabeller!G26 -> 0.07392197125 | W70: =Skyggetabeller!H26 -> 0.07520325203 | X70: =Skyggetabeller!I26 -> 0.07258064516 | Y70: =Skyggetabeller!J26 -> 0.06782945736 | Z70: =Skyggetabeller!K26 -> 0.06756756757 | AA70: =Skyggetabeller!L26 -> 0.065913371 | AB70: =Skyggetabeller!M26 -> 0.06678700361
Q71: =Skyggetabeller!B27 -> Landsgennemsnit | R71: =Skyggetabeller!C27 -> 0.06815600151 | S71: =Skyggetabeller!D27 -> 0.06831831832 | T71: =Skyggetabeller!E27 -> 0.06776488207 | U71: =Skyggetabeller!F27 -> 0.06646639129 | V71: =Skyggetabeller!G27 -> 0.06526631658 | W71: =Skyggetabeller!H27 -> 0.06579439252 | X71: =Skyggetabeller!I27 -> 0.06464721093 | Y71: =Skyggetabeller!J27 -> 0.06375961891 | Z71: =Skyggetabeller!K27 -> 0.06295224313 | AA71: =Skyggetabeller!L27 -> 0.06263421618 | AB71: =Skyggetabeller!M27 -> 0.06265574938
A76: =RegNøgletal!B22 -> Anm.: Hvis nøgletallet er angivet med * er der foretaget en diskretionering af data, da der er for få observationer. N angiver målgruppestørrelsen, som er alle borgere registreret med "Sindslidelse" i indberetningen til Danmarks Statistik.
A77: Kilde: Social- og Boligstyrelsens egne beregninger baseret på handicapstiatistikken ved Danmarks Statistik.
A79: Udvikling i andel modtagere af længerevarende botilbud
B80: =R68 -> 2018-01-01 | C80: =S68 -> 2018-07-01 | D80: 2019-01-01 | E80: 2019-07-01 | F80: 2020-01-01 | G80: =W68 -> 2020-07-01
A81: =Q69 -> Herning | B81: =R69 -> 0.04938271605 | C81: 0.0515970516 | D81: 0.05641025641 | E81: 0.05882352941 | F81: 0.06060606061 | G81: =W69 -> 0.05483028721
A82: =Q70 -> Sammenligningskommuner | B82: =R70 -> 0.06868686869 | C82: 0.07218683652 | D82: 0.07231404959 | E82: 0.06734693878 | F82: 0.07392197125 | G82: =W70 -> 0.07520325203
A83: =Q71 -> Landsgennemsnit | B83: =R71 -> 0.06815600151 | C83: 0.06831831832 | D83: 0.06776488207 | E83: 0.06646639129 | F83: 0.06526631658 | G83: =W71 -> 0.06579439252
A85: Udvikling i andel modtagere af længerevarende botilbud
B86: =X68 -> 2021-01-01 | C86: 2021-07-01 | D86: 2022-01-01 | E86: 2022-07-01 | F86: 2023-01-01
A87: =Q69 -> Herning | B87: 0.0518134715 | C87: 0.04859335038 | D87: 0.04960835509 | E87: 0.05479452055 | F87: 0.05555555556
A88: =Q70 -> Sammenligningskommuner | B88: 0.07258064516 | C88: 0.06782945736 | D88: 0.06756756757 | E88: 0.065913371 | F88: 0.06678700361
A89: =Q71 -> Landsgennemsnit | B89: 0.06464721093 | C89: 0.06375961891 | D89: 0.06295224313 | E89: 0.06263421618 | F89: 0.06265574938
A91: Nøgletal 1 viser udviklingen i antallet af borgere i målgruppen, som modtager længerevarende botilbud efter serviceloven. Dette svarer til indsatstrappens trin 8. Bemærk at borgerne indgår i nøgletallet for det højeste trin på trappen, som de modtager ydelse efter. Udviklingen i dette nøgletal skal især ses i sammenhæng med udviklingen i nøgletal 2-6. Over tid forventes antallet af borgere at stige på de nederste trin på trappen og falde på de øverste trin. Denne udvikling vil illustrere, at flere borgere kommet tættere på et almindeligt hverdagsliv.
A94: Nøgletal 2: Modtagere af botilbudslignende tilbud
A96: Udvikling i andel af modtagere af botilbudslignende tilbud
R107: =Skyggetabeller!C36 -> 2018-01-01 | S107: =Skyggetabeller!D36 -> 2018-07-01 | T107: =Skyggetabeller!E36 -> 2019-01-01 | U107: =Skyggetabeller!F36 -> 2019-07-01 | V107: =Skyggetabeller!G36 -> 2020-01-01 | W107: =Skyggetabeller!H36 -> 2020-07-01 | X107: =Skyggetabeller!I36 -> 2021-01-01 | Y107: =Skyggetabeller!J36 -> 2021-07-01 | Z107: =Skyggetabeller!K36 -> 2022-01-01 | AA107: =Skyggetabeller!L36 -> 2022-07-01 | AB107: =Skyggetabeller!M36 -> 2023-01-01
Q108: =Skyggetabeller!B40 -> Herning | R108: =Skyggetabeller!C40 -> 0.1111111111 | S108: =Skyggetabeller!D40 -> 0.1081081081 | T108: =Skyggetabeller!E40 -> 0.1102564103 | U108: =Skyggetabeller!F40 -> 0.1122994652 | V108: =Skyggetabeller!G40 -> 0.1157024793 | W108: =Skyggetabeller!H40 -> 0.1070496084 | X108: =Skyggetabeller!I40 -> 0.1010362694 | Y108: =Skyggetabeller!J40 -> 0.09462915601 | Z108: =Skyggetabeller!K40 -> 0.09660574413 | AA108: =Skyggetabeller!L40 -> 0.09863013699 | AB108: =Skyggetabeller!M40 -> 0.09444444444
Q109: =Skyggetabeller!B41 -> Sammenligningskommuner | R109: =Skyggetabeller!C41 -> 0.1090909091 | S109: =Skyggetabeller!D41 -> 0.1167728238 | T109: =Skyggetabeller!E41 -> 0.1033057851 | U109: =Skyggetabeller!F41 -> 0.08367346939 | V109: =Skyggetabeller!G41 -> 0.08213552361 | W109: =Skyggetabeller!H41 -> 0.08333333333 | X109: =Skyggetabeller!I41 -> 0.09677419355 | Y109: =Skyggetabeller!J41 -> 0.09302325581 | Z109: =Skyggetabeller!K41 -> 0.09266409266 | AA109: =Skyggetabeller!L41 -> 0.09039548023 | AB109: =Skyggetabeller!M41 -> 0.08483754513
Q110: =Skyggetabeller!B42 -> Landsgennemsnit | R110: =Skyggetabeller!C42 -> 0.1063990913 | S110: =Skyggetabeller!D42 -> 0.106981982 | T110: =Skyggetabeller!E42 -> 0.1067016099 | U110: =Skyggetabeller!F42 -> 0.1066466391 | V110: =Skyggetabeller!G42 -> 0.1072768192 | W110: =Skyggetabeller!H42 -> 0.1061682243 | X110: =Skyggetabeller!I42 -> 0.1041743628 | Y110: =Skyggetabeller!J42 -> 0.1026016856 | Z110: =Skyggetabeller!K42 -> 0.1005788712 | AA110: =Skyggetabeller!L42 -> 0.09842519685 | AB110: =Skyggetabeller!M42 -> 0.09754360983
A116: =RegNøgletal!B34 -> Anm.: Hvis nøgletallet er angivet med * er der foretaget en diskretionering af data, da der er for få observationer. N angiver målgruppestørrelsen, som er alle borgere registreret med "Sindslidelse" i indberetningen til Danmarks Statistik.
A117: Kilde: Social- og Boligstyrelsens egne beregninger baseret på handicapstiatistikken ved Danmarks Statistik.
A119: Udvikling i andel af modtagere af botilbudslignende tilbud
B120: =R107 -> 2018-01-01 | C120: 2018-07-01 | D120: 2019-01-01 | E120: 2019-07-01 | F120: 2020-01-01 | G120: 2020-07-01
A121: =Q108 -> Herning | B121: 0.1111111111 | C121: 0.1081081081 | D121: 0.1102564103 | E121: 0.1122994652 | F121: 0.1157024793 | G121: 0.1070496084
A122: =Q109 -> Sammenligningskommuner | B122: 0.1090909091 | C122: 0.1167728238 | D122: 0.1033057851 | E122: 0.08367346939 | F122: 0.08213552361 | G122: 0.08333333333
A123: =Q110 -> Landsgennemsnit | B123: 0.1063990913 | C123: 0.106981982 | D123: 0.1067016099 | E123: 0.1066466391 | F123: 0.1072768192 | G123: 0.1061682243
A125: Udvikling i andel af modtagere af botilbudslignende tilbud
B126: =X107 -> 2021-01-01 | C126: 2021-07-01 | D126: 2022-01-01 | E126: 2022-07-01 | F126: 2023-01-01
A127: =Q108 -> Herning | B127: 0.1010362694 | C127: 0.09462915601 | D127: 0.09660574413 | E127: 0.09863013699 | F127: 0.09444444444
A128: =Q109 -> Sammenligningskommuner | B128: 0.09677419355 | C128: 0.09302325581 | D128: 0.09266409266 | E128: 0.09039548023 | F128: 0.08483754513
A129: =Q110 -> Landsgennemsnit | B129: 0.1041743628 | C129: 0.1026016856 | D129: 0.1005788712 | E129: 0.09842519685 | F129: 0.09754360983
A131: Nøgletal 2 viser udviklingen i antallet af borgere i målgruppen, som modtager botilbudslignende tilbud efter serviceloven. Dette svarer til indsatstrappens trin 7. Bemærk at borgerne indgår i nøgletallet for det højeste trin på trappen, som de modtager ydelse efter. Udviklingen i dette nøgletal skal især ses i sammenhæng med udviklingen i nøgletal 1 og 3-6. Over tid forventes antallet af borgere at stige på de nederste trin på trappen og falde på de øverste trin. Denne udvikling vil illustrere, at flere borgere kommet tættere på et almindeligt hverdagsliv.
A134: Nøgletal 3: Modtagere af midlertidigt botilbud
A136: Udvikling i andel af modtagere af midlertidigt botilbud
R148: =Skyggetabeller!C52 -> 2018-01-01 | S148: =Skyggetabeller!D52 -> 2018-07-01 | T148: =Skyggetabeller!E52 -> 2019-01-01 | U148: =Skyggetabeller!F52 -> 2019-07-01 | V148: =Skyggetabeller!G52 -> 2020-01-01 | W148: =Skyggetabeller!H52 -> 2020-07-01 | X148: =Skyggetabeller!I52 -> 2021-01-01 | Y148: =Skyggetabeller!J52 -> 2021-07-01 | Z148: =Skyggetabeller!K52 -> 2022-01-01 | AA148: =Skyggetabeller!L52 -> 2022-07-01 | AB148: =Skyggetabeller!M52 -> 2023-01-01
Q149: =Skyggetabeller!B40 -> Herning | R149: =Skyggetabeller!C40 -> 0.1111111111 | S149: =Skyggetabeller!D40 -> 0.1081081081 | T149: =Skyggetabeller!E40 -> 0.1102564103 | U149: =Skyggetabeller!F40 -> 0.1122994652 | V149: =Skyggetabeller!G40 -> 0.1157024793 | W149: =Skyggetabeller!H40 -> 0.1070496084 | X149: =Skyggetabeller!I40 -> 0.1010362694 | Y149: =Skyggetabeller!J40 -> 0.09462915601 | Z149: =Skyggetabeller!K40 -> 0.09660574413 | AA149: =Skyggetabeller!L40 -> 0.09863013699 | AB149: =Skyggetabeller!M40 -> 0.09444444444
Q150: =Skyggetabeller!B41 -> Sammenligningskommuner | R150: =Skyggetabeller!C41 -> 0.1090909091 | S150: =Skyggetabeller!D41 -> 0.1167728238 | T150: =Skyggetabeller!E41 -> 0.1033057851 | U150: =Skyggetabeller!F41 -> 0.08367346939 | V150: =Skyggetabeller!G41 -> 0.08213552361 | W150: =Skyggetabeller!H41 -> 0.08333333333 | X150: =Skyggetabeller!I41 -> 0.09677419355 | Y150: =Skyggetabeller!J41 -> 0.09302325581 | Z150: =Skyggetabeller!K41 -> 0.09266409266 | AA150: =Skyggetabeller!L41 -> 0.09039548023 | AB150: =Skyggetabeller!M41 -> 0.08483754513
Q151: =Skyggetabeller!B42 -> Landsgennemsnit | R151: =Skyggetabeller!C42 -> 0.1063990913 | S151: =Skyggetabeller!D42 -> 0.106981982 | T151: =Skyggetabeller!E42 -> 0.1067016099 | U151: =Skyggetabeller!F42 -> 0.1066466391 | V151: =Skyggetabeller!G42 -> 0.1072768192 | W151: =Skyggetabeller!H42 -> 0.1061682243 | X151: =Skyggetabeller!I42 -> 0.1041743628 | Y151: =Skyggetabeller!J42 -> 0.1026016856 | Z151: =Skyggetabeller!K42 -> 0.1005788712 | AA151: =Skyggetabeller!L42 -> 0.09842519685 | AB151: =Skyggetabeller!M42 -> 0.09754360983
A156: =RegNøgletal!B46 -> Anm.: Hvis nøgletallet er angivet med * er der foretaget en diskretionering af data, da der er for få observationer. N angiver målgruppestørrelsen, som er alle borgere registreret med "Sindslidelse" i indberetningen til Danmarks Statistik.
A157: Kilde: Social- og Boligstyrelsens egne beregninger baseret på handicapstiatistikken ved Danmarks Statistik.
A159: Udvikling i andel af modtagere af midlertidigt botilbud
B160: =R148 -> 2018-01-01 | C160: =S148 -> 2018-07-01 | D160: 2019-01-01 | E160: 2019-07-01 | F160: 2020-01-01 | G160: =W148 -> 2020-07-01
A161: =Q149 -> Herning | B161: =R149 -> 0.1111111111 | C161: 0.1081081081 | D161: 0.1102564103 | E161: 0.1122994652 | F161: 0.1157024793 | G161: =W149 -> 0.1070496084
A162: =Q150 -> Sammenligningskommuner | B162: =R150 -> 0.1090909091 | C162: 0.1167728238 | D162: 0.1033057851 | E162: 0.08367346939 | F162: 0.08213552361 | G162: =W150 -> 0.08333333333
A163: =Q151 -> Landsgennemsnit | B163: =R151 -> 0.1063990913 | C163: 0.106981982 | D163: 0.1067016099 | E163: 0.1066466391 | F163: 0.1072768192 | G163: =W151 -> 0.1061682243
A165: Udvikling i andel af modtagere af midlertidigt botilbud
B166: =X148 -> 2021-01-01 | C166: 2021-07-01 | D166: 2022-01-01 | E166: 2022-07-01 | F166: 2023-01-01
A167: =Q149 -> Herning | B167: 0.1010362694 | C167: 0.09462915601 | D167: 0.09660574413 | E167: 0.09863013699 | F167: 0.09444444444
A168: =Q150 -> Sammenligningskommuner | B168: 0.09677419355 | C168: 0.09302325581 | D168: 0.09266409266 | E168: 0.09039548023 | F168: 0.08483754513
A169: =Q151 -> Landsgennemsnit | B169: 0.1041743628 | C169: 0.1026016856 | D169: 0.1005788712 | E169: 0.09842519685 | F169: 0.09754360983
A171: Nøgletal 3 viser udviklingen i antallet af borgere i målgruppen, som modtager midlertidigt botilbud efter serviceloven. Dette svarer til indsatstrappens trin 6. Bemærk at borgerne indgår i nøgletallet for det højeste trin på trappen, som de modtager ydelse efter. Udviklingen i dette nøgletal skal især ses i sammenhæng med udviklingen i nøgletal 1-2 og 4-6. Over tid forventes antallet af borgere at stige på de nederste trin på trappen og falde på de øverste trin. Denne udvikling vil illustrere, at flere borgere kommet tættere på et almindeligt hverdagsliv.
A174: Nøgletal 4: Modtagere af socialpædagogisk støtte
A176: Udvikling i andel af modtagere af socialpædagogisk støtte
R183: =Skyggetabeller!C68 -> 2018-01-01 | S183: =Skyggetabeller!D68 -> 2018-07-01 | T183: =Skyggetabeller!E68 -> 2019-01-01 | U183: =Skyggetabeller!F68 -> 2019-07-01 | V183: =Skyggetabeller!G68 -> 2020-01-01 | W183: =Skyggetabeller!H68 -> 2020-07-01 | X183: =Skyggetabeller!I68 -> 2021-01-01 | Y183: =Skyggetabeller!J68 -> 2021-07-01 | Z183: =Skyggetabeller!K68 -> 2022-01-01 | AA183: =Skyggetabeller!L68 -> 2022-07-01 | AB183: =Skyggetabeller!M68 -> 2023-01-01
Q184: =Skyggetabeller!B56 -> Herning | R184: =Skyggetabeller!C56 -> 0.06913580247 | S184: =Skyggetabeller!D56 -> 0.06388206388 | T184: =Skyggetabeller!E56 -> 0.07179487179 | U184: =Skyggetabeller!F56 -> 0.08021390374 | V184: =Skyggetabeller!G56 -> 0.0826446281 | W184: =Skyggetabeller!H56 -> 0.06788511749 | X184: =Skyggetabeller!I56 -> 0.0621761658 | Y184: =Skyggetabeller!J56 -> 0.05882352941 | Z184: =Skyggetabeller!K56 -> 0.05483028721 | AA184: =Skyggetabeller!L56 -> 0.04657534247 | AB184: =Skyggetabeller!M56 -> 0.04166666667
Q185: =Skyggetabeller!B57 -> Sammenligningskommuner | R185: =Skyggetabeller!C57 -> 0.1232323232 | S185: =Skyggetabeller!D57 -> 0.1252653928 | T185: =Skyggetabeller!E57 -> 0.1260330579 | U185: =Skyggetabeller!F57 -> 0.1204081633 | V185: =Skyggetabeller!G57 -> 0.1190965092 | W185: =Skyggetabeller!H57 -> 0.1300813008 | X185: =Skyggetabeller!I57 -> 0.122983871 | Y185: =Skyggetabeller!J57 -> 0.1337209302 | Z185: =Skyggetabeller!K57 -> 0.1312741313 | AA185: =Skyggetabeller!L57 -> 0.1312741313 | AB185: =Skyggetabeller!M57 -> 0.1312741313
Q186: =Skyggetabeller!B58 -> Landsgennemsnit | R186: =Skyggetabeller!C58 -> 0.09087466869 | S186: =Skyggetabeller!D58 -> 0.09234234234 | T186: =Skyggetabeller!E58 -> 0.09584425309 | U186: =Skyggetabeller!F58 -> 0.09763424709 | V186: =Skyggetabeller!G58 -> 0.09714928732 | W186: =Skyggetabeller!H58 -> 0.09757009346 | X186: =Skyggetabeller!I58 -> 0.09604728482 | Y186: =Skyggetabeller!J58 -> 0.09710516673 | Z186: =Skyggetabeller!K58 -> 0.0976845152 | AA186: =Skyggetabeller!L58 -> 0.09735146743 | AB186: =Skyggetabeller!M58 -> 0.09861160555
A196: =RegNøgletal!B58 -> Anm.: Hvis nøgletallet er angivet med * er der foretaget en diskretionering af data, da der er for få observationer. N angiver målgruppestørrelsen, som er alle borgere registreret med "Sindslidelse" i indberetningen til Danmarks Statistik.
A197: Kilde: Social- og Boligstyrelsens egne beregninger baseret på handicapstiatistikken ved Danmarks Statistik.
A199: Udvikling i andel af modtagere af socialpædagogisk støtte
B200: =R183 -> 2018-01-01 | C200: =S183 -> 2018-07-01 | D200: 2019-01-01 | E200: 2019-07-01 | F200: 2020-01-01 | G200: =W183 -> 2020-07-01
A201: =Q184 -> Herning | B201: =R184 -> 0.06913580247 | C201: 0.06388206388 | D201: 0.07179487179 | E201: 0.08021390374 | F201: 0.0826446281 | G201: =W184 -> 0.06788511749
A202: =Q185 -> Sammenligningskommuner | B202: =R185 -> 0.1232323232 | C202: 0.1252653928 | D202: 0.1260330579 | E202: 0.1204081633 | F202: 0.1190965092 | G202: =W185 -> 0.1300813008
A203: =Q186 -> Landsgennemsnit | B203: =R186 -> 0.09087466869 | C203: 0.09234234234 | D203: 0.09584425309 | E203: 0.09763424709 | F203: 0.09714928732 | G203: =W186 -> 0.09757009346
A205: Udvikling i andel af modtagere af socialpædagogisk støtte
B206: =X183 -> 2021-01-01 | C206: 2021-07-01 | D206: 2022-01-01 | E206: 2022-07-01 | F206: 2023-01-01
A207: =Q184 -> Herning | B207: 0.0621761658 | C207: 0.05882352941 | D207: 0.05483028721 | E207: 0.04657534247 | F207: 0.04166666667
A208: =Q185 -> Sammenligningskommuner | B208: 0.122983871 | C208: 0.1337209302 | D208: 0.1312741313 | E208: 0.1312741313 | F208: 0.1312741313
A209: =Q186 -> Landsgennemsnit | B209: 0.09604728482 | C209: 0.09710516673 | D209: 0.0976845152 | E209: 0.09735146743 | F209: 0.09861160555
A211: Nøgletal 4 viser udviklingen i antallet af borgere i målgruppen, som modtager socialpædagogisk støtte efter serviceloven. Dette svarer til indsatstrappens trin 5. Bemærk at borgerne indgår i nøgletallet for det højeste trin på trappen, som de modtager ydelse efter. Udviklingen i dette nøgletal skal især ses i sammenhæng med udviklingen i nøgletal 1-3 og 5-6. Over tid forventes antallet af borgere at stige på de nederste trin på trappen og falde på de øverste trin. Denne udvikling vil illustrere, at flere borgere kommet tættere på et almindeligt hverdagsliv.
A215: Nøgletal 5: Modtagere af beskyttet beskæftigelse og aktivitets- og samværstilbud
A217: Udvikling i andel af modtagere af beskyttet beskæftigelse og aktivitets- og samværstilbud
R224: =Skyggetabeller!C84 -> 2018-01-01 | S224: =Skyggetabeller!D84 -> 2018-07-01 | T224: =Skyggetabeller!E84 -> 2019-01-01 | U224: =Skyggetabeller!F84 -> 2019-07-01 | V224: =Skyggetabeller!G84 -> 2020-01-01 | W224: =Skyggetabeller!H84 -> 2020-07-01 | X224: =Skyggetabeller!I84 -> 2021-01-01 | Y224: =Skyggetabeller!J84 -> 2021-07-01 | Z224: =Skyggetabeller!K84 -> 2022-01-01 | AA224: =Skyggetabeller!L84 -> 2022-07-01 | AB224: =Skyggetabeller!M84 -> 2023-01-01
Q225: =Skyggetabeller!B88 -> Herning | R225: =Skyggetabeller!C88 -> 0.02469135802 | S225: =Skyggetabeller!D88 -> 0.02702702703 | T225: =Skyggetabeller!E88 -> 0.02564102564 | U225: =Skyggetabeller!F88 -> 0.02673796791 | V225: =Skyggetabeller!G88 -> 0.02479338843 | W225: =Skyggetabeller!H88 -> 0.02872062663 | X225: =Skyggetabeller!I88 -> 0.0310880829 | Y225: =Skyggetabeller!J88 -> 0.03069053708 | Z225: =Skyggetabeller!K88 -> 0.02349869452 | AA225: =Skyggetabeller!L88 -> 0.02739726027 | AB225: =Skyggetabeller!M88 -> 0.02222222222
Q226: =Skyggetabeller!B89 -> Sammenligningskommuner | R226: =Skyggetabeller!C89 -> 0 | S226: =Skyggetabeller!D89 -> 0.1146496815 | T226: =Skyggetabeller!E89 -> 0.1074380165 | U226: =Skyggetabeller!F89 -> 0.1408163265 | V226: =Skyggetabeller!G89 -> 0.1334702259 | W226: =Skyggetabeller!H89 -> 0.1016260163 | X226: =Skyggetabeller!I89 -> 0.09879032258 | Y226: =Skyggetabeller!J89 -> 0.09108527132 | Z226: =Skyggetabeller!K89 -> 0.0888030888 | AA226: =Skyggetabeller!L89 -> 0.0888030888 | AB226: =Skyggetabeller!M89 -> 0.0888030888
Q227: =Skyggetabeller!B90 -> Landsgennemsnit | R227: =Skyggetabeller!C90 -> 0.06777735706 | S227: =Skyggetabeller!D90 -> 0.06531531532 | T227: =Skyggetabeller!E90 -> 0.06476974916 | U227: =Skyggetabeller!F90 -> 0.06308674427 | V227: =Skyggetabeller!G90 -> 0.06414103526 | W227: =Skyggetabeller!H90 -> 0.06093457944 | X227: =Skyggetabeller!I90 -> 0.06132249723 | Y227: =Skyggetabeller!J90 -> 0.06046170759 | Z227: =Skyggetabeller!K90 -> 0.05861070912 | AA227: =Skyggetabeller!L90 -> 0.0583392985 | AB227: =Skyggetabeller!M90 -> 0.05873976504
A237: =RegNøgletal!B71 -> Anm.: Hvis nøgletallet er angivet med * er der foretaget en diskretionering af data, da der er for få observationer. N angiver målgruppestørrelsen, som er alle borgere registreret med "Sindslidelse" i indberetningen til Danmarks Statistik.
A238: Kilde: Social- og Boligstyrelsens egne beregninger baseret på handicapstiatistikken ved Danmarks Statistik.
A240: Udvikling i andel af modtagere af beskyttet beskæftigelse og aktivitets- og samværstilbud
B241: =R224 -> 2018-01-01 | C241: 2018-07-01 | D241: 2019-01-01 | E241: 2019-07-01 | F241: 2020-01-01 | G241: 2020-07-01
A242: =Q225 -> Herning | B242: 0.02469135802 | C242: 0.02702702703 | D242: 0.02564102564 | E242: 0.02673796791 | F242: 0.02479338843 | G242: 0.02872062663
A243: =Q226 -> Sammenligningskommuner | B243: 0 | C243: 0.1146496815 | D243: 0.1074380165 | E243: 0.1408163265 | F243: 0.1334702259 | G243: 0.1016260163
A244: =Q227 -> Landsgennemsnit | B244: 0.06777735706 | C244: 0.06531531532 | D244: 0.06476974916 | E244: 0.06308674427 | F244: 0.06414103526 | G244: 0.06093457944
A246: Udvikling i andel af modtagere af beskyttet beskæftigelse og aktivitets- og samværstilbud
B247: =X224 -> 2021-01-01 | C247: 2021-07-01 | D247: 2022-01-01 | E247: 2022-07-01 | F247: 2023-01-01
A248: =Q225 -> Herning | B248: 0.0310880829 | C248: 0.03069053708 | D248: 0.02349869452 | E248: 0.02739726027 | F248: 0.02222222222
A249: =Q226 -> Sammenligningskommuner | B249: 0.09879032258 | C249: 0.09108527132 | D249: 0.0888030888 | E249: 0.0888030888 | F249: 0.0888030888
A250: =Q227 -> Landsgennemsnit | B250: 0.06132249723 | C250: 0.06046170759 | D250: 0.05861070912 | E250: 0.0583392985 | F250: 0.05873976504
A252: Nøgletal 5 viser udviklingen i antallet af borgere i målgruppen, som modtager beskyttet beskæftigelse og aktivitets- og samværstilbud efter serviceloven. Dette svarer til indsatstrappens trin 3 og 4. Bemærk at borgerne indgår i nøgletallet for det højeste trin på trappen, som de modtager ydelse efter. Udviklingen i dette nøgletal skal især ses i sammenhæng med udviklingen i nøgletal 1-4 og 6. Over tid forventes antallet af borgere at stige på de nederste trin på trappen og falde på de øverste trin. Denne udvikling vil illustrere, at flere borgere kommet tættere på et almindeligt hverdagsliv.
A253: Nøgletal 6: Modtagere af forebyggende indsatser
A255: Udvikling i andel af modtagere af forebyggende indsatser
R262: =Skyggetabeller!C100 -> 2018-01-01 | S262: =Skyggetabeller!D100 -> 2018-07-01 | T262: =Skyggetabeller!E100 -> 2019-01-01 | U262: =Skyggetabeller!F100 -> 2019-07-01 | V262: =Skyggetabeller!G100 -> 2020-01-01 | W262: =Skyggetabeller!H100 -> 2020-07-01 | X262: =Skyggetabeller!I100 -> 2021-01-01 | Y262: =Skyggetabeller!J100 -> 2021-07-01 | Z262: =Skyggetabeller!K100 -> 2022-01-01 | AA262: =Skyggetabeller!L100 -> 2022-07-01 | AB262: =Skyggetabeller!M100 -> 2023-01-01
Q263: =Skyggetabeller!B104 -> Herning | R263: =Skyggetabeller!C104 -> 0 | S263: =Skyggetabeller!D104 -> 0 | T263: =Skyggetabeller!E104 -> 0 | U263: =Skyggetabeller!F104 -> 0 | V263: =Skyggetabeller!G104 -> * | W263: =Skyggetabeller!H104 -> 0.03394255875 | X263: =Skyggetabeller!I104 -> 0.04404145078 | Y263: =Skyggetabeller!J104 -> 0.04092071611 | Z263: =Skyggetabeller!K104 -> 0.04960835509 | AA263: =Skyggetabeller!L104 -> 0.07671232877 | AB263: =Skyggetabeller!M104 -> 0.08611111111
Q264: =Skyggetabeller!B105 -> Sammenligningskommuner | R264: =Skyggetabeller!C105 -> 0 | S264: =Skyggetabeller!D105 -> 0 | T264: =Skyggetabeller!E105 -> 0 | U264: =Skyggetabeller!F105 -> 0 | V264: =Skyggetabeller!G105 -> 0 | W264: =Skyggetabeller!H105 -> 0 | X264: =Skyggetabeller!I105 -> 0 | Y264: =Skyggetabeller!J105 -> 0 | Z264: =Skyggetabeller!K105 -> 0 | AA264: =Skyggetabeller!L105 -> 0 | AB264: =Skyggetabeller!M105 -> 0
Q265: =Skyggetabeller!B106 -> Landsgennemsnit | R265: =Skyggetabeller!C106 -> 0 | S265: =Skyggetabeller!D106 -> 0.003378378378 | T265: =Skyggetabeller!E106 -> 0.008985398727 | U265: =Skyggetabeller!F106 -> 0.0161472024 | V265: =Skyggetabeller!G106 -> 0.02288072018 | W265: =Skyggetabeller!H106 -> 0.03401869159 | X265: =Skyggetabeller!I106 -> * | Y265: =Skyggetabeller!J106 -> * | Z265: =Skyggetabeller!K106 -> * | AA265: =Skyggetabeller!L106 -> * | AB265: =Skyggetabeller!M106 -> *
A275: =RegNøgletal!B83 -> Anm.: Hvis nøgletallet er angivet med * er der foretaget en diskretionering af data, da der er for få observationer. N angiver målgruppestørrelsen, som er alle borgere registreret med "Sindslidelse" i indberetningen til Danmarks Statistik. Ydelser efter servicelovens § 82 er først blevet indberetningspligtig pr. 1/7-2020.
A276: Kilde: Social- og Boligstyrelsens egne beregninger baseret på handicapstiatistikken ved Danmarks Statistik.
A278: Udvikling i andel af modtagere af forebyggende indsatser
B279: =R262 -> 2018-01-01 | C279: 2018-07-01 | D279: 2019-01-01 | E279: 2019-07-01 | F279: 2020-01-01 | G279: 2020-07-01
A280: =Q263 -> Herning | B280: 0 | C280: 0 | D280: 0 | E280: 0 | F280: * | G280: 0.03394255875
A281: =Q264 -> Sammenligningskommuner | B281: 0 | C281: 0 | D281: 0 | E281: 0 | F281: 0 | G281: 0
A282: =Q265 -> Landsgennemsnit | B282: 0 | C282: 0.003378378378 | D282: 0.008985398727 | E282: 0.0161472024 | F282: 0.02288072018 | G282: 0.03401869159
A284: Udvikling i andel af modtagere af forebyggende indsatser
B285: =X262 -> 2021-01-01 | C285: 2021-07-01 | D285: 2022-01-01 | E285: 2022-07-01 | F285: 2023-01-01
A286: =Q263 -> Herning | B286: 0.04404145078 | C286: 0.04092071611 | D286: 0.04960835509 | E286: 0.07671232877 | F286: 0.08611111111
A287: =Q264 -> Sammenligningskommuner | B287: 0 | C287: 0 | D287: 0 | E287: 0 | F287: 0
A288: =Q265 -> Landsgennemsnit | B288: * | C288: * | D288: * | E288: * | F288: *
A290: Nøgletal 6 viser udviklingen i antallet af borgere i målgruppen, som modtager forebyggende indsatser efter serviceloven. Dette svarer til indsatstrappens trin 2. Bemærk at borgerne indgår i nøgletallet for det højeste trin på trappen, som de modtager ydelse efter. Udviklingen i dette nøgletal skal især ses i sammenhæng med udviklingen i nøgletal 1-5. Over tid forventes antallet af borgere at stige på de nederste trin på trappen og falde på de øverste trin. Denne udvikling vil illustrere, at flere borgere kommet tættere på et almindeligt hverdagsliv.
A292: Nøgletal 7: Flytninger fra botilbud
A294: Udvikling i andel af flytninger fra botilbud
R301: =Skyggetabeller!C116 -> 2018-01-01 | S301: =Skyggetabeller!D116 -> 2018-07-01 | T301: =Skyggetabeller!E116 -> 2019-01-01 | U301: =Skyggetabeller!F116 -> 2019-07-01 | V301: =Skyggetabeller!G116 -> 2020-01-01 | W301: =Skyggetabeller!H116 -> 2020-07-01 | X301: =Skyggetabeller!I116 -> 2021-01-01 | Y301: =Skyggetabeller!J116 -> 2021-07-01 | Z301: =Skyggetabeller!K116 -> 2022-01-01 | AA301: =Skyggetabeller!L116 -> 2022-07-01 | AB301: =Skyggetabeller!M116 -> 2023-01-01
Q302: =Skyggetabeller!B121 -> Herning | S302: =Skyggetabeller!D121 -> 0.09677419355 | T302: =Skyggetabeller!E121 -> 0.05494505495 | U302: =Skyggetabeller!F121 -> 0.08602150538 | V302: =Skyggetabeller!G121 -> 0.06382978723 | W302: =Skyggetabeller!H121 -> 0.1063829787 | X302: =Skyggetabeller!I121 -> 0.09090909091 | Y302: =Skyggetabeller!J121 -> 0.07228915663 | Z302: =Skyggetabeller!K121 -> 0.05063291139 | AA302: =Skyggetabeller!L121 -> 0.09090909091 | AB302: =Skyggetabeller!M121 -> 0.09589041096
Q303: =Skyggetabeller!B122 -> Sammenligningskommuner | S303: =Skyggetabeller!D122 -> 0.03355704698 | T303: =Skyggetabeller!E122 -> 0.07432432432 | U303: =Skyggetabeller!F122 -> 0.1095890411 | V303: =Skyggetabeller!G122 -> 0.07142857143 | W303: =Skyggetabeller!H122 -> 0 | X303: =Skyggetabeller!I122 -> 0.07462686567 | Y303: =Skyggetabeller!J122 -> 0.07462686567 | Z303: =Skyggetabeller!K122 -> 0.07462686567 | AA303: =Skyggetabeller!L122 -> 0.07462686567 | AB303: =Skyggetabeller!M122 -> 0.07462686567
Q304: =Skyggetabeller!B123 -> Landsgennemsnit | S304: =Skyggetabeller!D123 -> 0.06125356125 | T304: =Skyggetabeller!E123 -> 0.07433380084 | U304: =Skyggetabeller!F123 -> 0.07894736842 | V304: =Skyggetabeller!G123 -> 0.08599167822 | W304: =Skyggetabeller!H123 -> 0.07371349096 | X304: =Skyggetabeller!I123 -> 0.075 | Y304: =Skyggetabeller!J123 -> 0.07252440725 | Z304: =Skyggetabeller!K123 -> 0.07788595271 | AA304: =Skyggetabeller!L123 -> 0.07202216066 | AB304: =Skyggetabeller!M123 -> 0.06925207756
A314: =RegNøgletal!B95 -> Anm.: Hvis nøgletallet er angivet med * er der foretaget en diskretionering af data, da der er for få observationer. N angiver målgruppestørrelsen for nøgletallet. Målgruppen er borgere der ved sidste datanedslag modtog længerevarende-, midlertidigt botilbud eller botilbudslignende tilbud.
A315: Kilde: Social- og Boligstyrelsens egne beregninger baseret på partnerskabskommunernes system-til-system indberetninger til handicapstiatistikken ved Danmarks Statistik.
A317: Udvikling i andel af flytninger fra botilbud
B318: =R301 -> 2018-01-01 | C318: 2018-07-01 | D318: 2019-01-01 | E318: 2019-07-01 | F318: 2020-01-01 | G318: 2020-07-01
A319: =Q302 -> Herning | C319: =S302 -> 0.09677419355 | D319: 0.05494505495 | E319: 0.08602150538 | F319: 0.06382978723 | G319: 0.1063829787
A320: =Q303 -> Sammenligningskommuner | C320: 0.03355704698 | D320: 0.07432432432 | E320: 0.1095890411 | F320: 0.07142857143 | G320: 0
A321: =Q304 -> Landsgennemsnit | C321: 0.06125356125 | D321: 0.07433380084 | E321: 0.07894736842 | F321: 0.08599167822 | G321: 0.07371349096
A323: Udvikling i andel af flytninger fra botilbud
B324: =X301 -> 2021-01-01 | C324: 2021-07-01 | D324: 2022-01-01 | E324: 2022-07-01 | F324: 2023-01-01
A325: =Q302 -> Herning | B325: 0.09090909091 | C325: 0.07228915663 | D325: 0.05063291139 | E325: 0.09090909091 | F325: 0.09589041096
A326: =Q303 -> Sammenligningskommuner | B326: 0.07462686567 | C326: 0.07462686567 | D326: 0.07462686567 | E326: 0.07462686567 | F326: 0.07462686567
A327: =Q304 -> Landsgennemsnit | B327: 0.075 | C327: 0.07252440725 | D327: 0.07788595271 | E327: 0.07202216066 | F327: 0.06925207756
A329: Nøgletal 7 viser udviklingen i viser antallet af borgere der har fraflyttet et botilbud siden seneste måling. Det svarer til at have rykket sig fra trin 6-8 på indsatstrappen til et andet trin. Nøgletal 7.1, 7.2 og 7.3 giver mulighed for at se flytninger fra de enkenlte botilbudstyper. Nøgletallet giver mulighed for at følge borgernes bevægelser væk fra botilbud. Nøgletallet skal ses i relation til hvor mange borgere, der er på de enkelte trin på indsatstrappen (nøgletal 1-6) og de øvrige nøgletal, der viser bevægelser på trappen (nøgletal 8-10).
A331: Nøgletal 8: Fra socialpædagogisk støtte og ned ad trappen
A333: Udvikling i andel af borgere, der har bevæget sig fra socialpædagogisk støtte og ned ad indsatstrappen
R340: =Skyggetabeller!C181 -> 2018-01-01 | S340: =Skyggetabeller!D181 -> 2018-07-01 | T340: =Skyggetabeller!E181 -> 2019-01-01 | U340: =Skyggetabeller!F181 -> 2019-07-01 | V340: =Skyggetabeller!G181 -> 2020-01-01 | W340: =Skyggetabeller!H181 -> 2020-07-01 | X340: =Skyggetabeller!I181 -> 2021-01-01 | Y340: =Skyggetabeller!J181 -> 2021-07-01 | Z340: =Skyggetabeller!K181 -> 2022-01-01 | AA340: =Skyggetabeller!L181 -> 2022-07-01 | AB340: =Skyggetabeller!M181 -> 2023-01-01
Q341: =Skyggetabeller!B185 -> Herning | S341: =Skyggetabeller!D185 -> 0.1134020619 | T341: =Skyggetabeller!E185 -> 0.1898305085 | U341: =Skyggetabeller!F185 -> 0.1702898551 | V341: =Skyggetabeller!G185 -> 0.1782945736 | W341: =Skyggetabeller!H185 -> 0.1325301205 | X341: =Skyggetabeller!I185 -> 0.106870229 | Y341: =Skyggetabeller!J185 -> 0.1235955056 | Z341: =Skyggetabeller!K185 -> 0.09642857143 | AA341: =Skyggetabeller!L185 -> 0.1745454545 | AB341: =Skyggetabeller!M185 -> 0.1084337349
Q342: =Skyggetabeller!B186 -> Sammenligningskommuner | S342: =Skyggetabeller!D186 -> 0.1407407407 | T342: =Skyggetabeller!E186 -> 0.0987654321 | U342: =Skyggetabeller!F186 -> 0.1450381679 | V342: =Skyggetabeller!G186 -> 0.1135531136 | W342: =Skyggetabeller!H186 -> 0.1066176471 | X342: =Skyggetabeller!I186 -> 0.08127208481 | Y342: =Skyggetabeller!J186 -> 0.1215277778 | Z342: =Skyggetabeller!K186 -> 0.1147540984 | AA342: =Skyggetabeller!L186 -> 0.1147540984 | AB342: =Skyggetabeller!M186 -> 0.1147540984
Q343: =Skyggetabeller!B187 -> Landsgennemsnit | S343: =Skyggetabeller!D187 -> 0.1246410109 | T343: =Skyggetabeller!E187 -> 0.1315037164 | U343: =Skyggetabeller!F187 -> 0.1356812933 | V343: =Skyggetabeller!G187 -> 0.1363370392 | W343: =Skyggetabeller!H187 -> 0.1239669421 | X343: =Skyggetabeller!I187 -> 0.1233611442 | Y343: =Skyggetabeller!J187 -> 0.1216617211 | Z343: =Skyggetabeller!K187 -> 0.1236872812 | AA343: =Skyggetabeller!L187 -> 0.1280137773 | AB343: =Skyggetabeller!M187 -> 0.1248581158
A353: =RegNøgletal!B136 -> Anm.: Hvis nøgletallet er angivet med * er der foretaget en diskretionering af data, da der er for få observationer. N angiver målgruppestørrelsen for nøgletallet. Målgruppen er borgere der ved sidste datanedslag modtog socialpædagogisk støtte.
A354: Kilde: Social- og Boligstyrelsens egne beregninger baseret på handicapstiatistikken ved Danmarks Statistik.
A356: Udvikling i andel af borgere, der har bevæget sig fra socialpædagogisk støtte og ned ad indsatstrappen
B357: =R340 -> 2018-01-01 | C357: 2018-07-01 | D357: 2019-01-01 | E357: 2019-07-01 | F357: 2020-01-01 | G357: 2020-07-01
A358: =Q341 -> Herning | C358: =S341 -> 0.1134020619 | D358: 0.1898305085 | E358: 0.1702898551 | F358: 0.1782945736 | G358: 0.1325301205
A359: =Q342 -> Sammenligningskommuner | C359: 0.1407407407 | D359: 0.0987654321 | E359: 0.1450381679 | F359: 0.1135531136 | G359: 0.1066176471
A360: =Q343 -> Landsgennemsnit | C360: 0.1246410109 | D360: 0.1315037164 | E360: 0.1356812933 | F360: 0.1363370392 | G360: 0.1239669421
A362: Udvikling i andel af borgere, der har bevæget sig fra socialpædagogisk støtte og ned ad indsatstrappen
B363: =X340 -> 2021-01-01 | C363: 2021-07-01 | D363: 2022-01-01 | E363: 2022-07-01 | F363: 2023-01-01
A364: =Q341 -> Herning | B364: 0.106870229 | C364: 0.1235955056 | D364: 0.09642857143 | E364: 0.1745454545 | F364: 0.1084337349
A365: =Q342 -> Sammenligningskommuner | B365: 0.08127208481 | C365: 0.1215277778 | D365: 0.1147540984 | E365: 0.1147540984 | F365: 0.1147540984
A366: =Q343 -> Landsgennemsnit | B366: 0.1233611442 | C366: 0.1216617211 | D366: 0.1236872812 | E366: 0.1280137773 | F366: 0.1248581158
A368: Nøgletal 8 viser udviklingen i viser antallet af borgere der har bevæget sig fra socialpædagogisk støtte til et trin lavere på indsatstrappen siden seneste måling. Det svarer til at have rykket sig fra trin 5 og ned ad indsatstrappen. Nøgletallet giver mulighed for at følge borgernes bevægelser væk fra socialpædagogisk støtte. Nøgletallet skal ses i relation til hvor mange borgere, der er på de enkelte trin på indsatstrappen (nøgletal 1-6) og de øvrige nøgletal, der viser bevægelser på trappen (nøgletal 7, 9-10).
A369: Nøgletal 9: Fra forebyggende indsatser og ned ad trappen
A371: Udvikling i andel af borgere, der har bevæget sig fra forebyggende indsatser og ned ad trappen
R378: =Skyggetabeller!C197 -> 2018-01-01 | S378: =Skyggetabeller!D197 -> 2018-07-01 | T378: =Skyggetabeller!E197 -> 2019-01-01 | U378: =Skyggetabeller!F197 -> 2019-07-01 | V378: =Skyggetabeller!G197 -> 2020-01-01 | W378: =Skyggetabeller!H197 -> 2020-07-01 | X378: =Skyggetabeller!I197 -> 2021-01-01 | Y378: =Skyggetabeller!J197 -> 2021-07-01 | Z378: =Skyggetabeller!K197 -> 2022-01-01 | AA378: =Skyggetabeller!L197 -> 2022-07-01 | AB378: =Skyggetabeller!M197 -> 2023-01-01
Q379: =Skyggetabeller!B201 -> Herning | S379: =Skyggetabeller!D201 -> * | T379: =Skyggetabeller!E201 -> * | U379: =Skyggetabeller!F201 -> * | V379: =Skyggetabeller!G201 -> * | W379: =Skyggetabeller!H201 -> * | X379: =Skyggetabeller!I201 -> 0.6153846154 | Y379: =Skyggetabeller!J201 -> 0.7058823529 | Z379: =Skyggetabeller!K201 -> 0.625 | AA379: =Skyggetabeller!L201 -> 0.7368421053 | AB379: =Skyggetabeller!M201 -> 0.2857142857
Q380: =Skyggetabeller!B202 -> Sammenligningskommuner | S380: =Skyggetabeller!D202 ->  | T380: =Skyggetabeller!E202 ->  | U380: =Skyggetabeller!F202 ->  | V380: =Skyggetabeller!G202 ->  | W380: =Skyggetabeller!H202 ->  | X380: =Skyggetabeller!I202 ->  | Y380: =Skyggetabeller!J202 ->  | Z380: =Skyggetabeller!K202 ->  | AA380: =Skyggetabeller!L202 ->  | AB380: =Skyggetabeller!M202 -> 
Q381: =Skyggetabeller!B203 -> Landsgennemsnit | S381: =Skyggetabeller!D203 -> 0 | T381: =Skyggetabeller!E203 -> 0.7777777778 | U381: =Skyggetabeller!F203 -> 0.6666666667 | V381: =Skyggetabeller!G203 -> 0.6279069767 | W381: =Skyggetabeller!H203 -> 0.5409836066 | X381: =Skyggetabeller!I203 -> 0.5824175824 | Y381: =Skyggetabeller!J203 -> 0.6120689655 | Z381: =Skyggetabeller!K203 -> 0.5277777778 | AA381: =Skyggetabeller!L203 -> 0.5826086957 | AB381: =Skyggetabeller!M203 -> 0.5040650407
A391: =RegNøgletal!B148 -> Anm.: Hvis nøgletallet er angivet med * er der foretaget en diskretionering af data, da der er for få observationer. N angiver målgruppestørrelsen for nøgletallet. Målgruppen er borgere der ved sidste datanedslag modtog forebyggende indsats efter SEL § 82. Ydelser efter servicelovens § 82 er først blevet indberetningspligtig pr. 1/7-2020.
A392: Kilde: Social- og Boligstyrelsens egne beregninger baseret på handicapstiatistikken ved Danmarks Statistik.
A394: Udvikling i andel af borgere, der har bevæget sig fra forebyggende indsatser og ned ad trappen
B395: =R378 -> 2018-01-01 | C395: 2018-07-01 | D395: 2019-01-01 | E395: 2019-07-01 | F395: 2020-01-01 | G395: 2020-07-01
A396: =Q379 -> Herning | C396: =S379 -> * | D396: * | E396: * | F396: * | G396: *
A397: =Q380 -> Sammenligningskommuner
A398: =Q381 -> Landsgennemsnit | C398: 0 | D398: 0.7777777778 | E398: 0.6666666667 | F398: 0.6279069767 | G398: 0.5409836066
A400: Udvikling i andel af borgere, der har bevæget sig fra forebyggende indsatser og ned ad trappen
B401: =X378 -> 2021-01-01 | C401: 2021-07-01 | D401: 2022-01-01 | E401: 2022-07-01 | F401: 2023-01-01
A402: =Q379 -> Herning | B402: 0.6153846154 | C402: 0.7058823529 | D402: 0.625 | E402: 0.7368421053 | F402: 0.2857142857
A403: =Q380 -> Sammenligningskommuner
A404: =Q381 -> Landsgennemsnit | B404: 0.5824175824 | C404: 0.6120689655 | D404: 0.5277777778 | E404: 0.5826086957 | F404: 0.5040650407
A406: Nøgletal 9 viser udviklingen i viser antallet af borgere der har bevæget sig fra forebyggende indsatser til ikke at modtage støtte i den kommunale forvaltning siden seneste måling. Det svarer til at have rykket sig fra trin 2 og ned ad indsatstrappen. Nøgletallet giver mulighed for at følge borgernes bevægelser efter den forebyggende indsats. Nøgletallet skal især ses i relation til nøgletal 10, men også til hvor mange borgere, der er på de enkelte trin på indsatstrappen (nøgletal 1-6) og de øvrige nøgletal, der viser bevægelser på trappen (nøgletal 7-8).
A407: Nøgletal 10: Fra forebyggende indsatser og op ad trappen
A409: Udvikling i andel af borgere, der har bevæget sig fra forebyggende indsatser og op ad trappen
R416: =Skyggetabeller!C213 -> 2018-01-01 | S416: =Skyggetabeller!D213 -> 2018-07-01 | T416: =Skyggetabeller!E213 -> 2019-01-01 | U416: =Skyggetabeller!F213 -> 2019-07-01 | V416: =Skyggetabeller!G213 -> 2020-01-01 | W416: =Skyggetabeller!H213 -> 2020-07-01 | X416: =Skyggetabeller!I213 -> 2021-01-01 | Y416: =Skyggetabeller!J213 -> 2021-07-01 | Z416: =Skyggetabeller!K213 -> 2022-01-01 | AA416: =Skyggetabeller!L213 -> 2022-07-01 | AB416: =Skyggetabeller!M213 -> 2023-01-01
Q417: =Skyggetabeller!B217 -> Herning | S417: =Skyggetabeller!D217 -> * | T417: =Skyggetabeller!E217 -> * | U417: =Skyggetabeller!F217 -> * | V417: =Skyggetabeller!G217 -> * | W417: =Skyggetabeller!H217 -> * | X417: =Skyggetabeller!I217 -> * | Y417: =Skyggetabeller!J217 -> * | Z417: =Skyggetabeller!K217 -> * | AA417: =Skyggetabeller!L217 -> * | AB417: =Skyggetabeller!M217 -> 0.2142857143
Q418: =Skyggetabeller!B218 -> Sammenligningskommuner | S418: =Skyggetabeller!D218 ->  | T418: =Skyggetabeller!E218 ->  | U418: =Skyggetabeller!F218 ->  | V418: =Skyggetabeller!G218 ->  | W418: =Skyggetabeller!H218 ->  | X418: =Skyggetabeller!I218 ->  | Y418: =Skyggetabeller!J218 ->  | Z418: =Skyggetabeller!K218 ->  | AA418: =Skyggetabeller!L218 ->  | AB418: =Skyggetabeller!M218 -> 
Q419: =Skyggetabeller!B219 -> Landsgennemsnit | S419: =Skyggetabeller!D219 -> 0 | T419: =Skyggetabeller!E219 -> 0 | U419: =Skyggetabeller!F219 -> 0.08333333333 | V419: =Skyggetabeller!G219 -> 0.1162790698 | W419: =Skyggetabeller!H219 -> 0.09836065574 | X419: =Skyggetabeller!I219 -> 0.1098901099 | Y419: =Skyggetabeller!J219 -> 0.1206896552 | Z419: =Skyggetabeller!K219 -> 0.1759259259 | AA419: =Skyggetabeller!L219 -> 0.147826087 | AB419: =Skyggetabeller!M219 -> 0.1463414634
A429: =RegNøgletal!B160 -> Anm.: Hvis nøgletallet er angivet med * er der foretaget en diskretionering af data, da der er for få observationer. N angiver målgruppestørrelsen for nøgletallet. Målgruppen er borgere der ved sidste datanedslag modtog forebyggende indsats efter SEL § 82. Ydelser efter servicelovens § 82 er først blevet indberetningspligtig pr. 1/7-2020.
A430: Kilde: Social- og Boligstyrelsens egne beregninger baseret på handicapstiatistikken ved Danmarks Statistik.
A432: Udvikling i andel af borgere, der har bevæget sig fra forebyggende indsatser og op ad trappen
B433: =R416 -> 2018-01-01 | C433: 2018-07-01 | D433: 2019-01-01 | E433: 2019-07-01 | F433: 2020-01-01 | G433: 2020-07-01
A434: =Q417 -> Herning | C434: =S417 -> * | D434: * | E434: * | F434: * | G434: *
A435: =Q418 -> Sammenligningskommuner
A436: =Q419 -> Landsgennemsnit | C436: 0 | D436: 0 | E436: 0.08333333333 | F436: 0.1162790698 | G436: 0.09836065574
A438: Udvikling i andel af borgere, der har bevæget sig fra forebyggende indsatser og op ad trappen
B439: =X416 -> 2021-01-01 | C439: 2021-07-01 | D439: 2022-01-01 | E439: 2022-07-01 | F439: 2023-01-01
A440: =Q417 -> Herning | B440: * | C440: * | D440: * | E440: * | F440: 0.2142857143
A441: =Q418 -> Sammenligningskommuner
A442: =Q419 -> Landsgennemsnit | B442: 0.1098901099 | C442: 0.1206896552 | D442: 0.1759259259 | E442: 0.147826087 | F442: 0.1463414634
A444: Nøgletal 10 viser udviklingen i viser antallet af borgere der har bevæget sig fra forebyggende indsatser til en anden støtte i den kommunale forvaltning siden seneste måling. Det svarer til at have rykket sig fra trin 2 og op ad indsatstrappen. Nøgletallet giver mulighed for at følge borgernes bevægelser efter den forebyggende indsats. Nøgletallet skal især ses i relation til nøgletal 9, men også til hvor mange borgere, der er på de enkelte trin på indsatstrappen (nøgletal 1-6) og de øvrige nøgletal, der viser bevægelser på trappen (nøgletal 7-8).
A445: Nøgletal 11: Uddannelsesgrad
A447: Udvikling i uddannelsesgrad
R454: =Skyggetabeller!C229 -> 2018-01-01 | S454: =Skyggetabeller!D229 -> 2018-07-01 | T454: =Skyggetabeller!E229 -> 2019-01-01 | U454: =Skyggetabeller!F229 -> 2019-07-01 | V454: =Skyggetabeller!G229 -> 2020-01-01 | W454: =Skyggetabeller!H229 -> 2020-07-01 | X454: =Skyggetabeller!I229 -> 2021-01-01 | Y454: =Skyggetabeller!J229 -> 2021-07-01 | Z454: =Skyggetabeller!K229 -> 2022-01-01 | AA454: =Skyggetabeller!L229 -> 2022-07-01 | AB454: =Skyggetabeller!M229 -> 2023-01-01
Q455: =Skyggetabeller!B233 -> Herning | R455: =Skyggetabeller!C233 -> 0.01168091168 | S455: =Skyggetabeller!D233 -> 0.01271026271 | T455: =Skyggetabeller!E233 -> 0.01395463511 | U455: =Skyggetabeller!F233 -> 0.01470588235 | V455: =Skyggetabeller!G233 -> 0.01695274423 | W455: =Skyggetabeller!H233 -> 0.01315525206 | X455: =Skyggetabeller!I233 -> 0.009515743324 | Y455: =Skyggetabeller!J233 -> 0.01775526264 | Z455: =Skyggetabeller!K233 -> 0.02485438843 | AA455: =Skyggetabeller!L233 -> 0.01712328767 | AB455: =Skyggetabeller!M233 -> 0.01554487179
Q456: =Skyggetabeller!B234 -> Sammenligningskommuner | R456: =Skyggetabeller!C234 -> 0.01743385342 | S456: =Skyggetabeller!D234 -> 0.009654131135 | T456: =Skyggetabeller!E234 -> 0.016848963 | U456: =Skyggetabeller!F234 -> 0.01299429071 | V456: =Skyggetabeller!G234 -> 0.01150361077 | W456: =Skyggetabeller!H234 -> 0.011386894 | X456: =Skyggetabeller!I234 -> 0.01506413274 | Y456: =Skyggetabeller!J234 -> 0.02006726124 | Z456: =Skyggetabeller!K234 -> 0.02386041457 | AA456: =Skyggetabeller!L234 -> 0.02386041457 | AB456: =Skyggetabeller!M234 -> 0.02386041457
... 144 more rows

Sheet Infotekster
A3: Fane | B3: Infoboks navn | C3: Nøgletal | D3: Tekst
A4: Dine valg | B4: Billede1 | D4: Vælg den kommune, som du ønsker at lave analysen for.
A5: Dine valg | B5: Billede2 | D5: Vælg en sammenligningsgruppe bestående af 1-7 kommuner. Tryk på "Dan gruppe" når alle de ønskede kommuner er krydset af.
A6: Nøgletalsanalyse + registerdata + egne indtastninger | B6: Billede3 | C6: Nøgletal 1 | D6: Definition af nøgletal: Antal borgere i målgruppen, som modtager støtte efter SEL § 108. Målgruppedefinition: Borgere der er registreret med "Sindslidelse". Datakilde: Statistikken om handicap og udsatte (voksne) Variabel: MODT_YDELSE_KODE = ”1.8.1”. Frekvens: Halvårligt med skæring ultimo juni og ultimo december. Startende fra 31. december 2017 til seneste opgørelse.
A7: Nøgletalsanalyse + registerdata + egne indtastninger | B7: Billede4 | C7: Nøgletal 2 | D7: Definition af nøgletal: Antal borgere i målgruppen, som modtager støtte efter ABL § 105 + SEL § 85. Målgruppedefinition: Borgere der er registreret med "Sindslidelse". Datakilde: Statistikken om handicap og udsatte (voksne) Variabel: MODT_YDELSE_KODE = ”1.12.0.1”. Frekvens: Halvårligt med skæring ultimo juni og ultimo december. Startende fra 31. december 2017 til seneste opgørelse.
A8: Nøgletalsanalyse + registerdata + egne indtastninger | B8: Billede5 | C8: Nøgletal 3 | D8: Definition af nøgletal: Antal borgere i målgruppen, som modtager støtte efter SEL § 107. Målgruppedefinition: Borgere der er registreret med "Sindslidelse". Datakilde: Statistikken om handicap og udsatte (voksne) Variabel: MODT_YDELSE_KODE = ”1.8.2”. Frekvens: Halvårligt med skæring ultimo juni og ultimo december. Startende fra 31. december 2017 til seneste opgørelse.
A9: Nøgletalsanalyse + registerdata + egne indtastninger | B9: Billede6 | C9: Nøgletal 4 | D9: Definition af nøgletal: Antal borgere i målgruppen, som modtager støtte efter SEL § 85. Målgruppedefinition: Borgere der er registreret med "Sindslidelse". Datakilde: Statistikken om handicap og udsatte (voksne) Variabel: MODT_YDELSE_KODE = ”1.12.0.2”. Frekvens: Halvårligt med skæring ultimo juni og ultimo december. Startende fra 31. december 2017 til seneste opgørelse.
A10: Nøgletalsanalyse + registerdata + egne indtastninger | B10: Billede7 | C10: Nøgletal 5 | D10: Definition af nøgletal: Antal borgere i målgruppen, som modtager støtte efter SEL § 103 eller 104. Målgruppedefinition: Borgere der er registreret med "Sindslidelse". Datakilde: Statistikken om handicap og udsatte (voksne) Variabel: MODT_YDELSE_KODE = ”1.1”, ”1.4”. Frekvens: Halvårligt med skæring ultimo juni og ultimo december. Startende fra 31. december 2017 til seneste opgørelse.
A11: Nøgletalsanalyse + registerdata + egne indtastninger | B11: Billede8 | C11: Nøgletal 6 | D11: Definition af nøgletal: Antal borgere i målgruppen, der modtager støtte efter § 82a eller b. Målgruppedefinition: Borgere der er registreret med "Sindslidelse". Datakilde: Statistikken om handicap og udsatte (voksne) Variabel: MODT_YDELSE_KODE="1.18.1","1.18.2". Frekvens: Halvårligt med skæring ultimo juni og ultimo december. Startende fra 31. december 2017 til seneste opgørelse.
A12: Nøgletalsanalyse + registerdata + egne indtastninger | B12: Billede9 | C12: Nøgletal 7 | D12: Definition af nøgletal: Antal borgere i målgruppen, som ved sidste måling var på et botilbud efter SEL § 108, § 107 eller ABL §105+SEL §85, men som nu er flyttet fra botilbuddet. Målgruppedefinition: Borgere der er registreret med "Sindslidelse", som har modtaget ydelse efter SEL § 108, § 107 eller ABL §105+SEL §85 ved seneste måling. Datakilde: Statistikken om handicap og udsatte (voksne) Variabel: MODT_YDELSE_KODE=”1.8.2”, ”1.12.0.1” og ”1.8.1”. Frekvens: Halvårligt med skæring ultimo juni og ultimo december. Startende fra 31. december 2017 til seneste opgørelse.
A13: Nøgletalsanalyse + registerdata + egne indtastninger | B13: Billede10 | C13: Nøgletal 7.1 | D13: Definition af nøgletal: Antal borgere i målgruppen, som ved sidste måling var på et botilbud efter § 108 eller ABL §105+SEL §85, men som nu er et midlertidigt botilbud efter SEL § 107. Målgruppedefinition: Borgere der er registreret med "Sindslidelse", som har modtaget ydelse efter SEL § 108 eller ABL §105+SEL §85 ved seneste måling. Datakilde: Statistikken om handicap og udsatte (voksne) Variabel: MODT_YDELSE_KODE=”1.8.2”, ”1.12.0.1” og ”1.8.1”. Frekvens: Halvårligt med skæring ultimo juni og ultimo december. Startende fra 31. december 2017 til seneste opgørelse.
A14: Nøgletalsanalyse + registerdata + egne indtastninger | B14: Billede11 | C14: Nøgletal 7.2 | D14: Definition af nøgletal: Antal borgere i målgruppen, som ved sidste måling var på et botilbud efter § 108 eller ABL §105+SEL §85, men som nu er i eget hjem med eller uden støtte. Målgruppedefinition: Borgere der er registreret med "Sindslidelse", som har modtaget ydelse efter SEL § 108 eller ABL §105+SEL §85 ved seneste måling. Datakilde: Statistikken om handicap og udsatte (voksne) Variabel: MODT_YDELSE_KODE=”1.8.1”, ”1.12.0.1” og ”1.12.0.2”. Frekvens: Halvårligt med skæring ultimo juni og ultimo december. Startende fra 31. december 2017 til seneste opgørelse.
A15: Nøgletalsanalyse + registerdata + egne indtastninger | B15: Billede12 | C15: Nøgletal 7.3 | D15: Definition af nøgletal: Antal borgere i målgruppen, som ved sidste måling var på et midlertidigt botilbud efter § 107, men som nu er i eget hjem med eller uden støtte. Målgruppedefinition: Borgere der er registreret med "Sindslidelse", som har modtaget ydelse efter SEL § 107 ved seneste måling. Datakilde: Statistikken om handicap og udsatte (voksne) Variabel: MODT_YDELSE_KODE=”1.8.2”, "1.12.0.2". Frekvens: Halvårligt med skæring ultimo juni og ultimo december. Startende fra 31. december 2017 til seneste opgørelse.
A16: Nøgletalsanalyse + registerdata + egne indtastninger | B16: Billede13 | C16: Nøgletal 8 | D16: Definition af nøgletal: Antal borgere i målgruppe som ved sidste måling modtog støtte efter SEL §85, som nu modtager støtte efter SEL §82a eller b eller ingen støtte. Målgruppedefinition: Borgere der er registreret med "Sindslidelse", som har modtaget ydelse efter SEL § 85 ved seneste måling. Datakilde: Statistikken om handicap og udsatte (voksne) Variabel: MODT_YDELSE_KODE=”1.12.0.2”, "1.18.1", "1.18.2". Frekvens: Halvårligt med skæring ultimo juni og ultimo december. Startende fra 31. december 2017 til seneste opgørelse.
A17: Nøgletalsanalyse + registerdata + egne indtastninger | B17: Billede14 | C17: Nøgletal 9 | D17: Definition af nøgletal: Antal borgere i målgruppe som med sidste måling modtog støtte efter SEL §82a eller b, som nu ikke modtager støtte. Målgruppedefinition: Borgere der er registreret med "Sindslidelse", som har modtaget ydelse efter SEL § 82a eller b ved seneste måling. Datakilde: Statistikken om handicap og udsatte (voksne) Variabel: MODT_YDELSE_KODE = "1.18.1", "1.18.2". Frekvens: Halvårligt med skæring ultimo juni og ultimo december. Startende fra 31. december 2017 til seneste opgørelse.
A18: Nøgletalsanalyse + registerdata + egne indtastninger | B18: Billede15 | C18: Nøgletal 10 | D18: Definition af nøgletal: Antal borgere i målgruppen som ved sidste måling modtog støtte efter SEL §82a eller b, som nu modtager støtte efter SEL §85, §103, §104, §107, §108 eller ABL §105+SEL§85. Målgruppedefinition: Borgere der er registreret med "Sindslidelse", som har modtaget ydelse efter SEL § 82a eller b ved seneste måling. Datakilde: Statistikken om handicap og udsatte (voksne) Variabel: MODT_YDELSE_KODE = ”1.4”, ”1.1”, ”1.12.0.2”, ”1.8.2”, ”1.12.0.1”, ”1.8.1”, "1.18.1", "1.18.2". Frekvens: Halvårligt med skæring ultimo juni og ultimo december. Startende fra 31. december 2017 til seneste opgørelse.
A19: Nøgletalsanalyse + registerdata + egne indtastninger | B19: Billede16 | C19: Nøgletal 11 | D19: Definition af nøgletal: Gennemsnitlig uddannelsesgrad for målgruppen. Uddannelsesgrad er defineret som andel af året borgerne har modtaget SU eller SVU. Et år defineres til seneste 52 uger. Målgruppedefinition: Borgere der er registreret med "Sindslidelse". Datakilde: Statistikken om handicap og udsatte (voksne) samt DREAM. Frekvens: Halvårligt med skæring ultimo juni og ultimo december. Startende fra 31. december 2017 til seneste opgørelse.
A20: Nøgletalsanalyse + registerdata + egne indtastninger | B20: Billede17 | C20: Nøgletal 12 | D20: Definition af nøgletal: Gennemsnitlig beskæftigelsesgrad for målgruppen. Beskæftigelsesgrad er defineret som andelen af året en borger har været i ordinær beskæftigelse eller fået tilskud til beskæftigelse. Et år defineres til seneste 52 uger. Målgruppedefinition: Borgere der er registreret med "Sindslidelse". Datakilde: Statistikken om handicap og udsatte (voksne) samt DREAM. Variabel (DREAM):Y_xxxx hvor koderne for følgende medtages: Ingen ydelse, løntilskud, skånejob, fleksjob, servicejob, jobrotation, supplerende dagpenge, sygedagpenge delvist rask, voksenlærling m. tilskud. Frekvens: Halvårligt med skæring ultimo juni og ultimo december. Startende fra 31. december 2017 til seneste opgørelse.
A21: Nøgletalsanalyse + registerdata + egne indtastninger | B21: Billede18 | C21: Nøgletal 12.1 | D21: Definition af nøgletal: Gennemsnitlig beskæftigelsesgrad for borgere i målgruppen, der modtager støtte efter SEL §82a eller b. Målgruppedefinition: Borgere der er registret med "Sindslidelse", som har modtaget ydelse efter SEL § 82a eller b. Datakilde: Statistikken om handicap og udsatte (voksne) samt DREAM. Variabel (DREAM): Y_xxxx hvor koderne for følgende medtages: Ingen ydelse, løntilskud, skånejob, fleksjob, servicejob, jobrotation, supplerende dagpenge, sygedagpenge delvist rask, voksenlærling m. tilskud. Variabel (HANDIC): MODT_YDELSE_KODE = "1.18.1", "1.18.2". Frekvens: Halvårligt med skæring ultimo juni og ultimo december. Startende fra 31. december 2017 til seneste opgørelse.
A22: Nøgletalsanalyse + registerdata + egne indtastninger | B22: Billede19 | C22: Nøgletal 12.2 | D22: Definition af nøgletal: Gennemsnitlig beskæftigelsesgrad for øvrige borgere i målgruppen. Målgruppedefinition: Borgere registreret med "Sindslidelse", som ikke modtager støtte efter SEL 82a eller b. Datakilde: Statistikken om handicap og udsatte (voksne) samt DREAM. Variabel (DREAM):Y_xxxx hvor koderne for følgende medtages: Ingen ydelse, løntilskud, skånejob, fleksjob, servicejob, jobrotation, supplerende dagpenge, sygedagpenge delvist rask, voksenlærling m. tilskud. Frekvens: Halvårligt med skæring ultimo juni og ultimo december. Startende fra 31. december 2017 til seneste opgørelse.
A23: Nøgletalsanalyse + registerdata + egne indtastninger | B23: Billede20 | C23: Nøgletal 13 | D23: Definition af nøgletal: Gennemsnitlig trivselsscore for borgere i målgruppen, målt ved WHO5 trivselsindeks. Målgruppedefinition: Borgere der er omfattet af omlægningen i kommunen og som kommunen har indsamlet spørgeskema for. Datakilde: Egne indtastninger. Frekvens: Halvårligt med skæring ultimo juni og ultimo december.
A24: Nøgletalsanalyse + registerdata + egne indtastninger | B24: Billede21 | C24: Nøgletal 13.1 | D24: Definition af nøgletal: Gennemsnitlig trivselsscore for borgere der modtager støtte efter SEL §82a og b, målt ved WHO5-trivselsindeks. Målgruppedefinition: Borgere der er omfattet af omlægningen i kommunen og som kommunen har indsamlet spørgeskema for. Målgruppen afgrænses til borgere der har modtaget ydelse efter SEL § 82a eller b. Datakilde: Egne indtastninger. Frekvens: Halvårligt med skæring ultimo juni og ultimo december.
A25: Nøgletalsanalyse + registerdata + egne indtastninger | B25: Billede22 | C25: Nøgletal 13.2 | D25: Definition af nøgletal: Gennemsnitlig trivselsscore for øvrige borgere i målgruppen, målt ved WHO5-trivselsindeks. Målgruppedefinition: Borgere der er omfattet af omlægningen i kommunen og som kommunen har indsamlet spørgeskema for. Målgruppen afgrænses til borgere der ikke har modtaget ydelse efter SEL § 82a eller b. Datakilde: Egne indtastninger. Frekvens: Halvårligt med skæring ultimo juni og ultimo december.
A26: Nøgletalsanalyse + registerdata + egne indtastninger | B26: Billede23 | C26: Nøgletal 14 | D26: Definition af nøgletal: Gennemsnitlig score for målgruppen målt ved Brief Inspire-O. Målgruppedefinition: Borgere der er omfattet af omlægningen i kommunen og som kommunen har indsamlet spørgeskema for. Datakilde: Egne indtastninger. Frekvens: Halvårligt med skæring ultimo juni og ultimo december.
A27: Nøgletalsanalyse + registerdata + egne indtastninger | B27: Billede24 | C27: Nøgletal 15.1 | D27: Definition af nøgletal: Andelen af borgere i målgruppen der har en trivselsscore over 50 målt ved WHO-5. Målgruppedefinition: Borgere der er omfattet af omlægningen i kommunen og som kommunen har indsamlet spørgeskema for. Datakilde: Egne indtastninger. Frekvens: Halvårligt med skæring ultimo juni og ultimo december.
A28: Nøgletalsanalyse + registerdata + egne indtastninger | B28: Billede25 | C28: Nøgletal 15.2 | D28: Definition af nøgletal: Andelen af borgere i målgruppen der har en trivselsscore mellem 36 og 50 målt ved WHO-5. Målgruppedefinition: Borgere der er omfattet af omlægningen i kommunen og som kommunen har indsamlet spørgeskema for. Datakilde: Egne indtastninger. Frekvens: Halvårligt med skæring ultimo juni og ultimo december.
A29: Nøgletalsanalyse + registerdata + egne indtastninger | B29: Billede26 | C29: Nøgletal 15.3 | D29: Definition af nøgletal: Andelen af borgere i målgruppen der har en trivselsscore mellem 0 og 35 målt ved WHO-5. Målgruppedefinition: Borgere der er omfattet af omlægningen i kommunen og som kommunen har indsamlet spørgeskema for. Datakilde: Egne indtastninger. Frekvens: Halvårligt med skæring ultimo juni og ultimo december.
A30: Nøgletalsanalyse + registerdata + egne indtastninger | B30: Billede27 | C30: Nøgletal 16 | D30: Definition af nøgletal: Andelen af borgere, der siden seneste måling, har opnået højere trivselsscore målt ved WHO-5 og dermed er flyttet en risikogruppe op (enten fra "Stor risiko" til "Risiko" eller fra "Risiko" til "Ikke umiddelbar risiko"). Målgruppedefinition: Borgere der er omfattet af omlægningen i kommunen og som kommunen har indsamlet spørgeskema for. Datakilde: Egne indtastninger. Frekvens: Halvårligt med skæring ultimo juni og ultimo december.
A31: Nøgletalsanalyse + registerdata + egne indtastninger | B31: Billede28 | C31: Nøgletal 17 | D31: Definition af nøgletal: Andelen af borgere, der siden seneste måling, har opnået lavere trivselsscore målt ved WHO-5 og dermed er flyttet en risikogruppe ned (enten fra "Risiko" til "Stor risiko" eller fra "Ikke umiddelbar risiko" til "Risiko"). Målgruppedefinition: Borgere der er omfattet af omlægningen i kommunen og som kommunen har indsamlet spørgeskema for. Datakilde: Egne indtastninger. Frekvens: Halvårligt med skæring ultimo juni og ultimo december.
A32: Nøgletalsanalyse + registerdata + egne indtastninger | B32: Billede29 | C32: Nøgletal 18 | D32: Definition af nøgletal: Andelen af indlæggelser blandt borgere i målgruppen siden seneste måling, der er en genindlæggelse. En genindlæggelse defineres ved, at borgere er blevet indlagt mindst 4 timer efter, og højest 30 dage efter sidste indlæggelse på psykiatrisk sygehus. Målgruppedefinition: Borgere registreret med "Sindslidelse". Datakilde: Statistikken om handicap og udsatte (voksne) samt LPR. Frekvens: Halvårligt med skæring ultimo juni og ultimo december. Startende fra 31. december 2017 til seneste opgørelse.
A33: Nøgletalsanalyse + registerdata + egne indtastninger | B33: Billede30 | C33: Nøgletal 19 | D33: Definition af nøgletal: Summen af udgifter til SEL §82, SEL §99 delt med summen af udgifter til SEL §108, ABL §105 + SEL §85, SEL §107, SEL §85, SEL §104, SEL §103. Definition baseret på kontoplanen jf. delnøgletal under 20*. Datakilde: De kommunale regnskaber. Frekvens: Årligt med skæring ultimo året. Fra 2018 til seneste opgørelse.
A34: Nøgletalsanalyse + registerdata + egne indtastninger | B34: Billede31 | C34: Nøgletal 20.1 | D34: Definition af nøgletal: Udgifter til SEL §108 (funktion 5.38.50, gruppering 003, dranst 1, art >0) som andel af de samlede udgifter til socialpsykiatrien (Summen af udgifter til SEL §82, SEL §99, SEL §108, ABL §105 + SEL §85, SEL §107, SEL §85, SEL §104, SEL §103). Definition baseret på den autoriserede kontoplan*. Datakilde: De kommunale regnskaber. Frekvens: Årligt med skæring ultimo året. Fra 2018 til seneste opgørelse.
A35: Nøgletalsanalyse + registerdata + egne indtastninger | B35: Billede32 | C35: Nøgletal 20.2 | D35: Definition af nøgletal: Udgifter til ABL §105 + SEL §85 (funktion 5.38.51, gruppering 003, dranst 1, art >0) som andel af de samlede udgifter til socialpsykiatrien (Summen af udgifter til SEL §82, SEL §99, SEL §108, ABL §105 + SEL §85, SEL §107, SEL §85, SEL §104, SEL §103). Definition baseret på den autoriserede kontoplan*. Datakilde: De kommunale regnskaber. Frekvens: Årligt med skæring ultimo året. Fra 2018 til seneste opgørelse.
A36: Nøgletalsanalyse + registerdata + egne indtastninger | B36: Billede33 | C36: Nøgletal 20.3 | D36: Definition af nøgletal: Udgifter til SEL §107 (funktion 5.38.52, gruppering 003, dranst 1, art >0) som andel af de samlede udgifter til socialpsykiatrien (Summen af udgifter til SEL §82, SEL §99, SEL §108, ABL §105 + SEL §85, SEL §107, SEL §85, SEL §104, SEL §103). Definition baseret på den autoriserede kontoplan*. Datakilde: De kommunale regnskaber. Frekvens: Årligt med skæring ultimo året. Fra 2018 til seneste opgørelse.
A37: Nøgletalsanalyse + registerdata + egne indtastninger | B37: Billede34 | C37: Nøgletal 20.4 | D37: Definition af nøgletal: Udgifter til SEL §85 (funktion 5.38.39, gruppering 005, dranst 1, art >0) som andel af de samlede udgifter til socialpsykiatrien (Summen af udgifter til SEL §82, SEL §99, SEL §108, ABL §105 + SEL §85, SEL §107, SEL §85, SEL §104, SEL §103). Definition baseret på den autoriserede kontoplan*. Datakilde: De kommunale regnskaber. Frekvens: Årligt med skæring ultimo året. Fra 2018 til seneste opgørelse.
A38: Nøgletalsanalyse + registerdata + egne indtastninger | B38: Billede35 | C38: Nøgletal 20.5 | D38: Definition af nøgletal: Udgifter til SEL §103 (funktion 5.38.58, gruppering 003, dranst 1, art >0) samt udgifter til SEL §104 (funktion 5.38.59, gruppering 003, dranst 1, art >0) som andel af de samlede udgifter til socialpsykiatrien (Summen af udgifter til SEL §82, SEL §99, SEL §108, ABL §105 + SEL §85, SEL §107, SEL §85, SEL §104, SEL §103). Definition baseret på den autoriserede kontoplan*. Datakilde: De kommunale regnskaber. Frekvens: Årligt med skæring ultimo året. Fra 2018 til seneste opgørelse.
A39: Nøgletalsanalyse + registerdata + egne indtastninger | B39: Billede36 | C39: Nøgletal 20.6 | D39: Definition af nøgletal: Udgifter til SEL §99 (funktion 5.38.53, gruppering 002, dranst 1, art >0) samt udgifter til SEL §82 a, b og c (funktion 5.38.39, gruppering 011, 012, 013, dranst 1, art >0) som andel af de samlede udgifter til socialpsykiatrien (Summen af udgifter til SEL §82, SEL §99, SEL §108, ABL §105 + SEL §85, SEL §107, SEL §85, SEL §104, SEL §103). Definition baseret på den autoriserede kontoplan*. Datakilde: De kommunale regnskaber. Frekvens: Årligt med skæring ultimo året. Fra 2018 til seneste opgørelse.
A40: Nøgletalsanalyse | B40: Billede37 | C40: Nøgletal 1 | D40: Figuren viser udviklingen i antal modtagere i perioden 2018-seneste år.
A41: Nøgletalsanalyse | B41: Billede38 | C41: Nøgletal 1 | D41: Figuren viser udviklingen i antal modtagere som en andel af målgruppen for din valgte kommune, for sammenligningsgruppen og for hele landet. Figuren viser udviklingen fra 2018-seneste år.
A42: Nøgletalsanalyse | B42: Billede39 | C42: Nøgletal 2 | D42: Figuren viser udviklingen i antal modtagere i perioden 2018-seneste år.
A43: Nøgletalsanalyse | B43: Billede40 | C43: Nøgletal 2 | D43: Figuren viser udviklingen i antal modtagere som en andel af målgruppen for din valgte kommune, for sammenligningsgruppen og for hele landet. Figuren viser udviklingen fra 2018-seneste år.
A44: Nøgletalsanalyse | B44: Billede41 | C44: Nøgletal 3 | D44: Figuren viser udviklingen i antal modtagere i perioden 2018-seneste år.
A45: Nøgletalsanalyse | B45: Billede42 | C45: Nøgletal 3 | D45: Figuren viser udviklingen i antal modtagere som en andel af målgruppen for din valgte kommune, for sammenligningsgruppen og for hele landet. Figuren viser udviklingen fra 2018-seneste år.
A46: Nøgletalsanalyse | B46: Billede43 | C46: Nøgletal 4 | D46: Figuren viser udviklingen i antal modtagere i perioden 2018-seneste år.
A47: Nøgletalsanalyse | B47: Billede44 | C47: Nøgletal 4 | D47: Figuren viser udviklingen i antal modtagere som en andel af målgruppen for din valgte kommune, for sammenligningsgruppen og for hele landet. Figuren viser udviklingen fra 2018-seneste år.
A48: Nøgletalsanalyse | B48: Billede45 | C48: Nøgletal 5 | D48: Figuren viser udviklingen i antal modtagere i perioden 2018-seneste år.
A49: Nøgletalsanalyse | B49: Billede46 | C49: Nøgletal 5 | D49: Figuren viser udviklingen i antal modtagere som en andel af målgruppen for din valgte kommune, for sammenligningsgruppen og for hele landet. Figuren viser udviklingen fra 2018-seneste år.
A50: Nøgletalsanalyse | B50: Billede47 | C50: Nøgletal 6 | D50: Figuren viser udviklingen i antal modtagere i perioden 2018-seneste år.
A51: Nøgletalsanalyse | B51: Billede48 | C51: Nøgletal 6 | D51: Figuren viser udviklingen i antal modtagere som en andel af målgruppen for din valgte kommune, for sammenligningsgruppen og for hele landet. Figuren viser udviklingen fra 2018-seneste år.
A52: Nøgletalsanalyse | B52: Billede49 | C52: Nøgletal 7 | D52: Figuren viser udviklingen i antal modtagere, som er flyttet fra et botilbud siden seneste måling. Udviklingen vises i perioden 2018-seneste år.
A53: Nøgletalsanalyse | B53: Billede50 | C53: Nøgletal 7 | D53: Figuren viser udviklingen i antal modtagere som en andel af målgruppen, som er flyttet fra botilbud siden seneste måling for din valgte kommune, for sammenligningsgruppen og for hele landet. Figuren viser udviklingen fra 2018-seneste år.
A54: Nøgletalsanalyse | B54: Billede51 | C54: Nøgletal 7.1 | D54: Figuren viser udviklingen i antal modtagere, som er flyttet fra et botilbud siden seneste måling. Udviklingen vises i perioden 2018-seneste år.
A55: Nøgletalsanalyse | B55: Billede52 | C55: Nøgletal 7.1 | D55: Figuren viser udviklingen i antal modtagere som en andel af målgruppen, som er flyttet fra botilbud siden seneste måling for din valgte kommune, for sammenligningsgruppen og for hele landet. Figuren viser udviklingen fra 2018-seneste år.
A56: Nøgletalsanalyse | B56: Billede53 | C56: Nøgletal 7.2 | D56: Figuren viser udviklingen i antal modtagere, som er flyttet fra et botilbud siden seneste måling. Udviklingen vises i perioden 2018-seneste år.
A57: Nøgletalsanalyse | B57: Billede54 | C57: Nøgletal 7.2 | D57: Figuren viser udviklingen i antal modtagere som en andel af målgruppen, som er flyttet fra botilbud siden seneste måling for din valgte kommune, for sammenligningsgruppen og for hele landet. Figuren viser udviklingen fra 2018-seneste år.
A58: Nøgletalsanalyse | B58: Billede55 | C58: Nøgletal 7.3 | D58: Figuren viser udviklingen i antal modtagere, som er flyttet fra et botilbud siden seneste måling. Udviklingen vises i perioden 2018-seneste år.
A59: Nøgletalsanalyse | B59: Billede56 | C59: Nøgletal 7.3 | D59: Figuren viser udviklingen i antal modtagere som en andel af målgruppen, som er flyttet fra botilbud siden seneste måling for din valgte kommune, for sammenligningsgruppen og for hele landet. Figuren viser udviklingen fra 2018-seneste år.
A60: Nøgletalsanalyse | B60: Billede57 | C60: Nøgletal 8 | D60: Figuren viser udviklingen i antal modtagere, som er rykket ned ad indsatstrappen siden seneste måling. Udviklingen i perioden 2018-seneste år.
A61: Nøgletalsanalyse | B61: Billede58 | C61: Nøgletal 8 | D61: Figuren viser udviklingen i antal modtagere som en andel af målgruppen, som er rykket ned ad indsatstrappen siden seneste måling for din valgte kommune, for sammenligningsgruppen og for hele landet. Figuren viser udviklingen fra 2018-seneste år.
A62: Nøgletalsanalyse | B62: Billede59 | C62: Nøgletal 9 | D62: Figuren viser udviklingen i antal modtagere, som er rykket ned ad indsatstrappen siden seneste måling. Udviklingen vises i perioden 2018-seneste år.
A63: Nøgletalsanalyse | B63: Billede60 | C63: Nøgletal 9 | D63: Figuren viser udviklingen i antal modtagere som en andel af målgruppen, som er rykket ned ad indsatstrappen siden seneste måling for din valgte kommune, for sammenligningsgruppen og for hele landet. Figuren viser udviklingen fra 2018-seneste år.
A64: Nøgletalsanalyse | B64: Billede61 | C64: Nøgletal 10 | D64: Figuren viser udviklingen i antal modtagere, som er rykket op ad indsatstrappen siden seneste måling. Udviklingen vises i perioden 2018-seneste år.
A65: Nøgletalsanalyse | B65: Billede62 | C65: Nøgletal 10 | D65: Figuren viser udviklingen i antal modtagere som en andel af målgruppen, som er rykket op ad indsatstrappen siden seneste måling for din valgte kommune, for sammenligningsgruppen og for hele landet. Figuren viser udviklingen fra 2018-seneste år.
A66: Nøgletalsanalyse | B66: Billede63 | C66: Nøgletal 11 | D66: Figuren viser udviklingen i målgruppens seneste års uddannelsesgrad i perioden 2018-seneste år..
A67: Nøgletalsanalyse | B67: Billede64 | C67: Nøgletal 11 | D67: Figuren viser udviklingen i målgruppens seneste års uddannelsesgrad for din valgte kommune, for sammenligningsgruppen og for hele landet. Figuren viser udviklingen fra 2018-seneste år.
A68: Nøgletalsanalyse | B68: Billede65 | C68: Nøgletal 12 | D68: Figuren viser udviklingen i målgruppens seneste års beskæftigelsesgrad i perioden 2018-seneste år.
A69: Nøgletalsanalyse | B69: Billede66 | C69: Nøgletal 12 | D69: Figuren viser udviklingen i målgruppens seneste års beskæftigelsesgrad for din valgte kommune, for sammenligningsgruppen og for hele landet. Figuren viser udviklingen fra 2018-seneste år.
A70: Nøgletalsanalyse | B70: Billede67 | C70: Nøgletal 12.1 | D70: Figuren viser udviklingen i målgruppens seneste års beskæftigelsesgrad i perioden 2018-seneste år.
A71: Nøgletalsanalyse | B71: Billede68 | C71: Nøgletal 12.1 | D71: Figuren viser udviklingen i målgruppens seneste års beskæftigelsesgrad for din valgte kommune, for sammenligningsgruppen og for hele landet. Figuren viser udviklingen fra 2018-seneste år.
A72: Nøgletalsanalyse | B72: Billede69 | C72: Nøgletal 12.2 | D72: Figuren viser udviklingen i målgruppens seneste års beskæftigelsesgrad i perioden 2018-seneste år.
A73: Nøgletalsanalyse | B73: Billede70 | C73: Nøgletal 12.2 | D73: Figuren viser udviklingen i målgruppens seneste års beskæftigelsesgrad for din valgte kommune, for sammenligningsgruppen og for hele landet. Figuren viser udviklingen fra 2018-seneste år.
A74: Nøgletalsanalyse | B74: Billede71 | C74: Nøgletal 13 | D74: Figuren viser udviklingen i målgruppens trivselsscore i din kommune, hvis du har indtastet data under "Egne indtastninger".
A75: Nøgletalsanalyse | B75: Billede72 | C75: Nøgletal 13.1 | D75: Figuren viser udviklingen i målgruppens trivselsscore i din kommune, hvis du har indtastet data under "Egne indtastninger".
A76: Nøgletalsanalyse | B76: Billede73 | C76: Nøgletal 13.2 | D76: Figuren viser udviklingen i målgruppens trivselsscore i din kommune, hvis du har indtastet data under "Egne indtastninger".
A77: Nøgletalsanalyse | B77: Billede74 | C77: Nøgletal 14 | D77: Figuren viser udviklingen i målgruppens personlige recovery for din kommune, hvis du har indtastet data under "Egne indtastninger".
A78: Nøgletalsanalyse | B78: Billede75 | C78: Nøgletal 15 | D78: Figuren viser udviklingen i målgruppens mentale sundhed i din kommune, hvis du har indtastet data under "Egne indtastninger".
A79: Nøgletalsanalyse | B79: Billede76 | C79: Nøgletal 15 | D79: Figurerne viser udviklingen i målgruppens mentale sundhed for din kommune, hvis du har indtastet data under "Egne indtastninger".
A80: Nøgletalsanalyse | B80: Billede77 | C80: Nøgletal 15.1 | D80: Figuren viser udviklingen i målgruppens mentale sundhed for din kommune, hvis du har indtastet data under "Egne indtastninger".
A81: Nøgletalsanalyse | B81: Billede78 | C81: Nøgletal 15.2 | D81: Figuren viser udviklingen i målgruppens mentale sundhed for din kommune, hvis du har indtastet data under "Egne indtastninger".
A82: Nøgletalsanalyse | B82: Billede79 | C82: Nøgletal 15.3 | D82: Figuren viser udviklingen i målgruppens mentale sundhed for din kommune, hvis du har indtastet data under "Egne indtastninger".
A83: Nøgletalsanalyse | B83: Billede80 | C83: Nøgletal 16 | D83: Figuren viser udviklingen i andelen af målgruppen, som har oplevet forbedring i mental sundhed for din kommune, hvis du har indtastet data under "Egne indtastninger".
A84: Nøgletalsanalyse | B84: Billede81 | C84: Nøgletal 17 | D84: Figuren viser udviklingen i andelen af målgruppen, som har oplevet forværring i mental sundhed for din kommune, hvis du har indtastet data under "Egne indtastninger".
A85: Nøgletalsanalyse | B85: Billede82 | C85: Nøgletal 18 | D85: Figuren viser udviklingen i antal borgere i målgruppen, som har oplevet genindlæggelse på psykiatriak sygehus siden seneste måling, i perioden 2018-seneste år.
A86: Nøgletalsanalyse | B86: Billede83 | C86: Nøgletal 18 | D86: Figuren viser udviklingen i antal borgere i målgruppen, som har oplevet genindlæggelse på psykiatrisk sygehus siden seneste måling, som en andel af målgruppen for din valgte kommune, for sammenligningsgruppen og for hele landet. Figuren viser udviklingen fra 2018-seneste år.
A87: Nøgletalsanalyse | B87: Billede84 | C87: Nøgletal 19 | D87: Figuren viser udviklingen i udgiftsandelen til forebyggende indsatser ift. udgiftsandelen til støttende indsatser i årene 2018-seneste år.
A88: Nøgletalsanalyse | B88: Billede85 | C88: Nøgletal 19 | D88: Figuren viser udviklingen i udgiftsandelen til forebyggende indsatser ift. udgiftsandelen til støttende indsatser i årene 2018-seneste år for din valgte kommune, for sammenligningsgruppen og for hele landet.
A89: Nøgletalsanalyse | B89: Billede86 | C89: Nøgletal 20 | D89: Figuren viser udviklingen i udgiftsandelene i årene 2018-seneste år for: - længerevarende botilbud - botilbudslignende tilbud - midlertidige botilbud - socialpædagogisk støtte - beskyttet beskæftigelse og aktivitets- og samværstilbud - forebyggende indsatser
A90: Nøgletalsanalyse | B90: Billede87 | C90: Nøgletal 20 | D90: Figurerne viser udviklingen i udgiftsandelene i årene 2018-seneste år for: - længerevarende botilbud - botilbudslignende tilbud - midlertidige botilbud - socialpædagogisk støtte - beskyttet beskæftigelse og aktivitets- og samværstilbud - forebyggende indsatser
A91: Nøgletalsanalyse | B91: Billede88 | C91: Nøgletal 20 | D91: Figurerne viser udviklingen i fordelingen af udgiftsandele i årene 2018-seneste år for din valgte kommune, for sammenligningsgruppen og for hele landet.
A92: Nøgletalsanalyse | B92: Billede89 | C92: Nøgletal 20 | D92: Figurerne viser udviklingen for hver af de seks udgiftsandele for din valgte kommune, for sammenligningsgruppen og for hele landet i årene 2018-seneste år.
A93: Nøgletalsanalyse | B93: Billede90 | C93: Nøgletal 15 | D93: Nøgetallet måler på målgruppens mentale sundhed. Nøgletal 15.1 måler på andelen af borgere i målgruppen der har en trivselsscore over 50 målt ved WHO-5. Nøgletal 15.2 måler på andelen af borgere i målgruppen der har en trivselsscore mellem 36 og 50 målt ved WHO-5. Nøgletal 15.3 måler på andelen af borgere i målgruppen der har en trivselsscore mellem 0 og 35 målt ved WHO-5. Målgruppedefinition: Borgere der er omfattet af omlægningen i kommunen og som kommunen har indsamlet spørgeskema for. Datakilde: Egne indtastninger. Frekvens: Halvårligt med skæring ultimo juni og ultimo december.
A94: Nøgletalsanalyse | B94: Billede91 | C94: Nøgletal 20 | D94: Nøgletal 20 viser udgiftsandele fordelt på seks områder: - længerevarende botilbud - botilbudslignende tilbud - midlertidige botilbud - socialpædagogisk støtte - beskyttet beskæftigelse og aktivitets- og samværstilbud - forebyggende indsatser Definition af længerevarende botilbud: Udgifter til SEL §108 (funktion 5.38.50, gruppering 003, dranst 1, art >0) som andel af de samlede udgifter til socialpsykiatrien (Summen af udgifter til SEL §82, SEL §99, SEL §108, ABL §105 + SEL §85, SEL §107, SEL §85, SEL §104, SEL §103). Definition baseret på den autoriserede kontoplan. Definition af botilbudslignende tilbud: Udgifter til ABL §105 + SEL §85 (funktion 5.38.51, gruppering 003, dranst 1, art >0) som andel af de samlede udgifter til socialpsykiatrien (Summen af udgifter til SEL §82, SEL §99, SEL §108, ABL §105 + SEL §85, SEL §107, SEL §85, SEL §104, SEL §103). Definition baseret på den autoriserede kontoplan. Definition af midlertidige botilbud: Udgifter til SEL §107 (funktion 5.38.52, gruppering 003, dranst 1, art >0) som andel af de samlede udgifter til socialpsykiatrien (Summen af udgifter til SEL §82, SEL §99, SEL §108, ABL §105 + SEL §85, SEL §107, SEL §85, SEL §104, SEL §103). Definition baseret på den autoriserede kontoplan. Definition af socialpædagogisk støtte: Udgifter til SEL §85 (funktion 5.38.39, gruppering 005, dranst 1, art >0) som andel af de samlede udgifter til socialpsykiatrien (Summen af udgifter til SEL §82, SEL §99, SEL §108, ABL §105 + SEL §85, SEL §107, SEL §85, SEL §104, SEL §103). Definition baseret på den autoriserede kontoplan. Definition af beskyttet beskæftigelse og aktivitets- og samværstilbud: Udgifter til SEL §103 (funktion 5.38.58, gruppering 003, dranst 1, art >0) samt udgifter til SEL §104 (funktion 5.38.59, gruppering 003, dranst 1, art >0) som andel af de samlede udgifter til socialpsykiatrien (Summen af udgifter til SEL §82, SEL §99, SEL §108, ABL §105 + SEL §85, SEL §107, SEL §85, SEL §104, SEL §103). Definition baseret på den autoriserede kontoplan. Definition af forebyggende indsatser: Udgifter til SEL §99 (funktion 5.38.53, gruppering 002, dranst 1, art >0) samt udgifter til SEL §82 a, b og c (funktion 5.38.39, gruppering 011, 012, 013, dranst 1, art >0) som andel af de samlede udgifter til socialpsykiatrien (Summen af udgifter til SEL §82, SEL §99, SEL §108, ABL §105 + SEL §85, SEL §107, SEL §85, SEL §104, SEL §103). Definition baseret på den autoriserede kontoplan. Datakilde: De kommunale regnskaber. Frekvens: Årligt med skæring ultimo året. Fra 2018 til seneste opgørelse.
A95: Startside | B95: Billede37 | C95: Versioner | D95: Versionshistorik: Version 1: Første offentliggørelse af redskabet. Nationale registerdata for 2018-2021. Nøgletal 18 er ikke dataunderstøttet pga. omlægning af landspatientregisteret. Version 1.1: Redskabet indeholder nu data for Nøgletal 18. De økonomiske nøgletal er opdateret med regnskabstal for 2022.
C115: Årstal | D115: Vælg det nøgletal, du gerne vil se. Der er registerdata til og med 2019. Tabellerne viser som udgangspunkt minimum fem år. Vælges der flere år, udvides tabeller og figurer. Det er vigtigt, at du sletter alle år, inden du tilføjer ekstra år. F.eks. hvis du har valgt 2018 og 2019. Skal du slette disse for at få 2020 med.

Sheet Skyggetabeller
A1: Skyggetabeller for figurer på fanen "Udvikling over tid"
B2: OBS! Alle de navngivne datanedslag skal rettes til ved hver opdatering, så formlerne rettes.
B3: Datanedslag: | C3: 2023-01-01 | D3: Sidste år med handic-data
B4: ok_datanedslag | C4: 2022 | D4: Sidste år med økonomi data
B5: LPR_datanedslag: | C5: 2023-01-01 | D5: Sidste datanedslag med LPR data
B6: Datanedsag_valideredeinstr: | C6: 2025-01-01 | D6: Næste mulige nedslag for validerede instrumenter
B9: Datanedslag i redskabet til kolonneoverskrifter i tabeller
B10: Datanedslag, registre, fra sas | C10: 20181 | D10: 20182 | E10: 20191 | F10: 20192 | G10: 20201 | H10: 20202 | I10: 20211 | J10: 20212 | K10: 20221 | L10: 20222 | M10: 20231 | N10: 20232 | O10: 20241 | P10: 20242 | Q10: 20251
B11: Datanedslag, registre, oversat | C11: =VLOOKUP(C10,Data!$I$1072:$J$1091,2,FALSE) -> 2018-01-01 | D11: =VLOOKUP(D10,Data!$I$1072:$J$1091,2,FALSE) -> 2018-07-01 | E11: =VLOOKUP(E10,Data!$I$1072:$J$1091,2,FALSE) -> 2019-01-01 | F11: =VLOOKUP(F10,Data!$I$1072:$J$1091,2,FALSE) -> 2019-07-01 | G11: =VLOOKUP(G10,Data!$I$1072:$J$1091,2,FALSE) -> 2020-01-01 | H11: =VLOOKUP(H10,Data!$I$1072:$J$1091,2,FALSE) -> 2020-07-01 | I11: =VLOOKUP(I10,Data!$I$1072:$J$1091,2,FALSE) -> 2021-01-01 | J11: =VLOOKUP(J10,Data!$I$1072:$J$1091,2,FALSE) -> 2021-07-01 | K11: =VLOOKUP(K10,Data!$I$1072:$J$1091,2,FALSE) -> 2022-01-01 | L11: =VLOOKUP(L10,Data!$I$1072:$J$1091,2,FALSE) -> 2022-07-01 | M11: =VLOOKUP(M10,Data!$I$1072:$J$1091,2,FALSE) -> 2023-01-01 | N11: =VLOOKUP(N10,Data!$I$1072:$J$1091,2,FALSE) -> 2023-07-01 | O11: =VLOOKUP(O10,Data!$I$1072:$J$1091,2,FALSE) -> 2024-01-01 | P11: =VLOOKUP(P10,Data!$I$1072:$J$1091,2,FALSE) -> 2024-07-01 | Q11: =VLOOKUP(Q10,Data!$I$1072:$J$1091,2,FALSE) -> 2025-01-01
B13: Datanedslag, egne indtastninger | C13: 2023-07-01 | D13: 2024-01-01 | E13: 2024-07-01 | F13: 2025-01-01
B14: Datanedslag, økonomi | C14: 2018 | D14: 2019 | E14: 2020 | F14: 2021 | G14: 2022 | H14: 2023 | I14: 2024 | J14: 2025
B17: Nøgletal 1 - Modtagere af længerevarende botilbud
B19: =Kommune -> Herning | C19: =Skyggetabeller!C$10 -> 20181 | D19: =Skyggetabeller!D$10 -> 20182 | E19: =Skyggetabeller!E$10 -> 20191 | F19: =Skyggetabeller!F$10 -> 20192 | G19: =Skyggetabeller!G$10 -> 20201 | H19: =Skyggetabeller!H$10 -> 20202 | I19: =Skyggetabeller!I$10 -> 20211 | J19: =Skyggetabeller!J$10 -> 20212 | K19: =Skyggetabeller!K$10 -> 20221 | L19: =Skyggetabeller!L$10 -> 20222 | M19: =Skyggetabeller!M$10 -> 20231
C20: =Skyggetabeller!C$11 -> 2018-01-01 | D20: =Skyggetabeller!D$11 -> 2018-07-01 | E20: =Skyggetabeller!E$11 -> 2019-01-01 | F20: =Skyggetabeller!F$11 -> 2019-07-01 | G20: =Skyggetabeller!G$11 -> 2020-01-01 | H20: =Skyggetabeller!H$11 -> 2020-07-01 | I20: =Skyggetabeller!I$11 -> 2021-01-01 | J20: =Skyggetabeller!J$11 -> 2021-07-01 | K20: =Skyggetabeller!K$11 -> 2022-01-01 | L20: =Skyggetabeller!L$11 -> 2022-07-01 | M20: =Skyggetabeller!M$11 -> 2023-01-01
B21: Antal modtagere | C21: =IFERROR(IF(INDEX(Data_kom2,MATCH(1,(komnavn2=Kommune)*(komaar2=C19),0),4)="","*",INDEX(Data_kom2,MATCH(1,(komnavn2=Kommune)*(komaar2=C19),0),4)),"Ingen data") -> 20 | D21: =IFERROR(IF(INDEX(Data_kom2,MATCH(1,(komnavn2=Kommune)*(komaar2=D19),0),4)="","*",INDEX(Data_kom2,MATCH(1,(komnavn2=Kommune)*(komaar2=D19),0),4)),"Ingen data") -> 21 | E21: =IFERROR(IF(INDEX(Data_kom2,MATCH(1,(komnavn2=Kommune)*(komaar2=E19),0),4)="","*",INDEX(Data_kom2,MATCH(1,(komnavn2=Kommune)*(komaar2=E19),0),4)),"Ingen data") -> 22 | F21: =IFERROR(IF(INDEX(Data_kom2,MATCH(1,(komnavn2=Kommune)*(komaar2=F19),0),4)="","*",INDEX(Data_kom2,MATCH(1,(komnavn2=Kommune)*(komaar2=F19),0),4)),"Ingen data") -> 22 | G21: =IFERROR(IF(INDEX(Data_kom2,MATCH(1,(komnavn2=Kommune)*(komaar2=G19),0),4)="","*",INDEX(Data_kom2,MATCH(1,(komnavn2=Kommune)*(komaar2=G19),0),4)),"Ingen data") -> 22 | H21: =IFERROR(IF(INDEX(Data_kom2,MATCH(1,(komnavn2=Kommune)*(komaar2=H19),0),4)="","*",INDEX(Data_kom2,MATCH(1,(komnavn2=Kommune)*(komaar2=H19),0),4)),"Ingen data") -> 21 | I21: =IFERROR(IF(INDEX(Data_kom2,MATCH(1,(komnavn2=Kommune)*(komaar2=I19),0),4)="","*",INDEX(Data_kom2,MATCH(1,(komnavn2=Kommune)*(komaar2=I19),0),4)),"Ingen data") -> 20 | J21: =IFERROR(IF(INDEX(Data_kom2,MATCH(1,(komnavn2=Kommune)*(komaar2=J19),0),4)="","*",INDEX(Data_kom2,MATCH(1,(komnavn2=Kommune)*(komaar2=J19),0),4)),"Ingen data") -> 19 | K21: =IFERROR(IF(INDEX(Data_kom2,MATCH(1,(komnavn2=Kommune)*(komaar2=K19),0),4)="","*",INDEX(Data_kom2,MATCH(1,(komnavn2=Kommune)*(komaar2=K19),0),4)),"Ingen data") -> 19 | L21: =IFERROR(IF(INDEX(Data_kom2,MATCH(1,(komnavn2=Kommune)*(komaar2=L19),0),4)="","*",INDEX(Data_kom2,MATCH(1,(komnavn2=Kommune)*(komaar2=L19),0),4)),"Ingen data") -> 20 | M21: =IFERROR(IF(INDEX(Data_kom2,MATCH(1,(komnavn2=Kommune)*(komaar2=M19),0),4)="","*",INDEX(Data_kom2,MATCH(1,(komnavn2=Kommune)*(komaar2=M19),0),4)),"Ingen data") -> 20 | N21: Ved næste datanedslag trækkes formlen i den gule række én gang til højre. Trækkes kun i gule felter
B24: Andele | C24: =Skyggetabeller!C$11 -> 2018-01-01 | D24: =Skyggetabeller!D$11 -> 2018-07-01 | E24: =Skyggetabeller!E$11 -> 2019-01-01 | F24: =Skyggetabeller!F$11 -> 2019-07-01 | G24: =Skyggetabeller!G$11 -> 2020-01-01 | H24: =Skyggetabeller!H$11 -> 2020-07-01 | I24: =Skyggetabeller!I$11 -> 2021-01-01 | J24: =Skyggetabeller!J$11 -> 2021-07-01 | K24: =Skyggetabeller!K$11 -> 2022-01-01 | L24: =Skyggetabeller!L$11 -> 2022-07-01 | M24: =Skyggetabeller!M$11 -> 2023-01-01
B25: =Kommune -> Herning | C25: =IF(Datanedslag>=C$20,IF(INDEX(Data_kom2,MATCH(1,(komnavn2=$B25)*(komaar2=Skyggetabeller!C$10),0),4)="","*",INDEX(Data_kom2,MATCH(1,(komnavn2=$B25)*(komaar2=Skyggetabeller!C$10),0),4)/INDEX(Data_kom2,MATCH(1,(komnavn2=$B25)*(komaar2=Skyggetabeller!C$10),0),7)),"") -> 0.04938271605 | D25: =IF(Datanedslag>=D$20,IF(INDEX(Data_kom2,MATCH(1,(komnavn2=$B25)*(komaar2=Skyggetabeller!D$10),0),4)="","*",INDEX(Data_kom2,MATCH(1,(komnavn2=$B25)*(komaar2=Skyggetabeller!D$10),0),4)/INDEX(Data_kom2,MATCH(1,(komnavn2=$B25)*(komaar2=Skyggetabeller!D$10),0),7)),"") -> 0.0515970516 | E25: =IF(Datanedslag>=E$20,IF(INDEX(Data_kom2,MATCH(1,(komnavn2=$B25)*(komaar2=Skyggetabeller!E$10),0),4)="","*",INDEX(Data_kom2,MATCH(1,(komnavn2=$B25)*(komaar2=Skyggetabeller!E$10),0),4)/INDEX(Data_kom2,MATCH(1,(komnavn2=$B25)*(komaar2=Skyggetabeller!E$10),0),7)),"") -> 0.05641025641 | F25: =IF(Datanedslag>=F$20,IF(INDEX(Data_kom2,MATCH(1,(komnavn2=$B25)*(komaar2=Skyggetabeller!F$10),0),4)="","*",INDEX(Data_kom2,MATCH(1,(komnavn2=$B25)*(komaar2=Skyggetabeller!F$10),0),4)/INDEX(Data_kom2,MATCH(1,(komnavn2=$B25)*(komaar2=Skyggetabeller!F$10),0),7)),"") -> 0.05882352941 | G25: =IF(Datanedslag>=G$20,IF(INDEX(Data_kom2,MATCH(1,(komnavn2=$B25)*(komaar2=Skyggetabeller!G$10),0),4)="","*",INDEX(Data_kom2,MATCH(1,(komnavn2=$B25)*(komaar2=Skyggetabeller!G$10),0),4)/INDEX(Data_kom2,MATCH(1,(komnavn2=$B25)*(komaar2=Skyggetabeller!G$10),0),7)),"") -> 0.06060606061 | H25: =IF(Datanedslag>=H$20,IF(INDEX(Data_kom2,MATCH(1,(komnavn2=$B25)*(komaar2=Skyggetabeller!H$10),0),4)="","*",INDEX(Data_kom2,MATCH(1,(komnavn2=$B25)*(komaar2=Skyggetabeller!H$10),0),4)/INDEX(Data_kom2,MATCH(1,(komnavn2=$B25)*(komaar2=Skyggetabeller!H$10),0),7)),"") -> 0.05483028721 | I25: =IF(Datanedslag>=I$20,IF(INDEX(Data_kom2,MATCH(1,(komnavn2=$B25)*(komaar2=Skyggetabeller!I$10),0),4)="","*",INDEX(Data_kom2,MATCH(1,(komnavn2=$B25)*(komaar2=Skyggetabeller!I$10),0),4)/INDEX(Data_kom2,MATCH(1,(komnavn2=$B25)*(komaar2=Skyggetabeller!I$10),0),7)),"") -> 0.0518134715 | J25: =IF(Datanedslag>=J$20,IF(INDEX(Data_kom2,MATCH(1,(komnavn2=$B25)*(komaar2=Skyggetabeller!J$10),0),4)="","*",INDEX(Data_kom2,MATCH(1,(komnavn2=$B25)*(komaar2=Skyggetabeller!J$10),0),4)/INDEX(Data_kom2,MATCH(1,(komnavn2=$B25)*(komaar2=Skyggetabeller!J$10),0),7)),"") -> 0.04859335038 | K25: =IF(Datanedslag>=K$20,IF(INDEX(Data_kom2,MATCH(1,(komnavn2=$B25)*(komaar2=Skyggetabeller!K$10),0),4)="","*",INDEX(Data_kom2,MATCH(1,(komnavn2=$B25)*(komaar2=Skyggetabeller!K$10),0),4)/INDEX(Data_kom2,MATCH(1,(komnavn2=$B25)*(komaar2=Skyggetabeller!K$10),0),7)),"") -> 0.04960835509 | L25: =IF(Datanedslag>=L$20,IF(INDEX(Data_kom2,MATCH(1,(komnavn2=$B25)*(komaar2=Skyggetabeller!L$10),0),4)="","*",INDEX(Data_kom2,MATCH(1,(komnavn2=$B25)*(komaar2=Skyggetabeller!L$10),0),4)/INDEX(Data_kom2,MATCH(1,(komnavn2=$B25)*(komaar2=Skyggetabeller!L$10),0),7)),"") -> 0.05479452055 | M25: =IF(Datanedslag>=M$20,IF(INDEX(Data_kom2,MATCH(1,(komnavn2=$B25)*(komaar2=Skyggetabeller!M$10),0),4)="","*",INDEX(Data_kom2,MATCH(1,(komnavn2=$B25)*(komaar2=Skyggetabeller!M$10),0),4)/INDEX(Data_kom2,MATCH(1,(komnavn2=$B25)*(komaar2=Skyggetabeller!M$10),0),7)),"") -> 0.05555555556
B26: Sammenligningskommuner | C26: =IFERROR(IF(Datanedslag>=C$20,IF(Hjælpefane!$C$4="","*",SUM(Hjælpefane!$D$4:$D$10))/SUM(Hjælpefane!$E$4:$E$10),""),"") -> 0.06868686869 | D26: =IFERROR(IF(Datanedslag>=D$20,IF(Hjælpefane!$C$4="","*",SUM(Hjælpefane!$D$16:$D$22))/SUM(Hjælpefane!$E$16:$E$22),""),"") -> 0.07218683652 | E26: =IFERROR(IF(Datanedslag>=E$20,IF(Hjælpefane!$C$4="","*",SUM(Hjælpefane!$D$28:$D$34))/SUM(Hjælpefane!$E$28:$E$34),""),"") -> 0.07231404959 | F26: =IFERROR(IF(Datanedslag>=F$20,IF(Hjælpefane!$C$4="","*",SUM(Hjælpefane!$D$40:$D$46))/SUM(Hjælpefane!$E$40:$E$46),""),"") -> 0.06734693878 | G26: =IFERROR(IF(Datanedslag>=G$20,IF(Hjælpefane!$C$4="","*",SUM(Hjælpefane!$D$52:$D$58))/SUM(Hjælpefane!$E$52:$E$58),""),"") -> 0.07392197125 | H26: =IFERROR(IF(Datanedslag>=H$20,IF(Hjælpefane!$C$4="","*",SUM(Hjælpefane!$D$64:$D$70))/SUM(Hjælpefane!$E$64:$E$70),""),"") -> 0.07520325203 | I26: =IFERROR(IF(Datanedslag>=I$20,IF(Hjælpefane!$C$4="","*",SUM(Hjælpefane!$D$76:$D$82))/SUM(Hjælpefane!$E$76:$E$82),""),"") -> 0.07258064516 | J26: =IFERROR(IF(Datanedslag>=J$20,IF(Hjælpefane!$C$4="","*",SUM(Hjælpefane!$D$88:$D$94))/SUM(Hjælpefane!$E$88:$E$94),""),"") -> 0.06782945736 | K26: =IFERROR(IF(Datanedslag>=K$20,IF(Hjælpefane!$C$4="","*",SUM(Hjælpefane!$D$100:$D$106))/SUM(Hjælpefane!$E$100:$E$106),""),"") -> 0.06756756757 | L26: =IFERROR(IF(Datanedslag>=L$20,IF(Hjælpefane!$C$4="","*",SUM(Hjælpefane!$D$112:$D$118))/SUM(Hjælpefane!$E$112:$E$118),""),"") -> 0.065913371 | M26: =IFERROR(IF(Datanedslag>=M$20,IF(Hjælpefane!$C$4="","*",SUM(Hjælpefane!$D$124:$D$130))/SUM(Hjælpefane!$E$124:$E$130),""),"") -> 0.06678700361
B27: Landsgennemsnit | C27: =IF(Datanedslag>=C$20,IF(INDEX(Data_land,MATCH(C$19,Landaar,0),4)="","*",INDEX(Data_land,MATCH(C$19,Landaar,0),4)/INDEX(Data_land,MATCH(C$19,Landaar,0),7)),"") -> 0.06815600151 | D27: =IF(Datanedslag>=D$20,IF(INDEX(Data_land,MATCH(D$19,Landaar,0),4)="","*",INDEX(Data_land,MATCH(D$19,Landaar,0),4)/INDEX(Data_land,MATCH(D$19,Landaar,0),7)),"") -> 0.06831831832 | E27: =IF(Datanedslag>=E$20,IF(INDEX(Data_land,MATCH(E$19,Landaar,0),4)="","*",INDEX(Data_land,MATCH(E$19,Landaar,0),4)/INDEX(Data_land,MATCH(E$19,Landaar,0),7)),"") -> 0.06776488207 | F27: =IF(Datanedslag>=F$20,IF(INDEX(Data_land,MATCH(F$19,Landaar,0),4)="","*",INDEX(Data_land,MATCH(F$19,Landaar,0),4)/INDEX(Data_land,MATCH(F$19,Landaar,0),7)),"") -> 0.06646639129 | G27: =IF(Datanedslag>=G$20,IF(INDEX(Data_land,MATCH(G$19,Landaar,0),4)="","*",INDEX(Data_land,MATCH(G$19,Landaar,0),4)/INDEX(Data_land,MATCH(G$19,Landaar,0),7)),"") -> 0.06526631658 | H27: =IF(Datanedslag>=H$20,IF(INDEX(Data_land,MATCH(H$19,Landaar,0),4)="","*",INDEX(Data_land,MATCH(H$19,Landaar,0),4)/INDEX(Data_land,MATCH(H$19,Landaar,0),7)),"") -> 0.06579439252 | I27: =IF(Datanedslag>=I$20,IF(INDEX(Data_land,MATCH(I$19,Landaar,0),4)="","*",INDEX(Data_land,MATCH(I$19,Landaar,0),4)/INDEX(Data_land,MATCH(I$19,Landaar,0),7)),"") -> 0.06464721093 | J27: =IF(Datanedslag>=J$20,IF(INDEX(Data_land,MATCH(J$19,Landaar,0),4)="","*",INDEX(Data_land,MATCH(J$19,Landaar,0),4)/INDEX(Data_land,MATCH(J$19,Landaar,0),7)),"") -> 0.06375961891 | K27: =IF(Datanedslag>=K$20,IF(INDEX(Data_land,MATCH(K$19,Landaar,0),4)="","*",INDEX(Data_land,MATCH(K$19,Landaar,0),4)/INDEX(Data_land,MATCH(K$19,Landaar,0),7)),"") -> 0.06295224313 | L27: =IF(Datanedslag>=L$20,IF(INDEX(Data_land,MATCH(L$19,Landaar,0),4)="","*",INDEX(Data_land,MATCH(L$19,Landaar,0),4)/INDEX(Data_land,MATCH(L$19,Landaar,0),7)),"") -> 0.06263421618 | M27: =IF(Datanedslag>=M$20,IF(INDEX(Data_land,MATCH(M$19,Landaar,0),4)="","*",INDEX(Data_land,MATCH(M$19,Landaar,0),4)/INDEX(Data_land,MATCH(M$19,Landaar,0),7)),"") -> 0.06265574938
B28: N
B29: =B25&(", N") -> Herning, N | C29: =IF(Datanedslag>=C$20,IF(INDEX(Data_kom2,MATCH(1,(komnavn2=$B25)*(komaar2=Skyggetabeller!C$10),0),7)="","*",INDEX(Data_kom2,MATCH(1,(komnavn2=$B25)*(komaar2=Skyggetabeller!C$10),0),7)),"") -> 405 | D29: =IF(Datanedslag>=D$20,IF(INDEX(Data_kom2,MATCH(1,(komnavn2=$B25)*(komaar2=Skyggetabeller!D$10),0),7)="","*",INDEX(Data_kom2,MATCH(1,(komnavn2=$B25)*(komaar2=Skyggetabeller!D$10),0),7)),"") -> 407 | E29: =IF(Datanedslag>=E$20,IF(INDEX(Data_kom2,MATCH(1,(komnavn2=$B25)*(komaar2=Skyggetabeller!E$10),0),7)="","*",INDEX(Data_kom2,MATCH(1,(komnavn2=$B25)*(komaar2=Skyggetabeller!E$10),0),7)),"") -> 390 | F29: =IF(Datanedslag>=F$20,IF(INDEX(Data_kom2,MATCH(1,(komnavn2=$B25)*(komaar2=Skyggetabeller!F$10),0),7)="","*",INDEX(Data_kom2,MATCH(1,(komnavn2=$B25)*(komaar2=Skyggetabeller!F$10),0),7)),"") -> 374 | G29: =IF(Datanedslag>=G$20,IF(INDEX(Data_kom2,MATCH(1,(komnavn2=$B25)*(komaar2=Skyggetabeller!G$10),0),7)="","*",INDEX(Data_kom2,MATCH(1,(komnavn2=$B25)*(komaar2=Skyggetabeller!G$10),0),7)),"") -> 363 | H29: =IF(Datanedslag>=H$20,IF(INDEX(Data_kom2,MATCH(1,(komnavn2=$B25)*(komaar2=Skyggetabeller!H$10),0),7)="","*",INDEX(Data_kom2,MATCH(1,(komnavn2=$B25)*(komaar2=Skyggetabeller!H$10),0),7)),"") -> 383 | I29: =IF(Datanedslag>=I$20,IF(INDEX(Data_kom2,MATCH(1,(komnavn2=$B25)*(komaar2=Skyggetabeller!I$10),0),7)="","*",INDEX(Data_kom2,MATCH(1,(komnavn2=$B25)*(komaar2=Skyggetabeller!I$10),0),7)),"") -> 386 | J29: =IF(Datanedslag>=J$20,IF(INDEX(Data_kom2,MATCH(1,(komnavn2=$B25)*(komaar2=Skyggetabeller!J$10),0),7)="","*",INDEX(Data_kom2,MATCH(1,(komnavn2=$B25)*(komaar2=Skyggetabeller!J$10),0),7)),"") -> 391 | K29: =IF(Datanedslag>=K$20,IF(INDEX(Data_kom2,MATCH(1,(komnavn2=$B25)*(komaar2=Skyggetabeller!K$10),0),7)="","*",INDEX(Data_kom2,MATCH(1,(komnavn2=$B25)*(komaar2=Skyggetabeller!K$10),0),7)),"") -> 383 | L29: =IF(Datanedslag>=L$20,IF(INDEX(Data_kom2,MATCH(1,(komnavn2=$B25)*(komaar2=Skyggetabeller!L$10),0),7)="","*",INDEX(Data_kom2,MATCH(1,(komnavn2=$B25)*(komaar2=Skyggetabeller!L$10),0),7)),"") -> 365 | M29: =IF(Datanedslag>=M$20,IF(INDEX(Data_kom2,MATCH(1,(komnavn2=$B25)*(komaar2=Skyggetabeller!M$10),0),7)="","*",INDEX(Data_kom2,MATCH(1,(komnavn2=$B25)*(komaar2=Skyggetabeller!M$10),0),7)),"") -> 360
B30: =B26&(", N") -> Sammenligningskommuner, N | C30: =IFERROR(IF(Datanedslag>=C$20,IF(SUM(Hjælpefane!$E$4:$E$10)="","",SUM(Hjælpefane!$E$4:$E$10)),""),"") -> 495 | D30: =IF(Datanedslag>=D$20,IF(SUM(Hjælpefane!$E$16:$E$22)="","",SUM(Hjælpefane!$E$16:$E$22)),"") -> 471 | E30: =IF(Datanedslag>=E$20,IF(SUM(Hjælpefane!$E$28:$E$34)="","*",SUM(Hjælpefane!$E$28:$E$34)),"") -> 484 | F30: =IF(Datanedslag>=F$20,IF(SUM(Hjælpefane!$E$40:$E$46)="","*",SUM(Hjælpefane!$E$40:$E$46)),"") -> 490 | G30: =IF(Datanedslag>=G$20,IF(SUM(Hjælpefane!$E$52:$E$58)="","*",SUM(Hjælpefane!$E$52:$E$58)),"") -> 487 | H30: =IF(Datanedslag>=H$20,IF(SUM(Hjælpefane!$E$64:$E$70)="","*",SUM(Hjælpefane!$E$64:$E$70)),"") -> 492 | I30: =IF(Datanedslag>=I$20,IF(SUM(Hjælpefane!$E$76:$E$82)="","*",SUM(Hjælpefane!$E$76:$E$82)),"") -> 496 | J30: =IF(Datanedslag>=J$20,IF(SUM(Hjælpefane!$E$88:$E$94)="","*",SUM(Hjælpefane!$E$88:$E$94)),"") -> 516 | K30: =IF(Datanedslag>=K$20,IF(SUM(Hjælpefane!$E$100:$E$106)="","*",SUM(Hjælpefane!$E$100:$E$106)),"") -> 518 | L30: =IF(Datanedslag>=L$20,IF(SUM(Hjælpefane!$E$112:$E$118)="","*",SUM(Hjælpefane!$E$112:$E$118)),"") -> 531 | M30: =IF(Datanedslag>=M$20,IF(SUM(Hjælpefane!$E$124:$E$130)="","*",SUM(Hjælpefane!$E$124:$E$130)),"") -> 554
B31: =B27&(", N") -> Landsgennemsnit, N | C31: =IF(Datanedslag>=C$20,IF(INDEX(Data_land,MATCH(Skyggetabeller!C$10,Landaar,0),7)="","*",INDEX(Data_land,MATCH(Skyggetabeller!C$10,Landaar,0),7)),"") -> 26410 | D31: =IF(Datanedslag>=D$20,IF(INDEX(Data_land,MATCH(Skyggetabeller!D$10,Landaar,0),7)="","*",INDEX(Data_land,MATCH(Skyggetabeller!D$10,Landaar,0),7)),"") -> 26640 | E31: =IF(Datanedslag>=E$20,IF(INDEX(Data_land,MATCH(Skyggetabeller!E$10,Landaar,0),7)="","*",INDEX(Data_land,MATCH(Skyggetabeller!E$10,Landaar,0),7)),"") -> 26710 | F31: =IF(Datanedslag>=F$20,IF(INDEX(Data_land,MATCH(Skyggetabeller!F$10,Landaar,0),7)="","*",INDEX(Data_land,MATCH(Skyggetabeller!F$10,Landaar,0),7)),"") -> 26630 | G31: =IF(Datanedslag>=G$20,IF(INDEX(Data_land,MATCH(Skyggetabeller!G$10,Landaar,0),7)="","*",INDEX(Data_land,MATCH(Skyggetabeller!G$10,Landaar,0),7)),"") -> 26660 | H31: =IF(Datanedslag>=H$20,IF(INDEX(Data_land,MATCH(Skyggetabeller!H$10,Landaar,0),7)="","*",INDEX(Data_land,MATCH(Skyggetabeller!H$10,Landaar,0),7)),"") -> 26750 | I31: =IF(Datanedslag>=I$20,IF(INDEX(Data_land,MATCH(Skyggetabeller!I$10,Landaar,0),7)="","*",INDEX(Data_land,MATCH(Skyggetabeller!I$10,Landaar,0),7)),"") -> 27070 | J31: =IF(Datanedslag>=J$20,IF(INDEX(Data_land,MATCH(Skyggetabeller!J$10,Landaar,0),7)="","*",INDEX(Data_land,MATCH(Skyggetabeller!J$10,Landaar,0),7)),"") -> 27290 | K31: =IF(Datanedslag>=K$20,IF(INDEX(Data_land,MATCH(Skyggetabeller!K$10,Landaar,0),7)="","*",INDEX(Data_land,MATCH(Skyggetabeller!K$10,Landaar,0),7)),"") -> 27640 | L31: =IF(Datanedslag>=L$20,IF(INDEX(Data_land,MATCH(Skyggetabeller!L$10,Landaar,0),7)="","*",INDEX(Data_land,MATCH(Skyggetabeller!L$10,Landaar,0),7)),"") -> 27940 | M31: =IF(Datanedslag>=M$20,IF(INDEX(Data_land,MATCH(Skyggetabeller!M$10,Landaar,0),7)="","*",INDEX(Data_land,MATCH(Skyggetabeller!M$10,Landaar,0),7)),"") -> 28090
B33: Nøgletal 2 - Modtagere af botilbudslignende tilbud
B35: =Kommune -> Herning | C35: =Skyggetabeller!C$10 -> 20181 | D35: =Skyggetabeller!D$10 -> 20182 | E35: =Skyggetabeller!E$10 -> 20191 | F35: =Skyggetabeller!F$10 -> 20192 | G35: =Skyggetabeller!G$10 -> 20201 | H35: =Skyggetabeller!H$10 -> 20202 | I35: =Skyggetabeller!I$10 -> 20211 | J35: =Skyggetabeller!J$10 -> 20212 | K35: =Skyggetabeller!K$10 -> 20221 | L35: =Skyggetabeller!L$10 -> 20222 | M35: =Skyggetabeller!M$10 -> 20231
C36: =Skyggetabeller!C$11 -> 2018-01-01 | D36: =Skyggetabeller!D$11 -> 2018-07-01 | E36: =Skyggetabeller!E$11 -> 2019-01-01 | F36: =Skyggetabeller!F$11 -> 2019-07-01 | G36: =Skyggetabeller!G$11 -> 2020-01-01 | H36: =Skyggetabeller!H$11 -> 2020-07-01 | I36: =Skyggetabeller!I$11 -> 2021-01-01 | J36: =Skyggetabeller!J$11 -> 2021-07-01 | K36: =Skyggetabeller!K$11 -> 2022-01-01 | L36: =Skyggetabeller!L$11 -> 2022-07-01 | M36: =Skyggetabeller!M$11 -> 2023-01-01
B37: Antal modtagere | C37: =IFERROR(IF(INDEX(Data_kom2,MATCH(1,(komnavn2=Kommune)*(komaar2=C35),0),8)="","*",INDEX(Data_kom2,MATCH(1,(komnavn2=Kommune)*(komaar2=C35),0),8)),"Ingen data") -> 45 | D37: =IFERROR(IF(INDEX(Data_kom2,MATCH(1,(komnavn2=Kommune)*(komaar2=D35),0),8)="","*",INDEX(Data_kom2,MATCH(1,(komnavn2=Kommune)*(komaar2=D35),0),8)),"Ingen data") -> 44 | E37: =IFERROR(IF(INDEX(Data_kom2,MATCH(1,(komnavn2=Kommune)*(komaar2=E35),0),8)="","*",INDEX(Data_kom2,MATCH(1,(komnavn2=Kommune)*(komaar2=E35),0),8)),"Ingen data") -> 43 | F37: =IFERROR(IF(INDEX(Data_kom2,MATCH(1,(komnavn2=Kommune)*(komaar2=F35),0),8)="","*",INDEX(Data_kom2,MATCH(1,(komnavn2=Kommune)*(komaar2=F35),0),8)),"Ingen data") -> 42 | G37: =IFERROR(IF(INDEX(Data_kom2,MATCH(1,(komnavn2=Kommune)*(komaar2=G35),0),8)="","*",INDEX(Data_kom2,MATCH(1,(komnavn2=Kommune)*(komaar2=G35),0),8)),"Ingen data") -> 42 | H37: =IFERROR(IF(INDEX(Data_kom2,MATCH(1,(komnavn2=Kommune)*(komaar2=H35),0),8)="","*",INDEX(Data_kom2,MATCH(1,(komnavn2=Kommune)*(komaar2=H35),0),8)),"Ingen data") -> 41 | I37: =IFERROR(IF(INDEX(Data_kom2,MATCH(1,(komnavn2=Kommune)*(komaar2=I35),0),8)="","*",INDEX(Data_kom2,MATCH(1,(komnavn2=Kommune)*(komaar2=I35),0),8)),"Ingen data") -> 39 | J37: =IFERROR(IF(INDEX(Data_kom2,MATCH(1,(komnavn2=Kommune)*(komaar2=J35),0),8)="","*",INDEX(Data_kom2,MATCH(1,(komnavn2=Kommune)*(komaar2=J35),0),8)),"Ingen data") -> 37 | K37: =IFERROR(IF(INDEX(Data_kom2,MATCH(1,(komnavn2=Kommune)*(komaar2=K35),0),8)="","*",INDEX(Data_kom2,MATCH(1,(komnavn2=Kommune)*(komaar2=K35),0),8)),"Ingen data") -> 37 | L37: =IFERROR(IF(INDEX(Data_kom2,MATCH(1,(komnavn2=Kommune)*(komaar2=L35),0),8)="","*",INDEX(Data_kom2,MATCH(1,(komnavn2=Kommune)*(komaar2=L35),0),8)),"Ingen data") -> 36 | M37: =IFERROR(IF(INDEX(Data_kom2,MATCH(1,(komnavn2=Kommune)*(komaar2=M35),0),8)="","*",INDEX(Data_kom2,MATCH(1,(komnavn2=Kommune)*(komaar2=M35),0),8)),"Ingen data") -> 34 | N37: Ved næste datanedslag trækkes formlen i den gule række én gang til højre. Trækkes kun i gule felter
C39: =Skyggetabeller!C$11 -> 2018-01-01 | D39: =Skyggetabeller!D$11 -> 2018-07-01 | E39: =Skyggetabeller!E$11 -> 2019-01-01 | F39: =Skyggetabeller!F$11 -> 2019-07-01 | G39: =Skyggetabeller!G$11 -> 2020-01-01 | H39: =Skyggetabeller!H$11 -> 2020-07-01 | I39: =Skyggetabeller!I$11 -> 2021-01-01 | J39: =Skyggetabeller!J$11 -> 2021-07-01 | K39: =Skyggetabeller!K$11 -> 2022-01-01 | L39: =Skyggetabeller!L$11 -> 2022-07-01 | M39: =Skyggetabeller!M$11 -> 2023-01-01
B40: =Kommune -> Herning | C40: =IF(Datanedslag>=C$20,IF(INDEX(Data_kom2,MATCH(1,(komnavn2=$B40)*(komaar2=Skyggetabeller!C$10),0),8)="","*",INDEX(Data_kom2,MATCH(1,(komnavn2=$B40)*(komaar2=Skyggetabeller!C$10),0),8)/INDEX(Data_kom2,MATCH(1,(komnavn2=$B40)*(komaar2=Skyggetabeller!C$10),0),11)),"") -> 0.1111111111 | D40: =IF(Datanedslag>=D$20,IF(INDEX(Data_kom2,MATCH(1,(komnavn2=$B40)*(komaar2=Skyggetabeller!D$10),0),8)="","*",INDEX(Data_kom2,MATCH(1,(komnavn2=$B40)*(komaar2=Skyggetabeller!D$10),0),8)/INDEX(Data_kom2,MATCH(1,(komnavn2=$B40)*(komaar2=Skyggetabeller!D$10),0),11)),"") -> 0.1081081081 | E40: =IF(Datanedslag>=E$20,IF(INDEX(Data_kom2,MATCH(1,(komnavn2=$B40)*(komaar2=Skyggetabeller!E$10),0),8)="","*",INDEX(Data_kom2,MATCH(1,(komnavn2=$B40)*(komaar2=Skyggetabeller!E$10),0),8)/INDEX(Data_kom2,MATCH(1,(komnavn2=$B40)*(komaar2=Skyggetabeller!E$10),0),11)),"") -> 0.1102564103 | F40: =IF(Datanedslag>=F$20,IF(INDEX(Data_kom2,MATCH(1,(komnavn2=$B40)*(komaar2=Skyggetabeller!F$10),0),8)="","*",INDEX(Data_kom2,MATCH(1,(komnavn2=$B40)*(komaar2=Skyggetabeller!F$10),0),8)/INDEX(Data_kom2,MATCH(1,(komnavn2=$B40)*(komaar2=Skyggetabeller!F$10),0),11)),"") -> 0.1122994652 | G40: =IF(Datanedslag>=G$20,IF(INDEX(Data_kom2,MATCH(1,(komnavn2=$B40)*(komaar2=Skyggetabeller!G$10),0),8)="","*",INDEX(Data_kom2,MATCH(1,(komnavn2=$B40)*(komaar2=Skyggetabeller!G$10),0),8)/INDEX(Data_kom2,MATCH(1,(komnavn2=$B40)*(komaar2=Skyggetabeller!G$10),0),11)),"") -> 0.1157024793 | H40: =IF(Datanedslag>=H$20,IF(INDEX(Data_kom2,MATCH(1,(komnavn2=$B40)*(komaar2=Skyggetabeller!H$10),0),8)="","*",INDEX(Data_kom2,MATCH(1,(komnavn2=$B40)*(komaar2=Skyggetabeller!H$10),0),8)/INDEX(Data_kom2,MATCH(1,(komnavn2=$B40)*(komaar2=Skyggetabeller!H$10),0),11)),"") -> 0.1070496084 | I40: =IF(Datanedslag>=I$20,IF(INDEX(Data_kom2,MATCH(1,(komnavn2=$B40)*(komaar2=Skyggetabeller!I$10),0),8)="","*",INDEX(Data_kom2,MATCH(1,(komnavn2=$B40)*(komaar2=Skyggetabeller!I$10),0),8)/INDEX(Data_kom2,MATCH(1,(komnavn2=$B40)*(komaar2=Skyggetabeller!I$10),0),11)),"") -> 0.1010362694 | J40: =IF(Datanedslag>=J$20,IF(INDEX(Data_kom2,MATCH(1,(komnavn2=$B40)*(komaar2=Skyggetabeller!J$10),0),8)="","*",INDEX(Data_kom2,MATCH(1,(komnavn2=$B40)*(komaar2=Skyggetabeller!J$10),0),8)/INDEX(Data_kom2,MATCH(1,(komnavn2=$B40)*(komaar2=Skyggetabeller!J$10),0),11)),"") -> 0.09462915601 | K40: =IF(Datanedslag>=K$20,IF(INDEX(Data_kom2,MATCH(1,(komnavn2=$B40)*(komaar2=Skyggetabeller!K$10),0),8)="","*",INDEX(Data_kom2,MATCH(1,(komnavn2=$B40)*(komaar2=Skyggetabeller!K$10),0),8)/INDEX(Data_kom2,MATCH(1,(komnavn2=$B40)*(komaar2=Skyggetabeller!K$10),0),11)),"") -> 0.09660574413 | L40: =IF(Datanedslag>=L$20,IF(INDEX(Data_kom2,MATCH(1,(komnavn2=$B40)*(komaar2=Skyggetabeller!L$10),0),8)="","*",INDEX(Data_kom2,MATCH(1,(komnavn2=$B40)*(komaar2=Skyggetabeller!L$10),0),8)/INDEX(Data_kom2,MATCH(1,(komnavn2=$B40)*(komaar2=Skyggetabeller!L$10),0),11)),"") -> 0.09863013699 | M40: =IF(Datanedslag>=M$20,IF(INDEX(Data_kom2,MATCH(1,(komnavn2=$B40)*(komaar2=Skyggetabeller!M$10),0),8)="","*",INDEX(Data_kom2,MATCH(1,(komnavn2=$B40)*(komaar2=Skyggetabeller!M$10),0),8)/INDEX(Data_kom2,MATCH(1,(komnavn2=$B40)*(komaar2=Skyggetabeller!M$10),0),11)),"") -> 0.09444444444
B41: Sammenligningskommuner | C41: =IFERROR(IF(Datanedslag>=C$20,IF(Hjælpefane!$C$4="","*",SUM(Hjælpefane!$F$4:$F$10))/SUM(Hjælpefane!$G$4:$G$10),""),"") -> 0.1090909091 | D41: =IFERROR(IF(Datanedslag>=D$20,IF(Hjælpefane!$C$4="","*",SUM(Hjælpefane!$F$16:$F$22))/SUM(Hjælpefane!$G$16:$G$22),""),"") -> 0.1167728238 | E41: =IFERROR(IF(Datanedslag>=E$20,IF(Hjælpefane!$C$4="","*",SUM(Hjælpefane!$F$28:$F$34))/SUM(Hjælpefane!$G$28:$G$34),""),"") -> 0.1033057851 | F41: =IFERROR(IF(Datanedslag>=F$20,IF(Hjælpefane!$C$4="","*",SUM(Hjælpefane!$F$40:$F$46))/SUM(Hjælpefane!$G$40:$G$46),""),"") -> 0.08367346939 | G41: =IFERROR(IF(Datanedslag>=G$20,IF(Hjælpefane!$C$4="","*",SUM(Hjælpefane!$F$52:$F$58))/SUM(Hjælpefane!$G$52:$G$58),""),"") -> 0.08213552361 | H41: =IFERROR(IF(Datanedslag>=H$20,IF(Hjælpefane!$C$4="","*",SUM(Hjælpefane!$F$64:$F$70))/SUM(Hjælpefane!$G$64:$G$70),""),"") -> 0.08333333333 | I41: =IFERROR(IF(Datanedslag>=I$20,IF(Hjælpefane!$C$4="","*",SUM(Hjælpefane!$F$76:$F$82))/SUM(Hjælpefane!$G$76:$G$82),""),"") -> 0.09677419355 | J41: =IFERROR(IF(Datanedslag>=J$20,IF(Hjælpefane!$C$4="","*",SUM(Hjælpefane!$F$88:$F$94))/SUM(Hjælpefane!$G$88:$G$94),""),"") -> 0.09302325581 | K41: =IFERROR(IF(Datanedslag>=K$20,IF(Hjælpefane!$C$4="","*",SUM(Hjælpefane!$F$100:$F$106))/SUM(Hjælpefane!$G$100:$G$106),""),"") -> 0.09266409266 | L41: =IFERROR(IF(Datanedslag>=L$20,IF(Hjælpefane!$C$4="","*",SUM(Hjælpefane!$F$112:$F$118))/SUM(Hjælpefane!$G$112:$G$118),""),"") -> 0.09039548023 | M41: =IFERROR(IF(Datanedslag>=M$20,IF(Hjælpefane!$C$4="","*",SUM(Hjælpefane!$F$124:$F$130))/SUM(Hjælpefane!$G$124:$G$130),""),"") -> 0.08483754513
B42: Landsgennemsnit | C42: =IF(Datanedslag>=C$20,IF(INDEX(Data_land,MATCH(C$19,Landaar,0),8)="","*",INDEX(Data_land,MATCH(C$19,Landaar,0),8)/INDEX(Data_land,MATCH(C$19,Landaar,0),11)),"") -> 0.1063990913 | D42: =IF(Datanedslag>=D$20,IF(INDEX(Data_land,MATCH(D$19,Landaar,0),8)="","*",INDEX(Data_land,MATCH(D$19,Landaar,0),8)/INDEX(Data_land,MATCH(D$19,Landaar,0),11)),"") -> 0.106981982 | E42: =IF(Datanedslag>=E$20,IF(INDEX(Data_land,MATCH(E$19,Landaar,0),8)="","*",INDEX(Data_land,MATCH(E$19,Landaar,0),8)/INDEX(Data_land,MATCH(E$19,Landaar,0),11)),"") -> 0.1067016099 | F42: =IF(Datanedslag>=F$20,IF(INDEX(Data_land,MATCH(F$19,Landaar,0),8)="","*",INDEX(Data_land,MATCH(F$19,Landaar,0),8)/INDEX(Data_land,MATCH(F$19,Landaar,0),11)),"") -> 0.1066466391 | G42: =IF(Datanedslag>=G$20,IF(INDEX(Data_land,MATCH(G$19,Landaar,0),8)="","*",INDEX(Data_land,MATCH(G$19,Landaar,0),8)/INDEX(Data_land,MATCH(G$19,Landaar,0),11)),"") -> 0.1072768192 | H42: =IF(Datanedslag>=H$20,IF(INDEX(Data_land,MATCH(H$19,Landaar,0),8)="","*",INDEX(Data_land,MATCH(H$19,Landaar,0),8)/INDEX(Data_land,MATCH(H$19,Landaar,0),11)),"") -> 0.1061682243 | I42: =IF(Datanedslag>=I$20,IF(INDEX(Data_land,MATCH(I$19,Landaar,0),8)="","*",INDEX(Data_land,MATCH(I$19,Landaar,0),8)/INDEX(Data_land,MATCH(I$19,Landaar,0),11)),"") -> 0.1041743628 | J42: =IF(Datanedslag>=J$20,IF(INDEX(Data_land,MATCH(J$19,Landaar,0),8)="","*",INDEX(Data_land,MATCH(J$19,Landaar,0),8)/INDEX(Data_land,MATCH(J$19,Landaar,0),11)),"") -> 0.1026016856 | K42: =IF(Datanedslag>=K$20,IF(INDEX(Data_land,MATCH(K$19,Landaar,0),8)="","*",INDEX(Data_land,MATCH(K$19,Landaar,0),8)/INDEX(Data_land,MATCH(K$19,Landaar,0),11)),"") -> 0.1005788712 | L42: =IF(Datanedslag>=L$20,IF(INDEX(Data_land,MATCH(L$19,Landaar,0),8)="","*",INDEX(Data_land,MATCH(L$19,Landaar,0),8)/INDEX(Data_land,MATCH(L$19,Landaar,0),11)),"") -> 0.09842519685 | M42: =IF(Datanedslag>=M$20,IF(INDEX(Data_land,MATCH(M$19,Landaar,0),8)="","*",INDEX(Data_land,MATCH(M$19,Landaar,0),8)/INDEX(Data_land,MATCH(M$19,Landaar,0),11)),"") -> 0.09754360983
B43: N
B44: =B40&(", N") -> Herning, N | C44: =IF(Datanedslag>=C$20,IF(INDEX(Data_kom2,MATCH(1,(komnavn2=$B40)*(komaar2=Skyggetabeller!C$10),0),11)="","*",INDEX(Data_kom2,MATCH(1,(komnavn2=$B40)*(komaar2=Skyggetabeller!C$10),0),11)),"") -> 405 | D44: =IF(Datanedslag>=D$20,IF(INDEX(Data_kom2,MATCH(1,(komnavn2=$B40)*(komaar2=Skyggetabeller!D$10),0),11)="","*",INDEX(Data_kom2,MATCH(1,(komnavn2=$B40)*(komaar2=Skyggetabeller!D$10),0),11)),"") -> 407 | E44: =IF(Datanedslag>=E$20,IF(INDEX(Data_kom2,MATCH(1,(komnavn2=$B40)*(komaar2=Skyggetabeller!E$10),0),11)="","*",INDEX(Data_kom2,MATCH(1,(komnavn2=$B40)*(komaar2=Skyggetabeller!E$10),0),11)),"") -> 390 | F44: =IF(Datanedslag>=F$20,IF(INDEX(Data_kom2,MATCH(1,(komnavn2=$B40)*(komaar2=Skyggetabeller!F$10),0),11)="","*",INDEX(Data_kom2,MATCH(1,(komnavn2=$B40)*(komaar2=Skyggetabeller!F$10),0),11)),"") -> 374 | G44: =IF(Datanedslag>=G$20,IF(INDEX(Data_kom2,MATCH(1,(komnavn2=$B40)*(komaar2=Skyggetabeller!G$10),0),11)="","*",INDEX(Data_kom2,MATCH(1,(komnavn2=$B40)*(komaar2=Skyggetabeller!G$10),0),11)),"") -> 363 | H44: =IF(Datanedslag>=H$20,IF(INDEX(Data_kom2,MATCH(1,(komnavn2=$B40)*(komaar2=Skyggetabeller!H$10),0),11)="","*",INDEX(Data_kom2,MATCH(1,(komnavn2=$B40)*(komaar2=Skyggetabeller!H$10),0),11)),"") -> 383 | I44: =IF(Datanedslag>=I$20,IF(INDEX(Data_kom2,MATCH(1,(komnavn2=$B40)*(komaar2=Skyggetabeller!I$10),0),11)="","*",INDEX(Data_kom2,MATCH(1,(komnavn2=$B40)*(komaar2=Skyggetabeller!I$10),0),11)),"") -> 386 | J44: =IF(Datanedslag>=J$20,IF(INDEX(Data_kom2,MATCH(1,(komnavn2=$B40)*(komaar2=Skyggetabeller!J$10),0),11)="","*",INDEX(Data_kom2,MATCH(1,(komnavn2=$B40)*(komaar2=Skyggetabeller!J$10),0),11)),"") -> 391 | K44: =IF(Datanedslag>=K$20,IF(INDEX(Data_kom2,MATCH(1,(komnavn2=$B40)*(komaar2=Skyggetabeller!K$10),0),11)="","*",INDEX(Data_kom2,MATCH(1,(komnavn2=$B40)*(komaar2=Skyggetabeller!K$10),0),11)),"") -> 383 | L44: =IF(Datanedslag>=L$20,IF(INDEX(Data_kom2,MATCH(1,(komnavn2=$B40)*(komaar2=Skyggetabeller!L$10),0),11)="","*",INDEX(Data_kom2,MATCH(1,(komnavn2=$B40)*(komaar2=Skyggetabeller!L$10),0),11)),"") -> 365 | M44: =IF(Datanedslag>=M$20,IF(INDEX(Data_kom2,MATCH(1,(komnavn2=$B40)*(komaar2=Skyggetabeller!M$10),0),11)="","*",INDEX(Data_kom2,MATCH(1,(komnavn2=$B40)*(komaar2=Skyggetabeller!M$10),0),11)),"") -> 360
B45: =B41&(", N") -> Sammenligningskommuner, N | C45: =IF(Datanedslag>=C$20,IF(SUM(Hjælpefane!$G$4:$G$10)="","",SUM(Hjælpefane!$G$4:$G$10)),"") -> 495 | D45: =IF(Datanedslag>=D$20,IF(SUM(Hjælpefane!$G$16:$G$22)="","",SUM(Hjælpefane!$G$16:$G$22)),"") -> 471 | E45: =IF(Datanedslag>=E$20,IF(SUM(Hjælpefane!$G$28:$G$34)="","*",SUM(Hjælpefane!$G$28:$G$34)),"") -> 484 | F45: =IF(Datanedslag>=F$20,IF(SUM(Hjælpefane!$G$40:$G$46)="","*",SUM(Hjælpefane!$G$40:$G$46)),"") -> 490 | G45: =IF(Datanedslag>=G$20,IF(SUM(Hjælpefane!$G$52:$G$58)="","*",SUM(Hjælpefane!$G$52:$G$58)),"") -> 487 | H45: =IF(Datanedslag>=H$20,IF(SUM(Hjælpefane!$G$64:$G$70)="","*",SUM(Hjælpefane!$G$64:$G$70)),"") -> 492 | I45: =IF(Datanedslag>=I$20,IF(SUM(Hjælpefane!$G$76:$G$82)="","*",SUM(Hjælpefane!$G$76:$G$82)),"") -> 496 | J45: =IF(Datanedslag>=J$20,IF(SUM(Hjælpefane!$G$88:$G$94)="","*",SUM(Hjælpefane!$G$88:$G$94)),"") -> 516 | K45: =IF(Datanedslag>=K$20,IF(SUM(Hjælpefane!$G$100:$G$106)="","*",SUM(Hjælpefane!$G$100:$G$106)),"") -> 518 | L45: =IF(Datanedslag>=L$20,IF(SUM(Hjælpefane!$G$100:$G$106)="","*",SUM(Hjælpefane!$G$100:$G$106)),"") -> 518 | M45: =IF(Datanedslag>=M$20,IF(SUM(Hjælpefane!$G$100:$G$106)="","*",SUM(Hjælpefane!$G$100:$G$106)),"") -> 518
B46: =B42&(", N") -> Landsgennemsnit, N | C46: =IF(Datanedslag>=C$20,IF(INDEX(Data_land,MATCH(Skyggetabeller!C$10,Landaar,0),11)="","*",INDEX(Data_land,MATCH(Skyggetabeller!C$10,Landaar,0),11)),"") -> 26410 | D46: =IF(Datanedslag>=D$20,IF(INDEX(Data_land,MATCH(Skyggetabeller!D$10,Landaar,0),11)="","*",INDEX(Data_land,MATCH(Skyggetabeller!D$10,Landaar,0),11)),"") -> 26640 | E46: =IF(Datanedslag>=E$20,IF(INDEX(Data_land,MATCH(Skyggetabeller!E$10,Landaar,0),11)="","*",INDEX(Data_land,MATCH(Skyggetabeller!E$10,Landaar,0),11)),"") -> 26710 | F46: =IF(Datanedslag>=F$20,IF(INDEX(Data_land,MATCH(Skyggetabeller!F$10,Landaar,0),11)="","*",INDEX(Data_land,MATCH(Skyggetabeller!F$10,Landaar,0),11)),"") -> 26630 | G46: =IF(Datanedslag>=G$20,IF(INDEX(Data_land,MATCH(Skyggetabeller!G$10,Landaar,0),11)="","*",INDEX(Data_land,MATCH(Skyggetabeller!G$10,Landaar,0),11)),"") -> 26660 | H46: =IF(Datanedslag>=H$20,IF(INDEX(Data_land,MATCH(Skyggetabeller!H$10,Landaar,0),11)="","*",INDEX(Data_land,MATCH(Skyggetabeller!H$10,Landaar,0),11)),"") -> 26750 | I46: =IF(Datanedslag>=I$20,IF(INDEX(Data_land,MATCH(Skyggetabeller!I$10,Landaar,0),11)="","*",INDEX(Data_land,MATCH(Skyggetabeller!I$10,Landaar,0),11)),"") -> 27070 | J46: =IF(Datanedslag>=J$20,IF(INDEX(Data_land,MATCH(Skyggetabeller!J$10,Landaar,0),11)="","*",INDEX(Data_land,MATCH(Skyggetabeller!J$10,Landaar,0),11)),"") -> 27290 | K46: =IF(Datanedslag>=K$20,IF(INDEX(Data_land,MATCH(Skyggetabeller!K$10,Landaar,0),11)="","*",INDEX(Data_land,MATCH(Skyggetabeller!K$10,Landaar,0),11)),"") -> 27640 | L46: =IF(Datanedslag>=L$20,IF(INDEX(Data_land,MATCH(Skyggetabeller!L$10,Landaar,0),11)="","*",INDEX(Data_land,MATCH(Skyggetabeller!L$10,Landaar,0),11)),"") -> 27940 | M46: =IF(Datanedslag>=M$20,IF(INDEX(Data_land,MATCH(Skyggetabeller!M$10,Landaar,0),11)="","*",INDEX(Data_land,MATCH(Skyggetabeller!M$10,Landaar,0),11)),"") -> 28090
B49: Nøgletal 3 - Modtagere af midlertidigt botilbud
B51: =Kommune -> Herning | C51: =Skyggetabeller!C$10 -> 20181 | D51: =Skyggetabeller!D$10 -> 20182 | E51: =Skyggetabeller!E$10 -> 20191 | F51: =Skyggetabeller!F$10 -> 20192 | G51: =Skyggetabeller!G$10 -> 20201 | H51: =Skyggetabeller!H$10 -> 20202 | I51: =Skyggetabeller!I$10 -> 20211 | J51: =Skyggetabeller!J$10 -> 20212 | K51: =Skyggetabeller!K$10 -> 20221 | L51: =Skyggetabeller!L$10 -> 20222 | M51: =Skyggetabeller!M$10 -> 20231
C52: =Skyggetabeller!C$11 -> 2018-01-01 | D52: =Skyggetabeller!D$11 -> 2018-07-01 | E52: =Skyggetabeller!E$11 -> 2019-01-01 | F52: =Skyggetabeller!F$11 -> 2019-07-01 | G52: =Skyggetabeller!G$11 -> 2020-01-01 | H52: =Skyggetabeller!H$11 -> 2020-07-01 | I52: =Skyggetabeller!I$11 -> 2021-01-01 | J52: =Skyggetabeller!J$11 -> 2021-07-01 | K52: =Skyggetabeller!K$11 -> 2022-01-01 | L52: =Skyggetabeller!L$11 -> 2022-07-01 | M52: =Skyggetabeller!M$11 -> 2023-01-01
B53: Antal modtagere | C53: =IFERROR(IF(INDEX(Data_kom2,MATCH(1,(komnavn2=Kommune)*(komaar2=C51),0),12)="","*",INDEX(Data_kom2,MATCH(1,(komnavn2=Kommune)*(komaar2=C51),0),12)),"Ingen data") -> 28 | D53: =IFERROR(IF(INDEX(Data_kom2,MATCH(1,(komnavn2=Kommune)*(komaar2=D51),0),12)="","*",INDEX(Data_kom2,MATCH(1,(komnavn2=Kommune)*(komaar2=D51),0),12)),"Ingen data") -> 26 | E53: =IFERROR(IF(INDEX(Data_kom2,MATCH(1,(komnavn2=Kommune)*(komaar2=E51),0),12)="","*",INDEX(Data_kom2,MATCH(1,(komnavn2=Kommune)*(komaar2=E51),0),12)),"Ingen data") -> 28 | F53: =IFERROR(IF(INDEX(Data_kom2,MATCH(1,(komnavn2=Kommune)*(komaar2=F51),0),12)="","*",INDEX(Data_kom2,MATCH(1,(komnavn2=Kommune)*(komaar2=F51),0),12)),"Ingen data") -> 30 | G53: =IFERROR(IF(INDEX(Data_kom2,MATCH(1,(komnavn2=Kommune)*(komaar2=G51),0),12)="","*",INDEX(Data_kom2,MATCH(1,(komnavn2=Kommune)*(komaar2=G51),0),12)),"Ingen data") -> 30 | H53: =IFERROR(IF(INDEX(Data_kom2,MATCH(1,(komnavn2=Kommune)*(komaar2=H51),0),12)="","*",INDEX(Data_kom2,MATCH(1,(komnavn2=Kommune)*(komaar2=H51),0),12)),"Ingen data") -> 26 | I53: =IFERROR(IF(INDEX(Data_kom2,MATCH(1,(komnavn2=Kommune)*(komaar2=I51),0),12)="","*",INDEX(Data_kom2,MATCH(1,(komnavn2=Kommune)*(komaar2=I51),0),12)),"Ingen data") -> 24 | J53: =IFERROR(IF(INDEX(Data_kom2,MATCH(1,(komnavn2=Kommune)*(komaar2=J51),0),12)="","*",INDEX(Data_kom2,MATCH(1,(komnavn2=Kommune)*(komaar2=J51),0),12)),"Ingen data") -> 23 | K53: =IFERROR(IF(INDEX(Data_kom2,MATCH(1,(komnavn2=Kommune)*(komaar2=K51),0),12)="","*",INDEX(Data_kom2,MATCH(1,(komnavn2=Kommune)*(komaar2=K51),0),12)),"Ingen data") -> 21 | L53: =IFERROR(IF(INDEX(Data_kom2,MATCH(1,(komnavn2=Kommune)*(komaar2=L51),0),12)="","*",INDEX(Data_kom2,MATCH(1,(komnavn2=Kommune)*(komaar2=L51),0),12)),"Ingen data") -> 17 | M53: =IFERROR(IF(INDEX(Data_kom2,MATCH(1,(komnavn2=Kommune)*(komaar2=M51),0),12)="","*",INDEX(Data_kom2,MATCH(1,(komnavn2=Kommune)*(komaar2=M51),0),12)),"Ingen data") -> 15 | N53: Ved næste datanedslag trækkes formlen i den gule række én gang til højre. Trækkes kun i gule felter
C55: =Skyggetabeller!C$11 -> 2018-01-01 | D55: =Skyggetabeller!D$11 -> 2018-07-01 | E55: =Skyggetabeller!E$11 -> 2019-01-01 | F55: =Skyggetabeller!F$11 -> 2019-07-01 | G55: =Skyggetabeller!G$11 -> 2020-01-01 | H55: =Skyggetabeller!H$11 -> 2020-07-01 | I55: =Skyggetabeller!I$11 -> 2021-01-01 | J55: =Skyggetabeller!J$11 -> 2021-07-01 | K55: =Skyggetabeller!K$11 -> 2022-01-01 | L55: =Skyggetabeller!L$11 -> 2022-07-01 | M55: =Skyggetabeller!M$11 -> 2023-01-01
B56: =Kommune -> Herning | C56: =IF(Datanedslag>=C$20,IF(INDEX(Data_kom2,MATCH(1,(komnavn2=$B56)*(komaar2=Skyggetabeller!C$10),0),12)="","*",INDEX(Data_kom2,MATCH(1,(komnavn2=$B56)*(komaar2=Skyggetabeller!C$10),0),12)/INDEX(Data_kom2,MATCH(1,(komnavn2=$B56)*(komaar2=Skyggetabeller!C$10),0),15)),"") -> 0.06913580247 | D56: =IF(Datanedslag>=D$20,IF(INDEX(Data_kom2,MATCH(1,(komnavn2=$B56)*(komaar2=Skyggetabeller!D$10),0),12)="","*",INDEX(Data_kom2,MATCH(1,(komnavn2=$B56)*(komaar2=Skyggetabeller!D$10),0),12)/INDEX(Data_kom2,MATCH(1,(komnavn2=$B56)*(komaar2=Skyggetabeller!D$10),0),15)),"") -> 0.06388206388 | E56: =IF(Datanedslag>=E$20,IF(INDEX(Data_kom2,MATCH(1,(komnavn2=$B56)*(komaar2=Skyggetabeller!E$10),0),12)="","*",INDEX(Data_kom2,MATCH(1,(komnavn2=$B56)*(komaar2=Skyggetabeller!E$10),0),12)/INDEX(Data_kom2,MATCH(1,(komnavn2=$B56)*(komaar2=Skyggetabeller!E$10),0),15)),"") -> 0.07179487179 | F56: =IF(Datanedslag>=F$20,IF(INDEX(Data_kom2,MATCH(1,(komnavn2=$B56)*(komaar2=Skyggetabeller!F$10),0),12)="","*",INDEX(Data_kom2,MATCH(1,(komnavn2=$B56)*(komaar2=Skyggetabeller!F$10),0),12)/INDEX(Data_kom2,MATCH(1,(komnavn2=$B56)*(komaar2=Skyggetabeller!F$10),0),15)),"") -> 0.08021390374 | G56: =IF(Datanedslag>=G$20,IF(INDEX(Data_kom2,MATCH(1,(komnavn2=$B56)*(komaar2=Skyggetabeller!G$10),0),12)="","*",INDEX(Data_kom2,MATCH(1,(komnavn2=$B56)*(komaar2=Skyggetabeller!G$10),0),12)/INDEX(Data_kom2,MATCH(1,(komnavn2=$B56)*(komaar2=Skyggetabeller!G$10),0),15)),"") -> 0.0826446281 | H56: =IF(Datanedslag>=H$20,IF(INDEX(Data_kom2,MATCH(1,(komnavn2=$B56)*(komaar2=Skyggetabeller!H$10),0),12)="","*",INDEX(Data_kom2,MATCH(1,(komnavn2=$B56)*(komaar2=Skyggetabeller!H$10),0),12)/INDEX(Data_kom2,MATCH(1,(komnavn2=$B56)*(komaar2=Skyggetabeller!H$10),0),15)),"") -> 0.06788511749 | I56: =IF(Datanedslag>=I$20,IF(INDEX(Data_kom2,MATCH(1,(komnavn2=$B56)*(komaar2=Skyggetabeller!I$10),0),12)="","*",INDEX(Data_kom2,MATCH(1,(komnavn2=$B56)*(komaar2=Skyggetabeller!I$10),0),12)/INDEX(Data_kom2,MATCH(1,(komnavn2=$B56)*(komaar2=Skyggetabeller!I$10),0),15)),"") -> 0.0621761658 | J56: =IF(Datanedslag>=J$20,IF(INDEX(Data_kom2,MATCH(1,(komnavn2=$B56)*(komaar2=Skyggetabeller!J$10),0),12)="","*",INDEX(Data_kom2,MATCH(1,(komnavn2=$B56)*(komaar2=Skyggetabeller!J$10),0),12)/INDEX(Data_kom2,MATCH(1,(komnavn2=$B56)*(komaar2=Skyggetabeller!J$10),0),15)),"") -> 0.05882352941 | K56: =IF(Datanedslag>=K$20,IF(INDEX(Data_kom2,MATCH(1,(komnavn2=$B56)*(komaar2=Skyggetabeller!K$10),0),12)="","*",INDEX(Data_kom2,MATCH(1,(komnavn2=$B56)*(komaar2=Skyggetabeller!K$10),0),12)/INDEX(Data_kom2,MATCH(1,(komnavn2=$B56)*(komaar2=Skyggetabeller!K$10),0),15)),"") -> 0.05483028721 | L56: =IF(Datanedslag>=L$20,IF(INDEX(Data_kom2,MATCH(1,(komnavn2=$B56)*(komaar2=Skyggetabeller!L$10),0),12)="","*",INDEX(Data_kom2,MATCH(1,(komnavn2=$B56)*(komaar2=Skyggetabeller!L$10),0),12)/INDEX(Data_kom2,MATCH(1,(komnavn2=$B56)*(komaar2=Skyggetabeller!L$10),0),15)),"") -> 0.04657534247 | M56: =IF(Datanedslag>=M$20,IF(INDEX(Data_kom2,MATCH(1,(komnavn2=$B56)*(komaar2=Skyggetabeller!M$10),0),12)="","*",INDEX(Data_kom2,MATCH(1,(komnavn2=$B56)*(komaar2=Skyggetabeller!M$10),0),12)/INDEX(Data_kom2,MATCH(1,(komnavn2=$B56)*(komaar2=Skyggetabeller!M$10),0),15)),"") -> 0.04166666667
B57: Sammenligningskommuner | C57: =IFERROR(IF(Datanedslag>=C$20,IF(Hjælpefane!$C$4="","*",SUM(Hjælpefane!$H$4:$H$10))/SUM(Hjælpefane!$I$4:$I$10),""),"") -> 0.1232323232 | D57: =IFERROR(IF(Datanedslag>=D$20,IF(Hjælpefane!$C$4="","*",SUM(Hjælpefane!$H$16:$H$22))/SUM(Hjælpefane!$I$16:$I$22),""),"") -> 0.1252653928 | E57: =IFERROR(IF(Datanedslag>=E$20,IF(Hjælpefane!$C$4="","*",SUM(Hjælpefane!$H$28:$H$34))/SUM(Hjælpefane!$I$28:$I$34),""),"") -> 0.1260330579 | F57: =IFERROR(IF(Datanedslag>=F$20,IF(Hjælpefane!$C$4="","*",SUM(Hjælpefane!$H$40:$H$46))/SUM(Hjælpefane!$I$40:$I$46),""),"") -> 0.1204081633 | G57: =IFERROR(IF(Datanedslag>=G$20,IF(Hjælpefane!$C$4="","*",SUM(Hjælpefane!$H$52:$H$58))/SUM(Hjælpefane!$I$52:$I$58),""),"") -> 0.1190965092 | H57: =IFERROR(IF(Datanedslag>=H$20,IF(Hjælpefane!$C$4="","*",SUM(Hjælpefane!$H$64:$H$70))/SUM(Hjælpefane!$I$64:$I$70),""),"") -> 0.1300813008 | I57: =IFERROR(IFERROR(IF(Datanedslag>=I$20,IF(Hjælpefane!$C$4="","*",SUM(Hjælpefane!$H$76:$H$82))/SUM(Hjælpefane!$I$76:$I$82),""),"*"),"") -> 0.122983871 | J57: =IFERROR(IF(Datanedslag>=J$20,IF(Hjælpefane!$C$4="","*",SUM(Hjælpefane!$H$88:$H$94))/SUM(Hjælpefane!$I$88:$I$94),""),"") -> 0.1337209302 | K57: =IFERROR(IF(Datanedslag>=K$20,IF(Hjælpefane!$C$4="","*",SUM(Hjælpefane!$H$100:$H$106))/SUM(Hjælpefane!$I$100:$I$106),""),"") -> 0.1312741313 | L57: =IFERROR(IF(Datanedslag>=L$20,IF(Hjælpefane!$C$4="","*",SUM(Hjælpefane!$H$100:$H$106))/SUM(Hjælpefane!$I$100:$I$106),""),"") -> 0.1312741313 | M57: =IFERROR(IF(Datanedslag>=M$20,IF(Hjælpefane!$C$4="","*",SUM(Hjælpefane!$H$100:$H$106))/SUM(Hjælpefane!$I$100:$I$106),""),"") -> 0.1312741313
B58: Landsgennemsnit | C58: =IF(Datanedslag>=C$20,IF(INDEX(Data_land,MATCH(C$19,Landaar,0),12)="","*",INDEX(Data_land,MATCH(C$19,Landaar,0),12)/INDEX(Data_land,MATCH(C$19,Landaar,0),15)),"") -> 0.09087466869 | D58: =IF(Datanedslag>=D$20,IF(INDEX(Data_land,MATCH(D$19,Landaar,0),12)="","*",INDEX(Data_land,MATCH(D$19,Landaar,0),12)/INDEX(Data_land,MATCH(D$19,Landaar,0),15)),"") -> 0.09234234234 | E58: =IF(Datanedslag>=E$20,IF(INDEX(Data_land,MATCH(E$19,Landaar,0),12)="","*",INDEX(Data_land,MATCH(E$19,Landaar,0),12)/INDEX(Data_land,MATCH(E$19,Landaar,0),15)),"") -> 0.09584425309 | F58: =IF(Datanedslag>=F$20,IF(INDEX(Data_land,MATCH(F$19,Landaar,0),12)="","*",INDEX(Data_land,MATCH(F$19,Landaar,0),12)/INDEX(Data_land,MATCH(F$19,Landaar,0),15)),"") -> 0.09763424709 | G58: =IF(Datanedslag>=G$20,IF(INDEX(Data_land,MATCH(G$19,Landaar,0),12)="","*",INDEX(Data_land,MATCH(G$19,Landaar,0),12)/INDEX(Data_land,MATCH(G$19,Landaar,0),15)),"") -> 0.09714928732 | H58: =IF(Datanedslag>=H$20,IF(INDEX(Data_land,MATCH(H$19,Landaar,0),12)="","*",INDEX(Data_land,MATCH(H$19,Landaar,0),12)/INDEX(Data_land,MATCH(H$19,Landaar,0),15)),"") -> 0.09757009346 | I58: =IF(Datanedslag>=I$20,IF(INDEX(Data_land,MATCH(I$19,Landaar,0),12)="","*",INDEX(Data_land,MATCH(I$19,Landaar,0),12)/INDEX(Data_land,MATCH(I$19,Landaar,0),15)),"") -> 0.09604728482 | J58: =IF(Datanedslag>=J$20,IF(INDEX(Data_land,MATCH(J$19,Landaar,0),12)="","*",INDEX(Data_land,MATCH(J$19,Landaar,0),12)/INDEX(Data_land,MATCH(J$19,Landaar,0),15)),"") -> 0.09710516673 | K58: =IF(Datanedslag>=K$20,IF(INDEX(Data_land,MATCH(K$19,Landaar,0),12)="","*",INDEX(Data_land,MATCH(K$19,Landaar,0),12)/INDEX(Data_land,MATCH(K$19,Landaar,0),15)),"") -> 0.0976845152 | L58: =IF(Datanedslag>=L$20,IF(INDEX(Data_land,MATCH(L$19,Landaar,0),12)="","*",INDEX(Data_land,MATCH(L$19,Landaar,0),12)/INDEX(Data_land,MATCH(L$19,Landaar,0),15)),"") -> 0.09735146743 | M58: =IF(Datanedslag>=M$20,IF(INDEX(Data_land,MATCH(M$19,Landaar,0),12)="","*",INDEX(Data_land,MATCH(M$19,Landaar,0),12)/INDEX(Data_land,MATCH(M$19,Landaar,0),15)),"") -> 0.09861160555
